{"text_format":"1","workbook":"xlsx","n_sheets":81,"sheets":["Overview","Terminology","Index sheet","Afghanistan","Albania","Algeria","Armenia","Azerbaijan","Barbados","Belarus","Benin","Bhutan","Bosnia and Herzegovina","Botswana","Burkina Faso","Burundi","Cabo Verde","Cameroon","Central African Region","Chad","Comoros","Congo","Cote d'Ivoire","D.R.Congo","Djibouti","Dominica","Dominican Republic","Ecuador","Equatorial Guinea","Eritrea","Ethiopia","Gabon","Gambia","Georgia","Ghana","Grenada","Guatemala","Guinea","Guyana","Haiti","Honduras","Jordan","Kenya","Kiribati","Kyrgyzstan","Lebanon","Lesotho","Liberia","Liechtenstein","Madagascar","Maldives","Marshall Islands","Mauritania","Mauritius","Monaco","Mongolia","Montenegro","Morocco","Mozambique","Namibia","Niger","Oman","Paraguay","Peru","Republic of Macedonia","Republic of Moldova","Senegal","Serbia","Seychelles","Sri Lanka","Tajikistan","Togo","Trinidad and Tobago","Tunisia","Turkey","Uganda","United Republic of Tanzania","Uruguay","Vanuatu","Zambia","Zimbabwe"],"not_rendered":{"charts":156,"images":3,"macros":1,"external_links":0,"defined_names":1,"comments":78,"pivot_tables":0},"unopened":[],"bounds":{"document_bytes":16777216,"sheet_cells":100000,"rows_first":2000,"rows_last":500,"rows_between":2000,"halvings":0,"cell_chars":16384,"cell_head_chars":4096},"cells_cut":0,"cells_raw":0,"read":"whole","date_system":"1900"}

{"sheet":"Overview","index":0,"n_rows":0,"n_cols":0,"rows_kept":0,"cut":false,"hidden":false,"merged":[]}

{"sheet":"Terminology","index":1,"n_rows":19,"n_cols":2,"rows_kept":19,"cut":false,"hidden":false,"merged":[]}
[]
[null,"Description"]
["Economy Wide CO2e Emissions Target (INDC)","Conditional or Unconditional Economy Wide CO2e Emissions Target in INDC"]
["Total Country CO2e Emissions Under Target (by Target Year) (MT)","Quantified CO2 economy wide emission reduction target with specific baseline year  (all sectors)"]
["Target Year","INDC horizon year for which emission target is set ( generally 2030 is preferred by majority of countries)"]
["Transport CO2 Emissions Target (based on share of total emissions @ 2010)","Quantified CO2 emission reduction target in million tons. In absence of specific target, economy wide emission reduction target is translated to different sectors such as transport based on its 2010 share in total emissions"]
["Total Country CO2e Emissions (BAU)","It provides Business-as-usual projections over 2010 to 2030. BAU does not take into account any possible, potential or even likely future low carbon policy actions and are often estimated assuming continuation of current investment's. This scenario does not envisage high comparable investments in low carbon strategyand assumes that future development trends follow those of the past and no changes in policies will take place. The projections are provided for 2020 and 2030. Historic emissions from 1990, 2000 and 2010 are also collected."]
["Total Country CO2e Emissions (Low Carbon Scenario)","Low Carbon Scenario considers significant investments on low carbon strategy which allows economy-wide different sectors to deviate from the Business-as-usual emission trajectory. It provides the estimate in million tons for 2020 and 2030"]
["Total Transport CO2e Emissions (BAU)","It provides Business-as-usual projections over 2010 to 2030. BAU does not take into account any possible, potential or even likely future low carbon policy actions and are often estimated assuming continuation of transport sector investment's to keep the existing transport capacity operational for full length of analysis. This scenario does not envisage high comparable investments in low carbon modes and assumes that future development trends follow those of the past and no changes in policies will take place. The projections are provided for 2020 and 2030"]
["Total Transport CO2e Emissions (Low Carbon Scenario) ","Low Carbon Scenario considers significant investments on low carbon modes which allows transport sector to deviate from the Business-as-usual emission trajectory. It provides the estimate in million tons"]
["Historical Growth in CO2e Emissions  (%) Transport Sector","It provides the trend in transport emissions growth from 1990 to 2010"]
["Growth Forecast CO2e Emissions (%)BAU-Transport Sector","It provides Business-as-usual projections growth over 2010 to 2030. BAU does not take into account any possible, potential or even likely future low carbon policy actions and are often estimated assuming continuation of transport sector investment's to keep the existing transport capacity operational for full length of analysis. This scenario does not envisage high comparable investments in low carbon modes and assumes that future development trends follow those of the past and no changes in policies will take place. The projections are provided for 2020 and 2030"]
["Reduction with BAU (%) - Transport","It provides comparison of Low carbon scenario with BAU scenario at 2020 and 2030"]
["Transport Share in Total Economy-wide Emissions","For historic and future projections ( BAU and Low Carbon), this ratio provides transport sector share in total GHG emissions excluding landuse emissions"]
["Gap Between INDC Target and Average Low Carbon Scenario (%)","Simple average gap between INDC target and Low carbon scenario. Positive sign indicates that Low carbon scenario value for 2030 is higher than INDC target resulting in an emission gap. Negative value indicates that low carbon scenario is lower than INDC target and hence transport sector could easily reach INDC target with planned policies and interventions"]
["Cumulative Increase in Transport CO2 (2010-2030) MT (avg)","It gives the cumulative increase in transport CO2 emissions in the BAU and the low carbon scenario between 2010 to 2030 in Million tons"]
["Cumulative Reduction in Transport (2010-2030) MT (avg)","It gives the cumulative savings in transport CO2 emissions when Low Carbon scenario is compared with BAU scenario. It is in Million tons over the period 2010 to 2030"]
["Cumulative Gap Between INDC Target and Average Low Carbon Scenario (MT)","It gives the cumulative increase or decrease in transport CO2 emissions when Low Carbon scenario is compared with INDC target scenario. The increase is in Million tons over the period 2010 to 2030. Positive sign indicates that low carbon scenario is lower than INDC target and transport sector is going to contribute much higher savings in emissions when compared with its target."]
["Cumulative Gap Between INDC Target and BAU (MT)","It gives the cumulative savings in transport CO2 emissions when INDC Target is compared with BAU scenario. The increase is in Million tons over the period 2010 to 2030"]

{"sheet":"Index sheet","index":2,"n_rows":79,"n_cols":1,"rows_kept":79,"cut":false,"hidden":false,"merged":[]}
["Sheet Index:"]
["Afghanistan"]
["Albania"]
["Algeria"]
["Armenia"]
["Azerbaijan"]
["Barbados"]
["Belarus"]
["Benin"]
["Bhutan"]
["Bosnia and Herzegovina"]
["Botswana"]
["Burkina Faso"]
["Burundi"]
["Cabo Verde"]
["Cameroon"]
["Central African Region"]
["Chad"]
["Comorros"]
["Congo"]
["Cote d'Ivoire"]
["D.R.Congo"]
["Djibouti"]
["Dominica"]
["Dominican Republic"]
["Ecuador"]
["Equatorial Guinea"]
["Eritrea"]
["Ethiopia"]
["Gabon"]
["Gambia"]
["Georgia"]
["Ghana"]
["Grenada"]
["Guatemala"]
["Guinea"]
["Guyana"]
["Haiti"]
["Honduras"]
["Jordan"]
["Kenya"]
["Kiribati"]
["Kyrgyzstan"]
["Lebanon"]
["Lesotho"]
["Liberia"]
["Liechtenstein"]
["Madagascar"]
["Maldives"]
["Marshall Islands"]
["Mauritania"]
["Mauritius"]
["Monaco"]
["Mongolia"]
["Montenegro"]
["Morocco"]
["Mozambique"]
["Namibia"]
["Niger"]
["Oman"]
["Paraguay"]
["Peru"]
["Republic of Macedonia"]
["Republic of Moldova"]
["Senegal"]
["Serbia"]
["Seychelles"]
["Sri Lanka"]
["Tajikistan"]
["Togo"]
["Trinidad and Tobago"]
["Tunisia"]
["Turkey"]
["Uganda"]
["United Republic of Tanzania"]
["Uruguay"]
["Vanuatu"]
["Zambia"]
["Zimbabwe"]

{"sheet":"Afghanistan","index":3,"n_rows":67,"n_cols":6,"rows_kept":67,"cut":false,"hidden":false,"merged":[[21,5,21,11],[22,5,22,11],[1,1,1,3],[2,1,2,2],[3,1,3,2],[4,1,4,2],[5,1,5,2],[6,1,6,2],[33,1,33,2],[7,1,11,1],[12,1,13,1],[14,1,18,1],[19,1,20,1],[23,1,23,2],[24,1,24,2],[25,1,29,1],[30,1,30,2],[31,1,32,1],[34,1,34,2],[35,1,35,2],[38,5,38,11],[43,1,51,1],[52,1,59,1]]}
[]
[null,"Table 1: Historic and Projected Emissions"]
[null,"Country Name",null,"Afghanistan"]
[null,"Economy Wide CO2e Emissions Target (INDC)",null,"13.6% reduction with BAU for the year 2030"]
[null,"Total Country CO2e Emissions Under Target (by Target Year) (MT)",null,42.7]
[null,"Target Year",null,2030]
[null,"Transport CO2 Emissions Target (based on share of total emissions @ 2010)",null,0.54116194380164262]
[null,"Total Country CO2e Emissions (BAU)",1990,9.08]
[null,null,2000,11.14]
[null,null,2010,21.8]
[null,null,2020,35.5]
[null,null,2030,48.9]
[null,"Total Country CO2e Emissions (Low Carbon Scenario)",2020]
[null,null,2030]
[null,"Total Transport CO2e Emissions (BAU)",1990,1.1130088382438992,{"$f":"D7","v":0.54116194380164262}]
[null,null,2000,0.27825220956097479]
[null,null,2010,0.27628408372074492]
[null,null,2020,0.54366320322042638]
[null,null,2030,1.2060761129143642,{"$f":"D7","v":0.54116194380164262}]
[null,"Total Transport CO2e Emissions (Low Carbon Scenario) ",2020,0.51689889246159348]
[null,null,2030,0.8563769801834874,{"$f":"D7","v":0.54116194380164262}]
[null,"Historical Growth in CO2e Emissions  (%) Transport Sector","1990-2010",-0.75176829309220505,null,"Figure 1: Projected Transport Emissions: BAU, Low Carbon Scenario, and Transport Target"]
[null,"Growth Forecast CO2e Emissions (%)BAU-Transport Sector","2010-2030",3.3653477850479794]
[null,"Reduction with BAU (%) - Transport (2020)",null,-4.9229579269468027E-2]
[null,"Reduction with BAU (%) - Transport (2030)",null,-0.28994781422696725]
[null,"Transport Share in Total Economy-wide Emissions",1990,0.12257806588589198]
[null,null,2000,2.4977756693085707E-2]
[null,null,2010,1.267358182205252E-2]
[null,null,"2030(BAU)",2.4664133188432805E-2]
[null,null,"2030 (Low)",1.7512821680643914E-2]
[null,"Gap Between INDC Target and Average Low Carbon Scenario (%)",null,0.58247820267528572]
[null,"Cumulative Increase in Transport CO2 (2010-2030) MT (avg)","Baseline",13.010578441123846]
[null,null,"Low Carbon",11.134296338680295]
[null,"Cumulative Reduction in Transport (2010-2030) MT (avg)",null,1.8762821024435503]
[null,"Cumulative Gap Between INDC Target and Average Low Carbon Scenario (MT)",null,-2.8449499536158065]
[null,"Cumulative Gap Between INDC Target and BAU (MT)",null,-4.7212320560593568]
[]
[]
[null,null,null,null,null,"Figure 2: Transport Share of Economy-Wide Emissions"]
[]
[null,"TIER II FACTSHEET SOURCES"]
[]
[null,"Table 1: Historic and Projected Emissions"]
[null,"Historic Emissions","Submitted National Communications","http://unfccc.int/national_reports/non-annex_i_natcom/submitted_natcom/items/653.php"]
[null,null,"UNFCCC: INDCs as communicated by Parties","http://www4.unfccc.int/submissions/indc/Submission%20Pages/submissions.aspx"]
[null,null,"Submitted Biennial Update Reports","http://unfccc.int/national_reports/non-annex_i_natcom/reporting_on_climate_change/items/8722.php"]
[null,null,"The Climate Pledge INDC Tool","http://infographics.pbl.nl/indc/"]
[null,null,"CAIT Climate Data Explorer","http://cait.wri.org/"]
[null,null,"Climate Equity Reference Calculator","http://gdrights.org/calculator-about/"]
[null,null,"World Bank - World Development Indicators","http://data.worldbank.org/data-catalog/world-development-indicators"]
[null,null,"UNEP Pledge Pipeline Tool","http://www.unep.org/climatechange/pledgepipeline/"]
[null,null,"Climate Action Tracker","http://climateactiontracker.org/"]
[null,"BAU Emissions Projections","Submitted National Communications","http://unfccc.int/national_reports/non-annex_i_natcom/submitted_natcom/items/653.php"]
[null,null,"UNFCCC: INDCs as communicated by Parties","http://www4.unfccc.int/submissions/indc/Submission%20Pages/submissions.aspx"]
[null,null,"Submitted Biennial Update Reports","http://unfccc.int/national_reports/non-annex_i_natcom/reporting_on_climate_change/items/8722.php"]
[null,null,"The Climate Pledge INDC Tool","http://infographics.pbl.nl/indc/"]
[null,null,"Climate Equity Reference Calculator","http://gdrights.org/calculator-about/"]
[null,null,"World Bank - World Development Indicators","http://data.worldbank.org/data-catalog/world-development-indicators"]
[null,null,"UNEP Pledge Pipeline Tool","http://www.unep.org/climatechange/pledgepipeline/"]
[null,null,"Climate Action Tracker","http://climateactiontracker.org/"]
[null,"INDC Targets","UNFCCC: INDCs as communicated by Parties","http://www4.unfccc.int/submissions/indc/Submission%20Pages/submissions.aspx"]
[]
[null,"Figure 1: Projected Transport Emissions: BAU, Low Carbon Scenario, and Derived Target"]
[null,"Derived from Table 1: Historic and Projected Emissions"]
[]
[null,"Figure 2: Transport Share of Economy-Wide Emissions"]
[null,"Derived from Table 1: Historic and Projected Emissions"]

{"sheet":"Albania","index":4,"n_rows":67,"n_cols":6,"rows_kept":67,"cut":false,"hidden":false,"merged":[[21,5,21,11],[22,5,22,11],[1,1,1,3],[2,1,2,2],[3,1,3,2],[4,1,4,2],[5,1,5,2],[6,1,6,2],[33,1,33,2],[7,1,11,1],[12,1,13,1],[14,1,18,1],[19,1,20,1],[23,1,23,2],[24,1,24,2],[25,1,29,1],[30,1,30,2],[31,1,32,1],[34,1,34,2],[35,1,35,2],[38,5,38,11],[43,1,51,1],[52,1,59,1]]}
[]
[null,"Table 1: Historic and Projected Emissions"]
[null,"Country Name",null,"Albania"]
[null,"Economy Wide CO2e Emissions Target (INDC)",null,"11.5% reduction from BAU"]
[null,"Total Country CO2e Emissions Under Target (by Target Year) (MT)",null,5.4480599999999999]
[null,"Target Year",null,2030]
[null,"Transport CO2 Emissions Target (based on share of total emissions @ 2010)",null,1.433358642857143]
[null,"Total Country CO2e Emissions (BAU)",1990,7.1]
[null,null,2000,7.6189999999999998]
[null,null,2010,18]
[null,null,2020,18]
[null,null,2030,24]
[null,"Total Country CO2e Emissions (Low Carbon Scenario)",2020]
[null,null,2030]
[null,"Total Transport CO2e Emissions (BAU)",1990,0.7,{"$f":"D7","v":1.433358642857143}]
[null,null,2000,1.45]
[null,null,2010,2.21]
[null,null,2020,2.9088060173403543]
[null,null,2030,4.7530614950053067,{"$f":"D7","v":1.433358642857143}]
[null,"Total Transport CO2e Emissions (Low Carbon Scenario) ",2020,2.5695898163613937]
[null,null,2030,3.5065813911278338,{"$f":"D7","v":1.433358642857143}]
[null,"Historical Growth in CO2e Emissions  (%) Transport Sector","1990-2010",2.1571428571428575,null,"Figure 1: Projected Transport Emissions: BAU, Low Carbon Scenario, and Transport Target"]
[null,"Growth Forecast CO2e Emissions (%)BAU-Transport Sector","2010-2030",1.1507065588259309]
[null,"Reduction with BAU (%) - Transport (2020)",null,-0.11661698956780919]
[null,"Reduction with BAU (%) - Transport (2030)",null,-0.26224783861671486]
[null,"Transport Share in Total Economy-wide Emissions",1990,9.8591549295774641E-2]
[null,null,2000,0.19031368946055913]
[null,null,2010,0.12277777777777778]
[null,null,"2030(BAU)",0.19804422895855445]
[null,null,"2030 (Low)",0.14610755796365973]
[null,"Gap Between INDC Target and Average Low Carbon Scenario (%)",null,0.34465119684325263]
[null,"Cumulative Increase in Transport CO2 (2010-2030) MT (avg)","Baseline",66.4825848502322]
[null,null,"Low Carbon",56.852452494311521]
[null,"Cumulative Reduction in Transport (2010-2030) MT (avg)",null,9.6301323559206793]
[null,"Cumulative Gap Between INDC Target and Average Low Carbon Scenario (MT)",null,-6.374964156096425]
[null,"Cumulative Gap Between INDC Target and BAU (MT)",null,-16.005096512017104]
[]
[]
[null,null,null,null,null,"Figure 2: Transport Share of Economy-Wide Emissions"]
[]
[null,"TIER II FACTSHEET SOURCES"]
[]
[null,"Table 1: Historic and Projected Emissions"]
[null,"Historic Emissions","Submitted National Communications","http://unfccc.int/national_reports/non-annex_i_natcom/submitted_natcom/items/653.php"]
[null,null,"UNFCCC: INDCs as communicated by Parties","http://www4.unfccc.int/submissions/indc/Submission%20Pages/submissions.aspx"]
[null,null,"Submitted Biennial Update Reports","http://unfccc.int/national_reports/non-annex_i_natcom/reporting_on_climate_change/items/8722.php"]
[null,null,"The Climate Pledge INDC Tool","http://infographics.pbl.nl/indc/"]
[null,null,"CAIT Climate Data Explorer","http://cait.wri.org/"]
[null,null,"Climate Equity Reference Calculator","http://gdrights.org/calculator-about/"]
[null,null,"World Bank - World Development Indicators","http://data.worldbank.org/data-catalog/world-development-indicators"]
[null,null,"UNEP Pledge Pipeline Tool","http://www.unep.org/climatechange/pledgepipeline/"]
[null,null,"Climate Action Tracker","http://climateactiontracker.org/"]
[null,"BAU Emissions Projections","Submitted National Communications","http://unfccc.int/national_reports/non-annex_i_natcom/submitted_natcom/items/653.php"]
[null,null,"UNFCCC: INDCs as communicated by Parties","http://www4.unfccc.int/submissions/indc/Submission%20Pages/submissions.aspx"]
[null,null,"Submitted Biennial Update Reports","http://unfccc.int/national_reports/non-annex_i_natcom/reporting_on_climate_change/items/8722.php"]
[null,null,"The Climate Pledge INDC Tool","http://infographics.pbl.nl/indc/"]
[null,null,"Climate Equity Reference Calculator","http://gdrights.org/calculator-about/"]
[null,null,"World Bank - World Development Indicators","http://data.worldbank.org/data-catalog/world-development-indicators"]
[null,null,"UNEP Pledge Pipeline Tool","http://www.unep.org/climatechange/pledgepipeline/"]
[null,null,"Climate Action Tracker","http://climateactiontracker.org/"]
[null,"INDC Targets","UNFCCC: INDCs as communicated by Parties","http://www4.unfccc.int/submissions/indc/Submission%20Pages/submissions.aspx"]
[]
[null,"Figure 1: Projected Transport Emissions: BAU, Low Carbon Scenario, and Derived Target"]
[null,"Derived from Table 1: Historic and Projected Emissions"]
[]
[null,"Figure 2: Transport Share of Economy-Wide Emissions"]
[null,"Derived from Table 1: Historic and Projected Emissions"]

{"sheet":"Algeria","index":5,"n_rows":67,"n_cols":6,"rows_kept":67,"cut":false,"hidden":false,"merged":[[21,5,21,11],[22,5,22,11],[1,1,1,3],[2,1,2,2],[3,1,3,2],[4,1,4,2],[5,1,5,2],[6,1,6,2],[33,1,33,2],[7,1,11,1],[12,1,13,1],[14,1,18,1],[19,1,20,1],[23,1,23,2],[24,1,24,2],[25,1,29,1],[30,1,30,2],[31,1,32,1],[34,1,34,2],[35,1,35,2],[38,5,38,11],[43,1,51,1],[52,1,59,1]]}
[]
[null,"Table 1: Historic and Projected Emissions"]
[null,"Country Name",null,"Algeria"]
[null,"Economy Wide CO2e Emissions Target (INDC)",null,"22% reduction below BAU"]
[null,"Total Country CO2e Emissions Under Target (by Target Year) (MT)",null,252.72]
[null,"Target Year",null,2030]
[null,"Transport CO2 Emissions Target (based on share of total emissions @ 2010)",null,50.23818318139535]
[null,"Total Country CO2e Emissions (BAU)",1990,106.4]
[null,null,2000,133.80000000000001]
[null,null,2010,167.7]
[null,null,2020,257]
[null,null,2030,324]
[null,"Total Country CO2e Emissions (Low Carbon Scenario)",2020]
[null,null,2030]
[null,"Total Transport CO2e Emissions (BAU)",1990,15.65,{"$f":"D7","v":50.23818318139535}]
[null,null,2000,16.68]
[null,null,2010,33.337066]
[null,null,2020,47.437733392217446]
[null,null,2030,83.725785266867177,{"$f":"D7","v":50.23818318139535}]
[null,"Total Transport CO2e Emissions (Low Carbon Scenario) ",2020,41.905687732096709]
[null,null,2030,61.768879044144086,{"$f":"D7","v":50.23818318139535}]
[null,"Historical Growth in CO2e Emissions  (%) Transport Sector","1990-2010",1.1301639616613417,null,"Figure 1: Projected Transport Emissions: BAU, Low Carbon Scenario, and Transport Target"]
[null,"Growth Forecast CO2e Emissions (%)BAU-Transport Sector","2010-2030",1.5114923210958988]
[null,"Reduction with BAU (%) - Transport (2020)",null,-0.11661698956780919]
[null,"Reduction with BAU (%) - Transport (2030)",null,-0.26224783861671463]
[null,"Transport Share in Total Economy-wide Emissions",1990,0.14708646616541354]
[null,null,2000,0.12466367713004484]
[null,null,2010,0.1987898986285033]
[null,null,"2030(BAU)",0.2584129174903308]
[null,null,"2030 (Low)"]
[null,"Gap Between INDC Target and Average Low Carbon Scenario (%)",null,0.22952055851850317]
[null,"Cumulative Increase in Transport CO2 (2010-2030) MT (avg)","Baseline",1097.2113129396453]
[null,null,"Low Carbon",934.18212993001441]
[null,"Cumulative Reduction in Transport (2010-2030) MT (avg)",null,163.02918300963086]
[null,"Cumulative Gap Between INDC Target and Average Low Carbon Scenario (MT)",null,-68.132949157240887]
[null,"Cumulative Gap Between INDC Target and BAU (MT)",null,-231.16213216687174]
[]
[]
[null,null,null,null,null,"Figure 2: Transport Share of Economy-Wide Emissions"]
[]
[null,"TIER II FACTSHEET SOURCES"]
[]
[null,"Table 1: Historic and Projected Emissions"]
[null,"Historic Emissions","Submitted National Communications","http://unfccc.int/national_reports/non-annex_i_natcom/submitted_natcom/items/653.php"]
[null,null,"UNFCCC: INDCs as communicated by Parties","http://www4.unfccc.int/submissions/indc/Submission%20Pages/submissions.aspx"]
[null,null,"Submitted Biennial Update Reports","http://unfccc.int/national_reports/non-annex_i_natcom/reporting_on_climate_change/items/8722.php"]
[null,null,"The Climate Pledge INDC Tool","http://infographics.pbl.nl/indc/"]
[null,null,"CAIT Climate Data Explorer","http://cait.wri.org/"]
[null,null,"Climate Equity Reference Calculator","http://gdrights.org/calculator-about/"]
[null,null,"World Bank - World Development Indicators","http://data.worldbank.org/data-catalog/world-development-indicators"]
[null,null,"UNEP Pledge Pipeline Tool","http://www.unep.org/climatechange/pledgepipeline/"]
[null,null,"Climate Action Tracker","http://climateactiontracker.org/"]
[null,"BAU Emissions Projections","Submitted National Communications","http://unfccc.int/national_reports/non-annex_i_natcom/submitted_natcom/items/653.php"]
[null,null,"UNFCCC: INDCs as communicated by Parties","http://www4.unfccc.int/submissions/indc/Submission%20Pages/submissions.aspx"]
[null,null,"Submitted Biennial Update Reports","http://unfccc.int/national_reports/non-annex_i_natcom/reporting_on_climate_change/items/8722.php"]
[null,null,"The Climate Pledge INDC Tool","http://infographics.pbl.nl/indc/"]
[null,null,"Climate Equity Reference Calculator","http://gdrights.org/calculator-about/"]
[null,null,"World Bank - World Development Indicators","http://data.worldbank.org/data-catalog/world-development-indicators"]
[null,null,"UNEP Pledge Pipeline Tool","http://www.unep.org/climatechange/pledgepipeline/"]
[null,null,"Climate Action Tracker","http://climateactiontracker.org/"]
[null,"INDC Targets","UNFCCC: INDCs as communicated by Parties","http://www4.unfccc.int/submissions/indc/Submission%20Pages/submissions.aspx"]
[]
[null,"Figure 1: Projected Transport Emissions: BAU, Low Carbon Scenario, and Derived Target"]
[null,"Derived from Table 1: Historic and Projected Emissions"]
[]
[null,"Figure 2: Transport Share of Economy-Wide Emissions"]
[null,"Derived from Table 1: Historic and Projected Emissions"]

{"sheet":"Armenia","index":6,"n_rows":67,"n_cols":6,"rows_kept":67,"cut":false,"hidden":false,"merged":[[21,5,21,11],[22,5,22,11],[1,1,1,3],[2,1,2,2],[3,1,3,2],[4,1,4,2],[5,1,5,2],[6,1,6,2],[33,1,33,2],[7,1,11,1],[12,1,13,1],[14,1,18,1],[19,1,20,1],[23,1,23,2],[24,1,24,2],[25,1,29,1],[30,1,30,2],[31,1,32,1],[34,1,34,2],[35,1,35,2],[38,5,38,11],[43,1,51,1],[52,1,59,1]]}
[]
[null,"Table 1: Historic and Projected Emissions"]
[null,"Country Name",null,"Armenia"]
[null,"Economy Wide CO2e Emissions Target (INDC)",null,"total aggregate quantitative contribution to 633 MT"]
[null,"Total Country CO2e Emissions Under Target (by Target Year) (MT)",null,16]
[null,"Target Year",null,2030]
[null,"Transport CO2 Emissions Target (based on share of total emissions @ 2010)",null,2.6666666666666665]
[null,"Total Country CO2e Emissions (BAU)",1990,25]
[null,null,2000,5.71]
[null,null,2010,7.5]
[null,null,2020,12.867000000000001]
[null,null,2030,19.658000000000001]
[null,"Total Country CO2e Emissions (Low Carbon Scenario)",2020,11.074999999999999]
[null,null,2030,13.771000000000001]
[null,"Total Transport CO2e Emissions (BAU)",1990,3.52,{"$f":"D7","v":2.6666666666666665}]
[null,null,2000,0.65800000000000003]
[null,null,2010,1.25]
[null,null,2020,2.3740000000000001]
[null,null,2030,3.0419999999999998,{"$f":"D7","v":2.6666666666666665}]
[null,"Total Transport CO2e Emissions (Low Carbon Scenario) ",2020,2.2290000000000001]
[null,null,2030,2.44,{"$f":"D7","v":2.6666666666666665}]
[null,"Historical Growth in CO2e Emissions  (%) Transport Sector","1990-2010",-0.64488636363636365,null,"Figure 1: Projected Transport Emissions: BAU, Low Carbon Scenario, and Transport Target"]
[null,"Growth Forecast CO2e Emissions (%)BAU-Transport Sector","2010-2030",1.4335999999999998]
[null,"Reduction with BAU (%) - Transport (2020)",null,-6.1078348778432989E-2]
[null,"Reduction with BAU (%) - Transport (2030)",null,-0.19789612097304399]
[null,"Transport Share in Total Economy-wide Emissions",1990,0.14080000000000001]
[null,null,2000,0.11523642732049037]
[null,null,2010,0.16666666666666666]
[null,null,"2030(BAU)",0.15474615932444805]
[null,null,"2030 (Low)",0.12412249465866312]
[null,"Gap Between INDC Target and Average Low Carbon Scenario (%)",null,-8.4999999999999964E-2]
[null,"Cumulative Increase in Transport CO2 (2010-2030) MT (avg)","Baseline",46.61878102254957]
[null,null,"Low Carbon",42.104701228516475]
[null,"Cumulative Reduction in Transport (2010-2030) MT (avg)",null,4.5140797940330941]
[null,"Cumulative Gap Between INDC Target and Average Low Carbon Scenario (MT)",null,-2.7473224856519067]
[null,"Cumulative Gap Between INDC Target and BAU (MT)",null,-7.2614022796850008]
[]
[]
[null,null,null,null,null,"Figure 2: Transport Share of Economy-Wide Emissions"]
[]
[null,"TIER II FACTSHEET SOURCES"]
[]
[null,"Table 1: Historic and Projected Emissions"]
[null,"Historic Emissions","Submitted National Communications","http://unfccc.int/national_reports/non-annex_i_natcom/submitted_natcom/items/653.php"]
[null,null,"UNFCCC: INDCs as communicated by Parties","http://www4.unfccc.int/submissions/indc/Submission%20Pages/submissions.aspx"]
[null,null,"Submitted Biennial Update Reports","http://unfccc.int/national_reports/non-annex_i_natcom/reporting_on_climate_change/items/8722.php"]
[null,null,"The Climate Pledge INDC Tool","http://infographics.pbl.nl/indc/"]
[null,null,"CAIT Climate Data Explorer","http://cait.wri.org/"]
[null,null,"Climate Equity Reference Calculator","http://gdrights.org/calculator-about/"]
[null,null,"World Bank - World Development Indicators","http://data.worldbank.org/data-catalog/world-development-indicators"]
[null,null,"UNEP Pledge Pipeline Tool","http://www.unep.org/climatechange/pledgepipeline/"]
[null,null,"Climate Action Tracker","http://climateactiontracker.org/"]
[null,"BAU Emissions Projections","Submitted National Communications","http://unfccc.int/national_reports/non-annex_i_natcom/submitted_natcom/items/653.php"]
[null,null,"UNFCCC: INDCs as communicated by Parties","http://www4.unfccc.int/submissions/indc/Submission%20Pages/submissions.aspx"]
[null,null,"Submitted Biennial Update Reports","http://unfccc.int/national_reports/non-annex_i_natcom/reporting_on_climate_change/items/8722.php"]
[null,null,"The Climate Pledge INDC Tool","http://infographics.pbl.nl/indc/"]
[null,null,"Climate Equity Reference Calculator","http://gdrights.org/calculator-about/"]
[null,null,"World Bank - World Development Indicators","http://data.worldbank.org/data-catalog/world-development-indicators"]
[null,null,"UNEP Pledge Pipeline Tool","http://www.unep.org/climatechange/pledgepipeline/"]
[null,null,"Climate Action Tracker","http://climateactiontracker.org/"]
[null,"INDC Targets","UNFCCC: INDCs as communicated by Parties","http://www4.unfccc.int/submissions/indc/Submission%20Pages/submissions.aspx"]
[]
[null,"Figure 1: Projected Transport Emissions: BAU, Low Carbon Scenario, and Derived Target"]
[null,"Derived from Table 1: Historic and Projected Emissions"]
[]
[null,"Figure 2: Transport Share of Economy-Wide Emissions"]
[null,"Derived from Table 1: Historic and Projected Emissions"]

{"sheet":"Azerbaijan","index":7,"n_rows":67,"n_cols":6,"rows_kept":67,"cut":false,"hidden":false,"merged":[[21,5,21,11],[22,5,22,11],[1,1,1,3],[2,1,2,2],[3,1,3,2],[4,1,4,2],[5,1,5,2],[6,1,6,2],[33,1,33,2],[7,1,11,1],[12,1,13,1],[14,1,18,1],[19,1,20,1],[23,1,23,2],[24,1,24,2],[25,1,29,1],[30,1,30,2],[31,1,32,1],[34,1,34,2],[35,1,35,2],[38,5,38,11],[43,1,51,1],[52,1,59,1]]}
[]
[null,"Table 1: Historic and Projected Emissions"]
[null,"Country Name",null,"Azerbaijan"]
[null,"Economy Wide CO2e Emissions Target (INDC)",null,"35% reduction at total emissions level compared to 1990"]
[null,"Total Country CO2e Emissions Under Target (by Target Year) (MT)",null,47.664500000000004]
[null,"Target Year",null,2030]
[null,"Transport CO2 Emissions Target (based on share of total emissions @ 2010)",null,4.8051083822522767]
[null,"Total Country CO2e Emissions (BAU)",1990,73.33]
[null,null,2000,40.770000000000003]
[null,null,2010,48.209000000000003]
[null,null,2020,50]
[null,null,2030,57]
[null,"Total Country CO2e Emissions (Low Carbon Scenario)",2020]
[null,null,2030]
[null,"Total Transport CO2e Emissions (BAU)",1990,5.39,{"$f":"D7","v":4.8051083822522767}]
[null,null,2000,2.1190000000000002]
[null,null,2010,4.8600000000000003]
[null,null,2020,8.1549480483063963]
[null,null,2030,11.468950777058092,{"$f":"D7","v":4.8051083822522767}]
[null,"Total Transport CO2e Emissions (Low Carbon Scenario) ",2020,7.753483386923901]
[null,null,2030,8.6810962963918836,{"$f":"D7","v":4.8051083822522767}]
[null,"Historical Growth in CO2e Emissions  (%) Transport Sector","1990-2010",-9.8330241187383982E-2,null,"Figure 1: Projected Transport Emissions: BAU, Low Carbon Scenario, and Transport Target"]
[null,"Growth Forecast CO2e Emissions (%)BAU-Transport Sector","2010-2030",1.359866415032529]
[null,"Reduction with BAU (%) - Transport (2020)",null,-4.9229579269468249E-2]
[null,"Reduction with BAU (%) - Transport (2030)",null,-0.24307842407370783]
[null,"Transport Share in Total Economy-wide Emissions",1990,7.3503341060957308E-2]
[null,null,2000,5.1974491047338728E-2]
[null,null,2010,0.10081105187827999]
[null,null,"2030(BAU)",0.20120966275540511]
[null,null,"2030 (Low)",0.15229993502441902]
[null,"Gap Between INDC Target and Average Low Carbon Scenario (%)",null,0.806639019518397]
[null,"Cumulative Increase in Transport CO2 (2010-2030) MT (avg)","Baseline",169.02750010938544]
[null,null,"Low Carbon",150.81344067815485]
[null,"Cumulative Reduction in Transport (2010-2030) MT (avg)",null,18.214059431230595]
[null,"Cumulative Gap Between INDC Target and Average Low Carbon Scenario (MT)",null,-49.330839239469526]
[null,"Cumulative Gap Between INDC Target and BAU (MT)",null,-67.544898670700121]
[]
[]
[null,null,null,null,null,"Figure 2: Transport Share of Economy-Wide Emissions"]
[]
[null,"TIER II FACTSHEET SOURCES"]
[]
[null,"Table 1: Historic and Projected Emissions"]
[null,"Historic Emissions","Submitted National Communications","http://unfccc.int/national_reports/non-annex_i_natcom/submitted_natcom/items/653.php"]
[null,null,"UNFCCC: INDCs as communicated by Parties","http://www4.unfccc.int/submissions/indc/Submission%20Pages/submissions.aspx"]
[null,null,"Submitted Biennial Update Reports","http://unfccc.int/national_reports/non-annex_i_natcom/reporting_on_climate_change/items/8722.php"]
[null,null,"The Climate Pledge INDC Tool","http://infographics.pbl.nl/indc/"]
[null,null,"CAIT Climate Data Explorer","http://cait.wri.org/"]
[null,null,"Climate Equity Reference Calculator","http://gdrights.org/calculator-about/"]
[null,null,"World Bank - World Development Indicators","http://data.worldbank.org/data-catalog/world-development-indicators"]
[null,null,"UNEP Pledge Pipeline Tool","http://www.unep.org/climatechange/pledgepipeline/"]
[null,null,"Climate Action Tracker","http://climateactiontracker.org/"]
[null,"BAU Emissions Projections","Submitted National Communications","http://unfccc.int/national_reports/non-annex_i_natcom/submitted_natcom/items/653.php"]
[null,null,"UNFCCC: INDCs as communicated by Parties","http://www4.unfccc.int/submissions/indc/Submission%20Pages/submissions.aspx"]
[null,null,"Submitted Biennial Update Reports","http://unfccc.int/national_reports/non-annex_i_natcom/reporting_on_climate_change/items/8722.php"]
[null,null,"The Climate Pledge INDC Tool","http://infographics.pbl.nl/indc/"]
[null,null,"Climate Equity Reference Calculator","http://gdrights.org/calculator-about/"]
[null,null,"World Bank - World Development Indicators","http://data.worldbank.org/data-catalog/world-development-indicators"]
[null,null,"UNEP Pledge Pipeline Tool","http://www.unep.org/climatechange/pledgepipeline/"]
[null,null,"Climate Action Tracker","http://climateactiontracker.org/"]
[null,"INDC Targets","UNFCCC: INDCs as communicated by Parties","http://www4.unfccc.int/submissions/indc/Submission%20Pages/submissions.aspx"]
[]
[null,"Figure 1: Projected Transport Emissions: BAU, Low Carbon Scenario, and Derived Target"]
[null,"Derived from Table 1: Historic and Projected Emissions"]
[]
[null,"Figure 2: Transport Share of Economy-Wide Emissions"]
[null,"Derived from Table 1: Historic and Projected Emissions"]

{"sheet":"Barbados","index":8,"n_rows":67,"n_cols":6,"rows_kept":67,"cut":false,"hidden":false,"merged":[[21,5,21,11],[22,5,22,11],[1,1,1,3],[2,1,2,2],[3,1,3,2],[4,1,4,2],[5,1,5,2],[6,1,6,2],[33,1,33,2],[7,1,11,1],[12,1,13,1],[14,1,18,1],[19,1,20,1],[23,1,23,2],[24,1,24,2],[25,1,29,1],[30,1,30,2],[31,1,32,1],[34,1,34,2],[35,1,35,2],[38,5,38,11],[43,1,51,1],[52,1,59,1]]}
[]
[null,"Table 1: Historic and Projected Emissions"]
[null,"Country Name",null,"Barbados"]
[null,"Economy Wide CO2e Emissions Target (INDC)",null,"44%reduction from BAU by 2030"]
[null,"Total Country CO2e Emissions Under Target (by Target Year) (MT)",null,1.4]
[null,"Target Year",null,2030]
[null,"Transport CO2 Emissions Target (based on share of total emissions @ 2010)",null,0.17536842105263159]
[null,"Total Country CO2e Emissions (BAU)",1990]
[null,null,2000,1.4]
[null,null,2010,1.9]
[null,null,2020,2.2000000000000002]
[null,null,2030,2.5]
[null,"Total Country CO2e Emissions (Low Carbon Scenario)",2020]
[null,null,2030]
[null,"Total Transport CO2e Emissions (BAU)",1990,0.22514028264000002,{"$f":"D7","v":0.17536842105263159}]
[null,null,2000,0.22]
[null,null,2010,0.23799999999999999]
[null,null,2020,0.27834636121035677]
[null,null,2030,0.41514564400163545,{"$f":"D7","v":0.17536842105263159}]
[null,"Total Transport CO2e Emissions (Low Carbon Scenario) ",2020,0.24588644650885094]
[null,null,2030,0.30627459615106245,{"$f":"D7","v":0.17536842105263159}]
[null,"Historical Growth in CO2e Emissions  (%) Transport Sector","1990-2010",5.711868711012813E-2,null,"Figure 1: Projected Transport Emissions: BAU, Low Carbon Scenario, and Transport Target"]
[null,"Growth Forecast CO2e Emissions (%)BAU-Transport Sector","2010-2030",0.74430942857830029]
[null,"Reduction with BAU (%) - Transport (2020)",null,-0.11661698956780919]
[null,"Reduction with BAU (%) - Transport (2030)",null,-0.26224783861671475]
[null,"Transport Share in Total Economy-wide Emissions",1990,{"$error":"#DIV/0!"}]
[null,null,2000,0]
[null,null,2010,0.12526315789473685]
[null,null,"2030(BAU)",0.16605825760065418]
[null,null,"2030 (Low)",0.12250983846042499]
[null,"Gap Between INDC Target and Average Low Carbon Scenario (%)",null,0.74646378357448562]
[null,"Cumulative Increase in Transport CO2 (2010-2030) MT (avg)","Baseline",6.3255582807946631]
[null,null,"Low Carbon",5.4412303887359048]
[null,"Cumulative Reduction in Transport (2010-2030) MT (avg)",null,0.88432789205875828]
[null,"Cumulative Gap Between INDC Target and Average Low Carbon Scenario (MT)",null,-1.1326103947495882]
[null,"Cumulative Gap Between INDC Target and BAU (MT)",null,-2.0169382868083465]
[]
[]
[null,null,null,null,null,"Figure 2: Transport Share of Economy-Wide Emissions"]
[]
[null,"TIER II FACTSHEET SOURCES"]
[]
[null,"Table 1: Historic and Projected Emissions"]
[null,"Historic Emissions","Submitted National Communications","http://unfccc.int/national_reports/non-annex_i_natcom/submitted_natcom/items/653.php"]
[null,null,"UNFCCC: INDCs as communicated by Parties","http://www4.unfccc.int/submissions/indc/Submission%20Pages/submissions.aspx"]
[null,null,"Submitted Biennial Update Reports","http://unfccc.int/national_reports/non-annex_i_natcom/reporting_on_climate_change/items/8722.php"]
[null,null,"The Climate Pledge INDC Tool","http://infographics.pbl.nl/indc/"]
[null,null,"CAIT Climate Data Explorer","http://cait.wri.org/"]
[null,null,"Climate Equity Reference Calculator","http://gdrights.org/calculator-about/"]
[null,null,"World Bank - World Development Indicators","http://data.worldbank.org/data-catalog/world-development-indicators"]
[null,null,"UNEP Pledge Pipeline Tool","http://www.unep.org/climatechange/pledgepipeline/"]
[null,null,"Climate Action Tracker","http://climateactiontracker.org/"]
[null,"BAU Emissions Projections","Submitted National Communications","http://unfccc.int/national_reports/non-annex_i_natcom/submitted_natcom/items/653.php"]
[null,null,"UNFCCC: INDCs as communicated by Parties","http://www4.unfccc.int/submissions/indc/Submission%20Pages/submissions.aspx"]
[null,null,"Submitted Biennial Update Reports","http://unfccc.int/national_reports/non-annex_i_natcom/reporting_on_climate_change/items/8722.php"]
[null,null,"The Climate Pledge INDC Tool","http://infographics.pbl.nl/indc/"]
[null,null,"Climate Equity Reference Calculator","http://gdrights.org/calculator-about/"]
[null,null,"World Bank - World Development Indicators","http://data.worldbank.org/data-catalog/world-development-indicators"]
[null,null,"UNEP Pledge Pipeline Tool","http://www.unep.org/climatechange/pledgepipeline/"]
[null,null,"Climate Action Tracker","http://climateactiontracker.org/"]
[null,"INDC Targets","UNFCCC: INDCs as communicated by Parties","http://www4.unfccc.int/submissions/indc/Submission%20Pages/submissions.aspx"]
[]
[null,"Figure 1: Projected Transport Emissions: BAU, Low Carbon Scenario, and Derived Target"]
[null,"Derived from Table 1: Historic and Projected Emissions"]
[]
[null,"Figure 2: Transport Share of Economy-Wide Emissions"]
[null,"Derived from Table 1: Historic and Projected Emissions"]

{"sheet":"Belarus","index":9,"n_rows":67,"n_cols":6,"rows_kept":67,"cut":false,"hidden":false,"merged":[[34,1,34,2],[35,1,35,2],[38,5,38,11],[43,1,51,1],[52,1,59,1],[33,1,33,2],[7,1,11,1],[12,1,13,1],[14,1,18,1],[19,1,20,1],[23,1,23,2],[24,1,24,2],[25,1,29,1],[30,1,30,2],[31,1,32,1],[21,5,21,11],[22,5,22,11],[1,1,1,3],[2,1,2,2],[3,1,3,2],[4,1,4,2],[5,1,5,2],[6,1,6,2]]}
[]
[null,"Table 1: Historic and Projected Emissions"]
[null,"Country Name",null,"Belarus"]
[null,"Economy Wide CO2e Emissions Target (INDC)",null,"28% reduction from 1990 levels"]
[null,"Total Country CO2e Emissions Under Target (by Target Year) (MT)",null,100.18888559999999]
[null,"Target Year",null,2030]
[null,"Transport CO2 Emissions Target (based on share of total emissions @ 2010)",null,5.9184361884369689]
[null,"Total Country CO2e Emissions (BAU)",1990,139.15123]
[null,null,2000,79.165109999999999]
[null,null,2010,89.446269999999998]
[null,null,2020,103]
[null,null,2030,118.6]
[null,"Total Country CO2e Emissions (Low Carbon Scenario)",2020]
[null,null,2030]
[null,"Total Transport CO2e Emissions (BAU)",1990,13.074450000000001,{"$f":"D7","v":5.9184361884369689}]
[null,null,2000,3.1311199999999997]
[null,null,2010,5.2838400000000005]
[null,null,2020,13.41594261732066]
[null,null,2030,19.694494636249111,{"$f":"D7","v":5.9184361884369689}]
[null,"Total Transport CO2e Emissions (Low Carbon Scenario) ",2020,11.85141577707425]
[null,null,2030,14.5296559852443,{"$f":"D7","v":5.9184361884369689}]
[null,"Historical Growth in CO2e Emissions  (%) Transport Sector","1990-2010",-0.59586521803976455,null,"Figure 1: Projected Transport Emissions: BAU, Low Carbon Scenario, and Transport Target"]
[null,"Growth Forecast CO2e Emissions (%)BAU-Transport Sector","2010-2030",2.727307154692252]
[null,"Reduction with BAU (%) - Transport (2020)",null,-0.11661698956780919]
[null,"Reduction with BAU (%) - Transport (2030)",null,-0.26224783861671475]
[null,"Transport Share in Total Economy-wide Emissions",1990,9.3958565799238725E-2]
[null,null,2000,3.9551767186327406E-2]
[null,null,2010,5.907278190583018E-2]
[null,null,"2030(BAU)",0.16605813352655238]
[null,null,"2030 (Low)",0.12250974692448821]
[null,"Gap Between INDC Target and Average Low Carbon Scenario (%)",null,1.4549822829265842]
[null,"Cumulative Increase in Transport CO2 (2010-2030) MT (avg)","Baseline",263.39482666409526]
[null,null,"Low Carbon",222.70902697056283]
[null,"Cumulative Reduction in Transport (2010-2030) MT (avg)",null,40.685799693532431]
[null,"Cumulative Gap Between INDC Target and Average Low Carbon Scenario (MT)",null,-105.20476031804225]
[null,"Cumulative Gap Between INDC Target and BAU (MT)",null,-145.89056001157468]
[]
[]
[null,null,null,null,null,"Figure 2: Transport Share of Economy-Wide Emissions"]
[]
[null,"TIER II FACTSHEET SOURCES"]
[]
[null,"Table 1: Historic and Projected Emissions"]
[null,"Historic Emissions","Submitted National Communications","http://unfccc.int/national_reports/non-annex_i_natcom/submitted_natcom/items/653.php"]
[null,null,"UNFCCC: INDCs as communicated by Parties","http://www4.unfccc.int/submissions/indc/Submission%20Pages/submissions.aspx"]
[null,null,"Submitted Biennial Update Reports","http://unfccc.int/national_reports/non-annex_i_natcom/reporting_on_climate_change/items/8722.php"]
[null,null,"The Climate Pledge INDC Tool","http://infographics.pbl.nl/indc/"]
[null,null,"CAIT Climate Data Explorer","http://cait.wri.org/"]
[null,null,"Climate Equity Reference Calculator","http://gdrights.org/calculator-about/"]
[null,null,"World Bank - World Development Indicators","http://data.worldbank.org/data-catalog/world-development-indicators"]
[null,null,"UNEP Pledge Pipeline Tool","http://www.unep.org/climatechange/pledgepipeline/"]
[null,null,"Climate Action Tracker","http://climateactiontracker.org/"]
[null,"BAU Emissions Projections","Submitted National Communications","http://unfccc.int/national_reports/non-annex_i_natcom/submitted_natcom/items/653.php"]
[null,null,"UNFCCC: INDCs as communicated by Parties","http://www4.unfccc.int/submissions/indc/Submission%20Pages/submissions.aspx"]
[null,null,"Submitted Biennial Update Reports","http://unfccc.int/national_reports/non-annex_i_natcom/reporting_on_climate_change/items/8722.php"]
[null,null,"The Climate Pledge INDC Tool","http://infographics.pbl.nl/indc/"]
[null,null,"Climate Equity Reference Calculator","http://gdrights.org/calculator-about/"]
[null,null,"World Bank - World Development Indicators","http://data.worldbank.org/data-catalog/world-development-indicators"]
[null,null,"UNEP Pledge Pipeline Tool","http://www.unep.org/climatechange/pledgepipeline/"]
[null,null,"Climate Action Tracker","http://climateactiontracker.org/"]
[null,"INDC Targets","UNFCCC: INDCs as communicated by Parties","http://www4.unfccc.int/submissions/indc/Submission%20Pages/submissions.aspx"]
[]
[null,"Figure 1: Projected Transport Emissions: BAU, Low Carbon Scenario, and Derived Target"]
[null,"Derived from Table 1: Historic and Projected Emissions"]
[]
[null,"Figure 2: Transport Share of Economy-Wide Emissions"]
[null,"Derived from Table 1: Historic and Projected Emissions"]

{"sheet":"Benin","index":10,"n_rows":67,"n_cols":6,"rows_kept":67,"cut":false,"hidden":false,"merged":[[21,5,21,11],[22,5,22,11],[1,1,1,3],[2,1,2,2],[3,1,3,2],[4,1,4,2],[5,1,5,2],[6,1,6,2],[33,1,33,2],[7,1,11,1],[12,1,13,1],[14,1,18,1],[19,1,20,1],[23,1,23,2],[24,1,24,2],[25,1,29,1],[30,1,30,2],[31,1,32,1],[34,1,34,2],[35,1,35,2],[38,5,38,11],[43,1,51,1],[52,1,59,1]]}
[]
[null,"Table 1: Historic and Projected Emissions"]
[null,"Country Name",null,"Benin"]
[null,"Economy Wide CO2e Emissions Target (INDC)",null,"avoid 120Mt of CO2 eq between 2020-2030 "]
[null,"Total Country CO2e Emissions Under Target (by Target Year) (MT)",null,10]
[null,"Target Year",null,2030]
[null,"Transport CO2 Emissions Target (based on share of total emissions @ 2010)",null,1.8674698795180722]
[null,"Total Country CO2e Emissions (BAU)",1990,9.5]
[null,null,2000,9.3800000000000008]
[null,null,2010,16.600000000000001]
[null,null,2020,23]
[null,null,2030,30]
[null,"Total Country CO2e Emissions (Low Carbon Scenario)",2020]
[null,null,2030]
[null,"Total Transport CO2e Emissions (BAU)",1990,0.16,{"$f":"D7","v":1.8674698795180722}]
[null,null,2000,0.91]
[null,null,2010,3.1]
[null,null,2020,3.6592840913645781]
[null,null,2030,6.8551985611670956,{"$f":"D7","v":1.8674698795180722}]
[null,"Total Transport CO2e Emissions (Low Carbon Scenario) ",2020,3.2325493966562648]
[null,null,2030,5.0574375552126121,{"$f":"D7","v":1.8674698795180722}]
[null,"Historical Growth in CO2e Emissions  (%) Transport Sector","1990-2010",18.375,null,"Figure 1: Projected Transport Emissions: BAU, Low Carbon Scenario, and Transport Target"]
[null,"Growth Forecast CO2e Emissions (%)BAU-Transport Sector","2010-2030",1.2113543745700306]
[null,"Reduction with BAU (%) - Transport (2020)",null,-0.11661698956780919]
[null,"Reduction with BAU (%) - Transport (2030)",null,-0.26224783861671475]
[null,"Transport Share in Total Economy-wide Emissions",1990,1.6842105263157894E-2]
[null,null,2000,9.7014925373134317E-2]
[null,null,2010,0.18674698795180722]
[null,null,"2030(BAU)",0.22850661870556985]
[null,null,"2030 (Low)"]
[null,"Gap Between INDC Target and Average Low Carbon Scenario (%)",null,1.7081762392428828]
[null,"Cumulative Increase in Transport CO2 (2010-2030) MT (avg)","Baseline",89.625696318307433]
[null,null,"Low Carbon",76.515224192943521]
[null,"Cumulative Reduction in Transport (2010-2030) MT (avg)",null,13.110472125363913]
[null,"Cumulative Gap Between INDC Target and Average Low Carbon Scenario (MT)",null,-25.390870978202294]
[null,"Cumulative Gap Between INDC Target and BAU (MT)",null,-38.501343103566207]
[]
[]
[null,null,null,null,null,"Figure 2: Transport Share of Economy-Wide Emissions"]
[]
[null,"TIER II FACTSHEET SOURCES"]
[]
[null,"Table 1: Historic and Projected Emissions"]
[null,"Historic Emissions","Submitted National Communications","http://unfccc.int/national_reports/non-annex_i_natcom/submitted_natcom/items/653.php"]
[null,null,"UNFCCC: INDCs as communicated by Parties","http://www4.unfccc.int/submissions/indc/Submission%20Pages/submissions.aspx"]
[null,null,"Submitted Biennial Update Reports","http://unfccc.int/national_reports/non-annex_i_natcom/reporting_on_climate_change/items/8722.php"]
[null,null,"The Climate Pledge INDC Tool","http://infographics.pbl.nl/indc/"]
[null,null,"CAIT Climate Data Explorer","http://cait.wri.org/"]
[null,null,"Climate Equity Reference Calculator","http://gdrights.org/calculator-about/"]
[null,null,"World Bank - World Development Indicators","http://data.worldbank.org/data-catalog/world-development-indicators"]
[null,null,"UNEP Pledge Pipeline Tool","http://www.unep.org/climatechange/pledgepipeline/"]
[null,null,"Climate Action Tracker","http://climateactiontracker.org/"]
[null,"BAU Emissions Projections","Submitted National Communications","http://unfccc.int/national_reports/non-annex_i_natcom/submitted_natcom/items/653.php"]
[null,null,"UNFCCC: INDCs as communicated by Parties","http://www4.unfccc.int/submissions/indc/Submission%20Pages/submissions.aspx"]
[null,null,"Submitted Biennial Update Reports","http://unfccc.int/national_reports/non-annex_i_natcom/reporting_on_climate_change/items/8722.php"]
[null,null,"The Climate Pledge INDC Tool","http://infographics.pbl.nl/indc/"]
[null,null,"Climate Equity Reference Calculator","http://gdrights.org/calculator-about/"]
[null,null,"World Bank - World Development Indicators","http://data.worldbank.org/data-catalog/world-development-indicators"]
[null,null,"UNEP Pledge Pipeline Tool","http://www.unep.org/climatechange/pledgepipeline/"]
[null,null,"Climate Action Tracker","http://climateactiontracker.org/"]
[null,"INDC Targets","UNFCCC: INDCs as communicated by Parties","http://www4.unfccc.int/submissions/indc/Submission%20Pages/submissions.aspx"]
[]
[null,"Figure 1: Projected Transport Emissions: BAU, Low Carbon Scenario, and Derived Target"]
[null,"Derived from Table 1: Historic and Projected Emissions"]
[]
[null,"Figure 2: Transport Share of Economy-Wide Emissions"]
[null,"Derived from Table 1: Historic and Projected Emissions"]

{"sheet":"Bhutan","index":11,"n_rows":67,"n_cols":6,"rows_kept":67,"cut":false,"hidden":false,"merged":[[21,5,21,11],[22,5,22,11],[1,1,1,3],[2,1,2,2],[3,1,3,2],[4,1,4,2],[5,1,5,2],[6,1,6,2],[33,1,33,2],[7,1,11,1],[12,1,13,1],[14,1,18,1],[19,1,20,1],[23,1,23,2],[24,1,24,2],[25,1,29,1],[30,1,30,2],[31,1,32,1],[34,1,34,2],[35,1,35,2],[38,5,38,11],[43,1,51,1],[52,1,59,1]]}
[]
[null,"Table 1: Historic and Projected Emissions"]
[null,"Country Name",null,"Bhutan"]
[null,"Economy Wide CO2e Emissions Target (INDC)",null,"remain carbon neutral where emission of greenhouse gases will not exceed carbon sequestration by our forests, which is estimated at 6.3 million tons of CO2."]
[null,"Total Country CO2e Emissions Under Target (by Target Year) (MT)",null,6.3]
[null,"Target Year",null,2030]
[null,"Transport CO2 Emissions Target (based on share of total emissions @ 2010)",null,0.64354838709677409]
[null,"Total Country CO2e Emissions (BAU)",1990,0.73]
[null,null,2000,0.98729999999999996]
[null,null,2010,2.2320000000000002]
[null,null,2020,4.3979999999999997]
[null,null,2030,4.585]
[null,"Total Country CO2e Emissions (Low Carbon Scenario)",2020]
[null,null,2030]
[null,"Total Transport CO2e Emissions (BAU)",1990,null,{"$f":"D7","v":0.64354838709677409}]
[null,null,2000]
[null,null,2010,0.22800000000000001]
[null,null,2020,0.376]
[null,null,2030,0.36099999999999999,{"$f":"D7","v":0.64354838709677409}]
[null,"Total Transport CO2e Emissions (Low Carbon Scenario) ",2020,0.25]
[null,null,2030,0.27133516986819328,{"$f":"D7","v":0.64354838709677409}]
[null,"Historical Growth in CO2e Emissions  (%) Transport Sector","1990-2010",null,null,"Figure 1: Projected Transport Emissions: BAU, Low Carbon Scenario, and Transport Target"]
[null,"Growth Forecast CO2e Emissions (%)BAU-Transport Sector","2010-2030",0.58333333333333326]
[null,"Reduction with BAU (%) - Transport (2020)",null,-0.33510638297872342]
[null,"Reduction with BAU (%) - Transport (2030)",null,-0.24837903083602964]
[null,"Transport Share in Total Economy-wide Emissions",1990,0]
[null,null,2000,0]
[null,null,2010,0.10215053763440859]
[null,null,"2030(BAU)",7.8735005452562706E-2]
[null,null,"2030 (Low)",5.9178881105385668E-2]
[null,"Gap Between INDC Target and Average Low Carbon Scenario (%)",null,-0.57837642777373466]
[null,"Cumulative Increase in Transport CO2 (2010-2030) MT (avg)","Baseline",6.9381722507146755]
[null,null,"Low Carbon",5.2432304860304386]
[null,"Cumulative Reduction in Transport (2010-2030) MT (avg)",null,1.6949417646842369]
[null,"Cumulative Gap Between INDC Target and Average Low Carbon Scenario (MT)",null,3.2037413362788323]
[null,"Cumulative Gap Between INDC Target and BAU (MT)",null,1.5087995715945954]
[]
[]
[null,null,null,null,null,"Figure 2: Transport Share of Economy-Wide Emissions"]
[]
[null,"TIER II FACTSHEET SOURCES"]
[]
[null,"Table 1: Historic and Projected Emissions"]
[null,"Historic Emissions","Submitted National Communications","http://unfccc.int/national_reports/non-annex_i_natcom/submitted_natcom/items/653.php"]
[null,null,"UNFCCC: INDCs as communicated by Parties","http://www4.unfccc.int/submissions/indc/Submission%20Pages/submissions.aspx"]
[null,null,"Submitted Biennial Update Reports","http://unfccc.int/national_reports/non-annex_i_natcom/reporting_on_climate_change/items/8722.php"]
[null,null,"The Climate Pledge INDC Tool","http://infographics.pbl.nl/indc/"]
[null,null,"CAIT Climate Data Explorer","http://cait.wri.org/"]
[null,null,"Climate Equity Reference Calculator","http://gdrights.org/calculator-about/"]
[null,null,"World Bank - World Development Indicators","http://data.worldbank.org/data-catalog/world-development-indicators"]
[null,null,"UNEP Pledge Pipeline Tool","http://www.unep.org/climatechange/pledgepipeline/"]
[null,null,"Climate Action Tracker","http://climateactiontracker.org/"]
[null,"BAU Emissions Projections","Submitted National Communications","http://unfccc.int/national_reports/non-annex_i_natcom/submitted_natcom/items/653.php"]
[null,null,"UNFCCC: INDCs as communicated by Parties","http://www4.unfccc.int/submissions/indc/Submission%20Pages/submissions.aspx"]
[null,null,"Submitted Biennial Update Reports","http://unfccc.int/national_reports/non-annex_i_natcom/reporting_on_climate_change/items/8722.php"]
[null,null,"The Climate Pledge INDC Tool","http://infographics.pbl.nl/indc/"]
[null,null,"Climate Equity Reference Calculator","http://gdrights.org/calculator-about/"]
[null,null,"World Bank - World Development Indicators","http://data.worldbank.org/data-catalog/world-development-indicators"]
[null,null,"UNEP Pledge Pipeline Tool","http://www.unep.org/climatechange/pledgepipeline/"]
[null,null,"Climate Action Tracker","http://climateactiontracker.org/"]
[null,"INDC Targets","UNFCCC: INDCs as communicated by Parties","http://www4.unfccc.int/submissions/indc/Submission%20Pages/submissions.aspx"]
[]
[null,"Figure 1: Projected Transport Emissions: BAU, Low Carbon Scenario, and Derived Target"]
[null,"Derived from Table 1: Historic and Projected Emissions"]
[]
[null,"Figure 2: Transport Share of Economy-Wide Emissions"]
[null,"Derived from Table 1: Historic and Projected Emissions"]

{"sheet":"Bosnia and Herzegovina","index":12,"n_rows":67,"n_cols":6,"rows_kept":67,"cut":false,"hidden":false,"merged":[[21,5,21,11],[22,5,22,11],[1,1,1,3],[2,1,2,2],[3,1,3,2],[4,1,4,2],[5,1,5,2],[6,1,6,2],[33,1,33,2],[7,1,11,1],[12,1,13,1],[14,1,18,1],[19,1,20,1],[23,1,23,2],[24,1,24,2],[25,1,29,1],[30,1,30,2],[31,1,32,1],[34,1,34,2],[35,1,35,2],[38,5,38,11],[43,1,51,1],[52,1,59,1]]}
[]
[null,"Table 1: Historic and Projected Emissions"]
[null,"Country Name",null,"Bosnia and Herzegovina"]
[null,"Economy Wide CO2e Emissions Target (INDC)",null,"23% lower than BAU by 2030"]
[null,"Total Country CO2e Emissions Under Target (by Target Year) (MT)",null,31.415999999999997]
[null,"Target Year",null,2030]
[null,"Transport CO2 Emissions Target (based on share of total emissions @ 2010)",null,4.0719969230769228]
[null,"Total Country CO2e Emissions (BAU)",1990,34]
[null,null,2000]
[null,null,2010,26]
[null,null,2020]
[null,null,2030,40.799999999999997]
[null,"Total Country CO2e Emissions (Low Carbon Scenario)",2020]
[null,null,2030]
[null,"Total Transport CO2e Emissions (BAU)",1990,2.17,{"$f":"D7","v":4.0719969230769228}]
[null,null,2000,2.0699999999999998]
[null,null,2010,3.37]
[null,null,2020,3.4009948714305036]
[null,null,2030,5.2025241311656574,{"$f":"D7","v":4.0719969230769228}]
[null,"Total Transport CO2e Emissions (Low Carbon Scenario) ",2020,3.0043810879887198]
[null,null,2030,3.8381734224161619,{"$f":"D7","v":4.0719969230769228}]
[null,"Historical Growth in CO2e Emissions  (%) Transport Sector","1990-2010",0.55299539170506917,null,"Figure 1: Projected Transport Emissions: BAU, Low Carbon Scenario, and Transport Target"]
[null,"Growth Forecast CO2e Emissions (%)BAU-Transport Sector","2010-2030",0.54377570657734631]
[null,"Reduction with BAU (%) - Transport (2020)",null,-0.11661698956780919]
[null,"Reduction with BAU (%) - Transport (2030)",null,-0.26224783861671475]
[null,"Transport Share in Total Economy-wide Emissions",1990,6.382352941176471E-2]
[null,null,2000]
[null,null,2010,0.12961538461538463]
[null,null,"2030(BAU)",0.12751284635209945]
[null,null,"2030 (Low)",9.4072878000396126E-2]
[null,"Gap Between INDC Target and Average Low Carbon Scenario (%)",null,-5.7422317619060692E-2]
[null,"Cumulative Increase in Transport CO2 (2010-2030) MT (avg)","Baseline",80.528736673904803]
[null,null,"Low Carbon",69.485823414581048]
[null,"Cumulative Reduction in Transport (2010-2030) MT (avg)",null,11.042913259323754]
[null,"Cumulative Gap Between INDC Target and Average Low Carbon Scenario (MT)",null,8.434442402430733]
[null,"Cumulative Gap Between INDC Target and BAU (MT)",null,-2.6084708568930211]
[]
[]
[null,null,null,null,null,"Figure 2: Transport Share of Economy-Wide Emissions"]
[]
[null,"TIER II FACTSHEET SOURCES"]
[]
[null,"Table 1: Historic and Projected Emissions"]
[null,"Historic Emissions","Submitted National Communications","http://unfccc.int/national_reports/non-annex_i_natcom/submitted_natcom/items/653.php"]
[null,null,"UNFCCC: INDCs as communicated by Parties","http://www4.unfccc.int/submissions/indc/Submission%20Pages/submissions.aspx"]
[null,null,"Submitted Biennial Update Reports","http://unfccc.int/national_reports/non-annex_i_natcom/reporting_on_climate_change/items/8722.php"]
[null,null,"The Climate Pledge INDC Tool","http://infographics.pbl.nl/indc/"]
[null,null,"CAIT Climate Data Explorer","http://cait.wri.org/"]
[null,null,"Climate Equity Reference Calculator","http://gdrights.org/calculator-about/"]
[null,null,"World Bank - World Development Indicators","http://data.worldbank.org/data-catalog/world-development-indicators"]
[null,null,"UNEP Pledge Pipeline Tool","http://www.unep.org/climatechange/pledgepipeline/"]
[null,null,"Climate Action Tracker","http://climateactiontracker.org/"]
[null,"BAU Emissions Projections","Submitted National Communications","http://unfccc.int/national_reports/non-annex_i_natcom/submitted_natcom/items/653.php"]
[null,null,"UNFCCC: INDCs as communicated by Parties","http://www4.unfccc.int/submissions/indc/Submission%20Pages/submissions.aspx"]
[null,null,"Submitted Biennial Update Reports","http://unfccc.int/national_reports/non-annex_i_natcom/reporting_on_climate_change/items/8722.php"]
[null,null,"The Climate Pledge INDC Tool","http://infographics.pbl.nl/indc/"]
[null,null,"Climate Equity Reference Calculator","http://gdrights.org/calculator-about/"]
[null,null,"World Bank - World Development Indicators","http://data.worldbank.org/data-catalog/world-development-indicators"]
[null,null,"UNEP Pledge Pipeline Tool","http://www.unep.org/climatechange/pledgepipeline/"]
[null,null,"Climate Action Tracker","http://climateactiontracker.org/"]
[null,"INDC Targets","UNFCCC: INDCs as communicated by Parties","http://www4.unfccc.int/submissions/indc/Submission%20Pages/submissions.aspx"]
[]
[null,"Figure 1: Projected Transport Emissions: BAU, Low Carbon Scenario, and Derived Target"]
[null,"Derived from Table 1: Historic and Projected Emissions"]
[]
[null,"Figure 2: Transport Share of Economy-Wide Emissions"]
[null,"Derived from Table 1: Historic and Projected Emissions"]

{"sheet":"Botswana","index":13,"n_rows":67,"n_cols":6,"rows_kept":67,"cut":false,"hidden":false,"merged":[[34,1,34,2],[35,1,35,2],[38,5,38,11],[43,1,51,1],[52,1,59,1],[33,1,33,2],[7,1,11,1],[12,1,13,1],[14,1,18,1],[19,1,20,1],[23,1,23,2],[24,1,24,2],[25,1,29,1],[30,1,30,2],[31,1,32,1],[21,5,21,11],[22,5,22,11],[1,1,1,3],[2,1,2,2],[3,1,3,2],[4,1,4,2],[5,1,5,2],[6,1,6,2]]}
[]
[null,"Table 1: Historic and Projected Emissions"]
[null,"Country Name",null,"Botswana"]
[null,"Economy Wide CO2e Emissions Target (INDC)",null,"reduction of 15% of 2010 by 2030"]
[null,"Total Country CO2e Emissions Under Target (by Target Year) (MT)",null,7.0609500000000001]
[null,"Target Year",null,2030]
[null,"Transport CO2 Emissions Target (based on share of total emissions @ 2010)",null,1.7084999999999997]
[null,"Total Country CO2e Emissions (BAU)",1990,13.43]
[null,null,2000,10.5]
[null,null,2010,8.3070000000000004]
[null,null,2020,13]
[null,null,2030,14.5]
[null,"Total Country CO2e Emissions (Low Carbon Scenario)",2020]
[null,null,2030]
[null,"Total Transport CO2e Emissions (BAU)",1990,0.65,1.7084999999999997]
[null,null,2000,1.21]
[null,null,2010,2.0099999999999998]
[null,null,2020,2.7838910004583863]
[null,null,2030,4.5113380885724439,1.7084999999999997]
[null,"Total Transport CO2e Emissions (Low Carbon Scenario) ",2020,2.4592420127000127]
[null,null,2030,3.3282494255750592,1.7084999999999997]
[null,"Historical Growth in CO2e Emissions  (%) Transport Sector","1990-2010",2.092307692307692,null,"Figure 1: Projected Transport Emissions: BAU, Low Carbon Scenario, and Transport Target"]
[null,"Growth Forecast CO2e Emissions (%)BAU-Transport Sector","2010-2030",1.244446810235047]
[null,"Reduction with BAU (%) - Transport (2020)",null,-0.11661698956780919]
[null,"Reduction with BAU (%) - Transport (2030)",null,-0.26224783861671475]
[null,"Transport Share in Total Economy-wide Emissions",1990,{"$f":"D15/D8","v":4.8399106478034255E-2}]
[null,null,2000,{"$f":"D16/D9","v":0.11523809523809524}]
[null,null,2010,0.24196460816179122]
[null,null,"2030(BAU)",{"$f":"D19/D12","v":0.31112676472913409}]
[null,null,"2030 (Low)",{"$f":"D21/D12","v":0.22953444314310753}]
[null,"Gap Between INDC Target and Average Low Carbon Scenario (%)",null,0.94805351218908984]
[null,"Cumulative Increase in Transport CO2 (2010-2030) MT (avg)","Baseline",62.813388017946053]
[null,null,"Low Carbon",53.66147638852884]
[null,"Cumulative Reduction in Transport (2010-2030) MT (avg)",null,9.1519116294172136]
[null,"Cumulative Gap Between INDC Target and Average Low Carbon Scenario (MT)",null,-14.698652059197464]
[null,"Cumulative Gap Between INDC Target and BAU (MT)",null,-23.850563688614677]
[]
[]
[null,null,null,null,null,"Figure 2: Transport Share of Economy-Wide Emissions"]
[]
[null,"TIER II FACTSHEET SOURCES"]
[]
[null,"Table 1: Historic and Projected Emissions"]
[null,"Historic Emissions","Submitted National Communications","http://unfccc.int/national_reports/non-annex_i_natcom/submitted_natcom/items/653.php"]
[null,null,"UNFCCC: INDCs as communicated by Parties","http://www4.unfccc.int/submissions/indc/Submission%20Pages/submissions.aspx"]
[null,null,"Submitted Biennial Update Reports","http://unfccc.int/national_reports/non-annex_i_natcom/reporting_on_climate_change/items/8722.php"]
[null,null,"The Climate Pledge INDC Tool","http://infographics.pbl.nl/indc/"]
[null,null,"CAIT Climate Data Explorer","http://cait.wri.org/"]
[null,null,"Climate Equity Reference Calculator","http://gdrights.org/calculator-about/"]
[null,null,"World Bank - World Development Indicators","http://data.worldbank.org/data-catalog/world-development-indicators"]
[null,null,"UNEP Pledge Pipeline Tool","http://www.unep.org/climatechange/pledgepipeline/"]
[null,null,"Climate Action Tracker","http://climateactiontracker.org/"]
[null,"BAU Emissions Projections","Submitted National Communications","http://unfccc.int/national_reports/non-annex_i_natcom/submitted_natcom/items/653.php"]
[null,null,"UNFCCC: INDCs as communicated by Parties","http://www4.unfccc.int/submissions/indc/Submission%20Pages/submissions.aspx"]
[null,null,"Submitted Biennial Update Reports","http://unfccc.int/national_reports/non-annex_i_natcom/reporting_on_climate_change/items/8722.php"]
[null,null,"The Climate Pledge INDC Tool","http://infographics.pbl.nl/indc/"]
[null,null,"Climate Equity Reference Calculator","http://gdrights.org/calculator-about/"]
[null,null,"World Bank - World Development Indicators","http://data.worldbank.org/data-catalog/world-development-indicators"]
[null,null,"UNEP Pledge Pipeline Tool","http://www.unep.org/climatechange/pledgepipeline/"]
[null,null,"Climate Action Tracker","http://climateactiontracker.org/"]
[null,"INDC Targets","UNFCCC: INDCs as communicated by Parties","http://www4.unfccc.int/submissions/indc/Submission%20Pages/submissions.aspx"]
[]
[null,"Figure 1: Projected Transport Emissions: BAU, Low Carbon Scenario, and Derived Target"]
[null,"Derived from Table 1: Historic and Projected Emissions"]
[]
[null,"Figure 2: Transport Share of Economy-Wide Emissions"]
[null,"Derived from Table 1: Historic and Projected Emissions"]

{"sheet":"Burkina Faso","index":14,"n_rows":67,"n_cols":6,"rows_kept":67,"cut":false,"hidden":false,"merged":[[21,5,21,11],[22,5,22,11],[1,1,1,3],[2,1,2,2],[3,1,3,2],[4,1,4,2],[5,1,5,2],[6,1,6,2],[33,1,33,2],[7,1,11,1],[12,1,13,1],[14,1,18,1],[19,1,20,1],[23,1,23,2],[24,1,24,2],[25,1,29,1],[30,1,30,2],[31,1,32,1],[34,1,34,2],[35,1,35,2],[38,5,38,11],[43,1,51,1],[52,1,59,1]]}
[]
[null,"Table 1: Historic and Projected Emissions"]
[null,"Country Name",null,"Burkina Faso"]
[null,"Economy Wide CO2e Emissions Target (INDC)",null,"18.2% reduction from BAU by 2030"]
[null,"Total Country CO2e Emissions Under Target (by Target Year) (MT)",null,96.788213999999996]
[null,"Target Year",null,2030]
[null,"Transport CO2 Emissions Target (based on share of total emissions @ 2010)",null,2.7914117706764277]
[null,"Total Country CO2e Emissions (BAU)",1990,11.105600000000001]
[null,null,2000,14.6752]
[null,null,2010,34.15]
[null,null,2020,92.061999999999998]
[null,null,2030,118.32299999999999]
[null,"Total Country CO2e Emissions (Low Carbon Scenario)",2020]
[null,null,2030]
[null,"Total Transport CO2e Emissions (BAU)",1990,null,{"$f":"D7","v":2.7914117706764277}]
[null,null,2000]
[null,null,2010,0.9849]
[null,null,2020,2.4390000000000001]
[null,null,2030,6.9249999999999998,{"$f":"D7","v":2.7914117706764277}]
[null,"Total Transport CO2e Emissions (Low Carbon Scenario) ",2020,2.1950000000000003]
[null,null,2030,4.0139999999999993,{"$f":"D7","v":2.7914117706764277}]
[null,"Historical Growth in CO2e Emissions  (%) Transport Sector","1990-2010",null,null,"Figure 1: Projected Transport Emissions: BAU, Low Carbon Scenario, and Transport Target"]
[null,"Growth Forecast CO2e Emissions (%)BAU-Transport Sector","2010-2030",6.0311706772261138]
[null,"Reduction with BAU (%) - Transport (2020)",null,-0.10004100041000397]
[null,"Reduction with BAU (%) - Transport (2030)",null,-0.42036101083032495]
[null,"Transport Share in Total Economy-wide Emissions",1990,0]
[null,null,2000,0]
[null,null,2010,2.8840409956076136E-2]
[null,null,"2030(BAU)",5.8526237502429794E-2]
[null,null,"2030 (Low)",3.3924089145812727E-2]
[null,"Gap Between INDC Target and Average Low Carbon Scenario (%)",null,0.43798204269494367]
[null,"Cumulative Increase in Transport CO2 (2010-2030) MT (avg)","Baseline",63.028273055486864]
[null,null,"Low Carbon",47.752099319135397]
[null,"Cumulative Reduction in Transport (2010-2030) MT (avg)",null,15.276173736351467]
[null,"Cumulative Gap Between INDC Target and Average Low Carbon Scenario (MT)",null,-11.174271850651841]
[null,"Cumulative Gap Between INDC Target and BAU (MT)",null,-26.450445587003308]
[]
[]
[null,null,null,null,null,"Figure 2: Transport Share of Economy-Wide Emissions"]
[]
[null,"TIER II FACTSHEET SOURCES"]
[]
[null,"Table 1: Historic and Projected Emissions"]
[null,"Historic Emissions","Submitted National Communications","http://unfccc.int/national_reports/non-annex_i_natcom/submitted_natcom/items/653.php"]
[null,null,"UNFCCC: INDCs as communicated by Parties","http://www4.unfccc.int/submissions/indc/Submission%20Pages/submissions.aspx"]
[null,null,"Submitted Biennial Update Reports","http://unfccc.int/national_reports/non-annex_i_natcom/reporting_on_climate_change/items/8722.php"]
[null,null,"The Climate Pledge INDC Tool","http://infographics.pbl.nl/indc/"]
[null,null,"CAIT Climate Data Explorer","http://cait.wri.org/"]
[null,null,"Climate Equity Reference Calculator","http://gdrights.org/calculator-about/"]
[null,null,"World Bank - World Development Indicators","http://data.worldbank.org/data-catalog/world-development-indicators"]
[null,null,"UNEP Pledge Pipeline Tool","http://www.unep.org/climatechange/pledgepipeline/"]
[null,null,"Climate Action Tracker","http://climateactiontracker.org/"]
[null,"BAU Emissions Projections","Submitted National Communications","http://unfccc.int/national_reports/non-annex_i_natcom/submitted_natcom/items/653.php"]
[null,null,"UNFCCC: INDCs as communicated by Parties","http://www4.unfccc.int/submissions/indc/Submission%20Pages/submissions.aspx"]
[null,null,"Submitted Biennial Update Reports","http://unfccc.int/national_reports/non-annex_i_natcom/reporting_on_climate_change/items/8722.php"]
[null,null,"The Climate Pledge INDC Tool","http://infographics.pbl.nl/indc/"]
[null,null,"Climate Equity Reference Calculator","http://gdrights.org/calculator-about/"]
[null,null,"World Bank - World Development Indicators","http://data.worldbank.org/data-catalog/world-development-indicators"]
[null,null,"UNEP Pledge Pipeline Tool","http://www.unep.org/climatechange/pledgepipeline/"]
[null,null,"Climate Action Tracker","http://climateactiontracker.org/"]
[null,"INDC Targets","UNFCCC: INDCs as communicated by Parties","http://www4.unfccc.int/submissions/indc/Submission%20Pages/submissions.aspx"]
[]
[null,"Figure 1: Projected Transport Emissions: BAU, Low Carbon Scenario, and Derived Target"]
[null,"Derived from Table 1: Historic and Projected Emissions"]
[]
[null,"Figure 2: Transport Share of Economy-Wide Emissions"]
[null,"Derived from Table 1: Historic and Projected Emissions"]

{"sheet":"Burundi","index":15,"n_rows":67,"n_cols":6,"rows_kept":67,"cut":false,"hidden":false,"merged":[[21,5,21,11],[22,5,22,11],[1,1,1,3],[2,1,2,2],[3,1,3,2],[4,1,4,2],[5,1,5,2],[6,1,6,2],[33,1,33,2],[7,1,11,1],[12,1,13,1],[14,1,18,1],[19,1,20,1],[23,1,23,2],[24,1,24,2],[25,1,29,1],[30,1,30,2],[31,1,32,1],[34,1,34,2],[35,1,35,2],[38,5,38,11],[43,1,51,1],[52,1,59,1]]}
[]
[null,"Table 1: Historic and Projected Emissions"]
[null,"Country Name",null,"Burundi"]
[null,"Economy Wide CO2e Emissions Target (INDC)",null,"20% by 2030 relative to the BAU scenario"]
[null,"Total Country CO2e Emissions Under Target (by Target Year) (MT)",null,60]
[null,"Target Year",null,2030]
[null,"Transport CO2 Emissions Target (based on share of total emissions @ 2010)",null,3.0461370061375268]
[null,"Total Country CO2e Emissions (BAU)",1990,2.2997999999999998]
[null,null,2000,2.2572999999999999]
[null,null,2010,10]
[null,null,2020,43]
[null,null,2030,75]
[null,"Total Country CO2e Emissions (Low Carbon Scenario)",2020]
[null,null,2030]
[null,"Total Transport CO2e Emissions (BAU)",1990,null,{"$f":"D7","v":3.0461370061375268}]
[null,null,2000]
[null,null,2010,0.5076895010229211]
[null,null,2020,0.80093733342414186]
[null,null,2030,1.9953842777102577,{"$f":"D7","v":3.0461370061375268}]
[null,"Total Transport CO2e Emissions (Low Carbon Scenario) ",2020,0.70753443276774974]
[null,null,2030,1.4720990636709681,{"$f":"D7","v":3.0461370061375268}]
[null,"Historical Growth in CO2e Emissions  (%) Transport Sector","1990-2010",{"$error":"#DIV/0!"},null,"Figure 1: Projected Transport Emissions: BAU, Low Carbon Scenario, and Transport Target"]
[null,"Growth Forecast CO2e Emissions (%)BAU-Transport Sector","2010-2030",2.9303240931511216]
[null,"Reduction with BAU (%) - Transport (2020)",null,-0.1166169895678093]
[null,"Reduction with BAU (%) - Transport (2030)",null,-0.26224783861671475]
[null,"Transport Share in Total Economy-wide Emissions",1990,0]
[null,null,2000,0]
[null,null,2010,5.0768950102292112E-2]
[null,null,"2030(BAU)",2.6605123702803435E-2]
[null,null,"2030 (Low)",1.962798751561291E-2]
[null,"Gap Between INDC Target and Average Low Carbon Scenario (%)",null,-0.51673248422349327]
[null,"Cumulative Increase in Transport CO2 (2010-2030) MT (avg)","Baseline",20.7792361964257]
[null,null,"Low Carbon",17.451546280943482]
[null,"Cumulative Reduction in Transport (2010-2030) MT (avg)",null,3.3276899154822175]
[null,"Cumulative Gap Between INDC Target and Average Low Carbon Scenario (MT)",null,12.679006186330394]
[null,"Cumulative Gap Between INDC Target and BAU (MT)",null,9.3513162708481765]
[]
[]
[null,null,null,null,null,"Figure 2: Transport Share of Economy-Wide Emissions"]
[]
[null,"TIER II FACTSHEET SOURCES"]
[]
[null,"Table 1: Historic and Projected Emissions"]
[null,"Historic Emissions","Submitted National Communications","http://unfccc.int/national_reports/non-annex_i_natcom/submitted_natcom/items/653.php"]
[null,null,"UNFCCC: INDCs as communicated by Parties","http://www4.unfccc.int/submissions/indc/Submission%20Pages/submissions.aspx"]
[null,null,"Submitted Biennial Update Reports","http://unfccc.int/national_reports/non-annex_i_natcom/reporting_on_climate_change/items/8722.php"]
[null,null,"The Climate Pledge INDC Tool","http://infographics.pbl.nl/indc/"]
[null,null,"CAIT Climate Data Explorer","http://cait.wri.org/"]
[null,null,"Climate Equity Reference Calculator","http://gdrights.org/calculator-about/"]
[null,null,"World Bank - World Development Indicators","http://data.worldbank.org/data-catalog/world-development-indicators"]
[null,null,"UNEP Pledge Pipeline Tool","http://www.unep.org/climatechange/pledgepipeline/"]
[null,null,"Climate Action Tracker","http://climateactiontracker.org/"]
[null,"BAU Emissions Projections","Submitted National Communications","http://unfccc.int/national_reports/non-annex_i_natcom/submitted_natcom/items/653.php"]
[null,null,"UNFCCC: INDCs as communicated by Parties","http://www4.unfccc.int/submissions/indc/Submission%20Pages/submissions.aspx"]
[null,null,"Submitted Biennial Update Reports","http://unfccc.int/national_reports/non-annex_i_natcom/reporting_on_climate_change/items/8722.php"]
[null,null,"The Climate Pledge INDC Tool","http://infographics.pbl.nl/indc/"]
[null,null,"Climate Equity Reference Calculator","http://gdrights.org/calculator-about/"]
[null,null,"World Bank - World Development Indicators","http://data.worldbank.org/data-catalog/world-development-indicators"]
[null,null,"UNEP Pledge Pipeline Tool","http://www.unep.org/climatechange/pledgepipeline/"]
[null,null,"Climate Action Tracker","http://climateactiontracker.org/"]
[null,"INDC Targets","UNFCCC: INDCs as communicated by Parties","http://www4.unfccc.int/submissions/indc/Submission%20Pages/submissions.aspx"]
[]
[null,"Figure 1: Projected Transport Emissions: BAU, Low Carbon Scenario, and Derived Target"]
[null,"Derived from Table 1: Historic and Projected Emissions"]
[]
[null,"Figure 2: Transport Share of Economy-Wide Emissions"]
[null,"Derived from Table 1: Historic and Projected Emissions"]

{"sheet":"Cabo Verde","index":16,"n_rows":67,"n_cols":6,"rows_kept":67,"cut":false,"hidden":false,"merged":[[21,5,21,11],[22,5,22,11],[1,1,1,3],[2,1,2,2],[3,1,3,2],[4,1,4,2],[5,1,5,2],[6,1,6,2],[33,1,33,2],[7,1,11,1],[12,1,13,1],[14,1,18,1],[19,1,20,1],[23,1,23,2],[24,1,24,2],[25,1,29,1],[30,1,30,2],[31,1,32,1],[34,1,34,2],[35,1,35,2],[38,5,38,11],[43,1,51,1],[52,1,59,1]]}
[]
[null,"Table 1: Historic and Projected Emissions"]
[null,"Country Name",null,"Cabo Verde"]
[null,"Economy Wide CO2e Emissions Target (INDC)",null,"reduce overall energy demand by 20% in relation to the Base Scenario by 2030"]
[null,"Total Country CO2e Emissions Under Target (by Target Year) (MT)",null,0.6]
[null,"Target Year",null,2030]
[null,"Transport CO2 Emissions Target (based on share of total emissions @ 2010)",null,0.18633662557406847]
[null,"Total Country CO2e Emissions (BAU)",1990,0.20880000000000001]
[null,null,2000,0.3]
[null,null,2010,0.53080000000000005]
[null,null,2020,0.63]
[null,null,2030,0.75]
[null,"Total Country CO2e Emissions (Low Carbon Scenario)",2020]
[null,null,2030]
[null,"Total Transport CO2e Emissions (BAU)",1990,null,{"$f":"D7","v":0.18633662557406847}]
[null,null,2000,0.13600000000000001]
[null,null,2010,0.16484580142452593]
[null,null,2020,0.2477545163654368]
[null,null,2030,0.39803986450706963,{"$f":"D7","v":0.18633662557406847}]
[null,"Total Transport CO2e Emissions (Low Carbon Scenario) ",2020,0.21886213051507103]
[null,null,2030,0.29365477035680065,{"$f":"D7","v":0.18633662557406847}]
[null,"Historical Growth in CO2e Emissions  (%) Transport Sector","1990-2010",null,null,"Figure 1: Projected Transport Emissions: BAU, Low Carbon Scenario, and Transport Target"]
[null,"Growth Forecast CO2e Emissions (%)BAU-Transport Sector","2010-2030",1.4146193659006281]
[null,"Reduction with BAU (%) - Transport (2020)",null,-0.1166169895678093]
[null,"Reduction with BAU (%) - Transport (2030)",null,-0.26224783861671463]
[null,"Transport Share in Total Economy-wide Emissions",1990,0]
[null,null,2000,0.45333333333333337]
[null,null,2010,0.31056104262344747]
[null,null,"2030(BAU)",0.53071981934275947]
[null,null,"2030 (Low)",0.39153969380906756]
[null,"Gap Between INDC Target and Average Low Carbon Scenario (%)",null,0.5759369337729765]
[null,"Cumulative Increase in Transport CO2 (2010-2030) MT (avg)","Baseline",5.487064002354435]
[null,null,"Low Carbon",4.6796484757797225]
[null,"Cumulative Reduction in Transport (2010-2030) MT (avg)",null,0.80741552657471249]
[null,"Cumulative Gap Between INDC Target and Average Low Carbon Scenario (MT)",null,-0.99661021943007011]
[null,"Cumulative Gap Between INDC Target and BAU (MT)",null,-1.8040257460047826]
[]
[]
[null,null,null,null,null,"Figure 2: Transport Share of Economy-Wide Emissions"]
[]
[null,"TIER II FACTSHEET SOURCES"]
[]
[null,"Table 1: Historic and Projected Emissions"]
[null,"Historic Emissions","Submitted National Communications","http://unfccc.int/national_reports/non-annex_i_natcom/submitted_natcom/items/653.php"]
[null,null,"UNFCCC: INDCs as communicated by Parties","http://www4.unfccc.int/submissions/indc/Submission%20Pages/submissions.aspx"]
[null,null,"Submitted Biennial Update Reports","http://unfccc.int/national_reports/non-annex_i_natcom/reporting_on_climate_change/items/8722.php"]
[null,null,"The Climate Pledge INDC Tool","http://infographics.pbl.nl/indc/"]
[null,null,"CAIT Climate Data Explorer","http://cait.wri.org/"]
[null,null,"Climate Equity Reference Calculator","http://gdrights.org/calculator-about/"]
[null,null,"World Bank - World Development Indicators","http://data.worldbank.org/data-catalog/world-development-indicators"]
[null,null,"UNEP Pledge Pipeline Tool","http://www.unep.org/climatechange/pledgepipeline/"]
[null,null,"Climate Action Tracker","http://climateactiontracker.org/"]
[null,"BAU Emissions Projections","Submitted National Communications","http://unfccc.int/national_reports/non-annex_i_natcom/submitted_natcom/items/653.php"]
[null,null,"UNFCCC: INDCs as communicated by Parties","http://www4.unfccc.int/submissions/indc/Submission%20Pages/submissions.aspx"]
[null,null,"Submitted Biennial Update Reports","http://unfccc.int/national_reports/non-annex_i_natcom/reporting_on_climate_change/items/8722.php"]
[null,null,"The Climate Pledge INDC Tool","http://infographics.pbl.nl/indc/"]
[null,null,"Climate Equity Reference Calculator","http://gdrights.org/calculator-about/"]
[null,null,"World Bank - World Development Indicators","http://data.worldbank.org/data-catalog/world-development-indicators"]
[null,null,"UNEP Pledge Pipeline Tool","http://www.unep.org/climatechange/pledgepipeline/"]
[null,null,"Climate Action Tracker","http://climateactiontracker.org/"]
[null,"INDC Targets","UNFCCC: INDCs as communicated by Parties","http://www4.unfccc.int/submissions/indc/Submission%20Pages/submissions.aspx"]
[]
[null,"Figure 1: Projected Transport Emissions: BAU, Low Carbon Scenario, and Derived Target"]
[null,"Derived from Table 1: Historic and Projected Emissions"]
[]
[null,"Figure 2: Transport Share of Economy-Wide Emissions"]
[null,"Derived from Table 1: Historic and Projected Emissions"]

{"sheet":"Cameroon","index":17,"n_rows":67,"n_cols":6,"rows_kept":67,"cut":false,"hidden":false,"merged":[[21,5,21,11],[22,5,22,11],[1,1,1,3],[2,1,2,2],[3,1,3,2],[4,1,4,2],[5,1,5,2],[6,1,6,2],[33,1,33,2],[7,1,11,1],[12,1,13,1],[14,1,18,1],[19,1,20,1],[23,1,23,2],[24,1,24,2],[25,1,29,1],[30,1,30,2],[31,1,32,1],[34,1,34,2],[35,1,35,2],[38,5,38,11],[43,1,51,1],[52,1,59,1]]}
[]
[null,"Table 1: Historic and Projected Emissions"]
[null,"Country Name",null,"Cameroon"]
[null,"Economy Wide CO2e Emissions Target (INDC)",null,"Reduction by 35% below BAU by 2035"]
[null,"Total Country CO2e Emissions Under Target (by Target Year) (MT)",null,63.3]
[null,"Target Year",null,2030]
[null,"Transport CO2 Emissions Target (based on share of total emissions @ 2010)",null,4.3423800000000004]
[null,"Total Country CO2e Emissions (BAU)",1990,28.93]
[null,null,2000,30.36]
[null,null,2010,40]
[null,null,2020,58.62]
[null,null,2030,85.909000000000006]
[null,"Total Country CO2e Emissions (Low Carbon Scenario)",2020]
[null,null,2030]
[null,"Total Transport CO2e Emissions (BAU)",1990,1.74,{"$f":"D7","v":4.3423800000000004}]
[null,null,2000,1.84]
[null,null,2010,2.7440000000000002]
[null,null,2020,4.13]
[null,null,2030,6.21,{"$f":"D7","v":4.3423800000000004}]
[null,"Total Transport CO2e Emissions (Low Carbon Scenario) ",2020,3.57]
[null,null,2030,4.6399999999999997,{"$f":"D7","v":4.3423800000000004}]
[null,"Historical Growth in CO2e Emissions  (%) Transport Sector","1990-2010",0.57701149425287368,null,"Figure 1: Projected Transport Emissions: BAU, Low Carbon Scenario, and Transport Target"]
[null,"Growth Forecast CO2e Emissions (%)BAU-Transport Sector","2010-2030",1.2631195335276968]
[null,"Reduction with BAU (%) - Transport (2020)",null,-0.13559322033898302]
[null,"Reduction with BAU (%) - Transport (2030)",null,-0.25281803542673109]
[null,"Transport Share in Total Economy-wide Emissions",1990,6.0145178015900448E-2]
[null,null,2000,6.0606060606060608E-2]
[null,null,2010,6.8600000000000008E-2]
[null,null,"2030(BAU)",7.2285790778614578E-2]
[null,null,"2030 (Low)",5.4010639164697519E-2]
[null,"Gap Between INDC Target and Average Low Carbon Scenario (%)",null,6.8538451264053224E-2]
[null,"Cumulative Increase in Transport CO2 (2010-2030) MT (avg)","Baseline",89.382822968226208]
[null,null,"Low Carbon",75.90174131505259]
[null,"Cumulative Reduction in Transport (2010-2030) MT (avg)",null,13.481081653173618]
[null,"Cumulative Gap Between INDC Target and Average Low Carbon Scenario (MT)",null,-2.7101984721094965]
[null,"Cumulative Gap Between INDC Target and BAU (MT)",null,-16.191280125283114]
[]
[]
[null,null,null,null,null,"Figure 2: Transport Share of Economy-Wide Emissions"]
[]
[null,"TIER II FACTSHEET SOURCES"]
[]
[null,"Table 1: Historic and Projected Emissions"]
[null,"Historic Emissions","Submitted National Communications","http://unfccc.int/national_reports/non-annex_i_natcom/submitted_natcom/items/653.php"]
[null,null,"UNFCCC: INDCs as communicated by Parties","http://www4.unfccc.int/submissions/indc/Submission%20Pages/submissions.aspx"]
[null,null,"Submitted Biennial Update Reports","http://unfccc.int/national_reports/non-annex_i_natcom/reporting_on_climate_change/items/8722.php"]
[null,null,"The Climate Pledge INDC Tool","http://infographics.pbl.nl/indc/"]
[null,null,"CAIT Climate Data Explorer","http://cait.wri.org/"]
[null,null,"Climate Equity Reference Calculator","http://gdrights.org/calculator-about/"]
[null,null,"World Bank - World Development Indicators","http://data.worldbank.org/data-catalog/world-development-indicators"]
[null,null,"UNEP Pledge Pipeline Tool","http://www.unep.org/climatechange/pledgepipeline/"]
[null,null,"Climate Action Tracker","http://climateactiontracker.org/"]
[null,"BAU Emissions Projections","Submitted National Communications","http://unfccc.int/national_reports/non-annex_i_natcom/submitted_natcom/items/653.php"]
[null,null,"UNFCCC: INDCs as communicated by Parties","http://www4.unfccc.int/submissions/indc/Submission%20Pages/submissions.aspx"]
[null,null,"Submitted Biennial Update Reports","http://unfccc.int/national_reports/non-annex_i_natcom/reporting_on_climate_change/items/8722.php"]
[null,null,"The Climate Pledge INDC Tool","http://infographics.pbl.nl/indc/"]
[null,null,"Climate Equity Reference Calculator","http://gdrights.org/calculator-about/"]
[null,null,"World Bank - World Development Indicators","http://data.worldbank.org/data-catalog/world-development-indicators"]
[null,null,"UNEP Pledge Pipeline Tool","http://www.unep.org/climatechange/pledgepipeline/"]
[null,null,"Climate Action Tracker","http://climateactiontracker.org/"]
[null,"INDC Targets","UNFCCC: INDCs as communicated by Parties","http://www4.unfccc.int/submissions/indc/Submission%20Pages/submissions.aspx"]
[]
[null,"Figure 1: Projected Transport Emissions: BAU, Low Carbon Scenario, and Derived Target"]
[null,"Derived from Table 1: Historic and Projected Emissions"]
[]
[null,"Figure 2: Transport Share of Economy-Wide Emissions"]
[null,"Derived from Table 1: Historic and Projected Emissions"]

{"sheet":"Central African Region","index":18,"n_rows":67,"n_cols":6,"rows_kept":67,"cut":false,"hidden":false,"merged":[[34,1,34,2],[35,1,35,2],[38,5,38,11],[43,1,51,1],[52,1,59,1],[33,1,33,2],[7,1,11,1],[12,1,13,1],[14,1,18,1],[19,1,20,1],[23,1,23,2],[24,1,24,2],[25,1,29,1],[30,1,30,2],[31,1,32,1],[21,5,21,11],[22,5,22,11],[1,1,1,3],[2,1,2,2],[3,1,3,2],[4,1,4,2],[5,1,5,2],[6,1,6,2]]}
[]
[null,"Table 1: Historic and Projected Emissions"]
[null,"Country Name",null,"Central African Region"]
[null,"Economy Wide CO2e Emissions Target (INDC)",null,"Reduce emissions by 5% compared to the 2030 BaU"]
[null,"Total Country CO2e Emissions Under Target (by Target Year) (MT)",null,119.7]
[null,"Target Year",null,2030]
[null,"Transport CO2 Emissions Target (based on share of total emissions @ 2010)",null,0.27124435051760165]
[null,"Total Country CO2e Emissions (BAU)",1990,36.130299999999998]
[null,null,2000,44.304099999999998]
[null,null,2010,116.83]
[null,null,2020,120]
[null,null,2030,126]
[null,"Total Country CO2e Emissions (Low Carbon Scenario)",2020]
[null,null,2030]
[null,"Total Transport CO2e Emissions (BAU)",1990,null,{"$f":"D7","v":0.27124435051760165}]
[null,null,2000]
[null,null,2010,0.26474083100226736]
[null,null,2020,0.31039825732723342]
[null,null,2030,0.60713010576296955,{"$f":"D7","v":0.27124435051760165}]
[null,"Total Transport CO2e Emissions (Low Carbon Scenario) ",2020,0.27420054699063728]
[null,null,2030,0.44791154776749337,{"$f":"D7","v":0.27124435051760165}]
[null,"Historical Growth in CO2e Emissions  (%) Transport Sector","1990-2010",{"$error":"#DIV/0!"},null,"Figure 1: Projected Transport Emissions: BAU, Low Carbon Scenario, and Transport Target"]
[null,"Growth Forecast CO2e Emissions (%)BAU-Transport Sector","2010-2030",1.2932998414504855]
[null,"Reduction with BAU (%) - Transport (2020)",null,-0.11661698956780919]
[null,"Reduction with BAU (%) - Transport (2030)",null,-0.26224783861671475]
[null,"Transport Share in Total Economy-wide Emissions",1990,0]
[null,null,2000,0]
[null,null,2010,2.2660346743325118E-3]
[null,null,"2030(BAU)",4.8184929028807109E-3]
[null,null,"2030 (Low)",3.5548535537102649E-3]
[null,"Gap Between INDC Target and Average Low Carbon Scenario (%)",null,0.65132120507861924]
[null,"Cumulative Increase in Transport CO2 (2010-2030) MT (avg)","Baseline",7.7302777060409884]
[null,null,"Low Carbon",6.5912748857977421]
[null,"Cumulative Reduction in Transport (2010-2030) MT (avg)",null,1.1390028202432463]
[null,"Cumulative Gap Between INDC Target and Average Low Carbon Scenario (MT)",null,-0.96369287317656749]
[null,"Cumulative Gap Between INDC Target and BAU (MT)",null,-2.1026956934198138]
[]
[]
[null,null,null,null,null,"Figure 2: Transport Share of Economy-Wide Emissions"]
[]
[null,"TIER II FACTSHEET SOURCES"]
[]
[null,"Table 1: Historic and Projected Emissions"]
[null,"Historic Emissions","Submitted National Communications","http://unfccc.int/national_reports/non-annex_i_natcom/submitted_natcom/items/653.php"]
[null,null,"UNFCCC: INDCs as communicated by Parties","http://www4.unfccc.int/submissions/indc/Submission%20Pages/submissions.aspx"]
[null,null,"Submitted Biennial Update Reports","http://unfccc.int/national_reports/non-annex_i_natcom/reporting_on_climate_change/items/8722.php"]
[null,null,"The Climate Pledge INDC Tool","http://infographics.pbl.nl/indc/"]
[null,null,"CAIT Climate Data Explorer","http://cait.wri.org/"]
[null,null,"Climate Equity Reference Calculator","http://gdrights.org/calculator-about/"]
[null,null,"World Bank - World Development Indicators","http://data.worldbank.org/data-catalog/world-development-indicators"]
[null,null,"UNEP Pledge Pipeline Tool","http://www.unep.org/climatechange/pledgepipeline/"]
[null,null,"Climate Action Tracker","http://climateactiontracker.org/"]
[null,"BAU Emissions Projections","Submitted National Communications","http://unfccc.int/national_reports/non-annex_i_natcom/submitted_natcom/items/653.php"]
[null,null,"UNFCCC: INDCs as communicated by Parties","http://www4.unfccc.int/submissions/indc/Submission%20Pages/submissions.aspx"]
[null,null,"Submitted Biennial Update Reports","http://unfccc.int/national_reports/non-annex_i_natcom/reporting_on_climate_change/items/8722.php"]
[null,null,"The Climate Pledge INDC Tool","http://infographics.pbl.nl/indc/"]
[null,null,"Climate Equity Reference Calculator","http://gdrights.org/calculator-about/"]
[null,null,"World Bank - World Development Indicators","http://data.worldbank.org/data-catalog/world-development-indicators"]
[null,null,"UNEP Pledge Pipeline Tool","http://www.unep.org/climatechange/pledgepipeline/"]
[null,null,"Climate Action Tracker","http://climateactiontracker.org/"]
[null,"INDC Targets","UNFCCC: INDCs as communicated by Parties","http://www4.unfccc.int/submissions/indc/Submission%20Pages/submissions.aspx"]
[]
[null,"Figure 1: Projected Transport Emissions: BAU, Low Carbon Scenario, and Derived Target"]
[null,"Derived from Table 1: Historic and Projected Emissions"]
[]
[null,"Figure 2: Transport Share of Economy-Wide Emissions"]
[null,"Derived from Table 1: Historic and Projected Emissions"]

{"sheet":"Chad","index":19,"n_rows":67,"n_cols":6,"rows_kept":67,"cut":false,"hidden":false,"merged":[[21,5,21,11],[22,5,22,11],[1,1,1,3],[2,1,2,2],[3,1,3,2],[4,1,4,2],[5,1,5,2],[6,1,6,2],[33,1,33,2],[7,1,11,1],[12,1,13,1],[14,1,18,1],[19,1,20,1],[23,1,23,2],[24,1,24,2],[25,1,29,1],[30,1,30,2],[31,1,32,1],[34,1,34,2],[35,1,35,2],[38,5,38,11],[43,1,51,1],[52,1,59,1]]}
[]
[null,"Table 1: Historic and Projected Emissions"]
[null,"Country Name",null,"Chad"]
[null,"Economy Wide CO2e Emissions Target (INDC)",null,"71% reduction from BAU by 2030"]
[null,"Total Country CO2e Emissions Under Target (by Target Year) (MT)",null,8]
[null,"Target Year",null,2030]
[null,"Transport CO2 Emissions Target (based on share of total emissions @ 2010)",null,1.47]
[null,"Total Country CO2e Emissions (BAU)",1990,8]
[null,null,2000]
[null,null,2010,8]
[null,null,2020,18]
[null,null,2030,28.3]
[null,"Total Country CO2e Emissions (Low Carbon Scenario)",2020]
[null,null,2030]
[null,"Total Transport CO2e Emissions (BAU)",1990,null,{"$f":"D7","v":1.47}]
[null,null,2000]
[null,null,2010,1.47]
[null,null,2020,3.0337779510041325]
[null,null,2030,6.5669288227449982,{"$f":"D7","v":1.47}]
[null,"Total Transport CO2e Emissions (Low Carbon Scenario) ",2020,2.6799878993408339]
[null,null,2030,4.844765932630315,{"$f":"D7","v":1.47}]
[null,"Historical Growth in CO2e Emissions  (%) Transport Sector","1990-2010",null,null,"Figure 1: Projected Transport Emissions: BAU, Low Carbon Scenario, and Transport Target"]
[null,"Growth Forecast CO2e Emissions (%)BAU-Transport Sector","2010-2030",3.4672985188741485]
[null,"Reduction with BAU (%) - Transport (2020)",null,-0.11661698956780919]
[null,"Reduction with BAU (%) - Transport (2030)",null,-0.26224783861671486]
[null,"Transport Share in Total Economy-wide Emissions",1990,0]
[null,null,2000]
[null,null,2010,0.18375]
[null,null,"2030(BAU)",0.23204695486731441]
[null,null,"2030 (Low)",0.17119314249577083]
[null,"Gap Between INDC Target and Average Low Carbon Scenario (%)",null,2.2957591378437519]
[null,"Cumulative Increase in Transport CO2 (2010-2030) MT (avg)","Baseline",71.385621035263497]
[null,null,"Low Carbon",59.883963450236145]
[null,"Cumulative Reduction in Transport (2010-2030) MT (avg)",null,11.501657585027353]
[null,"Cumulative Gap Between INDC Target and Average Low Carbon Scenario (MT)",null,-29.013963450236155]
[null,"Cumulative Gap Between INDC Target and BAU (MT)",null,-40.515621035263507]
[]
[]
[null,null,null,null,null,"Figure 2: Transport Share of Economy-Wide Emissions"]
[]
[null,"TIER II FACTSHEET SOURCES"]
[]
[null,"Table 1: Historic and Projected Emissions"]
[null,"Historic Emissions","Submitted National Communications","http://unfccc.int/national_reports/non-annex_i_natcom/submitted_natcom/items/653.php"]
[null,null,"UNFCCC: INDCs as communicated by Parties","http://www4.unfccc.int/submissions/indc/Submission%20Pages/submissions.aspx"]
[null,null,"Submitted Biennial Update Reports","http://unfccc.int/national_reports/non-annex_i_natcom/reporting_on_climate_change/items/8722.php"]
[null,null,"The Climate Pledge INDC Tool","http://infographics.pbl.nl/indc/"]
[null,null,"CAIT Climate Data Explorer","http://cait.wri.org/"]
[null,null,"Climate Equity Reference Calculator","http://gdrights.org/calculator-about/"]
[null,null,"World Bank - World Development Indicators","http://data.worldbank.org/data-catalog/world-development-indicators"]
[null,null,"UNEP Pledge Pipeline Tool","http://www.unep.org/climatechange/pledgepipeline/"]
[null,null,"Climate Action Tracker","http://climateactiontracker.org/"]
[null,"BAU Emissions Projections","Submitted National Communications","http://unfccc.int/national_reports/non-annex_i_natcom/submitted_natcom/items/653.php"]
[null,null,"UNFCCC: INDCs as communicated by Parties","http://www4.unfccc.int/submissions/indc/Submission%20Pages/submissions.aspx"]
[null,null,"Submitted Biennial Update Reports","http://unfccc.int/national_reports/non-annex_i_natcom/reporting_on_climate_change/items/8722.php"]
[null,null,"The Climate Pledge INDC Tool","http://infographics.pbl.nl/indc/"]
[null,null,"Climate Equity Reference Calculator","http://gdrights.org/calculator-about/"]
[null,null,"World Bank - World Development Indicators","http://data.worldbank.org/data-catalog/world-development-indicators"]
[null,null,"UNEP Pledge Pipeline Tool","http://www.unep.org/climatechange/pledgepipeline/"]
[null,null,"Climate Action Tracker","http://climateactiontracker.org/"]
[null,"INDC Targets","UNFCCC: INDCs as communicated by Parties","http://www4.unfccc.int/submissions/indc/Submission%20Pages/submissions.aspx"]
[]
[null,"Figure 1: Projected Transport Emissions: BAU, Low Carbon Scenario, and Derived Target"]
[null,"Derived from Table 1: Historic and Projected Emissions"]
[]
[null,"Figure 2: Transport Share of Economy-Wide Emissions"]
[null,"Derived from Table 1: Historic and Projected Emissions"]

{"sheet":"Comoros","index":20,"n_rows":67,"n_cols":6,"rows_kept":67,"cut":false,"hidden":false,"merged":[[34,1,34,2],[35,1,35,2],[38,5,38,11],[43,1,51,1],[52,1,59,1],[33,1,33,2],[7,1,11,1],[12,1,13,1],[14,1,18,1],[19,1,20,1],[23,1,23,2],[24,1,24,2],[25,1,29,1],[30,1,30,2],[31,1,32,1],[21,5,21,11],[22,5,22,11],[1,1,1,3],[2,1,2,2],[3,1,3,2],[4,1,4,2],[5,1,5,2],[6,1,6,2]]}
[]
[null,"Table 1: Historic and Projected Emissions"]
[null,"Country Name",null,"Comorros"]
[null,"Economy Wide CO2e Emissions Target (INDC)",null,"84% below BAU by 2030"]
[null,"Total Country CO2e Emissions Under Target (by Target Year) (MT)",null,8.14E-2]
[null,"Target Year",null,2030]
[null,"Transport CO2 Emissions Target (based on share of total emissions @ 2010)",null,1.5761695041668525E-2]
[null,"Total Country CO2e Emissions (BAU)",1990,0.28999999999999998]
[null,null,2000]
[null,null,2010,0.29437189260000002]
[null,null,2020,0.36590311000000003]
[null,null,2030,0.54362218515896499]
[null,"Total Country CO2e Emissions (Low Carbon Scenario)",2020]
[null,null,2030]
[null,"Total Transport CO2e Emissions (BAU)",1990,null,{"$f":"D7","v":1.5761695041668525E-2}]
[null,null,2000]
[null,null,2010,5.7000000000000002E-2]
[null,null,2020,0.1]
[null,null,2030,0.2,{"$f":"D7","v":1.5761695041668525E-2}]
[null,"Total Transport CO2e Emissions (Low Carbon Scenario) ",2020,0.1]
[null,null,2030,0.12,{"$f":"D7","v":1.5761695041668525E-2}]
[null,"Historical Growth in CO2e Emissions  (%) Transport Sector","1990-2010",{"$error":"#DIV/0!"},null,"Figure 1: Projected Transport Emissions: BAU, Low Carbon Scenario, and Transport Target"]
[null,"Growth Forecast CO2e Emissions (%)BAU-Transport Sector","2010-2030",2.5087719298245617]
[null,"Reduction with BAU (%) - Transport (2020)",null,0]
[null,"Reduction with BAU (%) - Transport (2030)",null,-0.4]
[null,"Transport Share in Total Economy-wide Emissions",1990,0]
[null,null,2000,{"$error":"#DIV/0!"}]
[null,null,2010,0.19363261721951505]
[null,null,"2030(BAU)",0.3679025717861687]
[null,null,"2030 (Low)",0.22074154307170121]
[null,"Gap Between INDC Target and Average Low Carbon Scenario (%)",null,6.6133943514806672]
[null,"Cumulative Increase in Transport CO2 (2010-2030) MT (avg)","Baseline",2.336936723109301]
[null,null,"Low Carbon",1.9506574821252045]
[null,"Cumulative Reduction in Transport (2010-2030) MT (avg)",null,0.38627924098409649]
[null,"Cumulative Gap Between INDC Target and Average Low Carbon Scenario (MT)",null,-1.2724484425574261]
[null,"Cumulative Gap Between INDC Target and BAU (MT)",null,-1.6587276835415228]
[]
[]
[null,null,null,null,null,"Figure 2: Transport Share of Economy-Wide Emissions"]
[]
[null,"TIER II FACTSHEET SOURCES"]
[]
[null,"Table 1: Historic and Projected Emissions"]
[null,"Historic Emissions","Submitted National Communications","http://unfccc.int/national_reports/non-annex_i_natcom/submitted_natcom/items/653.php"]
[null,null,"UNFCCC: INDCs as communicated by Parties","http://www4.unfccc.int/submissions/indc/Submission%20Pages/submissions.aspx"]
[null,null,"Submitted Biennial Update Reports","http://unfccc.int/national_reports/non-annex_i_natcom/reporting_on_climate_change/items/8722.php"]
[null,null,"The Climate Pledge INDC Tool","http://infographics.pbl.nl/indc/"]
[null,null,"CAIT Climate Data Explorer","http://cait.wri.org/"]
[null,null,"Climate Equity Reference Calculator","http://gdrights.org/calculator-about/"]
[null,null,"World Bank - World Development Indicators","http://data.worldbank.org/data-catalog/world-development-indicators"]
[null,null,"UNEP Pledge Pipeline Tool","http://www.unep.org/climatechange/pledgepipeline/"]
[null,null,"Climate Action Tracker","http://climateactiontracker.org/"]
[null,"BAU Emissions Projections","Submitted National Communications","http://unfccc.int/national_reports/non-annex_i_natcom/submitted_natcom/items/653.php"]
[null,null,"UNFCCC: INDCs as communicated by Parties","http://www4.unfccc.int/submissions/indc/Submission%20Pages/submissions.aspx"]
[null,null,"Submitted Biennial Update Reports","http://unfccc.int/national_reports/non-annex_i_natcom/reporting_on_climate_change/items/8722.php"]
[null,null,"The Climate Pledge INDC Tool","http://infographics.pbl.nl/indc/"]
[null,null,"Climate Equity Reference Calculator","http://gdrights.org/calculator-about/"]
[null,null,"World Bank - World Development Indicators","http://data.worldbank.org/data-catalog/world-development-indicators"]
[null,null,"UNEP Pledge Pipeline Tool","http://www.unep.org/climatechange/pledgepipeline/"]
[null,null,"Climate Action Tracker","http://climateactiontracker.org/"]
[null,"INDC Targets","UNFCCC: INDCs as communicated by Parties","http://www4.unfccc.int/submissions/indc/Submission%20Pages/submissions.aspx"]
[]
[null,"Figure 1: Projected Transport Emissions: BAU, Low Carbon Scenario, and Derived Target"]
[null,"Derived from Table 1: Historic and Projected Emissions"]
[]
[null,"Figure 2: Transport Share of Economy-Wide Emissions"]
[null,"Derived from Table 1: Historic and Projected Emissions"]

{"sheet":"Congo","index":21,"n_rows":67,"n_cols":6,"rows_kept":67,"cut":false,"hidden":false,"merged":[[21,5,21,11],[22,5,22,11],[1,1,1,3],[2,1,2,2],[3,1,3,2],[4,1,4,2],[5,1,5,2],[6,1,6,2],[33,1,33,2],[7,1,11,1],[12,1,13,1],[14,1,18,1],[19,1,20,1],[23,1,23,2],[24,1,24,2],[25,1,29,1],[30,1,30,2],[31,1,32,1],[34,1,34,2],[35,1,35,2],[38,5,38,11],[43,1,51,1],[52,1,59,1]]}
[]
[null,"Table 1: Historic and Projected Emissions"]
[null,"Country Name",null,"Congo Republic"]
[null,"Economy Wide CO2e Emissions Target (INDC)",null,"At least 48% reduction with BAU in 2025 and 55% in 2035"]
[null,"Total Country CO2e Emissions Under Target (by Target Year) (MT)",null,12.48]
[null,"Target Year",null,2030]
[null,"Transport CO2 Emissions Target (based on share of total emissions @ 2010)",null,4.8156521739130431]
[null,"Total Country CO2e Emissions (BAU)",1990,2.5]
[null,null,2000,2.044]
[null,null,2010,3.68]
[null,null,2020,11]
[null,null,2030,26]
[null,"Total Country CO2e Emissions (Low Carbon Scenario)",2020]
[null,null,2030]
[null,"Total Transport CO2e Emissions (BAU)",1990,0.47,{"$f":"D7","v":4.8156521739130431}]
[null,null,2000,0.4]
[null,null,2010,1.42]
[null,null,2020,3.1]
[null,null,2030,5.8000000000000007,{"$f":"D7","v":4.8156521739130431}]
[null,"Total Transport CO2e Emissions (Low Carbon Scenario) ",2020,2.7]
[null,null,2030,4.3,{"$f":"D7","v":4.8156521739130431}]
[null,"Historical Growth in CO2e Emissions  (%) Transport Sector","1990-2010",2.021276595744681,null,"Figure 1: Projected Transport Emissions: BAU, Low Carbon Scenario, and Transport Target"]
[null,"Growth Forecast CO2e Emissions (%)BAU-Transport Sector","2010-2030",3.0845070422535219]
[null,"Reduction with BAU (%) - Transport (2020)",null,-0.12903225806451613]
[null,"Reduction with BAU (%) - Transport (2030)",null,-0.25862068965517249]
[null,"Transport Share in Total Economy-wide Emissions",1990,0.188]
[null,null,2000,0.19569471624266147]
[null,null,2010,0.38586956521739124]
[null,null,"2030(BAU)",0.22307692307692312]
[null,null,"2030 (Low)",0.16538461538461538]
[null,"Gap Between INDC Target and Average Low Carbon Scenario (%)",null,-0.10707836764174794]
[null,"Cumulative Increase in Transport CO2 (2010-2030) MT (avg)","Baseline",68.252534747989117]
[null,null,"Low Carbon",57.17403902861583]
[null,"Cumulative Reduction in Transport (2010-2030) MT (avg)",null,11.078495719373286]
[null,"Cumulative Gap Between INDC Target and Average Low Carbon Scenario (MT)",null,1.5721280753250113]
[null,"Cumulative Gap Between INDC Target and BAU (MT)",null,-9.5063676440482752]
[]
[]
[null,null,null,null,null,"Figure 2: Transport Share of Economy-Wide Emissions"]
[]
[null,"TIER II FACTSHEET SOURCES"]
[]
[null,"Table 1: Historic and Projected Emissions"]
[null,"Historic Emissions","Submitted National Communications","http://unfccc.int/national_reports/non-annex_i_natcom/submitted_natcom/items/653.php"]
[null,null,"UNFCCC: INDCs as communicated by Parties","http://www4.unfccc.int/submissions/indc/Submission%20Pages/submissions.aspx"]
[null,null,"Submitted Biennial Update Reports","http://unfccc.int/national_reports/non-annex_i_natcom/reporting_on_climate_change/items/8722.php"]
[null,null,"The Climate Pledge INDC Tool","http://infographics.pbl.nl/indc/"]
[null,null,"CAIT Climate Data Explorer","http://cait.wri.org/"]
[null,null,"Climate Equity Reference Calculator","http://gdrights.org/calculator-about/"]
[null,null,"World Bank - World Development Indicators","http://data.worldbank.org/data-catalog/world-development-indicators"]
[null,null,"UNEP Pledge Pipeline Tool","http://www.unep.org/climatechange/pledgepipeline/"]
[null,null,"Climate Action Tracker","http://climateactiontracker.org/"]
[null,"BAU Emissions Projections","Submitted National Communications","http://unfccc.int/national_reports/non-annex_i_natcom/submitted_natcom/items/653.php"]
[null,null,"UNFCCC: INDCs as communicated by Parties","http://www4.unfccc.int/submissions/indc/Submission%20Pages/submissions.aspx"]
[null,null,"Submitted Biennial Update Reports","http://unfccc.int/national_reports/non-annex_i_natcom/reporting_on_climate_change/items/8722.php"]
[null,null,"The Climate Pledge INDC Tool","http://infographics.pbl.nl/indc/"]
[null,null,"Climate Equity Reference Calculator","http://gdrights.org/calculator-about/"]
[null,null,"World Bank - World Development Indicators","http://data.worldbank.org/data-catalog/world-development-indicators"]
[null,null,"UNEP Pledge Pipeline Tool","http://www.unep.org/climatechange/pledgepipeline/"]
[null,null,"Climate Action Tracker","http://climateactiontracker.org/"]
[null,"INDC Targets","UNFCCC: INDCs as communicated by Parties","http://www4.unfccc.int/submissions/indc/Submission%20Pages/submissions.aspx"]
[]
[null,"Figure 1: Projected Transport Emissions: BAU, Low Carbon Scenario, and Derived Target"]
[null,"Derived from Table 1: Historic and Projected Emissions"]
[]
[null,"Figure 2: Transport Share of Economy-Wide Emissions"]
[null,"Derived from Table 1: Historic and Projected Emissions"]

{"sheet":"Cote d'Ivoire","index":22,"n_rows":67,"n_cols":6,"rows_kept":67,"cut":false,"hidden":false,"merged":[[21,5,21,11],[22,5,22,11],[1,1,1,3],[2,1,2,2],[3,1,3,2],[4,1,4,2],[5,1,5,2],[6,1,6,2],[33,1,33,2],[7,1,11,1],[12,1,13,1],[14,1,18,1],[19,1,20,1],[23,1,23,2],[24,1,24,2],[25,1,29,1],[30,1,30,2],[31,1,32,1],[34,1,34,2],[35,1,35,2],[38,5,38,11],[43,1,51,1],[52,1,59,1]]}
[]
[null,"Table 1: Historic and Projected Emissions"]
[null,"Country Name",null,"Ivory Coast"]
[null,"Economy Wide CO2e Emissions Target (INDC)",null,"28% below BAU"]
[null,"Total Country CO2e Emissions Under Target (by Target Year) (MT)",null,24.576000000000001]
[null,"Target Year",null,2030]
[null,"Transport CO2 Emissions Target (based on share of total emissions @ 2010)",null,4.47]
[null,"Total Country CO2e Emissions (BAU)",1990,24.7]
[null,null,2000,29.15]
[null,null,2010,15.964]
[null,null,2020,25]
[null,null,2030,34.253]
[null,"Total Country CO2e Emissions (Low Carbon Scenario)",2020]
[null,null,2030]
[null,"Total Transport CO2e Emissions (BAU)",1990,1.18,{"$f":"D7","v":4.47}]
[null,null,2000,1.28]
[null,null,2010,1.52]
[null,null,2020,3.71]
[null,null,2030,6.4,{"$f":"D7","v":4.47}]
[null,"Total Transport CO2e Emissions (Low Carbon Scenario) ",2020,3.2773509687034279]
[null,null,2030,4.47,{"$f":"D7","v":4.47}]
[null,"Historical Growth in CO2e Emissions  (%) Transport Sector","1990-2010",0.2881355932203391,null,"Figure 1: Projected Transport Emissions: BAU, Low Carbon Scenario, and Transport Target"]
[null,"Growth Forecast CO2e Emissions (%)BAU-Transport Sector","2010-2030",3.2105263157894735]
[null,"Reduction with BAU (%) - Transport (2020)",null,-0.11661698956780919]
[null,"Reduction with BAU (%) - Transport (2030)",null,-0.30156250000000007]
[null,"Transport Share in Total Economy-wide Emissions",1990,4.7773279352226722E-2]
[null,null,2000,4.3910806174957122E-2]
[null,null,2010,9.5214232022049608E-2]
[null,null,"2030(BAU)",0.18684494788777625]
[null,null,"2030 (Low)"]
[null,"Gap Between INDC Target and Average Low Carbon Scenario (%)",null,0]
[null,"Cumulative Increase in Transport CO2 (2010-2030) MT (avg)","Baseline",77.864937070440618]
[null,null,"Low Carbon",64.310623354347456]
[null,"Cumulative Reduction in Transport (2010-2030) MT (avg)",null,13.554313716093162]
[null,"Cumulative Gap Between INDC Target and Average Low Carbon Scenario (MT)",null,-6.6057866883390588]
[null,"Cumulative Gap Between INDC Target and BAU (MT)",null,-20.160100404432221]
[]
[]
[null,null,null,null,null,"Figure 2: Transport Share of Economy-Wide Emissions"]
[]
[null,"TIER II FACTSHEET SOURCES"]
[]
[null,"Table 1: Historic and Projected Emissions"]
[null,"Historic Emissions","Submitted National Communications","http://unfccc.int/national_reports/non-annex_i_natcom/submitted_natcom/items/653.php"]
[null,null,"UNFCCC: INDCs as communicated by Parties","http://www4.unfccc.int/submissions/indc/Submission%20Pages/submissions.aspx"]
[null,null,"Submitted Biennial Update Reports","http://unfccc.int/national_reports/non-annex_i_natcom/reporting_on_climate_change/items/8722.php"]
[null,null,"The Climate Pledge INDC Tool","http://infographics.pbl.nl/indc/"]
[null,null,"CAIT Climate Data Explorer","http://cait.wri.org/"]
[null,null,"Climate Equity Reference Calculator","http://gdrights.org/calculator-about/"]
[null,null,"World Bank - World Development Indicators","http://data.worldbank.org/data-catalog/world-development-indicators"]
[null,null,"UNEP Pledge Pipeline Tool","http://www.unep.org/climatechange/pledgepipeline/"]
[null,null,"Climate Action Tracker","http://climateactiontracker.org/"]
[null,"BAU Emissions Projections","Submitted National Communications","http://unfccc.int/national_reports/non-annex_i_natcom/submitted_natcom/items/653.php"]
[null,null,"UNFCCC: INDCs as communicated by Parties","http://www4.unfccc.int/submissions/indc/Submission%20Pages/submissions.aspx"]
[null,null,"Submitted Biennial Update Reports","http://unfccc.int/national_reports/non-annex_i_natcom/reporting_on_climate_change/items/8722.php"]
[null,null,"The Climate Pledge INDC Tool","http://infographics.pbl.nl/indc/"]
[null,null,"Climate Equity Reference Calculator","http://gdrights.org/calculator-about/"]
[null,null,"World Bank - World Development Indicators","http://data.worldbank.org/data-catalog/world-development-indicators"]
[null,null,"UNEP Pledge Pipeline Tool","http://www.unep.org/climatechange/pledgepipeline/"]
[null,null,"Climate Action Tracker","http://climateactiontracker.org/"]
[null,"INDC Targets","UNFCCC: INDCs as communicated by Parties","http://www4.unfccc.int/submissions/indc/Submission%20Pages/submissions.aspx"]
[]
[null,"Figure 1: Projected Transport Emissions: BAU, Low Carbon Scenario, and Derived Target"]
[null,"Derived from Table 1: Historic and Projected Emissions"]
[]
[null,"Figure 2: Transport Share of Economy-Wide Emissions"]
[null,"Derived from Table 1: Historic and Projected Emissions"]

{"sheet":"D.R.Congo","index":23,"n_rows":67,"n_cols":6,"rows_kept":67,"cut":false,"hidden":false,"merged":[[34,1,34,2],[35,1,35,2],[38,5,38,11],[43,1,51,1],[52,1,59,1],[33,1,33,2],[7,1,11,1],[12,1,13,1],[14,1,18,1],[19,1,20,1],[23,1,23,2],[24,1,24,2],[25,1,29,1],[30,1,30,2],[31,1,32,1],[21,5,21,11],[22,5,22,11],[1,1,1,3],[2,1,2,2],[3,1,3,2],[4,1,4,2],[5,1,5,2],[6,1,6,2]]}
[]
[null,"Table 1: Historic and Projected Emissions"]
[null,"Country Name",null,"D.R.Congo"]
[null,"Economy Wide CO2e Emissions Target (INDC)",null,"17% below BAU by 2030"]
[null,"Total Country CO2e Emissions Under Target (by Target Year) (MT)",null,356.9]
[null,"Target Year",null,2030]
[null,"Transport CO2 Emissions Target (based on share of total emissions @ 2010)",null,1.9492230769230767]
[null,"Total Country CO2e Emissions (BAU)",1990,189]
[null,null,2000,215]
[null,null,2010,260]
[null,null,2020,345]
[null,null,2030,430]
[null,"Total Country CO2e Emissions (Low Carbon Scenario)",2020]
[null,null,2030]
[null,"Total Transport CO2e Emissions (BAU)",1990,0.47,{"$f":"D7","v":1.9492230769230767}]
[null,null,2000,0.4]
[null,null,2010,1.42]
[null,null,2020,3.5311656275788574]
[null,null,2030,6.3237798302609001,{"$f":"D7","v":1.9492230769230767}]
[null,"Total Transport CO2e Emissions (Low Carbon Scenario) ",2020,3.1193717224252873]
[null,null,2030,4.6653822378870036,{"$f":"D7","v":1.9492230769230767}]
[null,"Historical Growth in CO2e Emissions  (%) Transport Sector","1990-2010",2.021276595744681,null,"Figure 1: Projected Transport Emissions: BAU, Low Carbon Scenario, and Transport Target"]
[null,"Growth Forecast CO2e Emissions (%)BAU-Transport Sector","2010-2030",3.4533660776485213]
[null,"Reduction with BAU (%) - Transport (2020)",null,-0.11661698956780919]
[null,"Reduction with BAU (%) - Transport (2030)",null,-0.26224783861671475]
[null,"Transport Share in Total Economy-wide Emissions",1990,2.4867724867724868E-3]
[null,null,2000,1.8604651162790699E-3]
[null,null,2010,5.4615384615384613E-3]
[null,null,"2030(BAU)",1.4706464721536977E-2]
[null,null,"2030 (Low)"]
[null,"Gap Between INDC Target and Average Low Carbon Scenario (%)",null,1.3934573180056375]
[null,"Cumulative Increase in Transport CO2 (2010-2030) MT (avg)","Baseline",75.002681668535644]
[null,null,"Low Carbon",63.059305145862872]
[null,"Cumulative Reduction in Transport (2010-2030) MT (avg)",null,11.943376522672772]
[null,"Cumulative Gap Between INDC Target and Average Low Carbon Scenario (MT)",null,-27.960705000519553]
[null,"Cumulative Gap Between INDC Target and BAU (MT)",null,-39.904081523192325]
[]
[]
[null,null,null,null,null,"Figure 2: Transport Share of Economy-Wide Emissions"]
[]
[null,"TIER II FACTSHEET SOURCES"]
[]
[null,"Table 1: Historic and Projected Emissions"]
[null,"Historic Emissions","Submitted National Communications","http://unfccc.int/national_reports/non-annex_i_natcom/submitted_natcom/items/653.php"]
[null,null,"UNFCCC: INDCs as communicated by Parties","http://www4.unfccc.int/submissions/indc/Submission%20Pages/submissions.aspx"]
[null,null,"Submitted Biennial Update Reports","http://unfccc.int/national_reports/non-annex_i_natcom/reporting_on_climate_change/items/8722.php"]
[null,null,"The Climate Pledge INDC Tool","http://infographics.pbl.nl/indc/"]
[null,null,"CAIT Climate Data Explorer","http://cait.wri.org/"]
[null,null,"Climate Equity Reference Calculator","http://gdrights.org/calculator-about/"]
[null,null,"World Bank - World Development Indicators","http://data.worldbank.org/data-catalog/world-development-indicators"]
[null,null,"UNEP Pledge Pipeline Tool","http://www.unep.org/climatechange/pledgepipeline/"]
[null,null,"Climate Action Tracker","http://climateactiontracker.org/"]
[null,"BAU Emissions Projections","Submitted National Communications","http://unfccc.int/national_reports/non-annex_i_natcom/submitted_natcom/items/653.php"]
[null,null,"UNFCCC: INDCs as communicated by Parties","http://www4.unfccc.int/submissions/indc/Submission%20Pages/submissions.aspx"]
[null,null,"Submitted Biennial Update Reports","http://unfccc.int/national_reports/non-annex_i_natcom/reporting_on_climate_change/items/8722.php"]
[null,null,"The Climate Pledge INDC Tool","http://infographics.pbl.nl/indc/"]
[null,null,"Climate Equity Reference Calculator","http://gdrights.org/calculator-about/"]
[null,null,"World Bank - World Development Indicators","http://data.worldbank.org/data-catalog/world-development-indicators"]
[null,null,"UNEP Pledge Pipeline Tool","http://www.unep.org/climatechange/pledgepipeline/"]
[null,null,"Climate Action Tracker","http://climateactiontracker.org/"]
[null,"INDC Targets","UNFCCC: INDCs as communicated by Parties","http://www4.unfccc.int/submissions/indc/Submission%20Pages/submissions.aspx"]
[]
[null,"Figure 1: Projected Transport Emissions: BAU, Low Carbon Scenario, and Derived Target"]
[null,"Derived from Table 1: Historic and Projected Emissions"]
[]
[null,"Figure 2: Transport Share of Economy-Wide Emissions"]
[null,"Derived from Table 1: Historic and Projected Emissions"]

{"sheet":"Djibouti","index":24,"n_rows":67,"n_cols":6,"rows_kept":67,"cut":false,"hidden":false,"merged":[[21,5,21,11],[22,5,22,11],[1,1,1,3],[2,1,2,2],[3,1,3,2],[4,1,4,2],[5,1,5,2],[6,1,6,2],[33,1,33,2],[7,1,11,1],[12,1,13,1],[14,1,18,1],[19,1,20,1],[23,1,23,2],[24,1,24,2],[25,1,29,1],[30,1,30,2],[31,1,32,1],[34,1,34,2],[35,1,35,2],[38,5,38,11],[43,1,51,1],[52,1,59,1]]}
[]
[null,"Table 1: Historic and Projected Emissions"]
[null,"Country Name",null,"Djibouti"]
[null,"Economy Wide CO2e Emissions Target (INDC)",null,"60% reduction from BAU"]
[null,"Total Country CO2e Emissions Under Target (by Target Year) (MT)",null,1.79]
[null,"Target Year",null,2030]
[null,"Transport CO2 Emissions Target (based on share of total emissions @ 2010)",null,0.10881458966565349]
[null,"Total Country CO2e Emissions (BAU)",1990,1.8]
[null,null,2000,1.4]
[null,null,2010,1.974]
[null,null,2020,2.9]
[null,null,2030,4.4749999999999996]
[null,"Total Country CO2e Emissions (Low Carbon Scenario)",2020]
[null,null,2030]
[null,"Total Transport CO2e Emissions (BAU)",1990,6.7219872E-2,{"$f":"D7","v":0.10881458966565349}]
[null,null,2000,0]
[null,null,2010,0.12]
[null,null,2020,0.3]
[null,null,2030,0.5,{"$f":"D7","v":0.10881458966565349}]
[null,"Total Transport CO2e Emissions (Low Carbon Scenario) ",2020,0.24]
[null,null,2030,0.34,{"$f":"D7","v":0.10881458966565349}]
[null,"Historical Growth in CO2e Emissions  (%) Transport Sector","1990-2010",0.78518638059887991,null,"Figure 1: Projected Transport Emissions: BAU, Low Carbon Scenario, and Transport Target"]
[null,"Growth Forecast CO2e Emissions (%)BAU-Transport Sector","2010-2030",3.166666666666667]
[null,"Reduction with BAU (%) - Transport (2020)",null,-0.19999999999999996]
[null,"Reduction with BAU (%) - Transport (2030)",null,-0.31999999999999995]
[null,"Transport Share in Total Economy-wide Emissions",1990,3.7344373333333333E-2]
[null,null,2000,0]
[null,null,2010,6.0790273556231005E-2]
[null,null,"2030(BAU)",0.111731843575419]
[null,null,"2030 (Low)",7.5977653631284933E-2]
[null,"Gap Between INDC Target and Average Low Carbon Scenario (%)",null,2.1245810055865926]
[null,"Cumulative Increase in Transport CO2 (2010-2030) MT (avg)","Baseline",6.1918979630541369]
[null,null,"Low Carbon",4.8332503520881946]
[null,"Cumulative Reduction in Transport (2010-2030) MT (avg)",null,1.3586476109659422]
[null,"Cumulative Gap Between INDC Target and Average Low Carbon Scenario (MT)",null,-2.4325163948129425]
[null,"Cumulative Gap Between INDC Target and BAU (MT)",null,-3.7911640057788847]
[]
[]
[null,null,null,null,null,"Figure 2: Transport Share of Economy-Wide Emissions"]
[]
[null,"TIER II FACTSHEET SOURCES"]
[]
[null,"Table 1: Historic and Projected Emissions"]
[null,"Historic Emissions","Submitted National Communications","http://unfccc.int/national_reports/non-annex_i_natcom/submitted_natcom/items/653.php"]
[null,null,"UNFCCC: INDCs as communicated by Parties","http://www4.unfccc.int/submissions/indc/Submission%20Pages/submissions.aspx"]
[null,null,"Submitted Biennial Update Reports","http://unfccc.int/national_reports/non-annex_i_natcom/reporting_on_climate_change/items/8722.php"]
[null,null,"The Climate Pledge INDC Tool","http://infographics.pbl.nl/indc/"]
[null,null,"CAIT Climate Data Explorer","http://cait.wri.org/"]
[null,null,"Climate Equity Reference Calculator","http://gdrights.org/calculator-about/"]
[null,null,"World Bank - World Development Indicators","http://data.worldbank.org/data-catalog/world-development-indicators"]
[null,null,"UNEP Pledge Pipeline Tool","http://www.unep.org/climatechange/pledgepipeline/"]
[null,null,"Climate Action Tracker","http://climateactiontracker.org/"]
[null,"BAU Emissions Projections","Submitted National Communications","http://unfccc.int/national_reports/non-annex_i_natcom/submitted_natcom/items/653.php"]
[null,null,"UNFCCC: INDCs as communicated by Parties","http://www4.unfccc.int/submissions/indc/Submission%20Pages/submissions.aspx"]
[null,null,"Submitted Biennial Update Reports","http://unfccc.int/national_reports/non-annex_i_natcom/reporting_on_climate_change/items/8722.php"]
[null,null,"The Climate Pledge INDC Tool","http://infographics.pbl.nl/indc/"]
[null,null,"Climate Equity Reference Calculator","http://gdrights.org/calculator-about/"]
[null,null,"World Bank - World Development Indicators","http://data.worldbank.org/data-catalog/world-development-indicators"]
[null,null,"UNEP Pledge Pipeline Tool","http://www.unep.org/climatechange/pledgepipeline/"]
[null,null,"Climate Action Tracker","http://climateactiontracker.org/"]
[null,"INDC Targets","UNFCCC: INDCs as communicated by Parties","http://www4.unfccc.int/submissions/indc/Submission%20Pages/submissions.aspx"]
[]
[null,"Figure 1: Projected Transport Emissions: BAU, Low Carbon Scenario, and Derived Target"]
[null,"Derived from Table 1: Historic and Projected Emissions"]
[]
[null,"Figure 2: Transport Share of Economy-Wide Emissions"]
[null,"Derived from Table 1: Historic and Projected Emissions"]

{"sheet":"Dominica","index":25,"n_rows":67,"n_cols":6,"rows_kept":67,"cut":false,"hidden":false,"merged":[[21,5,21,11],[22,5,22,11],[1,1,1,3],[2,1,2,2],[3,1,3,2],[4,1,4,2],[5,1,5,2],[6,1,6,2],[33,1,33,2],[7,1,11,1],[12,1,13,1],[14,1,18,1],[19,1,20,1],[23,1,23,2],[24,1,24,2],[25,1,29,1],[30,1,30,2],[31,1,32,1],[34,1,34,2],[35,1,35,2],[38,5,38,11],[43,1,51,1],[52,1,59,1]]}
[]
[null,"Table 1: Historic and Projected Emissions"]
[null,"Country Name",null,"Dominica"]
[null,"Economy Wide CO2e Emissions Target (INDC)",null,"44.7% below 2014 rates by 2030"]
[null,"Total Country CO2e Emissions Under Target (by Target Year) (MT)",null,8.8480000000000003E-2]
[null,"Target Year",null,2030]
[null,"Transport CO2 Emissions Target (based on share of total emissions @ 2010)",null,5.9831999999999996E-2]
[null,"Total Country CO2e Emissions (BAU)",1990,0.11]
[null,null,2000,0.106]
[null,null,2010,0.14499999999999999]
[null,null,2020,0.185]
[null,null,2030,0.22]
[null,"Total Country CO2e Emissions (Low Carbon Scenario)",2020]
[null,null,2030]
[null,"Total Transport CO2e Emissions (BAU)",1990,3.5000000000000003E-2,{"$f":"D7","v":5.9831999999999996E-2}]
[null,null,2000,4.7100000000000003E-2]
[null,null,2010,5.8499999999999996E-2]
[null,null,2020,6.4000000000000001E-2]
[null,null,2030,0.09,{"$f":"D7","v":5.9831999999999996E-2}]
[null,"Total Transport CO2e Emissions (Low Carbon Scenario) ",2020,6.4000000000000001E-2]
[null,null,2030,0.08,{"$f":"D7","v":5.9831999999999996E-2}]
[null,"Historical Growth in CO2e Emissions  (%) Transport Sector","1990-2010",0.67142857142857126,null,"Figure 1: Projected Transport Emissions: BAU, Low Carbon Scenario, and Transport Target"]
[null,"Growth Forecast CO2e Emissions (%)BAU-Transport Sector","2010-2030",0.53846153846153855]
[null,"Reduction with BAU (%) - Transport (2020)",null,0]
[null,"Reduction with BAU (%) - Transport (2030)",null,-0.11111111111111105]
[null,"Transport Share in Total Economy-wide Emissions",1990,0.31818181818181823]
[null,null,2000,0.4443396226415095]
[null,null,2010,0.40344827586206899]
[null,null,"2030(BAU)",0.40909090909090906]
[null,null,"2030 (Low)",0.36363636363636365]
[null,"Gap Between INDC Target and Average Low Carbon Scenario (%)",null,0.33707714935151767]
[null,"Cumulative Increase in Transport CO2 (2010-2030) MT (avg)","Baseline",1.4490437255721009]
[null,null,"Low Carbon",1.3983993033741791]
[null,"Cumulative Reduction in Transport (2010-2030) MT (avg)",null,5.0644422197921868E-2]
[null,"Cumulative Gap Between INDC Target and Average Low Carbon Scenario (MT)",null,-0.15596315881496148]
[null,"Cumulative Gap Between INDC Target and BAU (MT)",null,-0.20660758101288335]
[]
[]
[null,null,null,null,null,"Figure 2: Transport Share of Economy-Wide Emissions"]
[]
[null,"TIER II FACTSHEET SOURCES"]
[]
[null,"Table 1: Historic and Projected Emissions"]
[null,"Historic Emissions","Submitted National Communications","http://unfccc.int/national_reports/non-annex_i_natcom/submitted_natcom/items/653.php"]
[null,null,"UNFCCC: INDCs as communicated by Parties","http://www4.unfccc.int/submissions/indc/Submission%20Pages/submissions.aspx"]
[null,null,"Submitted Biennial Update Reports","http://unfccc.int/national_reports/non-annex_i_natcom/reporting_on_climate_change/items/8722.php"]
[null,null,"The Climate Pledge INDC Tool","http://infographics.pbl.nl/indc/"]
[null,null,"CAIT Climate Data Explorer","http://cait.wri.org/"]
[null,null,"Climate Equity Reference Calculator","http://gdrights.org/calculator-about/"]
[null,null,"World Bank - World Development Indicators","http://data.worldbank.org/data-catalog/world-development-indicators"]
[null,null,"UNEP Pledge Pipeline Tool","http://www.unep.org/climatechange/pledgepipeline/"]
[null,null,"Climate Action Tracker","http://climateactiontracker.org/"]
[null,"BAU Emissions Projections","Submitted National Communications","http://unfccc.int/national_reports/non-annex_i_natcom/submitted_natcom/items/653.php"]
[null,null,"UNFCCC: INDCs as communicated by Parties","http://www4.unfccc.int/submissions/indc/Submission%20Pages/submissions.aspx"]
[null,null,"Submitted Biennial Update Reports","http://unfccc.int/national_reports/non-annex_i_natcom/reporting_on_climate_change/items/8722.php"]
[null,null,"The Climate Pledge INDC Tool","http://infographics.pbl.nl/indc/"]
[null,null,"Climate Equity Reference Calculator","http://gdrights.org/calculator-about/"]
[null,null,"World Bank - World Development Indicators","http://data.worldbank.org/data-catalog/world-development-indicators"]
[null,null,"UNEP Pledge Pipeline Tool","http://www.unep.org/climatechange/pledgepipeline/"]
[null,null,"Climate Action Tracker","http://climateactiontracker.org/"]
[null,"INDC Targets","UNFCCC: INDCs as communicated by Parties","http://www4.unfccc.int/submissions/indc/Submission%20Pages/submissions.aspx"]
[]
[null,"Figure 1: Projected Transport Emissions: BAU, Low Carbon Scenario, and Derived Target"]
[null,"Derived from Table 1: Historic and Projected Emissions"]
[]
[null,"Figure 2: Transport Share of Economy-Wide Emissions"]
[null,"Derived from Table 1: Historic and Projected Emissions"]

{"sheet":"Dominican Republic","index":26,"n_rows":67,"n_cols":6,"rows_kept":67,"cut":false,"hidden":false,"merged":[[21,5,21,11],[22,5,22,11],[1,1,1,3],[2,1,2,2],[3,1,3,2],[4,1,4,2],[5,1,5,2],[6,1,6,2],[33,1,33,2],[7,1,11,1],[12,1,13,1],[14,1,18,1],[19,1,20,1],[23,1,23,2],[24,1,24,2],[25,1,29,1],[30,1,30,2],[31,1,32,1],[34,1,34,2],[35,1,35,2],[38,5,38,11],[43,1,51,1],[52,1,59,1]]}
[]
[null,"Table 1: Historic and Projected Emissions"]
[null,"Country Name",null,"Dominican Republic"]
[null,"Economy Wide CO2e Emissions Target (INDC)",null,"Reduction of 25% of 2010 emissions by 2030"]
[null,"Total Country CO2e Emissions Under Target (by Target Year) (MT)",null,27]
[null,"Target Year",null,2030]
[null,"Transport CO2 Emissions Target (based on share of total emissions @ 2010)",null,3.6599999999999997]
[null,"Total Country CO2e Emissions (BAU)",1990,12.6]
[null,null,2000,26.26]
[null,null,2010,36]
[null,null,2020,42]
[null,null,2030,51]
[null,"Total Country CO2e Emissions (Low Carbon Scenario)",2020]
[null,null,2030]
[null,"Total Transport CO2e Emissions (BAU)",1990,2.4307038527999998,{"$f":"D7","v":3.6599999999999997}]
[null,null,2000,6.1749999999999998]
[null,null,2010,4.88]
[null,null,2020,8.3511718341327104]
[null,null,2030,11.538166060354355,{"$f":"D7","v":3.6599999999999997}]
[null,"Total Transport CO2e Emissions (Low Carbon Scenario) ",2020,7.377283315472674]
[null,null,2030,8.5123069494256907,{"$f":"D7","v":3.6599999999999997}]
[null,"Historical Growth in CO2e Emissions  (%) Transport Sector","1990-2010",1.0076489344346014,null,"Figure 1: Projected Transport Emissions: BAU, Low Carbon Scenario, and Transport Target"]
[null,"Growth Forecast CO2e Emissions (%)BAU-Transport Sector","2010-2030",1.3643782910562203]
[null,"Reduction with BAU (%) - Transport (2020)",null,-0.11661698956780919]
[null,"Reduction with BAU (%) - Transport (2030)",null,-0.26224783861671475]
[null,"Transport Share in Total Economy-wide Emissions",1990,0.19291300419047619]
[null,null,2000,0.23514851485148514]
[null,null,2010,0.13555555555555554]
[null,null,"2030(BAU)",0.22623855020302655]
[null,null,"2030 (Low)",0.16690797940050373]
[null,"Gap Between INDC Target and Average Low Carbon Scenario (%)",null,1.3257669260725931]
[null,"Cumulative Increase in Transport CO2 (2010-2030) MT (avg)","Baseline",171.43206287185578]
[null,null,"Low Carbon",146.4475772433004]
[null,"Cumulative Reduction in Transport (2010-2030) MT (avg)",null,24.984485628555376]
[null,"Cumulative Gap Between INDC Target and Average Low Carbon Scenario (MT)",null,-57.360263142989126]
[null,"Cumulative Gap Between INDC Target and BAU (MT)",null,-82.344748771544502]
[]
[]
[null,null,null,null,null,"Figure 2: Transport Share of Economy-Wide Emissions"]
[]
[null,"TIER II FACTSHEET SOURCES"]
[]
[null,"Table 1: Historic and Projected Emissions"]
[null,"Historic Emissions","Submitted National Communications","http://unfccc.int/national_reports/non-annex_i_natcom/submitted_natcom/items/653.php"]
[null,null,"UNFCCC: INDCs as communicated by Parties","http://www4.unfccc.int/submissions/indc/Submission%20Pages/submissions.aspx"]
[null,null,"Submitted Biennial Update Reports","http://unfccc.int/national_reports/non-annex_i_natcom/reporting_on_climate_change/items/8722.php"]
[null,null,"The Climate Pledge INDC Tool","http://infographics.pbl.nl/indc/"]
[null,null,"CAIT Climate Data Explorer","http://cait.wri.org/"]
[null,null,"Climate Equity Reference Calculator","http://gdrights.org/calculator-about/"]
[null,null,"World Bank - World Development Indicators","http://data.worldbank.org/data-catalog/world-development-indicators"]
[null,null,"UNEP Pledge Pipeline Tool","http://www.unep.org/climatechange/pledgepipeline/"]
[null,null,"Climate Action Tracker","http://climateactiontracker.org/"]
[null,"BAU Emissions Projections","Submitted National Communications","http://unfccc.int/national_reports/non-annex_i_natcom/submitted_natcom/items/653.php"]
[null,null,"UNFCCC: INDCs as communicated by Parties","http://www4.unfccc.int/submissions/indc/Submission%20Pages/submissions.aspx"]
[null,null,"Submitted Biennial Update Reports","http://unfccc.int/national_reports/non-annex_i_natcom/reporting_on_climate_change/items/8722.php"]
[null,null,"The Climate Pledge INDC Tool","http://infographics.pbl.nl/indc/"]
[null,null,"Climate Equity Reference Calculator","http://gdrights.org/calculator-about/"]
[null,null,"World Bank - World Development Indicators","http://data.worldbank.org/data-catalog/world-development-indicators"]
[null,null,"UNEP Pledge Pipeline Tool","http://www.unep.org/climatechange/pledgepipeline/"]
[null,null,"Climate Action Tracker","http://climateactiontracker.org/"]
[null,"INDC Targets","UNFCCC: INDCs as communicated by Parties","http://www4.unfccc.int/submissions/indc/Submission%20Pages/submissions.aspx"]
[]
[null,"Figure 1: Projected Transport Emissions: BAU, Low Carbon Scenario, and Derived Target"]
[null,"Derived from Table 1: Historic and Projected Emissions"]
[]
[null,"Figure 2: Transport Share of Economy-Wide Emissions"]
[null,"Derived from Table 1: Historic and Projected Emissions"]

{"sheet":"Ecuador","index":27,"n_rows":67,"n_cols":6,"rows_kept":67,"cut":false,"hidden":false,"merged":[[21,5,21,11],[22,5,22,11],[1,1,1,3],[2,1,2,2],[3,1,3,2],[4,1,4,2],[5,1,5,2],[6,1,6,2],[33,1,33,2],[7,1,11,1],[12,1,13,1],[14,1,18,1],[19,1,20,1],[23,1,23,2],[24,1,24,2],[25,1,29,1],[30,1,30,2],[31,1,32,1],[34,1,34,2],[35,1,35,2],[38,5,38,11],[43,1,51,1],[52,1,59,1]]}
[]
[null,"Table 1: Historic and Projected Emissions"]
[null,"Country Name",null,"Ecuador"]
[null,"Economy Wide CO2e Emissions Target (INDC)",null,"25% below 2025 BAU"]
[null,"Total Country CO2e Emissions Under Target (by Target Year) (MT)",null,58.476749999999996]
[null,"Target Year",null,2025]
[null,"Transport CO2 Emissions Target (based on share of total emissions @ 2010)",null,16.503428219610633]
[null,"Total Country CO2e Emissions (BAU)",1990,29.226299999999998]
[null,null,2000,37.719900000000003]
[null,null,2010,53.964599999999997]
[null,null,2020,68]
[null,null,2030,87]
[null,"Total Country CO2e Emissions (Low Carbon Scenario)",2020]
[null,null,2030]
[null,"Total Transport CO2e Emissions (BAU)",1990,6.78,{"$f":"D7","v":16.503428219610633}]
[null,null,2000,8.6300000000000008]
[null,null,2010,15.23]
[null,null,2020,18.223079668530701]
[null,null,2030,31.202321936517315,{"$f":"D7","v":16.503428219610633}]
[null,"Total Transport CO2e Emissions (Low Carbon Scenario) ",2020,16.097958976932301]
[null,null,2030,23.019580448842746,{"$f":"D7","v":16.503428219610633}]
[null,"Historical Growth in CO2e Emissions  (%) Transport Sector","1990-2010",1.2463126843657819,null,"Figure 1: Projected Transport Emissions: BAU, Low Carbon Scenario, and Transport Target"]
[null,"Growth Forecast CO2e Emissions (%)BAU-Transport Sector","2010-2030",1.0487407706183398]
[null,"Reduction with BAU (%) - Transport (2020)",null,-0.11661698956780919]
[null,"Reduction with BAU (%) - Transport (2030)",null,-0.26224783861671463]
[null,"Transport Share in Total Economy-wide Emissions",1990,0.23198283737592512]
[null,null,2000,0.22879169881150269]
[null,null,2010,0.28222204926933586]
[null,null,"2030(BAU)",0.35864737858065882]
[null,null,"2030 (Low)",0.26459287872233039]
[null,"Gap Between INDC Target and Average Low Carbon Scenario (%)",null,0.39483628143933891]
[null,"Cumulative Increase in Transport CO2 (2010-2030) MT (avg)","Baseline",431.43487518299315]
[null,null,"Low Carbon",369.2746627277113]
[null,"Cumulative Reduction in Transport (2010-2030) MT (avg)",null,62.160212455281851]
[null,"Cumulative Gap Between INDC Target and Average Low Carbon Scenario (MT)",null,-36.243651223492236]
[null,"Cumulative Gap Between INDC Target and BAU (MT)",null,-98.403863678774087]
[]
[]
[null,null,null,null,null,"Figure 2: Transport Share of Economy-Wide Emissions"]
[]
[null,"TIER II FACTSHEET SOURCES"]
[]
[null,"Table 1: Historic and Projected Emissions"]
[null,"Historic Emissions","Submitted National Communications","http://unfccc.int/national_reports/non-annex_i_natcom/submitted_natcom/items/653.php"]
[null,null,"UNFCCC: INDCs as communicated by Parties","http://www4.unfccc.int/submissions/indc/Submission%20Pages/submissions.aspx"]
[null,null,"Submitted Biennial Update Reports","http://unfccc.int/national_reports/non-annex_i_natcom/reporting_on_climate_change/items/8722.php"]
[null,null,"The Climate Pledge INDC Tool","http://infographics.pbl.nl/indc/"]
[null,null,"CAIT Climate Data Explorer","http://cait.wri.org/"]
[null,null,"Climate Equity Reference Calculator","http://gdrights.org/calculator-about/"]
[null,null,"World Bank - World Development Indicators","http://data.worldbank.org/data-catalog/world-development-indicators"]
[null,null,"UNEP Pledge Pipeline Tool","http://www.unep.org/climatechange/pledgepipeline/"]
[null,null,"Climate Action Tracker","http://climateactiontracker.org/"]
[null,"BAU Emissions Projections","Submitted National Communications","http://unfccc.int/national_reports/non-annex_i_natcom/submitted_natcom/items/653.php"]
[null,null,"UNFCCC: INDCs as communicated by Parties","http://www4.unfccc.int/submissions/indc/Submission%20Pages/submissions.aspx"]
[null,null,"Submitted Biennial Update Reports","http://unfccc.int/national_reports/non-annex_i_natcom/reporting_on_climate_change/items/8722.php"]
[null,null,"The Climate Pledge INDC Tool","http://infographics.pbl.nl/indc/"]
[null,null,"Climate Equity Reference Calculator","http://gdrights.org/calculator-about/"]
[null,null,"World Bank - World Development Indicators","http://data.worldbank.org/data-catalog/world-development-indicators"]
[null,null,"UNEP Pledge Pipeline Tool","http://www.unep.org/climatechange/pledgepipeline/"]
[null,null,"Climate Action Tracker","http://climateactiontracker.org/"]
[null,"INDC Targets","UNFCCC: INDCs as communicated by Parties","http://www4.unfccc.int/submissions/indc/Submission%20Pages/submissions.aspx"]
[]
[null,"Figure 1: Projected Transport Emissions: BAU, Low Carbon Scenario, and Derived Target"]
[null,"Derived from Table 1: Historic and Projected Emissions"]
[]
[null,"Figure 2: Transport Share of Economy-Wide Emissions"]
[null,"Derived from Table 1: Historic and Projected Emissions"]

{"sheet":"Equatorial Guinea","index":28,"n_rows":67,"n_cols":6,"rows_kept":67,"cut":false,"hidden":false,"merged":[[21,5,21,11],[22,5,22,11],[1,1,1,3],[2,1,2,2],[3,1,3,2],[4,1,4,2],[5,1,5,2],[6,1,6,2],[33,1,33,2],[7,1,11,1],[12,1,13,1],[14,1,18,1],[19,1,20,1],[23,1,23,2],[24,1,24,2],[25,1,29,1],[30,1,30,2],[31,1,32,1],[34,1,34,2],[35,1,35,2],[38,5,38,11],[43,1,51,1],[52,1,59,1]]}
[]
[null,"Table 1: Historic and Projected Emissions"]
[null,"Country Name",null,"Equatorial Guinea"]
[null,"Economy Wide CO2e Emissions Target (INDC)",null,"reduce emissions 20% by 2030 , relative to 2010 levels"]
[null,"Total Country CO2e Emissions Under Target (by Target Year) (MT)",null,3.7280000000000002]
[null,"Target Year",null,2030]
[null,"Transport CO2 Emissions Target (based on share of total emissions @ 2010)",null,0.152]
[null,"Total Country CO2e Emissions (BAU)",1990,0.2]
[null,null,2000,4]
[null,null,2010,4.66]
[null,null,2020,5.64]
[null,null,2030,5.34]
[null,"Total Country CO2e Emissions (Low Carbon Scenario)",2020]
[null,null,2030]
[null,"Total Transport CO2e Emissions (BAU)",1990,null,{"$f":"D7","v":0.152}]
[null,null,2000]
[null,null,2010,0.19]
[null,null,2020,0.94828656613379081]
[null,null,2030,0.73852870577721907,{"$f":"D7","v":0.152}]
[null,"Total Transport CO2e Emissions (Low Carbon Scenario) ",2020,0.83770024154367295]
[null,null,2030,0.54485114893074371,{"$f":"D7","v":0.152}]
[null,"Historical Growth in CO2e Emissions  (%) Transport Sector","1990-2010",null,null,"Figure 1: Projected Transport Emissions: BAU, Low Carbon Scenario, and Transport Target"]
[null,"Growth Forecast CO2e Emissions (%)BAU-Transport Sector","2010-2030",2.8869931883011528]
[null,"Reduction with BAU (%) - Transport (2020)",null,-0.11661698956780919]
[null,"Reduction with BAU (%) - Transport (2030)",null,-0.26224783861671475]
[null,"Transport Share in Total Economy-wide Emissions",1990,0]
[null,null,2000,0]
[null,null,2010,4.07725321888412E-2]
[null,null,"2030(BAU)",0.13830125576352417]
[null,null,"2030 (Low)",0.1020320503615625]
[null,"Gap Between INDC Target and Average Low Carbon Scenario (%)",null,2.5845470324391036]
[null,"Cumulative Increase in Transport CO2 (2010-2030) MT (avg)","Baseline",13.582068481646754]
[null,null,"Low Carbon",11.550212826789647]
[null,"Cumulative Reduction in Transport (2010-2030) MT (avg)",null,2.0318556548571074]
[null,"Cumulative Gap Between INDC Target and Average Low Carbon Scenario (MT)",null,-7.9732982063299991]
[null,"Cumulative Gap Between INDC Target and BAU (MT)",null,-10.005153861187107]
[]
[]
[null,null,null,null,null,"Figure 2: Transport Share of Economy-Wide Emissions"]
[]
[null,"TIER II FACTSHEET SOURCES"]
[]
[null,"Table 1: Historic and Projected Emissions"]
[null,"Historic Emissions","Submitted National Communications","http://unfccc.int/national_reports/non-annex_i_natcom/submitted_natcom/items/653.php"]
[null,null,"UNFCCC: INDCs as communicated by Parties","http://www4.unfccc.int/submissions/indc/Submission%20Pages/submissions.aspx"]
[null,null,"Submitted Biennial Update Reports","http://unfccc.int/national_reports/non-annex_i_natcom/reporting_on_climate_change/items/8722.php"]
[null,null,"The Climate Pledge INDC Tool","http://infographics.pbl.nl/indc/"]
[null,null,"CAIT Climate Data Explorer","http://cait.wri.org/"]
[null,null,"Climate Equity Reference Calculator","http://gdrights.org/calculator-about/"]
[null,null,"World Bank - World Development Indicators","http://data.worldbank.org/data-catalog/world-development-indicators"]
[null,null,"UNEP Pledge Pipeline Tool","http://www.unep.org/climatechange/pledgepipeline/"]
[null,null,"Climate Action Tracker","http://climateactiontracker.org/"]
[null,"BAU Emissions Projections","Submitted National Communications","http://unfccc.int/national_reports/non-annex_i_natcom/submitted_natcom/items/653.php"]
[null,null,"UNFCCC: INDCs as communicated by Parties","http://www4.unfccc.int/submissions/indc/Submission%20Pages/submissions.aspx"]
[null,null,"Submitted Biennial Update Reports","http://unfccc.int/national_reports/non-annex_i_natcom/reporting_on_climate_change/items/8722.php"]
[null,null,"The Climate Pledge INDC Tool","http://infographics.pbl.nl/indc/"]
[null,null,"Climate Equity Reference Calculator","http://gdrights.org/calculator-about/"]
[null,null,"World Bank - World Development Indicators","http://data.worldbank.org/data-catalog/world-development-indicators"]
[null,null,"UNEP Pledge Pipeline Tool","http://www.unep.org/climatechange/pledgepipeline/"]
[null,null,"Climate Action Tracker","http://climateactiontracker.org/"]
[null,"INDC Targets","UNFCCC: INDCs as communicated by Parties","http://www4.unfccc.int/submissions/indc/Submission%20Pages/submissions.aspx"]
[]
[null,"Figure 1: Projected Transport Emissions: BAU, Low Carbon Scenario, and Derived Target"]
[null,"Derived from Table 1: Historic and Projected Emissions"]
[]
[null,"Figure 2: Transport Share of Economy-Wide Emissions"]
[null,"Derived from Table 1: Historic and Projected Emissions"]

{"sheet":"Eritrea","index":29,"n_rows":67,"n_cols":6,"rows_kept":67,"cut":false,"hidden":false,"merged":[[34,1,34,2],[35,1,35,2],[38,5,38,11],[43,1,51,1],[52,1,59,1],[33,1,33,2],[7,1,11,1],[12,1,13,1],[14,1,18,1],[19,1,20,1],[23,1,23,2],[24,1,24,2],[25,1,29,1],[30,1,30,2],[31,1,32,1],[21,5,21,11],[22,5,22,11],[1,1,1,3],[2,1,2,2],[3,1,3,2],[4,1,4,2],[5,1,5,2],[6,1,6,2]]}
[]
[null,"Table 1: Historic and Projected Emissions"]
[null,"Country Name",null,"Eritrea"]
[null,"Economy Wide CO2e Emissions Target (INDC)",null,"80.6 % reduction in CO2 emissions from fossil fuels"]
[null,"Total Country CO2e Emissions Under Target (by Target Year) (MT)",null,3.9]
[null,"Target Year",null,2030]
[null,"Transport CO2 Emissions Target (based on share of total emissions @ 2010)",null,0.19637462235649547]
[null,"Total Country CO2e Emissions (BAU)",1990,5.79]
[null,null,2000,6.58]
[null,null,2010,3.972]
[null,null,2020,5]
[null,null,2030,6.3310000000000004]
[null,"Total Country CO2e Emissions (Low Carbon Scenario)",2020]
[null,null,2030]
[null,"Total Transport CO2e Emissions (BAU)",1990,0.1,{"$f":"D7","v":0.19637462235649547}]
[null,null,2000,0.2]
[null,null,2010,0.2]
[null,null,2020,0.42]
[null,null,2030,0.81,{"$f":"D7","v":0.19637462235649547}]
[null,"Total Transport CO2e Emissions (Low Carbon Scenario) ",2020,0.32251156113255042]
[null,null,2030,0.41233218617045109,{"$f":"D7","v":0.19637462235649547}]
[null,"Historical Growth in CO2e Emissions  (%) Transport Sector","1990-2010",1,null,"Figure 1: Projected Transport Emissions: BAU, Low Carbon Scenario, and Transport Target"]
[null,"Growth Forecast CO2e Emissions (%)BAU-Transport Sector","2010-2030",3.05]
[null,"Reduction with BAU (%) - Transport (2020)",null,-0.23211533063678469]
[null,"Reduction with BAU (%) - Transport (2030)",null,-0.49094791830808515]
[null,"Transport Share in Total Economy-wide Emissions",1990,1.7271157167530225E-2]
[null,null,2000,3.0395136778115502E-2]
[null,null,2010,5.0352467270896276E-2]
[null,null,"2030(BAU)",0.12794187332175011]
[null,null,"2030 (Low)",6.512907695000017E-2]
[null,"Gap Between INDC Target and Average Low Carbon Scenario (%)",null,1.0997223634218356]
[null,"Cumulative Increase in Transport CO2 (2010-2030) MT (avg)","Baseline",9.4117700708725422]
[null,null,"Low Carbon",6.5266451614225236]
[null,"Cumulative Reduction in Transport (2010-2030) MT (avg)",null,2.8851249094500186]
[null,"Cumulative Gap Between INDC Target and Average Low Carbon Scenario (MT)",null,-2.3648218826191307]
[null,"Cumulative Gap Between INDC Target and BAU (MT)",null,-5.2499467920691494]
[]
[]
[null,null,null,null,null,"Figure 2: Transport Share of Economy-Wide Emissions"]
[]
[null,"TIER II FACTSHEET SOURCES"]
[]
[null,"Table 1: Historic and Projected Emissions"]
[null,"Historic Emissions","Submitted National Communications","http://unfccc.int/national_reports/non-annex_i_natcom/submitted_natcom/items/653.php"]
[null,null,"UNFCCC: INDCs as communicated by Parties","http://www4.unfccc.int/submissions/indc/Submission%20Pages/submissions.aspx"]
[null,null,"Submitted Biennial Update Reports","http://unfccc.int/national_reports/non-annex_i_natcom/reporting_on_climate_change/items/8722.php"]
[null,null,"The Climate Pledge INDC Tool","http://infographics.pbl.nl/indc/"]
[null,null,"CAIT Climate Data Explorer","http://cait.wri.org/"]
[null,null,"Climate Equity Reference Calculator","http://gdrights.org/calculator-about/"]
[null,null,"World Bank - World Development Indicators","http://data.worldbank.org/data-catalog/world-development-indicators"]
[null,null,"UNEP Pledge Pipeline Tool","http://www.unep.org/climatechange/pledgepipeline/"]
[null,null,"Climate Action Tracker","http://climateactiontracker.org/"]
[null,"BAU Emissions Projections","Submitted National Communications","http://unfccc.int/national_reports/non-annex_i_natcom/submitted_natcom/items/653.php"]
[null,null,"UNFCCC: INDCs as communicated by Parties","http://www4.unfccc.int/submissions/indc/Submission%20Pages/submissions.aspx"]
[null,null,"Submitted Biennial Update Reports","http://unfccc.int/national_reports/non-annex_i_natcom/reporting_on_climate_change/items/8722.php"]
[null,null,"The Climate Pledge INDC Tool","http://infographics.pbl.nl/indc/"]
[null,null,"Climate Equity Reference Calculator","http://gdrights.org/calculator-about/"]
[null,null,"World Bank - World Development Indicators","http://data.worldbank.org/data-catalog/world-development-indicators"]
[null,null,"UNEP Pledge Pipeline Tool","http://www.unep.org/climatechange/pledgepipeline/"]
[null,null,"Climate Action Tracker","http://climateactiontracker.org/"]
[null,"INDC Targets","UNFCCC: INDCs as communicated by Parties","http://www4.unfccc.int/submissions/indc/Submission%20Pages/submissions.aspx"]
[]
[null,"Figure 1: Projected Transport Emissions: BAU, Low Carbon Scenario, and Derived Target"]
[null,"Derived from Table 1: Historic and Projected Emissions"]
[]
[null,"Figure 2: Transport Share of Economy-Wide Emissions"]
[null,"Derived from Table 1: Historic and Projected Emissions"]

{"sheet":"Ethiopia","index":30,"n_rows":67,"n_cols":6,"rows_kept":67,"cut":false,"hidden":false,"merged":[[21,5,21,11],[22,5,22,11],[1,1,1,3],[2,1,2,2],[3,1,3,2],[4,1,4,2],[5,1,5,2],[6,1,6,2],[33,1,33,2],[7,1,11,1],[12,1,13,1],[14,1,18,1],[19,1,20,1],[23,1,23,2],[24,1,24,2],[25,1,29,1],[30,1,30,2],[31,1,32,1],[34,1,34,2],[35,1,35,2],[38,5,38,11],[43,1,51,1],[52,1,59,1]]}
[]
[null,"Table 1: Historic and Projected Emissions"]
[null,"Country Name",null,"Ethiopia"]
[null,"Economy Wide CO2e Emissions Target (INDC)",null,"64% reduction  from BAU"]
[null,"Total Country CO2e Emissions Under Target (by Target Year) (MT)",null,145]
[null,"Target Year",null,2030]
[null,"Transport CO2 Emissions Target (based on share of total emissions @ 2010)",null,30]
[null,"Total Country CO2e Emissions (BAU)",1990,67.970063292999995]
[null,null,2000,78.401423584]
[null,null,2010,150]
[null,null,2020,275]
[null,null,2030,400]
[null,"Total Country CO2e Emissions (Low Carbon Scenario)",2020]
[null,null,2030]
[null,"Total Transport CO2e Emissions (BAU)",1990,1,{"$f":"D7","v":30}]
[null,null,2000,2]
[null,null,2010,5]
[null,null,2020,10]
[null,null,2030,26,{"$f":"D7","v":30}]
[null,"Total Transport CO2e Emissions (Low Carbon Scenario) ",2020,8]
[null,null,2030,19,{"$f":"D7","v":30}]
[null,"Historical Growth in CO2e Emissions  (%) Transport Sector","1990-2010",4,null,"Figure 1: Projected Transport Emissions: BAU, Low Carbon Scenario, and Transport Target"]
[null,"Growth Forecast CO2e Emissions (%)BAU-Transport Sector","2010-2030",4.2]
[null,"Reduction with BAU (%) - Transport (2020)",null,-0.19999999999999996]
[null,"Reduction with BAU (%) - Transport (2030)",null,-0.26923076923076927]
[null,"Transport Share in Total Economy-wide Emissions",1990,1.471235940577661E-2]
[null,null,2000,2.5509740876799025E-2]
[null,null,2010,3.3333333333333333E-2]
[null,null,"2030(BAU)",6.5000000000000002E-2]
[null,null,"2030 (Low)",4.7500000000000001E-2]
[null,"Gap Between INDC Target and Average Low Carbon Scenario (%)",null,-0.3666666666666667]
[null,"Cumulative Increase in Transport CO2 (2010-2030) MT (avg)","Baseline",255.24060331181454]
[null,null,"Low Carbon",203.08833234660304]
[null,"Cumulative Reduction in Transport (2010-2030) MT (avg)",null,52.1522709652115]
[null,"Cumulative Gap Between INDC Target and Average Low Carbon Scenario (MT)",null,93.653597578726902]
[null,"Cumulative Gap Between INDC Target and BAU (MT)",null,41.501326613515403]
[]
[]
[null,null,null,null,null,"Figure 2: Transport Share of Economy-Wide Emissions"]
[]
[null,"TIER II FACTSHEET SOURCES"]
[]
[null,"Table 1: Historic and Projected Emissions"]
[null,"Historic Emissions","Submitted National Communications","http://unfccc.int/national_reports/non-annex_i_natcom/submitted_natcom/items/653.php"]
[null,null,"UNFCCC: INDCs as communicated by Parties","http://www4.unfccc.int/submissions/indc/Submission%20Pages/submissions.aspx"]
[null,null,"Submitted Biennial Update Reports","http://unfccc.int/national_reports/non-annex_i_natcom/reporting_on_climate_change/items/8722.php"]
[null,null,"The Climate Pledge INDC Tool","http://infographics.pbl.nl/indc/"]
[null,null,"CAIT Climate Data Explorer","http://cait.wri.org/"]
[null,null,"Climate Equity Reference Calculator","http://gdrights.org/calculator-about/"]
[null,null,"World Bank - World Development Indicators","http://data.worldbank.org/data-catalog/world-development-indicators"]
[null,null,"UNEP Pledge Pipeline Tool","http://www.unep.org/climatechange/pledgepipeline/"]
[null,null,"Climate Action Tracker","http://climateactiontracker.org/"]
[null,"BAU Emissions Projections","Submitted National Communications","http://unfccc.int/national_reports/non-annex_i_natcom/submitted_natcom/items/653.php"]
[null,null,"UNFCCC: INDCs as communicated by Parties","http://www4.unfccc.int/submissions/indc/Submission%20Pages/submissions.aspx"]
[null,null,"Submitted Biennial Update Reports","http://unfccc.int/national_reports/non-annex_i_natcom/reporting_on_climate_change/items/8722.php"]
[null,null,"The Climate Pledge INDC Tool","http://infographics.pbl.nl/indc/"]
[null,null,"Climate Equity Reference Calculator","http://gdrights.org/calculator-about/"]
[null,null,"World Bank - World Development Indicators","http://data.worldbank.org/data-catalog/world-development-indicators"]
[null,null,"UNEP Pledge Pipeline Tool","http://www.unep.org/climatechange/pledgepipeline/"]
[null,null,"Climate Action Tracker","http://climateactiontracker.org/"]
[null,"INDC Targets","UNFCCC: INDCs as communicated by Parties","http://www4.unfccc.int/submissions/indc/Submission%20Pages/submissions.aspx"]
[]
[null,"Figure 1: Projected Transport Emissions: BAU, Low Carbon Scenario, and Derived Target"]
[null,"Derived from Table 1: Historic and Projected Emissions"]
[]
[null,"Figure 2: Transport Share of Economy-Wide Emissions"]
[null,"Derived from Table 1: Historic and Projected Emissions"]

{"sheet":"Gabon","index":31,"n_rows":67,"n_cols":6,"rows_kept":67,"cut":false,"hidden":false,"merged":[[21,5,21,11],[22,5,22,11],[1,1,1,3],[2,1,2,2],[3,1,3,2],[4,1,4,2],[5,1,5,2],[6,1,6,2],[33,1,33,2],[7,1,11,1],[12,1,13,1],[14,1,18,1],[19,1,20,1],[23,1,23,2],[24,1,24,2],[25,1,29,1],[30,1,30,2],[31,1,32,1],[34,1,34,2],[35,1,35,2],[38,5,38,11],[43,1,51,1],[52,1,59,1]]}
[]
[null,"Table 1: Historic and Projected Emissions"]
[null,"Country Name",null,"Gabon"]
[null,"Economy Wide CO2e Emissions Target (INDC)",null," at least 50% below BAU by 2025."]
[null,"Total Country CO2e Emissions Under Target (by Target Year) (MT)",null,12]
[null,"Target Year",null,2030]
[null,"Transport CO2 Emissions Target (based on share of total emissions @ 2010)",null,1.0213120733677246]
[null,"Total Country CO2e Emissions (BAU)",1990,6.6695000000000002]
[null,null,2000,5.9074]
[null,null,2010,5.7572999999999999]
[null,null,2020,12.5]
[null,null,2030,16]
[null,"Total Country CO2e Emissions (Low Carbon Scenario)",2020]
[null,null,2030]
[null,"Total Transport CO2e Emissions (BAU)",1990,0.32,{"$f":"D7","v":1.0213120733677246}]
[null,null,2000,0.32]
[null,null,2010,0.49]
[null,null,2020,1.4]
[null,null,2030,2.9,{"$f":"D7","v":1.0213120733677246}]
[null,"Total Transport CO2e Emissions (Low Carbon Scenario) ",2020,1.3]
[null,null,2030,2,{"$f":"D7","v":1.0213120733677246}]
[null,"Historical Growth in CO2e Emissions  (%) Transport Sector","1990-2010",0.53125,null,"Figure 1: Projected Transport Emissions: BAU, Low Carbon Scenario, and Transport Target"]
[null,"Growth Forecast CO2e Emissions (%)BAU-Transport Sector","2010-2030",4.9183673469387754]
[null,"Reduction with BAU (%) - Transport (2020)",null,-7.1428571428571286E-2]
[null,"Reduction with BAU (%) - Transport (2030)",null,-0.31034482758620685]
[null,"Transport Share in Total Economy-wide Emissions",1990,4.7979608666316814E-2]
[null,null,2000,5.4169346920811184E-2]
[null,null,2010,8.5109339447310375E-2]
[null,null,"2030(BAU)",0.18124999999999999]
[null,null,"2030 (Low)",0.125]
[null,"Gap Between INDC Target and Average Low Carbon Scenario (%)",null,0.95826530612244887]
[null,"Cumulative Increase in Transport CO2 (2010-2030) MT (avg)","Baseline",30.977844560878015]
[null,null,"Low Carbon",25.805193286867336]
[null,"Cumulative Reduction in Transport (2010-2030) MT (avg)",null,5.1726512740106791]
[null,"Cumulative Gap Between INDC Target and Average Low Carbon Scenario (MT)",null,-10.57937767707195]
[null,"Cumulative Gap Between INDC Target and BAU (MT)",null,-15.752028951082629]
[]
[]
[null,null,null,null,null,"Figure 2: Transport Share of Economy-Wide Emissions"]
[]
[null,"TIER II FACTSHEET SOURCES"]
[]
[null,"Table 1: Historic and Projected Emissions"]
[null,"Historic Emissions","Submitted National Communications","http://unfccc.int/national_reports/non-annex_i_natcom/submitted_natcom/items/653.php"]
[null,null,"UNFCCC: INDCs as communicated by Parties","http://www4.unfccc.int/submissions/indc/Submission%20Pages/submissions.aspx"]
[null,null,"Submitted Biennial Update Reports","http://unfccc.int/national_reports/non-annex_i_natcom/reporting_on_climate_change/items/8722.php"]
[null,null,"The Climate Pledge INDC Tool","http://infographics.pbl.nl/indc/"]
[null,null,"CAIT Climate Data Explorer","http://cait.wri.org/"]
[null,null,"Climate Equity Reference Calculator","http://gdrights.org/calculator-about/"]
[null,null,"World Bank - World Development Indicators","http://data.worldbank.org/data-catalog/world-development-indicators"]
[null,null,"UNEP Pledge Pipeline Tool","http://www.unep.org/climatechange/pledgepipeline/"]
[null,null,"Climate Action Tracker","http://climateactiontracker.org/"]
[null,"BAU Emissions Projections","Submitted National Communications","http://unfccc.int/national_reports/non-annex_i_natcom/submitted_natcom/items/653.php"]
[null,null,"UNFCCC: INDCs as communicated by Parties","http://www4.unfccc.int/submissions/indc/Submission%20Pages/submissions.aspx"]
[null,null,"Submitted Biennial Update Reports","http://unfccc.int/national_reports/non-annex_i_natcom/reporting_on_climate_change/items/8722.php"]
[null,null,"The Climate Pledge INDC Tool","http://infographics.pbl.nl/indc/"]
[null,null,"Climate Equity Reference Calculator","http://gdrights.org/calculator-about/"]
[null,null,"World Bank - World Development Indicators","http://data.worldbank.org/data-catalog/world-development-indicators"]
[null,null,"UNEP Pledge Pipeline Tool","http://www.unep.org/climatechange/pledgepipeline/"]
[null,null,"Climate Action Tracker","http://climateactiontracker.org/"]
[null,"INDC Targets","UNFCCC: INDCs as communicated by Parties","http://www4.unfccc.int/submissions/indc/Submission%20Pages/submissions.aspx"]
[]
[null,"Figure 1: Projected Transport Emissions: BAU, Low Carbon Scenario, and Derived Target"]
[null,"Derived from Table 1: Historic and Projected Emissions"]
[]
[null,"Figure 2: Transport Share of Economy-Wide Emissions"]
[null,"Derived from Table 1: Historic and Projected Emissions"]

{"sheet":"Gambia","index":32,"n_rows":67,"n_cols":6,"rows_kept":67,"cut":false,"hidden":false,"merged":[[21,5,21,11],[22,5,22,11],[1,1,1,3],[2,1,2,2],[3,1,3,2],[4,1,4,2],[5,1,5,2],[6,1,6,2],[33,1,33,2],[7,1,11,1],[12,1,13,1],[14,1,18,1],[19,1,20,1],[23,1,23,2],[24,1,24,2],[25,1,29,1],[30,1,30,2],[31,1,32,1],[34,1,34,2],[35,1,35,2],[38,5,38,11],[43,1,51,1],[52,1,59,1]]}
[]
[null,"Table 1: Historic and Projected Emissions"]
[null,"Country Name",null,"Gambia"]
[null,"Economy Wide CO2e Emissions Target (INDC)",null,"45.4% reduction from BAU in 2030"]
[null,"Total Country CO2e Emissions Under Target (by Target Year) (MT)",null,2.0474999999999999]
[null,"Target Year",null,2030]
[null,"Transport CO2 Emissions Target (based on share of total emissions @ 2010)",null,0.20474999999999999]
[null,"Total Country CO2e Emissions (BAU)",1990,0.9]
[null,null,2000,1.1499999999999999]
[null,null,2010,2]
[null,null,2020,2.75]
[null,null,2030,3.75]
[null,"Total Country CO2e Emissions (Low Carbon Scenario)",2020]
[null,null,2030]
[null,"Total Transport CO2e Emissions (BAU)",1990,0.108,{"$f":"D7","v":0.20474999999999999}]
[null,null,2000,0.14000000000000001]
[null,null,2010,0.2]
[null,null,2020,0.28000000000000003]
[null,null,2030,0.27500000000000002,{"$f":"D7","v":0.20474999999999999}]
[null,"Total Transport CO2e Emissions (Low Carbon Scenario) ",2020,0.24]
[null,null,2030,8.2000000000000003E-2,{"$f":"D7","v":0.20474999999999999}]
[null,"Historical Growth in CO2e Emissions  (%) Transport Sector","1990-2010",0.85185185185185208,null,"Figure 1: Projected Transport Emissions: BAU, Low Carbon Scenario, and Transport Target"]
[null,"Growth Forecast CO2e Emissions (%)BAU-Transport Sector","2010-2030",0.375]
[null,"Reduction with BAU (%) - Transport (2020)",null,-0.14285714285714302]
[null,"Reduction with BAU (%) - Transport (2030)",null,-0.7018181818181819]
[null,"Transport Share in Total Economy-wide Emissions",1990,0.12]
[null,null,2000,0.12173913043478263]
[null,null,2010,0.1]
[null,null,"2030(BAU)",7.3333333333333334E-2]
[null,null,"2030 (Low)",2.1866666666666666E-2]
[null,"Gap Between INDC Target and Average Low Carbon Scenario (%)",null,-0.59951159951159949]
[null,"Cumulative Increase in Transport CO2 (2010-2030) MT (avg)","Baseline",5.3902607142537224]
[null,null,"Low Carbon",3.8076464492945603]
[null,"Cumulative Reduction in Transport (2010-2030) MT (avg)",null,1.5826142649591621]
[null,"Cumulative Gap Between INDC Target and Average Low Carbon Scenario (MT)",null,0.44204319414898086]
[null,"Cumulative Gap Between INDC Target and BAU (MT)",null,-1.1405710708101813]
[]
[]
[null,null,null,null,null,"Figure 2: Transport Share of Economy-Wide Emissions"]
[]
[null,"TIER II FACTSHEET SOURCES"]
[]
[null,"Table 1: Historic and Projected Emissions"]
[null,"Historic Emissions","Submitted National Communications","http://unfccc.int/national_reports/non-annex_i_natcom/submitted_natcom/items/653.php"]
[null,null,"UNFCCC: INDCs as communicated by Parties","http://www4.unfccc.int/submissions/indc/Submission%20Pages/submissions.aspx"]
[null,null,"Submitted Biennial Update Reports","http://unfccc.int/national_reports/non-annex_i_natcom/reporting_on_climate_change/items/8722.php"]
[null,null,"The Climate Pledge INDC Tool","http://infographics.pbl.nl/indc/"]
[null,null,"CAIT Climate Data Explorer","http://cait.wri.org/"]
[null,null,"Climate Equity Reference Calculator","http://gdrights.org/calculator-about/"]
[null,null,"World Bank - World Development Indicators","http://data.worldbank.org/data-catalog/world-development-indicators"]
[null,null,"UNEP Pledge Pipeline Tool","http://www.unep.org/climatechange/pledgepipeline/"]
[null,null,"Climate Action Tracker","http://climateactiontracker.org/"]
[null,"BAU Emissions Projections","Submitted National Communications","http://unfccc.int/national_reports/non-annex_i_natcom/submitted_natcom/items/653.php"]
[null,null,"UNFCCC: INDCs as communicated by Parties","http://www4.unfccc.int/submissions/indc/Submission%20Pages/submissions.aspx"]
[null,null,"Submitted Biennial Update Reports","http://unfccc.int/national_reports/non-annex_i_natcom/reporting_on_climate_change/items/8722.php"]
[null,null,"The Climate Pledge INDC Tool","http://infographics.pbl.nl/indc/"]
[null,null,"Climate Equity Reference Calculator","http://gdrights.org/calculator-about/"]
[null,null,"World Bank - World Development Indicators","http://data.worldbank.org/data-catalog/world-development-indicators"]
[null,null,"UNEP Pledge Pipeline Tool","http://www.unep.org/climatechange/pledgepipeline/"]
[null,null,"Climate Action Tracker","http://climateactiontracker.org/"]
[null,"INDC Targets","UNFCCC: INDCs as communicated by Parties","http://www4.unfccc.int/submissions/indc/Submission%20Pages/submissions.aspx"]
[]
[null,"Figure 1: Projected Transport Emissions: BAU, Low Carbon Scenario, and Derived Target"]
[null,"Derived from Table 1: Historic and Projected Emissions"]
[]
[null,"Figure 2: Transport Share of Economy-Wide Emissions"]
[null,"Derived from Table 1: Historic and Projected Emissions"]

{"sheet":"Georgia","index":33,"n_rows":67,"n_cols":6,"rows_kept":67,"cut":false,"hidden":false,"merged":[[34,1,34,2],[35,1,35,2],[38,5,38,11],[43,1,51,1],[52,1,59,1],[33,1,33,2],[7,1,11,1],[12,1,13,1],[14,1,18,1],[19,1,20,1],[23,1,23,2],[24,1,24,2],[25,1,29,1],[30,1,30,2],[31,1,32,1],[21,5,21,11],[22,5,22,11],[1,1,1,3],[2,1,2,2],[3,1,3,2],[4,1,4,2],[5,1,5,2],[6,1,6,2]]}
[]
[null,"Table 1: Historic and Projected Emissions"]
[null,"Country Name",null,"Georgia"]
[null,"Economy Wide CO2e Emissions Target (INDC)",null,"25% below BAU by 2030"]
[null,"Total Country CO2e Emissions Under Target (by Target Year) (MT)",null,28.815000000000001]
[null,"Target Year",null,2030]
[null,"Transport CO2 Emissions Target (based on share of total emissions @ 2010)",null,4.5721962178560736]
[null,"Total Country CO2e Emissions (BAU)",1990,45.3]
[null,null,2000,11.554305611999999]
[null,null,2010,13.108623765080653]
[null,null,2020,24]
[null,null,2030,38.42]
[null,"Total Country CO2e Emissions (Low Carbon Scenario)",2020]
[null,null,2030]
[null,"Total Transport CO2e Emissions (BAU)",1990,3.76,{"$f":"D7","v":4.5721962178560736}]
[null,null,2000,0.95]
[null,null,2010,2.08]
[null,null,2020,4.3]
[null,null,2030,6.1,{"$f":"D7","v":4.5721962178560736}]
[null,"Total Transport CO2e Emissions (Low Carbon Scenario) ",2020,4]
[null,null,2030,5.5,{"$f":"D7","v":4.5721962178560736}]
[null,"Historical Growth in CO2e Emissions  (%) Transport Sector","1990-2010",-0.44680851063829785,null,"Figure 1: Projected Transport Emissions: BAU, Low Carbon Scenario, and Transport Target"]
[null,"Growth Forecast CO2e Emissions (%)BAU-Transport Sector","2010-2030",1.9326923076923075]
[null,"Reduction with BAU (%) - Transport (2020)",null,-6.9767441860465129E-2]
[null,"Reduction with BAU (%) - Transport (2030)",null,-9.8360655737704916E-2]
[null,"Transport Share in Total Economy-wide Emissions",1990,8.300220750551876E-2]
[null,null,2000,8.222043209704917E-2]
[null,null,2010,0.15867417032295933]
[null,null,"2030(BAU)",0.15877147319104631]
[null,null,"2030 (Low)",0.14315460697553356]
[null,"Gap Between INDC Target and Average Low Carbon Scenario (%)",null,0.20292300197452562]
[null,"Cumulative Increase in Transport CO2 (2010-2030) MT (avg)","Baseline",86.153341618244752]
[null,null,"Low Carbon",80.268146101131876]
[null,"Cumulative Reduction in Transport (2010-2030) MT (avg)",null,5.8851955171128765]
[null,"Cumulative Gap Between INDC Target and Average Low Carbon Scenario (MT)",null,-13.650103985502966]
[null,"Cumulative Gap Between INDC Target and BAU (MT)",null,-19.535299502615842]
[]
[]
[null,null,null,null,null,"Figure 2: Transport Share of Economy-Wide Emissions"]
[]
[null,"TIER II FACTSHEET SOURCES"]
[]
[null,"Table 1: Historic and Projected Emissions"]
[null,"Historic Emissions","Submitted National Communications","http://unfccc.int/national_reports/non-annex_i_natcom/submitted_natcom/items/653.php"]
[null,null,"UNFCCC: INDCs as communicated by Parties","http://www4.unfccc.int/submissions/indc/Submission%20Pages/submissions.aspx"]
[null,null,"Submitted Biennial Update Reports","http://unfccc.int/national_reports/non-annex_i_natcom/reporting_on_climate_change/items/8722.php"]
[null,null,"The Climate Pledge INDC Tool","http://infographics.pbl.nl/indc/"]
[null,null,"CAIT Climate Data Explorer","http://cait.wri.org/"]
[null,null,"Climate Equity Reference Calculator","http://gdrights.org/calculator-about/"]
[null,null,"World Bank - World Development Indicators","http://data.worldbank.org/data-catalog/world-development-indicators"]
[null,null,"UNEP Pledge Pipeline Tool","http://www.unep.org/climatechange/pledgepipeline/"]
[null,null,"Climate Action Tracker","http://climateactiontracker.org/"]
[null,"BAU Emissions Projections","Submitted National Communications","http://unfccc.int/national_reports/non-annex_i_natcom/submitted_natcom/items/653.php"]
[null,null,"UNFCCC: INDCs as communicated by Parties","http://www4.unfccc.int/submissions/indc/Submission%20Pages/submissions.aspx"]
[null,null,"Submitted Biennial Update Reports","http://unfccc.int/national_reports/non-annex_i_natcom/reporting_on_climate_change/items/8722.php"]
[null,null,"The Climate Pledge INDC Tool","http://infographics.pbl.nl/indc/"]
[null,null,"Climate Equity Reference Calculator","http://gdrights.org/calculator-about/"]
[null,null,"World Bank - World Development Indicators","http://data.worldbank.org/data-catalog/world-development-indicators"]
[null,null,"UNEP Pledge Pipeline Tool","http://www.unep.org/climatechange/pledgepipeline/"]
[null,null,"Climate Action Tracker","http://climateactiontracker.org/"]
[null,"INDC Targets","UNFCCC: INDCs as communicated by Parties","http://www4.unfccc.int/submissions/indc/Submission%20Pages/submissions.aspx"]
[]
[null,"Figure 1: Projected Transport Emissions: BAU, Low Carbon Scenario, and Derived Target"]
[null,"Derived from Table 1: Historic and Projected Emissions"]
[]
[null,"Figure 2: Transport Share of Economy-Wide Emissions"]
[null,"Derived from Table 1: Historic and Projected Emissions"]

{"sheet":"Ghana","index":34,"n_rows":67,"n_cols":6,"rows_kept":67,"cut":false,"hidden":false,"merged":[[34,1,34,2],[35,1,35,2],[38,5,38,11],[43,1,51,1],[52,1,59,1],[33,1,33,2],[7,1,11,1],[12,1,13,1],[14,1,18,1],[19,1,20,1],[23,1,23,2],[24,1,24,2],[25,1,29,1],[30,1,30,2],[31,1,32,1],[21,5,21,11],[22,5,22,11],[1,1,1,3],[2,1,2,2],[3,1,3,2],[4,1,4,2],[5,1,5,2],[6,1,6,2]]}
[]
[null,"Table 1: Historic and Projected Emissions"]
[null,"Country Name",null,"Ghana"]
[null,"Economy Wide CO2e Emissions Target (INDC)",null,"45% below the BAU"]
[null,"Total Country CO2e Emissions Under Target (by Target Year) (MT)",null,40.672499999999999]
[null,"Target Year",null,2030]
[null,"Transport CO2 Emissions Target (based on share of total emissions @ 2010)",null,10.2253955453149]
[null,"Total Country CO2e Emissions (BAU)",1990,12.581899999999999]
[null,null,2000,18.196999999999999]
[null,null,2010,19.53]
[null,null,2020,37.81]
[null,null,2030,73.95]
[null,"Total Country CO2e Emissions (Low Carbon Scenario)",2020]
[null,null,2030]
[null,"Total Transport CO2e Emissions (BAU)",1990,1.6,{"$f":"D7","v":10.2253955453149}]
[null,null,2000,2.86]
[null,null,2010,4.91]
[null,null,2020,10.75163893599191]
[null,null,2030,21.140454163447764,{"$f":"D7","v":10.2253955453149}]
[null,"Total Transport CO2e Emissions (Low Carbon Scenario) ",2020,9.497815170356489]
[null,null,2030,15.596415751707859,{"$f":"D7","v":10.2253955453149}]
[null,"Historical Growth in CO2e Emissions  (%) Transport Sector","1990-2010",2.0687500000000001,null,"Figure 1: Projected Transport Emissions: BAU, Low Carbon Scenario, and Transport Target"]
[null,"Growth Forecast CO2e Emissions (%)BAU-Transport Sector","2010-2030",3.3055914793172638]
[null,"Reduction with BAU (%) - Transport (2020)",null,-0.1166169895678093]
[null,"Reduction with BAU (%) - Transport (2030)",null,-0.26224783861671475]
[null,"Transport Share in Total Economy-wide Emissions",1990,0.12716680310604919]
[null,null,2000,0.15716876408199154]
[null,null,2010,0.25140809011776755]
[null,null,"2030(BAU)",0.28587497178428345]
[null,null,"2030 (Low)",0.21090487831924082]
[null,"Gap Between INDC Target and Average Low Carbon Scenario (%)",null,0.5252628304294662]
[null,"Cumulative Increase in Transport CO2 (2010-2030) MT (avg)","Baseline",241.30420946215284]
[null,null,"Low Carbon",202.79911784962297]
[null,"Cumulative Reduction in Transport (2010-2030) MT (avg)",null,38.505091612529867]
[null,"Cumulative Gap Between INDC Target and Average Low Carbon Scenario (MT)",null,-50.302623099385841]
[null,"Cumulative Gap Between INDC Target and BAU (MT)",null,-88.807714711915708]
[]
[]
[null,null,null,null,null,"Figure 2: Transport Share of Economy-Wide Emissions"]
[]
[null,"TIER II FACTSHEET SOURCES"]
[]
[null,"Table 1: Historic and Projected Emissions"]
[null,"Historic Emissions","Submitted National Communications","http://unfccc.int/national_reports/non-annex_i_natcom/submitted_natcom/items/653.php"]
[null,null,"UNFCCC: INDCs as communicated by Parties","http://www4.unfccc.int/submissions/indc/Submission%20Pages/submissions.aspx"]
[null,null,"Submitted Biennial Update Reports","http://unfccc.int/national_reports/non-annex_i_natcom/reporting_on_climate_change/items/8722.php"]
[null,null,"The Climate Pledge INDC Tool","http://infographics.pbl.nl/indc/"]
[null,null,"CAIT Climate Data Explorer","http://cait.wri.org/"]
[null,null,"Climate Equity Reference Calculator","http://gdrights.org/calculator-about/"]
[null,null,"World Bank - World Development Indicators","http://data.worldbank.org/data-catalog/world-development-indicators"]
[null,null,"UNEP Pledge Pipeline Tool","http://www.unep.org/climatechange/pledgepipeline/"]
[null,null,"Climate Action Tracker","http://climateactiontracker.org/"]
[null,"BAU Emissions Projections","Submitted National Communications","http://unfccc.int/national_reports/non-annex_i_natcom/submitted_natcom/items/653.php"]
[null,null,"UNFCCC: INDCs as communicated by Parties","http://www4.unfccc.int/submissions/indc/Submission%20Pages/submissions.aspx"]
[null,null,"Submitted Biennial Update Reports","http://unfccc.int/national_reports/non-annex_i_natcom/reporting_on_climate_change/items/8722.php"]
[null,null,"The Climate Pledge INDC Tool","http://infographics.pbl.nl/indc/"]
[null,null,"Climate Equity Reference Calculator","http://gdrights.org/calculator-about/"]
[null,null,"World Bank - World Development Indicators","http://data.worldbank.org/data-catalog/world-development-indicators"]
[null,null,"UNEP Pledge Pipeline Tool","http://www.unep.org/climatechange/pledgepipeline/"]
[null,null,"Climate Action Tracker","http://climateactiontracker.org/"]
[null,"INDC Targets","UNFCCC: INDCs as communicated by Parties","http://www4.unfccc.int/submissions/indc/Submission%20Pages/submissions.aspx"]
[]
[null,"Figure 1: Projected Transport Emissions: BAU, Low Carbon Scenario, and Derived Target"]
[null,"Derived from Table 1: Historic and Projected Emissions"]
[]
[null,"Figure 2: Transport Share of Economy-Wide Emissions"]
[null,"Derived from Table 1: Historic and Projected Emissions"]

{"sheet":"Grenada","index":35,"n_rows":67,"n_cols":6,"rows_kept":67,"cut":false,"hidden":false,"merged":[[21,5,21,11],[22,5,22,11],[1,1,1,3],[2,1,2,2],[3,1,3,2],[4,1,4,2],[5,1,5,2],[6,1,6,2],[33,1,33,2],[7,1,11,1],[12,1,13,1],[14,1,18,1],[19,1,20,1],[23,1,23,2],[24,1,24,2],[25,1,29,1],[30,1,30,2],[31,1,32,1],[34,1,34,2],[35,1,35,2],[38,5,38,11],[43,1,51,1],[52,1,59,1]]}
[]
[null,"Table 1: Historic and Projected Emissions"]
[null,"Country Name",null,"Grenada"]
[null,"Economy Wide CO2e Emissions Target (INDC)",null," reduction of 40% of 2010 by 2030"]
[null,"Total Country CO2e Emissions Under Target (by Target Year) (MT)",null,0.1509894]
[null,"Target Year",null,2030]
[null,"Transport CO2 Emissions Target (based on share of total emissions @ 2010)",null,5.8885866000000002E-2]
[null,"Total Country CO2e Emissions (BAU)",1990]
[null,null,2000]
[null,null,2010,0.25164900000000001]
[null,null,2020,0.28000000000000003]
[null,null,2030,0.3]
[null,"Total Country CO2e Emissions (Low Carbon Scenario)",2020]
[null,null,2030]
[null,"Total Transport CO2e Emissions (BAU)",1990,5.1989978040000003E-2,{"$f":"D7","v":5.8885866000000002E-2}]
[null,null,2000]
[null,null,2010,9.8143110000000006E-2]
[null,null,2020,8.4366235795336447E-2]
[null,null,2030,0.11889734697032271,{"$f":"D7","v":5.8885866000000002E-2}]
[null,"Total Transport CO2e Emissions (Low Carbon Scenario) ",2020,7.4527699355716362E-2]
[null,null,2030,8.7716774710093981E-2,{"$f":"D7","v":5.8885866000000002E-2}]
[null,"Historical Growth in CO2e Emissions  (%) Transport Sector","1990-2010",0.88773132245777719,null,"Figure 1: Projected Transport Emissions: BAU, Low Carbon Scenario, and Transport Target"]
[null,"Growth Forecast CO2e Emissions (%)BAU-Transport Sector","2010-2030",0.21146911861996931]
[null,"Reduction with BAU (%) - Transport (2020)",null,-0.11661698956780919]
[null,"Reduction with BAU (%) - Transport (2030)",null,-0.26224783861671475]
[null,"Transport Share in Total Economy-wide Emissions",1990]
[null,null,2000]
[null,null,2010,0.39]
[null,null,"2030(BAU)",0.39632448990107572]
[null,null,"2030 (Low)",0.2923892490336466]
[null,"Gap Between INDC Target and Average Low Carbon Scenario (%)",null,0.48960660118497668]
[null,"Cumulative Increase in Transport CO2 (2010-2030) MT (avg)","Baseline",2.0259115465389743]
[null,null,"Low Carbon",1.76037827445842]
[null,"Cumulative Reduction in Transport (2010-2030) MT (avg)",null,0.26553327208055433]
[null,"Cumulative Gap Between INDC Target and Average Low Carbon Scenario (MT)",null,-0.14476868804359455]
[null,"Cumulative Gap Between INDC Target and BAU (MT)",null,-0.41030196012414888]
[]
[]
[null,null,null,null,null,"Figure 2: Transport Share of Economy-Wide Emissions"]
[]
[null,"TIER II FACTSHEET SOURCES"]
[]
[null,"Table 1: Historic and Projected Emissions"]
[null,"Historic Emissions","Submitted National Communications","http://unfccc.int/national_reports/non-annex_i_natcom/submitted_natcom/items/653.php"]
[null,null,"UNFCCC: INDCs as communicated by Parties","http://www4.unfccc.int/submissions/indc/Submission%20Pages/submissions.aspx"]
[null,null,"Submitted Biennial Update Reports","http://unfccc.int/national_reports/non-annex_i_natcom/reporting_on_climate_change/items/8722.php"]
[null,null,"The Climate Pledge INDC Tool","http://infographics.pbl.nl/indc/"]
[null,null,"CAIT Climate Data Explorer","http://cait.wri.org/"]
[null,null,"Climate Equity Reference Calculator","http://gdrights.org/calculator-about/"]
[null,null,"World Bank - World Development Indicators","http://data.worldbank.org/data-catalog/world-development-indicators"]
[null,null,"UNEP Pledge Pipeline Tool","http://www.unep.org/climatechange/pledgepipeline/"]
[null,null,"Climate Action Tracker","http://climateactiontracker.org/"]
[null,"BAU Emissions Projections","Submitted National Communications","http://unfccc.int/national_reports/non-annex_i_natcom/submitted_natcom/items/653.php"]
[null,null,"UNFCCC: INDCs as communicated by Parties","http://www4.unfccc.int/submissions/indc/Submission%20Pages/submissions.aspx"]
[null,null,"Submitted Biennial Update Reports","http://unfccc.int/national_reports/non-annex_i_natcom/reporting_on_climate_change/items/8722.php"]
[null,null,"The Climate Pledge INDC Tool","http://infographics.pbl.nl/indc/"]
[null,null,"Climate Equity Reference Calculator","http://gdrights.org/calculator-about/"]
[null,null,"World Bank - World Development Indicators","http://data.worldbank.org/data-catalog/world-development-indicators"]
[null,null,"UNEP Pledge Pipeline Tool","http://www.unep.org/climatechange/pledgepipeline/"]
[null,null,"Climate Action Tracker","http://climateactiontracker.org/"]
[null,"INDC Targets","UNFCCC: INDCs as communicated by Parties","http://www4.unfccc.int/submissions/indc/Submission%20Pages/submissions.aspx"]
[]
[null,"Figure 1: Projected Transport Emissions: BAU, Low Carbon Scenario, and Derived Target"]
[null,"Derived from Table 1: Historic and Projected Emissions"]
[]
[null,"Figure 2: Transport Share of Economy-Wide Emissions"]
[null,"Derived from Table 1: Historic and Projected Emissions"]

{"sheet":"Guatemala","index":36,"n_rows":67,"n_cols":6,"rows_kept":67,"cut":false,"hidden":false,"merged":[[21,5,21,11],[22,5,22,11],[1,1,1,3],[2,1,2,2],[3,1,3,2],[4,1,4,2],[5,1,5,2],[6,1,6,2],[33,1,33,2],[7,1,11,1],[12,1,13,1],[14,1,18,1],[19,1,20,1],[23,1,23,2],[24,1,24,2],[25,1,29,1],[30,1,30,2],[31,1,32,1],[34,1,34,2],[35,1,35,2],[38,5,38,11],[43,1,51,1],[52,1,59,1]]}
[]
[null,"Table 1: Historic and Projected Emissions"]
[null,"Country Name",null,"Guatemala"]
[null,"Economy Wide CO2e Emissions Target (INDC)",null,"22.6 % reduction of 2005 by 2030"]
[null,"Total Country CO2e Emissions Under Target (by Target Year) (MT)",null,41.66]
[null,"Target Year",null,2030]
[null,"Transport CO2 Emissions Target (based on share of total emissions @ 2010)",null,6.689405714285714]
[null,"Total Country CO2e Emissions (BAU)",1990,18]
[null,null,2000,32]
[null,null,2010,35]
[null,null,2020,44]
[null,null,2030,53.85]
[null,"Total Country CO2e Emissions (Low Carbon Scenario)",2020]
[null,null,2030]
[null,"Total Transport CO2e Emissions (BAU)",1990,1.69,{"$f":"D7","v":6.689405714285714}]
[null,null,2000,3.8]
[null,null,2010,5.62]
[null,null,2020,8.0918202797509071]
[null,null,2030,12.322780087326413,{"$f":"D7","v":6.689405714285714}]
[null,"Total Transport CO2e Emissions (Low Carbon Scenario) ",2020,7.1481765586026089]
[null,null,2030,9.0911576436759702,{"$f":"D7","v":6.689405714285714}]
[null,"Historical Growth in CO2e Emissions  (%) Transport Sector","1990-2010",2.3254437869822486,null,"Figure 1: Projected Transport Emissions: BAU, Low Carbon Scenario, and Transport Target"]
[null,"Growth Forecast CO2e Emissions (%)BAU-Transport Sector","2010-2030",1.1926654959655538]
[null,"Reduction with BAU (%) - Transport (2020)",null,-0.11661698956780919]
[null,"Reduction with BAU (%) - Transport (2030)",null,-0.26224783861671463]
[null,"Transport Share in Total Economy-wide Emissions",1990,9.3888888888888883E-2]
[null,null,2000,0.11874999999999999]
[null,null,2010,0.16057142857142859]
[null,null,"2030(BAU)",0.22883528481571797]
[null,null,"2030 (Low)",0.16882372597355561]
[null,"Gap Between INDC Target and Average Low Carbon Scenario (%)",null,0.35903816153072299]
[null,"Cumulative Increase in Transport CO2 (2010-2030) MT (avg)","Baseline",177.39804444285204]
[null,null,"Low Carbon",151.70513696006168]
[null,"Cumulative Reduction in Transport (2010-2030) MT (avg)",null,25.692907482790361]
[null,"Cumulative Gap Between INDC Target and Average Low Carbon Scenario (MT)",null,-22.765916197382637]
[null,"Cumulative Gap Between INDC Target and BAU (MT)",null,-48.458823680172998]
[]
[]
[null,null,null,null,null,"Figure 2: Transport Share of Economy-Wide Emissions"]
[]
[null,"TIER II FACTSHEET SOURCES"]
[]
[null,"Table 1: Historic and Projected Emissions"]
[null,"Historic Emissions","Submitted National Communications","http://unfccc.int/national_reports/non-annex_i_natcom/submitted_natcom/items/653.php"]
[null,null,"UNFCCC: INDCs as communicated by Parties","http://www4.unfccc.int/submissions/indc/Submission%20Pages/submissions.aspx"]
[null,null,"Submitted Biennial Update Reports","http://unfccc.int/national_reports/non-annex_i_natcom/reporting_on_climate_change/items/8722.php"]
[null,null,"The Climate Pledge INDC Tool","http://infographics.pbl.nl/indc/"]
[null,null,"CAIT Climate Data Explorer","http://cait.wri.org/"]
[null,null,"Climate Equity Reference Calculator","http://gdrights.org/calculator-about/"]
[null,null,"World Bank - World Development Indicators","http://data.worldbank.org/data-catalog/world-development-indicators"]
[null,null,"UNEP Pledge Pipeline Tool","http://www.unep.org/climatechange/pledgepipeline/"]
[null,null,"Climate Action Tracker","http://climateactiontracker.org/"]
[null,"BAU Emissions Projections","Submitted National Communications","http://unfccc.int/national_reports/non-annex_i_natcom/submitted_natcom/items/653.php"]
[null,null,"UNFCCC: INDCs as communicated by Parties","http://www4.unfccc.int/submissions/indc/Submission%20Pages/submissions.aspx"]
[null,null,"Submitted Biennial Update Reports","http://unfccc.int/national_reports/non-annex_i_natcom/reporting_on_climate_change/items/8722.php"]
[null,null,"The Climate Pledge INDC Tool","http://infographics.pbl.nl/indc/"]
[null,null,"Climate Equity Reference Calculator","http://gdrights.org/calculator-about/"]
[null,null,"World Bank - World Development Indicators","http://data.worldbank.org/data-catalog/world-development-indicators"]
[null,null,"UNEP Pledge Pipeline Tool","http://www.unep.org/climatechange/pledgepipeline/"]
[null,null,"Climate Action Tracker","http://climateactiontracker.org/"]
[null,"INDC Targets","UNFCCC: INDCs as communicated by Parties","http://www4.unfccc.int/submissions/indc/Submission%20Pages/submissions.aspx"]
[]
[null,"Figure 1: Projected Transport Emissions: BAU, Low Carbon Scenario, and Derived Target"]
[null,"Derived from Table 1: Historic and Projected Emissions"]
[]
[null,"Figure 2: Transport Share of Economy-Wide Emissions"]
[null,"Derived from Table 1: Historic and Projected Emissions"]

{"sheet":"Guinea","index":37,"n_rows":67,"n_cols":6,"rows_kept":67,"cut":false,"hidden":false,"merged":[[21,5,21,11],[22,5,22,11],[1,1,1,3],[2,1,2,2],[3,1,3,2],[4,1,4,2],[5,1,5,2],[6,1,6,2],[33,1,33,2],[7,1,11,1],[12,1,13,1],[14,1,18,1],[19,1,20,1],[23,1,23,2],[24,1,24,2],[25,1,29,1],[30,1,30,2],[31,1,32,1],[34,1,34,2],[35,1,35,2],[38,5,38,11],[43,1,51,1],[52,1,59,1]]}
[]
[null,"Table 1: Historic and Projected Emissions"]
[null,"Country Name",null,"Guinea"]
[null,"Economy Wide CO2e Emissions Target (INDC)",null,"Mitigate 76 cumulative MtCO2eq over the next 15 years"]
[null,"Total Country CO2e Emissions Under Target (by Target Year) (MT)",null,44.8]
[null,"Target Year",null,2030]
[null,"Transport CO2 Emissions Target (based on share of total emissions @ 2010)",null,2.6305475740175521]
[null,"Total Country CO2e Emissions (BAU)",1990,7.5673000000000004]
[null,null,2000,10.6892]
[null,null,2010,15.1326]
[null,null,2020,29]
[null,null,2030,55]
[null,"Total Country CO2e Emissions (Low Carbon Scenario)",2020]
[null,null,2030]
[null,"Total Transport CO2e Emissions (BAU)",1990,null,{"$f":"D7","v":2.6305475740175521}]
[null,null,2000]
[null,null,2010,0.88854964773611622]
[null,null,2020,1.4815076452142346]
[null,null,2030,3.6880861709552399,{"$f":"D7","v":2.6305475740175521}]
[null,"Total Transport CO2e Emissions (Low Carbon Scenario) ",2020,1.3087386836076567]
[null,null,2030,2.7208935439900328,{"$f":"D7","v":2.6305475740175521}]
[null,"Historical Growth in CO2e Emissions  (%) Transport Sector","1990-2010",{"$error":"#DIV/0!"},null,"Figure 1: Projected Transport Emissions: BAU, Low Carbon Scenario, and Transport Target"]
[null,"Growth Forecast CO2e Emissions (%)BAU-Transport Sector","2010-2030",3.1506810343708977]
[null,"Reduction with BAU (%) - Transport (2020)",null,-0.11661698956780919]
[null,"Reduction with BAU (%) - Transport (2030)",null,-0.26224783861671475]
[null,"Transport Share in Total Economy-wide Emissions",1990]
[null,null,2000]
[null,null,2010,5.8717579777177502E-2]
[null,null,"2030(BAU)",6.7056112199186182E-2]
[null,null,"2030 (Low)",4.9470791708909688E-2]
[null,"Gap Between INDC Target and Average Low Carbon Scenario (%)",null,3.4344929118502066E-2]
[null,"Cumulative Increase in Transport CO2 (2010-2030) MT (avg)","Baseline",38.100061962640339]
[null,null,"Low Carbon",31.960339138761238]
[null,"Cumulative Reduction in Transport (2010-2030) MT (avg)",null,6.1397228238791008]
[null,"Cumulative Gap Between INDC Target and Average Low Carbon Scenario (MT)",null,1.9070923120411756]
[null,"Cumulative Gap Between INDC Target and BAU (MT)",null,-4.2326305118379253]
[]
[]
[null,null,null,null,null,"Figure 2: Transport Share of Economy-Wide Emissions"]
[]
[null,"TIER II FACTSHEET SOURCES"]
[]
[null,"Table 1: Historic and Projected Emissions"]
[null,"Historic Emissions","Submitted National Communications","http://unfccc.int/national_reports/non-annex_i_natcom/submitted_natcom/items/653.php"]
[null,null,"UNFCCC: INDCs as communicated by Parties","http://www4.unfccc.int/submissions/indc/Submission%20Pages/submissions.aspx"]
[null,null,"Submitted Biennial Update Reports","http://unfccc.int/national_reports/non-annex_i_natcom/reporting_on_climate_change/items/8722.php"]
[null,null,"The Climate Pledge INDC Tool","http://infographics.pbl.nl/indc/"]
[null,null,"CAIT Climate Data Explorer","http://cait.wri.org/"]
[null,null,"Climate Equity Reference Calculator","http://gdrights.org/calculator-about/"]
[null,null,"World Bank - World Development Indicators","http://data.worldbank.org/data-catalog/world-development-indicators"]
[null,null,"UNEP Pledge Pipeline Tool","http://www.unep.org/climatechange/pledgepipeline/"]
[null,null,"Climate Action Tracker","http://climateactiontracker.org/"]
[null,"BAU Emissions Projections","Submitted National Communications","http://unfccc.int/national_reports/non-annex_i_natcom/submitted_natcom/items/653.php"]
[null,null,"UNFCCC: INDCs as communicated by Parties","http://www4.unfccc.int/submissions/indc/Submission%20Pages/submissions.aspx"]
[null,null,"Submitted Biennial Update Reports","http://unfccc.int/national_reports/non-annex_i_natcom/reporting_on_climate_change/items/8722.php"]
[null,null,"The Climate Pledge INDC Tool","http://infographics.pbl.nl/indc/"]
[null,null,"Climate Equity Reference Calculator","http://gdrights.org/calculator-about/"]
[null,null,"World Bank - World Development Indicators","http://data.worldbank.org/data-catalog/world-development-indicators"]
[null,null,"UNEP Pledge Pipeline Tool","http://www.unep.org/climatechange/pledgepipeline/"]
[null,null,"Climate Action Tracker","http://climateactiontracker.org/"]
[null,"INDC Targets","UNFCCC: INDCs as communicated by Parties","http://www4.unfccc.int/submissions/indc/Submission%20Pages/submissions.aspx"]
[]
[null,"Figure 1: Projected Transport Emissions: BAU, Low Carbon Scenario, and Derived Target"]
[null,"Derived from Table 1: Historic and Projected Emissions"]
[]
[null,"Figure 2: Transport Share of Economy-Wide Emissions"]
[null,"Derived from Table 1: Historic and Projected Emissions"]

{"sheet":"Guyana","index":38,"n_rows":67,"n_cols":6,"rows_kept":67,"cut":false,"hidden":false,"merged":[[21,5,21,11],[22,5,22,11],[1,1,1,3],[2,1,2,2],[3,1,3,2],[4,1,4,2],[5,1,5,2],[6,1,6,2],[33,1,33,2],[7,1,11,1],[12,1,13,1],[14,1,18,1],[19,1,20,1],[23,1,23,2],[24,1,24,2],[25,1,29,1],[30,1,30,2],[31,1,32,1],[34,1,34,2],[35,1,35,2],[38,5,38,11],[43,1,51,1],[52,1,59,1]]}
[]
[null,"Table 1: Historic and Projected Emissions"]
[null,"Country Name",null,"Guyana"]
[null,"Economy Wide CO2e Emissions Target (INDC)",null,"Guyana can provide up to 52Mt Co2 reduction"]
[null,"Total Country CO2e Emissions Under Target (by Target Year) (MT)",null,1.97]
[null,"Target Year",null,2030]
[null,"Transport CO2 Emissions Target (based on share of total emissions @ 2010)",null,0.52276536312849153]
[null,"Total Country CO2e Emissions (BAU)",1990,1.44]
[null,null,2000,1.6879999999999999]
[null,null,2010,3.58]
[null,null,2020,6.45]
[null,null,2030,7.29]
[null,"Total Country CO2e Emissions (Low Carbon Scenario)",2020]
[null,null,2030]
[null,"Total Transport CO2e Emissions (BAU)",1990,0.21,{"$f":"D7","v":0.52276536312849153}]
[null,null,2000,0.33500000000000002]
[null,null,2010,0.95]
[null,null,2020,1.1000000000000001]
[null,null,2030,1.4,{"$f":"D7","v":0.52276536312849153}]
[null,"Total Transport CO2e Emissions (Low Carbon Scenario) ",2020,1.0249999999999999]
[null,null,2030,1.1499999999999999,{"$f":"D7","v":0.52276536312849153}]
[null,"Historical Growth in CO2e Emissions  (%) Transport Sector","1990-2010",3.5238095238095237,null,"Figure 1: Projected Transport Emissions: BAU, Low Carbon Scenario, and Transport Target"]
[null,"Growth Forecast CO2e Emissions (%)BAU-Transport Sector","2010-2030",0.47368421052631571]
[null,"Reduction with BAU (%) - Transport (2020)",null,-6.8181818181818343E-2]
[null,"Reduction with BAU (%) - Transport (2030)",null,-0.1785714285714286]
[null,"Transport Share in Total Economy-wide Emissions",1990,0.14583333333333334]
[null,null,2000,0.19845971563981044]
[null,null,2010,0.26536312849162008]
[null,null,"2030(BAU)",0.19204389574759945]
[null,null,"2030 (Low)",0.15775034293552812]
[null,"Gap Between INDC Target and Average Low Carbon Scenario (%)",null,1.1998397007747799]
[null,"Cumulative Increase in Transport CO2 (2010-2030) MT (avg)","Baseline",23.847235125426856]
[null,null,"Low Carbon",21.783434948363631]
[null,"Cumulative Reduction in Transport (2010-2030) MT (avg)",null,2.063800177063225]
[null,"Cumulative Gap Between INDC Target and Average Low Carbon Scenario (MT)",null,-6.7411602016605201]
[null,"Cumulative Gap Between INDC Target and BAU (MT)",null,-8.8049603787237452]
[]
[]
[null,null,null,null,null,"Figure 2: Transport Share of Economy-Wide Emissions"]
[]
[null,"TIER II FACTSHEET SOURCES"]
[]
[null,"Table 1: Historic and Projected Emissions"]
[null,"Historic Emissions","Submitted National Communications","http://unfccc.int/national_reports/non-annex_i_natcom/submitted_natcom/items/653.php"]
[null,null,"UNFCCC: INDCs as communicated by Parties","http://www4.unfccc.int/submissions/indc/Submission%20Pages/submissions.aspx"]
[null,null,"Submitted Biennial Update Reports","http://unfccc.int/national_reports/non-annex_i_natcom/reporting_on_climate_change/items/8722.php"]
[null,null,"The Climate Pledge INDC Tool","http://infographics.pbl.nl/indc/"]
[null,null,"CAIT Climate Data Explorer","http://cait.wri.org/"]
[null,null,"Climate Equity Reference Calculator","http://gdrights.org/calculator-about/"]
[null,null,"World Bank - World Development Indicators","http://data.worldbank.org/data-catalog/world-development-indicators"]
[null,null,"UNEP Pledge Pipeline Tool","http://www.unep.org/climatechange/pledgepipeline/"]
[null,null,"Climate Action Tracker","http://climateactiontracker.org/"]
[null,"BAU Emissions Projections","Submitted National Communications","http://unfccc.int/national_reports/non-annex_i_natcom/submitted_natcom/items/653.php"]
[null,null,"UNFCCC: INDCs as communicated by Parties","http://www4.unfccc.int/submissions/indc/Submission%20Pages/submissions.aspx"]
[null,null,"Submitted Biennial Update Reports","http://unfccc.int/national_reports/non-annex_i_natcom/reporting_on_climate_change/items/8722.php"]
[null,null,"The Climate Pledge INDC Tool","http://infographics.pbl.nl/indc/"]
[null,null,"Climate Equity Reference Calculator","http://gdrights.org/calculator-about/"]
[null,null,"World Bank - World Development Indicators","http://data.worldbank.org/data-catalog/world-development-indicators"]
[null,null,"UNEP Pledge Pipeline Tool","http://www.unep.org/climatechange/pledgepipeline/"]
[null,null,"Climate Action Tracker","http://climateactiontracker.org/"]
[null,"INDC Targets","UNFCCC: INDCs as communicated by Parties","http://www4.unfccc.int/submissions/indc/Submission%20Pages/submissions.aspx"]
[]
[null,"Figure 1: Projected Transport Emissions: BAU, Low Carbon Scenario, and Derived Target"]
[null,"Derived from Table 1: Historic and Projected Emissions"]
[]
[null,"Figure 2: Transport Share of Economy-Wide Emissions"]
[null,"Derived from Table 1: Historic and Projected Emissions"]

{"sheet":"Haiti","index":39,"n_rows":67,"n_cols":6,"rows_kept":67,"cut":false,"hidden":false,"merged":[[21,5,21,11],[22,5,22,11],[1,1,1,3],[2,1,2,2],[3,1,3,2],[4,1,4,2],[5,1,5,2],[6,1,6,2],[33,1,33,2],[7,1,11,1],[12,1,13,1],[14,1,18,1],[19,1,20,1],[23,1,23,2],[24,1,24,2],[25,1,29,1],[30,1,30,2],[31,1,32,1],[34,1,34,2],[35,1,35,2],[38,5,38,11],[43,1,51,1],[52,1,59,1]]}
[]
[null,"Table 1: Historic and Projected Emissions"]
[null,"Country Name",null,"Haiti"]
[null,"Economy Wide CO2e Emissions Target (INDC)",null,"26% below 2030 BAU"]
[null,"Total Country CO2e Emissions Under Target (by Target Year) (MT)",null,14.8]
[null,"Target Year",null,2030]
[null,"Transport CO2 Emissions Target (based on share of total emissions @ 2010)",null,1.8630588235294119]
[null,"Total Country CO2e Emissions (BAU)",1990,4.6844999999999999]
[null,null,2000,7.8]
[null,null,2010,8.5]
[null,null,2020,14]
[null,null,2030,20]
[null,"Total Country CO2e Emissions (Low Carbon Scenario)",2020]
[null,null,2030]
[null,"Total Transport CO2e Emissions (BAU)",1990,0.42,{"$f":"D7","v":1.8630588235294119}]
[null,null,2000,0.7]
[null,null,2010,1.07]
[null,null,2020,1.3804164019484564]
[null,null,2030,2.0565622065371456,{"$f":"D7","v":1.8630588235294119}]
[null,"Total Transport CO2e Emissions (Low Carbon Scenario) ",2020,1.2194363968032005]
[null,null,2030,1.5172332128919575,{"$f":"D7","v":1.8630588235294119}]
[null,"Historical Growth in CO2e Emissions  (%) Transport Sector","1990-2010",1.5476190476190479,null,"Figure 1: Projected Transport Emissions: BAU, Low Carbon Scenario, and Transport Target"]
[null,"Growth Forecast CO2e Emissions (%)BAU-Transport Sector","2010-2030",0.92202075377303316]
[null,"Reduction with BAU (%) - Transport (2020)",null,-0.11661698956780919]
[null,"Reduction with BAU (%) - Transport (2030)",null,-0.26224783861671475]
[null,"Transport Share in Total Economy-wide Emissions",1990,8.9657380723663138E-2]
[null,null,2000,8.9743589743589744E-2]
[null,null,2010,0.12588235294117647]
[null,null,"2030(BAU)",0.10282811032685728]
[null,null,"2030 (Low)",7.5861660644597873E-2]
[null,"Gap Between INDC Target and Average Low Carbon Scenario (%)",null,-0.18562248613402133]
[null,"Cumulative Increase in Transport CO2 (2010-2030) MT (avg)","Baseline",30.713310758251204]
[null,null,"Low Carbon",26.354395788294088]
[null,"Cumulative Reduction in Transport (2010-2030) MT (avg)",null,4.3589149699571159]
[null,"Cumulative Gap Between INDC Target and Average Low Carbon Scenario (MT)",null,3.7152849366868246]
[null,"Cumulative Gap Between INDC Target and BAU (MT)",null,-0.64363003327029134]
[]
[]
[null,null,null,null,null,"Figure 2: Transport Share of Economy-Wide Emissions"]
[]
[null,"TIER II FACTSHEET SOURCES"]
[]
[null,"Table 1: Historic and Projected Emissions"]
[null,"Historic Emissions","Submitted National Communications","http://unfccc.int/national_reports/non-annex_i_natcom/submitted_natcom/items/653.php"]
[null,null,"UNFCCC: INDCs as communicated by Parties","http://www4.unfccc.int/submissions/indc/Submission%20Pages/submissions.aspx"]
[null,null,"Submitted Biennial Update Reports","http://unfccc.int/national_reports/non-annex_i_natcom/reporting_on_climate_change/items/8722.php"]
[null,null,"The Climate Pledge INDC Tool","http://infographics.pbl.nl/indc/"]
[null,null,"CAIT Climate Data Explorer","http://cait.wri.org/"]
[null,null,"Climate Equity Reference Calculator","http://gdrights.org/calculator-about/"]
[null,null,"World Bank - World Development Indicators","http://data.worldbank.org/data-catalog/world-development-indicators"]
[null,null,"UNEP Pledge Pipeline Tool","http://www.unep.org/climatechange/pledgepipeline/"]
[null,null,"Climate Action Tracker","http://climateactiontracker.org/"]
[null,"BAU Emissions Projections","Submitted National Communications","http://unfccc.int/national_reports/non-annex_i_natcom/submitted_natcom/items/653.php"]
[null,null,"UNFCCC: INDCs as communicated by Parties","http://www4.unfccc.int/submissions/indc/Submission%20Pages/submissions.aspx"]
[null,null,"Submitted Biennial Update Reports","http://unfccc.int/national_reports/non-annex_i_natcom/reporting_on_climate_change/items/8722.php"]
[null,null,"The Climate Pledge INDC Tool","http://infographics.pbl.nl/indc/"]
[null,null,"Climate Equity Reference Calculator","http://gdrights.org/calculator-about/"]
[null,null,"World Bank - World Development Indicators","http://data.worldbank.org/data-catalog/world-development-indicators"]
[null,null,"UNEP Pledge Pipeline Tool","http://www.unep.org/climatechange/pledgepipeline/"]
[null,null,"Climate Action Tracker","http://climateactiontracker.org/"]
[null,"INDC Targets","UNFCCC: INDCs as communicated by Parties","http://www4.unfccc.int/submissions/indc/Submission%20Pages/submissions.aspx"]
[]
[null,"Figure 1: Projected Transport Emissions: BAU, Low Carbon Scenario, and Derived Target"]
[null,"Derived from Table 1: Historic and Projected Emissions"]
[]
[null,"Figure 2: Transport Share of Economy-Wide Emissions"]
[null,"Derived from Table 1: Historic and Projected Emissions"]

{"sheet":"Honduras","index":40,"n_rows":67,"n_cols":6,"rows_kept":67,"cut":false,"hidden":false,"merged":[[21,5,21,11],[22,5,22,11],[1,1,1,3],[2,1,2,2],[3,1,3,2],[4,1,4,2],[5,1,5,2],[6,1,6,2],[33,1,33,2],[7,1,11,1],[12,1,13,1],[14,1,18,1],[19,1,20,1],[23,1,23,2],[24,1,24,2],[25,1,29,1],[30,1,30,2],[31,1,32,1],[34,1,34,2],[35,1,35,2],[38,5,38,11],[43,1,51,1],[52,1,59,1]]}
[]
[null,"Table 1: Historic and Projected Emissions"]
[null,"Country Name",null,"Honduras"]
[null,"Economy Wide CO2e Emissions Target (INDC)",null,"15% below 2030 BAU "]
[null,"Total Country CO2e Emissions Under Target (by Target Year) (MT)",null,24.564999999999998]
[null,"Target Year",null,2030]
[null,"Transport CO2 Emissions Target (based on share of total emissions @ 2010)",null,3.8472169312169311]
[null,"Total Country CO2e Emissions (BAU)",1990,10.469900000000001]
[null,null,2000,13.8682]
[null,null,2010,18.899999999999999]
[null,null,2020,23]
[null,null,2030,28.9]
[null,"Total Country CO2e Emissions (Low Carbon Scenario)",2020]
[null,null,2030]
[null,"Total Transport CO2e Emissions (BAU)",1990,1.03,{"$f":"D7","v":3.8472169312169311}]
[null,null,2000,2.09]
[null,null,2010,2.96]
[null,null,2020,3.7022910420522086]
[null,null,2030,5.6106919369730255,{"$f":"D7","v":3.8472169312169311}]
[null,"Total Transport CO2e Emissions (Low Carbon Scenario) ",2020,3.2705410062242128]
[null,null,2030,4.1393001033576207,{"$f":"D7","v":3.8472169312169311}]
[null,"Historical Growth in CO2e Emissions  (%) Transport Sector","1990-2010",1.8737864077669903,null,"Figure 1: Projected Transport Emissions: BAU, Low Carbon Scenario, and Transport Target"]
[null,"Growth Forecast CO2e Emissions (%)BAU-Transport Sector","2010-2030",0.8955040327611572]
[null,"Reduction with BAU (%) - Transport (2020)",null,-0.11661698956780919]
[null,"Reduction with BAU (%) - Transport (2030)",null,-0.26224783861671475]
[null,"Transport Share in Total Economy-wide Emissions",1990,9.8377252886847052E-2]
[null,null,2000,0.15070448940742129]
[null,null,2010,0.15661375661375662]
[null,null,"2030(BAU)",0.19414158951463756]
[null,null,"2030 (Low)",0.14322837727881041]
[null,"Gap Between INDC Target and Average Low Carbon Scenario (%)",null,7.5920640130968442E-2]
[null,"Cumulative Increase in Transport CO2 (2010-2030) MT (avg)","Baseline",83.372171962326689]
[null,null,"Low Carbon",71.557322568811728]
[null,"Cumulative Reduction in Transport (2010-2030) MT (avg)",null,11.814849393514962]
[null,"Cumulative Gap Between INDC Target and Average Low Carbon Scenario (MT)",null,-0.46778808206774158]
[null,"Cumulative Gap Between INDC Target and BAU (MT)",null,-12.282637475582703]
[]
[]
[null,null,null,null,null,"Figure 2: Transport Share of Economy-Wide Emissions"]
[]
[null,"TIER II FACTSHEET SOURCES"]
[]
[null,"Table 1: Historic and Projected Emissions"]
[null,"Historic Emissions","Submitted National Communications","http://unfccc.int/national_reports/non-annex_i_natcom/submitted_natcom/items/653.php"]
[null,null,"UNFCCC: INDCs as communicated by Parties","http://www4.unfccc.int/submissions/indc/Submission%20Pages/submissions.aspx"]
[null,null,"Submitted Biennial Update Reports","http://unfccc.int/national_reports/non-annex_i_natcom/reporting_on_climate_change/items/8722.php"]
[null,null,"The Climate Pledge INDC Tool","http://infographics.pbl.nl/indc/"]
[null,null,"CAIT Climate Data Explorer","http://cait.wri.org/"]
[null,null,"Climate Equity Reference Calculator","http://gdrights.org/calculator-about/"]
[null,null,"World Bank - World Development Indicators","http://data.worldbank.org/data-catalog/world-development-indicators"]
[null,null,"UNEP Pledge Pipeline Tool","http://www.unep.org/climatechange/pledgepipeline/"]
[null,null,"Climate Action Tracker","http://climateactiontracker.org/"]
[null,"BAU Emissions Projections","Submitted National Communications","http://unfccc.int/national_reports/non-annex_i_natcom/submitted_natcom/items/653.php"]
[null,null,"UNFCCC: INDCs as communicated by Parties","http://www4.unfccc.int/submissions/indc/Submission%20Pages/submissions.aspx"]
[null,null,"Submitted Biennial Update Reports","http://unfccc.int/national_reports/non-annex_i_natcom/reporting_on_climate_change/items/8722.php"]
[null,null,"The Climate Pledge INDC Tool","http://infographics.pbl.nl/indc/"]
[null,null,"Climate Equity Reference Calculator","http://gdrights.org/calculator-about/"]
[null,null,"World Bank - World Development Indicators","http://data.worldbank.org/data-catalog/world-development-indicators"]
[null,null,"UNEP Pledge Pipeline Tool","http://www.unep.org/climatechange/pledgepipeline/"]
[null,null,"Climate Action Tracker","http://climateactiontracker.org/"]
[null,"INDC Targets","UNFCCC: INDCs as communicated by Parties","http://www4.unfccc.int/submissions/indc/Submission%20Pages/submissions.aspx"]
[]
[null,"Figure 1: Projected Transport Emissions: BAU, Low Carbon Scenario, and Derived Target"]
[null,"Derived from Table 1: Historic and Projected Emissions"]
[]
[null,"Figure 2: Transport Share of Economy-Wide Emissions"]
[null,"Derived from Table 1: Historic and Projected Emissions"]

{"sheet":"Jordan","index":41,"n_rows":67,"n_cols":6,"rows_kept":67,"cut":false,"hidden":false,"merged":[[21,5,21,11],[22,5,22,11],[1,1,1,3],[2,1,2,2],[3,1,3,2],[4,1,4,2],[5,1,5,2],[6,1,6,2],[33,1,33,2],[7,1,11,1],[12,1,13,1],[14,1,18,1],[19,1,20,1],[23,1,23,2],[24,1,24,2],[25,1,29,1],[30,1,30,2],[31,1,32,1],[34,1,34,2],[35,1,35,2],[38,5,38,11],[43,1,51,1],[52,1,59,1]]}
[]
[null,"Table 1: Historic and Projected Emissions"]
[null,"Country Name",null,"Jordan"]
[null,"Economy Wide CO2e Emissions Target (INDC)",null,"reduce its greenhouse gas emissions by 14 % until 2030"]
[null,"Total Country CO2e Emissions Under Target (by Target Year) (MT)",null,43.86]
[null,"Target Year",null,2030]
[null,"Transport CO2 Emissions Target (based on share of total emissions @ 2010)",null,8.65684384467089]
[null,"Total Country CO2e Emissions (BAU)",1990,17.296099999999999]
[null,null,2000,19.407399999999999]
[null,null,2010,26.1432]
[null,null,2020,38]
[null,null,2030,51]
[null,"Total Country CO2e Emissions (Low Carbon Scenario)",2020]
[null,null,2030]
[null,"Total Transport CO2e Emissions (BAU)",1990,2.7,{"$f":"D7","v":8.65684384467089}]
[null,null,2000,3.55]
[null,null,2010,5.16]
[null,null,2020,8.1]
[null,null,2030,14.4,{"$f":"D7","v":8.65684384467089}]
[null,"Total Transport CO2e Emissions (Low Carbon Scenario) ",2020,7.19]
[null,null,2030,10.59,{"$f":"D7","v":8.65684384467089}]
[null,"Historical Growth in CO2e Emissions  (%) Transport Sector","1990-2010",0.91111111111111098,null,"Figure 1: Projected Transport Emissions: BAU, Low Carbon Scenario, and Transport Target"]
[null,"Growth Forecast CO2e Emissions (%)BAU-Transport Sector","2010-2030",1.7906976744186047]
[null,"Reduction with BAU (%) - Transport (2020)",null,-0.1123456790123456]
[null,"Reduction with BAU (%) - Transport (2030)",null,-0.26458333333333339]
[null,"Transport Share in Total Economy-wide Emissions",1990,0.1561045553621915]
[null,null,2000,0.18291991714500655]
[null,null,2010,0.19737446066281097]
[null,null,"2030(BAU)",0.28235294117647058]
[null,null,"2030 (Low)",0.20764705882352941]
[null,"Gap Between INDC Target and Average Low Carbon Scenario (%)",null,0.22330957910476235]
[null,"Cumulative Increase in Transport CO2 (2010-2030) MT (avg)","Baseline",184.51608007543726]
[null,null,"Low Carbon",156.8870030660992]
[null,"Cumulative Reduction in Transport (2010-2030) MT (avg)",null,27.629077009338062]
[null,"Cumulative Gap Between INDC Target and Average Low Carbon Scenario (MT)",null,-14.804758467114482]
[null,"Cumulative Gap Between INDC Target and BAU (MT)",null,-42.433835476452543]
[]
[]
[null,null,null,null,null,"Figure 2: Transport Share of Economy-Wide Emissions"]
[]
[null,"TIER II FACTSHEET SOURCES"]
[]
[null,"Table 1: Historic and Projected Emissions"]
[null,"Historic Emissions","Submitted National Communications","http://unfccc.int/national_reports/non-annex_i_natcom/submitted_natcom/items/653.php"]
[null,null,"UNFCCC: INDCs as communicated by Parties","http://www4.unfccc.int/submissions/indc/Submission%20Pages/submissions.aspx"]
[null,null,"Submitted Biennial Update Reports","http://unfccc.int/national_reports/non-annex_i_natcom/reporting_on_climate_change/items/8722.php"]
[null,null,"The Climate Pledge INDC Tool","http://infographics.pbl.nl/indc/"]
[null,null,"CAIT Climate Data Explorer","http://cait.wri.org/"]
[null,null,"Climate Equity Reference Calculator","http://gdrights.org/calculator-about/"]
[null,null,"World Bank - World Development Indicators","http://data.worldbank.org/data-catalog/world-development-indicators"]
[null,null,"UNEP Pledge Pipeline Tool","http://www.unep.org/climatechange/pledgepipeline/"]
[null,null,"Climate Action Tracker","http://climateactiontracker.org/"]
[null,"BAU Emissions Projections","Submitted National Communications","http://unfccc.int/national_reports/non-annex_i_natcom/submitted_natcom/items/653.php"]
[null,null,"UNFCCC: INDCs as communicated by Parties","http://www4.unfccc.int/submissions/indc/Submission%20Pages/submissions.aspx"]
[null,null,"Submitted Biennial Update Reports","http://unfccc.int/national_reports/non-annex_i_natcom/reporting_on_climate_change/items/8722.php"]
[null,null,"The Climate Pledge INDC Tool","http://infographics.pbl.nl/indc/"]
[null,null,"Climate Equity Reference Calculator","http://gdrights.org/calculator-about/"]
[null,null,"World Bank - World Development Indicators","http://data.worldbank.org/data-catalog/world-development-indicators"]
[null,null,"UNEP Pledge Pipeline Tool","http://www.unep.org/climatechange/pledgepipeline/"]
[null,null,"Climate Action Tracker","http://climateactiontracker.org/"]
[null,"INDC Targets","UNFCCC: INDCs as communicated by Parties","http://www4.unfccc.int/submissions/indc/Submission%20Pages/submissions.aspx"]
[]
[null,"Figure 1: Projected Transport Emissions: BAU, Low Carbon Scenario, and Derived Target"]
[null,"Derived from Table 1: Historic and Projected Emissions"]
[]
[null,"Figure 2: Transport Share of Economy-Wide Emissions"]
[null,"Derived from Table 1: Historic and Projected Emissions"]

{"sheet":"Kenya","index":42,"n_rows":67,"n_cols":6,"rows_kept":67,"cut":false,"hidden":false,"merged":[[21,5,21,11],[22,5,22,11],[1,1,1,3],[2,1,2,2],[3,1,3,2],[4,1,4,2],[5,1,5,2],[6,1,6,2],[33,1,33,2],[7,1,11,1],[12,1,13,1],[14,1,18,1],[19,1,20,1],[23,1,23,2],[24,1,24,2],[25,1,29,1],[30,1,30,2],[31,1,32,1],[34,1,34,2],[35,1,35,2],[38,5,38,11],[43,1,51,1],[52,1,59,1]]}
[]
[null,"Table 1: Historic and Projected Emissions"]
[null,"Country Name",null,"Kenya"]
[null,"Economy Wide CO2e Emissions Target (INDC)",null," 30% by 2030 with BAU"]
[null,"Total Country CO2e Emissions Under Target (by Target Year) (MT)",null,100.1]
[null,"Target Year",null,2030]
[null,"Transport CO2 Emissions Target (based on share of total emissions @ 2010)",null,6.8561643835616435]
[null,"Total Country CO2e Emissions (BAU)",1990,38.9]
[null,null,2000,46.2]
[null,null,2010,73]
[null,null,2020,108]
[null,null,2030,143]
[null,"Total Country CO2e Emissions (Low Carbon Scenario)",2020]
[null,null,2030]
[null,"Total Transport CO2e Emissions (BAU)",1990,3,{"$f":"D7","v":6.8561643835616435}]
[null,null,2000,2.7]
[null,null,2010,5]
[null,null,2020,10]
[null,null,2030,19,{"$f":"D7","v":6.8561643835616435}]
[null,"Total Transport CO2e Emissions (Low Carbon Scenario) ",2020,7]
[null,null,2030,12,{"$f":"D7","v":6.8561643835616435}]
[null,"Historical Growth in CO2e Emissions  (%) Transport Sector","1990-2010",0.66666666666666674,null,"Figure 1: Projected Transport Emissions: BAU, Low Carbon Scenario, and Transport Target"]
[null,"Growth Forecast CO2e Emissions (%)BAU-Transport Sector","2010-2030",2.8]
[null,"Reduction with BAU (%) - Transport (2020)",null,-0.30000000000000004]
[null,"Reduction with BAU (%) - Transport (2030)",null,-0.36842105263157898]
[null,"Transport Share in Total Economy-wide Emissions",1990,7.7120822622107968E-2]
[null,null,2000,5.844155844155844E-2]
[null,null,2010,6.8493150684931503E-2]
[null,null,"2030(BAU)",0.13286713286713286]
[null,null,"2030 (Low)",8.3916083916083919E-2]
[null,"Gap Between INDC Target and Average Low Carbon Scenario (%)",null,0.75024975024975027]
[null,"Cumulative Increase in Transport CO2 (2010-2030) MT (avg)","Baseline",224.43059512083363]
[null,null,"Low Carbon",160.73331382732769]
[null,"Cumulative Reduction in Transport (2010-2030) MT (avg)",null,63.697281293505938]
[null,"Cumulative Gap Between INDC Target and Average Low Carbon Scenario (MT)",null,-37.216210980868098]
[null,"Cumulative Gap Between INDC Target and BAU (MT)",null,-100.91349227437404]
[]
[]
[null,null,null,null,null,"Figure 2: Transport Share of Economy-Wide Emissions"]
[]
[null,"TIER II FACTSHEET SOURCES"]
[]
[null,"Table 1: Historic and Projected Emissions"]
[null,"Historic Emissions","Submitted National Communications","http://unfccc.int/national_reports/non-annex_i_natcom/submitted_natcom/items/653.php"]
[null,null,"UNFCCC: INDCs as communicated by Parties","http://www4.unfccc.int/submissions/indc/Submission%20Pages/submissions.aspx"]
[null,null,"Submitted Biennial Update Reports","http://unfccc.int/national_reports/non-annex_i_natcom/reporting_on_climate_change/items/8722.php"]
[null,null,"The Climate Pledge INDC Tool","http://infographics.pbl.nl/indc/"]
[null,null,"CAIT Climate Data Explorer","http://cait.wri.org/"]
[null,null,"Climate Equity Reference Calculator","http://gdrights.org/calculator-about/"]
[null,null,"World Bank - World Development Indicators","http://data.worldbank.org/data-catalog/world-development-indicators"]
[null,null,"UNEP Pledge Pipeline Tool","http://www.unep.org/climatechange/pledgepipeline/"]
[null,null,"Climate Action Tracker","http://climateactiontracker.org/"]
[null,"BAU Emissions Projections","Submitted National Communications","http://unfccc.int/national_reports/non-annex_i_natcom/submitted_natcom/items/653.php"]
[null,null,"UNFCCC: INDCs as communicated by Parties","http://www4.unfccc.int/submissions/indc/Submission%20Pages/submissions.aspx"]
[null,null,"Submitted Biennial Update Reports","http://unfccc.int/national_reports/non-annex_i_natcom/reporting_on_climate_change/items/8722.php"]
[null,null,"The Climate Pledge INDC Tool","http://infographics.pbl.nl/indc/"]
[null,null,"Climate Equity Reference Calculator","http://gdrights.org/calculator-about/"]
[null,null,"World Bank - World Development Indicators","http://data.worldbank.org/data-catalog/world-development-indicators"]
[null,null,"UNEP Pledge Pipeline Tool","http://www.unep.org/climatechange/pledgepipeline/"]
[null,null,"Climate Action Tracker","http://climateactiontracker.org/"]
[null,"INDC Targets","UNFCCC: INDCs as communicated by Parties","http://www4.unfccc.int/submissions/indc/Submission%20Pages/submissions.aspx"]
[]
[null,"Figure 1: Projected Transport Emissions: BAU, Low Carbon Scenario, and Derived Target"]
[null,"Derived from Table 1: Historic and Projected Emissions"]
[]
[null,"Figure 2: Transport Share of Economy-Wide Emissions"]
[null,"Derived from Table 1: Historic and Projected Emissions"]

{"sheet":"Kiribati","index":43,"n_rows":67,"n_cols":6,"rows_kept":67,"cut":false,"hidden":false,"merged":[[34,1,34,2],[35,1,35,2],[38,5,38,11],[43,1,51,1],[52,1,59,1],[33,1,33,2],[7,1,11,1],[12,1,13,1],[14,1,18,1],[19,1,20,1],[23,1,23,2],[24,1,24,2],[25,1,29,1],[30,1,30,2],[31,1,32,1],[21,5,21,11],[22,5,22,11],[1,1,1,3],[2,1,2,2],[3,1,3,2],[4,1,4,2],[5,1,5,2],[6,1,6,2]]}
[]
[null,"Table 1: Historic and Projected Emissions"]
[null,"Country Name",null,"Kiribati"]
[null,"Economy Wide CO2e Emissions Target (INDC)",null,"49% reduction by 2030 (from bau)"]
[null,"Total Country CO2e Emissions Under Target (by Target Year) (MT)",null,3.0952527979999984E-2]
[null,"Target Year",null,2030]
[null,"Transport CO2 Emissions Target (based on share of total emissions @ 2010)",null,3.272051973430827E-3]
[null,"Total Country CO2e Emissions (BAU)",1990,3.5700000000000003E-2]
[null,null,2000,4.9599999999999998E-2]
[null,null,2010,8.3199999999999996E-2]
[null,null,2020,4.6035242000000004E-2]
[null,null,2030,6.0691231333333304E-2]
[null,"Total Country CO2e Emissions (Low Carbon Scenario)",2020]
[null,null,2030]
[null,"Total Transport CO2e Emissions (BAU)",1990,null,{"$f":"D7","v":3.272051973430827E-3}]
[null,null,2000]
[null,null,2010,8.7952339261384276E-3]
[null,null,2020,1.4567761696791356E-2]
[null,null,2030,2.0307486821694497E-2,{"$f":"D7","v":3.272051973430827E-3}]
[null,"Total Transport CO2e Emissions (Low Carbon Scenario) ",2020,1.2868913182970308E-2]
[null,null,2030,1.4981892294967696E-2,{"$f":"D7","v":3.272051973430827E-3}]
[null,"Historical Growth in CO2e Emissions  (%) Transport Sector","1990-2010",null,null,"Figure 1: Projected Transport Emissions: BAU, Low Carbon Scenario, and Transport Target"]
[null,"Growth Forecast CO2e Emissions (%)BAU-Transport Sector","2010-2030",1.3089194661830397]
[null,"Reduction with BAU (%) - Transport (2020)",null,-0.11661698956780919]
[null,"Reduction with BAU (%) - Transport (2030)",null,-0.26224783861671475]
[null,"Transport Share in Total Economy-wide Emissions",1990,0]
[null,null,2000,0]
[null,null,2010,0.10571194622762534]
[null,null,"2030(BAU)",0.33460330883979056]
[null,null,"2030 (Low)",0.24685431430255439]
[null,"Gap Between INDC Target and Average Low Carbon Scenario (%)",null,3.5787452083955786]
[null,"Cumulative Increase in Transport CO2 (2010-2030) MT (avg)","Baseline",0.30177969708346181]
[null,null,"Low Carbon",0.25792239123399685]
[null,"Cumulative Reduction in Transport (2010-2030) MT (avg)",null,4.3857305849464956E-2]
[null,"Cumulative Gap Between INDC Target and Average Low Carbon Scenario (MT)",null,-0.14015032068521538]
[null,"Cumulative Gap Between INDC Target and BAU (MT)",null,-0.18400762653468034]
[]
[]
[null,null,null,null,null,"Figure 2: Transport Share of Economy-Wide Emissions"]
[]
[null,"TIER II FACTSHEET SOURCES"]
[]
[null,"Table 1: Historic and Projected Emissions"]
[null,"Historic Emissions","Submitted National Communications","http://unfccc.int/national_reports/non-annex_i_natcom/submitted_natcom/items/653.php"]
[null,null,"UNFCCC: INDCs as communicated by Parties","http://www4.unfccc.int/submissions/indc/Submission%20Pages/submissions.aspx"]
[null,null,"Submitted Biennial Update Reports","http://unfccc.int/national_reports/non-annex_i_natcom/reporting_on_climate_change/items/8722.php"]
[null,null,"The Climate Pledge INDC Tool","http://infographics.pbl.nl/indc/"]
[null,null,"CAIT Climate Data Explorer","http://cait.wri.org/"]
[null,null,"Climate Equity Reference Calculator","http://gdrights.org/calculator-about/"]
[null,null,"World Bank - World Development Indicators","http://data.worldbank.org/data-catalog/world-development-indicators"]
[null,null,"UNEP Pledge Pipeline Tool","http://www.unep.org/climatechange/pledgepipeline/"]
[null,null,"Climate Action Tracker","http://climateactiontracker.org/"]
[null,"BAU Emissions Projections","Submitted National Communications","http://unfccc.int/national_reports/non-annex_i_natcom/submitted_natcom/items/653.php"]
[null,null,"UNFCCC: INDCs as communicated by Parties","http://www4.unfccc.int/submissions/indc/Submission%20Pages/submissions.aspx"]
[null,null,"Submitted Biennial Update Reports","http://unfccc.int/national_reports/non-annex_i_natcom/reporting_on_climate_change/items/8722.php"]
[null,null,"The Climate Pledge INDC Tool","http://infographics.pbl.nl/indc/"]
[null,null,"Climate Equity Reference Calculator","http://gdrights.org/calculator-about/"]
[null,null,"World Bank - World Development Indicators","http://data.worldbank.org/data-catalog/world-development-indicators"]
[null,null,"UNEP Pledge Pipeline Tool","http://www.unep.org/climatechange/pledgepipeline/"]
[null,null,"Climate Action Tracker","http://climateactiontracker.org/"]
[null,"INDC Targets","UNFCCC: INDCs as communicated by Parties","http://www4.unfccc.int/submissions/indc/Submission%20Pages/submissions.aspx"]
[]
[null,"Figure 1: Projected Transport Emissions: BAU, Low Carbon Scenario, and Derived Target"]
[null,"Derived from Table 1: Historic and Projected Emissions"]
[]
[null,"Figure 2: Transport Share of Economy-Wide Emissions"]
[null,"Derived from Table 1: Historic and Projected Emissions"]

{"sheet":"Kyrgyzstan","index":44,"n_rows":67,"n_cols":6,"rows_kept":67,"cut":false,"hidden":false,"merged":[[21,5,21,11],[22,5,22,11],[1,1,1,3],[2,1,2,2],[3,1,3,2],[4,1,4,2],[5,1,5,2],[6,1,6,2],[33,1,33,2],[7,1,11,1],[12,1,13,1],[14,1,18,1],[19,1,20,1],[23,1,23,2],[24,1,24,2],[25,1,29,1],[30,1,30,2],[31,1,32,1],[34,1,34,2],[35,1,35,2],[38,5,38,11],[43,1,51,1],[52,1,59,1]]}
[]
[null,"Table 1: Historic and Projected Emissions"]
[null,"Country Name",null,"Kyrgyzstan"]
[null,"Economy Wide CO2e Emissions Target (INDC)",null,"upto 30.89% below BAU in 2030."]
[null,"Total Country CO2e Emissions Under Target (by Target Year) (MT)",null,11.748699999999999]
[null,"Target Year",null,2030]
[null,"Transport CO2 Emissions Target (based on share of total emissions @ 2010)",null,2.1689907692307688]
[null,"Total Country CO2e Emissions (BAU)",1990,30]
[null,null,2000,11]
[null,null,2010,13]
[null,null,2020,15]
[null,null,2030,17]
[null,"Total Country CO2e Emissions (Low Carbon Scenario)",2020]
[null,null,2030]
[null,"Total Transport CO2e Emissions (BAU)",1990,5.96,{"$f":"D7","v":2.1689907692307688}]
[null,null,2000,0.84]
[null,null,2010,2.4]
[null,null,2020,3.5338108209327714]
[null,null,2030,4.82942688537557,{"$f":"D7","v":2.1689907692307688}]
[null,"Total Transport CO2e Emissions (Low Carbon Scenario) ",2020,3.1013933547695602]
[null,null,2030,3.2369021519357442,{"$f":"D7","v":2.1689907692307688}]
[null,"Historical Growth in CO2e Emissions  (%) Transport Sector","1990-2010",-0.59731543624161076,null,"Figure 1: Projected Transport Emissions: BAU, Low Carbon Scenario, and Transport Target"]
[null,"Growth Forecast CO2e Emissions (%)BAU-Transport Sector","2010-2030",1.012261202239821]
[null,"Reduction with BAU (%) - Transport (2020)",null,-0.12236576547950917]
[null,"Reduction with BAU (%) - Transport (2030)",null,-0.32975439347933722]
[null,"Transport Share in Total Economy-wide Emissions",1990,0.19866666666666666]
[null,null,2000,7.6363636363636356E-2]
[null,null,2010,0.1846153846153846]
[null,null,"2030(BAU)",0.28408393443385704]
[null,null,"2030 (Low)",0.1904060089373967]
[null,"Gap Between INDC Target and Average Low Carbon Scenario (%)",null,0.49235404680108874]
[null,"Cumulative Increase in Transport CO2 (2010-2030) MT (avg)","Baseline",74.405633665603375]
[null,null,"Low Carbon",61.863922745360895]
[null,"Cumulative Reduction in Transport (2010-2030) MT (avg)",null,12.54171092024248]
[null,"Cumulative Gap Between INDC Target and Average Low Carbon Scenario (MT)",null,-13.928381762776112]
[null,"Cumulative Gap Between INDC Target and BAU (MT)",null,-26.470092683018592]
[]
[]
[null,null,null,null,null,"Figure 2: Transport Share of Economy-Wide Emissions"]
[]
[null,"TIER II FACTSHEET SOURCES"]
[]
[null,"Table 1: Historic and Projected Emissions"]
[null,"Historic Emissions","Submitted National Communications","http://unfccc.int/national_reports/non-annex_i_natcom/submitted_natcom/items/653.php"]
[null,null,"UNFCCC: INDCs as communicated by Parties","http://www4.unfccc.int/submissions/indc/Submission%20Pages/submissions.aspx"]
[null,null,"Submitted Biennial Update Reports","http://unfccc.int/national_reports/non-annex_i_natcom/reporting_on_climate_change/items/8722.php"]
[null,null,"The Climate Pledge INDC Tool","http://infographics.pbl.nl/indc/"]
[null,null,"CAIT Climate Data Explorer","http://cait.wri.org/"]
[null,null,"Climate Equity Reference Calculator","http://gdrights.org/calculator-about/"]
[null,null,"World Bank - World Development Indicators","http://data.worldbank.org/data-catalog/world-development-indicators"]
[null,null,"UNEP Pledge Pipeline Tool","http://www.unep.org/climatechange/pledgepipeline/"]
[null,null,"Climate Action Tracker","http://climateactiontracker.org/"]
[null,"BAU Emissions Projections","Submitted National Communications","http://unfccc.int/national_reports/non-annex_i_natcom/submitted_natcom/items/653.php"]
[null,null,"UNFCCC: INDCs as communicated by Parties","http://www4.unfccc.int/submissions/indc/Submission%20Pages/submissions.aspx"]
[null,null,"Submitted Biennial Update Reports","http://unfccc.int/national_reports/non-annex_i_natcom/reporting_on_climate_change/items/8722.php"]
[null,null,"The Climate Pledge INDC Tool","http://infographics.pbl.nl/indc/"]
[null,null,"Climate Equity Reference Calculator","http://gdrights.org/calculator-about/"]
[null,null,"World Bank - World Development Indicators","http://data.worldbank.org/data-catalog/world-development-indicators"]
[null,null,"UNEP Pledge Pipeline Tool","http://www.unep.org/climatechange/pledgepipeline/"]
[null,null,"Climate Action Tracker","http://climateactiontracker.org/"]
[null,"INDC Targets","UNFCCC: INDCs as communicated by Parties","http://www4.unfccc.int/submissions/indc/Submission%20Pages/submissions.aspx"]
[]
[null,"Figure 1: Projected Transport Emissions: BAU, Low Carbon Scenario, and Derived Target"]
[null,"Derived from Table 1: Historic and Projected Emissions"]
[]
[null,"Figure 2: Transport Share of Economy-Wide Emissions"]
[null,"Derived from Table 1: Historic and Projected Emissions"]

{"sheet":"Lebanon","index":45,"n_rows":67,"n_cols":6,"rows_kept":67,"cut":false,"hidden":false,"merged":[[34,1,34,2],[35,1,35,2],[38,5,38,11],[43,1,51,1],[52,1,59,1],[33,1,33,2],[7,1,11,1],[12,1,13,1],[14,1,18,1],[19,1,20,1],[23,1,23,2],[24,1,24,2],[25,1,29,1],[30,1,30,2],[31,1,32,1],[21,5,21,11],[22,5,22,11],[1,1,1,3],[2,1,2,2],[3,1,3,2],[4,1,4,2],[5,1,5,2],[6,1,6,2]]}
[]
[null,"Table 1: Historic and Projected Emissions"]
[null,"Country Name",null,"Lebanon"]
[null,"Economy Wide CO2e Emissions Target (INDC)",null," reduction of 30% compared to the BAU scenario in 2030"]
[null,"Total Country CO2e Emissions Under Target (by Target Year) (MT)",null,30.8]
[null,"Target Year",null,2030]
[null,"Transport CO2 Emissions Target (based on share of total emissions @ 2010)",null,7.333333333333333]
[null,"Total Country CO2e Emissions (BAU)",1990,15.7]
[null,null,2000,18.399999999999999]
[null,null,2010,21]
[null,null,2020,32.5]
[null,null,2030,44]
[null,"Total Country CO2e Emissions (Low Carbon Scenario)",2020]
[null,null,2030]
[null,"Total Transport CO2e Emissions (BAU)",1990,1.84,{"$f":"D7","v":7.333333333333333}]
[null,null,2000,3.96]
[null,null,2010,5]
[null,null,2020,5.7974434845608886]
[null,null,2030,8.4201890858649691,{"$f":"D7","v":7.333333333333333}]
[null,"Total Transport CO2e Emissions (Low Carbon Scenario) ",2020,5.1213630782018882]
[null,null,2030,6.2120126973528293,{"$f":"D7","v":7.333333333333333}]
[null,"Historical Growth in CO2e Emissions  (%) Transport Sector","1990-2010",1.7173913043478262,null,"Figure 1: Projected Transport Emissions: BAU, Low Carbon Scenario, and Transport Target"]
[null,"Growth Forecast CO2e Emissions (%)BAU-Transport Sector","2010-2030",0.68403781717299372]
[null,"Reduction with BAU (%) - Transport (2020)",null,-0.11661698956780919]
[null,"Reduction with BAU (%) - Transport (2030)",null,-0.26224783861671475]
[null,"Transport Share in Total Economy-wide Emissions",1990,0.11719745222929938]
[null,null,2000,0.21521739130434783]
[null,null,2010,0.23809523809523808]
[null,null,"2030(BAU)",0.19136793376965838]
[null,null,"2030 (Low)",0.14118210675801884]
[null,"Gap Between INDC Target and Average Low Carbon Scenario (%)",null,-0.15290735945188683]
[null,"Cumulative Increase in Transport CO2 (2010-2030) MT (avg)","Baseline",130.88249365237525]
[null,null,"Low Carbon",112.703691723378]
[null,"Cumulative Reduction in Transport (2010-2030) MT (avg)",null,18.178801928997245]
[null,"Cumulative Gap Between INDC Target and Average Low Carbon Scenario (MT)",null,15.314246002685763]
[null,"Cumulative Gap Between INDC Target and BAU (MT)",null,-2.8645559263114819]
[]
[]
[null,null,null,null,null,"Figure 2: Transport Share of Economy-Wide Emissions"]
[]
[null,"TIER II FACTSHEET SOURCES"]
[]
[null,"Table 1: Historic and Projected Emissions"]
[null,"Historic Emissions","Submitted National Communications","http://unfccc.int/national_reports/non-annex_i_natcom/submitted_natcom/items/653.php"]
[null,null,"UNFCCC: INDCs as communicated by Parties","http://www4.unfccc.int/submissions/indc/Submission%20Pages/submissions.aspx"]
[null,null,"Submitted Biennial Update Reports","http://unfccc.int/national_reports/non-annex_i_natcom/reporting_on_climate_change/items/8722.php"]
[null,null,"The Climate Pledge INDC Tool","http://infographics.pbl.nl/indc/"]
[null,null,"CAIT Climate Data Explorer","http://cait.wri.org/"]
[null,null,"Climate Equity Reference Calculator","http://gdrights.org/calculator-about/"]
[null,null,"World Bank - World Development Indicators","http://data.worldbank.org/data-catalog/world-development-indicators"]
[null,null,"UNEP Pledge Pipeline Tool","http://www.unep.org/climatechange/pledgepipeline/"]
[null,null,"Climate Action Tracker","http://climateactiontracker.org/"]
[null,"BAU Emissions Projections","Submitted National Communications","http://unfccc.int/national_reports/non-annex_i_natcom/submitted_natcom/items/653.php"]
[null,null,"UNFCCC: INDCs as communicated by Parties","http://www4.unfccc.int/submissions/indc/Submission%20Pages/submissions.aspx"]
[null,null,"Submitted Biennial Update Reports","http://unfccc.int/national_reports/non-annex_i_natcom/reporting_on_climate_change/items/8722.php"]
[null,null,"The Climate Pledge INDC Tool","http://infographics.pbl.nl/indc/"]
[null,null,"Climate Equity Reference Calculator","http://gdrights.org/calculator-about/"]
[null,null,"World Bank - World Development Indicators","http://data.worldbank.org/data-catalog/world-development-indicators"]
[null,null,"UNEP Pledge Pipeline Tool","http://www.unep.org/climatechange/pledgepipeline/"]
[null,null,"Climate Action Tracker","http://climateactiontracker.org/"]
[null,"INDC Targets","UNFCCC: INDCs as communicated by Parties","http://www4.unfccc.int/submissions/indc/Submission%20Pages/submissions.aspx"]
[]
[null,"Figure 1: Projected Transport Emissions: BAU, Low Carbon Scenario, and Derived Target"]
[null,"Derived from Table 1: Historic and Projected Emissions"]
[]
[null,"Figure 2: Transport Share of Economy-Wide Emissions"]
[null,"Derived from Table 1: Historic and Projected Emissions"]

{"sheet":"Lesotho","index":46,"n_rows":67,"n_cols":6,"rows_kept":67,"cut":false,"hidden":false,"merged":[[34,1,34,2],[35,1,35,2],[38,5,38,11],[43,1,51,1],[52,1,59,1],[33,1,33,2],[7,1,11,1],[12,1,13,1],[14,1,18,1],[19,1,20,1],[23,1,23,2],[24,1,24,2],[25,1,29,1],[30,1,30,2],[31,1,32,1],[21,5,21,11],[22,5,22,11],[1,1,1,3],[2,1,2,2],[3,1,3,2],[4,1,4,2],[5,1,5,2],[6,1,6,2]]}
[]
[null,"Table 1: Historic and Projected Emissions"]
[null,"Country Name",null,"Lesotho"]
[null,"Economy Wide CO2e Emissions Target (INDC)",null,"35% reduction from BAU by 2030"]
[null,"Total Country CO2e Emissions Under Target (by Target Year) (MT)",null,1.6055000000000001]
[null,"Target Year",null,2030]
[null,"Transport CO2 Emissions Target (based on share of total emissions @ 2010)",null,0.18605373888933427]
[null,"Total Country CO2e Emissions (BAU)",1990,1.8]
[null,null,2000,2.1707000000000001]
[null,null,2010,2.4506999999999999]
[null,null,2020,2.14]
[null,null,2030,2.4700000000000002]
[null,"Total Country CO2e Emissions (Low Carbon Scenario)",2020]
[null,null,2030]
[null,"Total Transport CO2e Emissions (BAU)",1990,null,{"$f":"D7","v":0.18605373888933427}]
[null,null,2000]
[null,null,2010,0.28399993640366955]
[null,null,2020,0.58788812039448635]
[null,null,2030,1.1310545530071134,{"$f":"D7","v":0.18605373888933427}]
[null,"Total Transport CO2e Emissions (Low Carbon Scenario) ",2020,0.51933037759140355]
[null,null,2030,0.83443794112340353,{"$f":"D7","v":0.18605373888933427}]
[null,"Historical Growth in CO2e Emissions  (%) Transport Sector","1990-2010",null,null,"Figure 1: Projected Transport Emissions: BAU, Low Carbon Scenario, and Transport Target"]
[null,"Growth Forecast CO2e Emissions (%)BAU-Transport Sector","2010-2030",2.9825873460741352]
[null,"Reduction with BAU (%) - Transport (2020)",null,-0.11661698956780919]
[null,"Reduction with BAU (%) - Transport (2030)",null,-0.26224783861671475]
[null,"Transport Share in Total Economy-wide Emissions",1990,0]
[null,null,2000,0]
[null,null,2010,0.11588523132316055]
[null,null,"2030(BAU)",0.45791682307980297]
[null,null,"2030 (Low)",0.3378291259608921]
[null,"Gap Between INDC Target and Average Low Carbon Scenario (%)",null,3.4849297095810128]
[null,"Cumulative Increase in Transport CO2 (2010-2030) MT (avg)","Baseline",13.18974190364095]
[null,null,"Low Carbon",11.105428239501379]
[null,"Cumulative Reduction in Transport (2010-2030) MT (avg)",null,2.0843136641395716]
[null,"Cumulative Gap Between INDC Target and Average Low Carbon Scenario (MT)",null,-6.2385291079214298]
[null,"Cumulative Gap Between INDC Target and BAU (MT)",null,-8.3228427720610014]
[]
[]
[null,null,null,null,null,"Figure 2: Transport Share of Economy-Wide Emissions"]
[]
[null,"TIER II FACTSHEET SOURCES"]
[]
[null,"Table 1: Historic and Projected Emissions"]
[null,"Historic Emissions","Submitted National Communications","http://unfccc.int/national_reports/non-annex_i_natcom/submitted_natcom/items/653.php"]
[null,null,"UNFCCC: INDCs as communicated by Parties","http://www4.unfccc.int/submissions/indc/Submission%20Pages/submissions.aspx"]
[null,null,"Submitted Biennial Update Reports","http://unfccc.int/national_reports/non-annex_i_natcom/reporting_on_climate_change/items/8722.php"]
[null,null,"The Climate Pledge INDC Tool","http://infographics.pbl.nl/indc/"]
[null,null,"CAIT Climate Data Explorer","http://cait.wri.org/"]
[null,null,"Climate Equity Reference Calculator","http://gdrights.org/calculator-about/"]
[null,null,"World Bank - World Development Indicators","http://data.worldbank.org/data-catalog/world-development-indicators"]
[null,null,"UNEP Pledge Pipeline Tool","http://www.unep.org/climatechange/pledgepipeline/"]
[null,null,"Climate Action Tracker","http://climateactiontracker.org/"]
[null,"BAU Emissions Projections","Submitted National Communications","http://unfccc.int/national_reports/non-annex_i_natcom/submitted_natcom/items/653.php"]
[null,null,"UNFCCC: INDCs as communicated by Parties","http://www4.unfccc.int/submissions/indc/Submission%20Pages/submissions.aspx"]
[null,null,"Submitted Biennial Update Reports","http://unfccc.int/national_reports/non-annex_i_natcom/reporting_on_climate_change/items/8722.php"]
[null,null,"The Climate Pledge INDC Tool","http://infographics.pbl.nl/indc/"]
[null,null,"Climate Equity Reference Calculator","http://gdrights.org/calculator-about/"]
[null,null,"World Bank - World Development Indicators","http://data.worldbank.org/data-catalog/world-development-indicators"]
[null,null,"UNEP Pledge Pipeline Tool","http://www.unep.org/climatechange/pledgepipeline/"]
[null,null,"Climate Action Tracker","http://climateactiontracker.org/"]
[null,"INDC Targets","UNFCCC: INDCs as communicated by Parties","http://www4.unfccc.int/submissions/indc/Submission%20Pages/submissions.aspx"]
[]
[null,"Figure 1: Projected Transport Emissions: BAU, Low Carbon Scenario, and Derived Target"]
[null,"Derived from Table 1: Historic and Projected Emissions"]
[]
[null,"Figure 2: Transport Share of Economy-Wide Emissions"]
[null,"Derived from Table 1: Historic and Projected Emissions"]

{"sheet":"Liberia","index":47,"n_rows":67,"n_cols":6,"rows_kept":67,"cut":false,"hidden":false,"merged":[[34,1,34,2],[35,1,35,2],[38,5,38,11],[43,1,51,1],[52,1,59,1],[33,1,33,2],[7,1,11,1],[12,1,13,1],[14,1,18,1],[19,1,20,1],[23,1,23,2],[24,1,24,2],[25,1,29,1],[30,1,30,2],[31,1,32,1],[21,5,21,11],[22,5,22,11],[1,1,1,3],[2,1,2,2],[3,1,3,2],[4,1,4,2],[5,1,5,2],[6,1,6,2]]}
[]
[null,"Table 1: Historic and Projected Emissions"]
[null,"Country Name",null,"Liberia"]
[null,"Economy Wide CO2e Emissions Target (INDC)",null,"Reduce GHG by 10% below BAU by 2030"]
[null,"Total Country CO2e Emissions Under Target (by Target Year) (MT)",null,4.2030000000000003]
[null,"Target Year",null,2030]
[null,"Transport CO2 Emissions Target (based on share of total emissions @ 2010)",null,0.43949690554376963]
[null,"Total Country CO2e Emissions (BAU)",1990,1.1970000000000001]
[null,null,2000,1.1879]
[null,null,2010,1.9137999999999999]
[null,null,2020,3.4]
[null,null,2030,4.67]
[null,"Total Country CO2e Emissions (Low Carbon Scenario)",2020]
[null,null,2030]
[null,"Total Transport CO2e Emissions (BAU)",1990,null,{"$f":"D7","v":0.43949690554376963}]
[null,null,2000]
[null,null,2010,0.20012114628352753]
[null,null,2020,0.42890138815813583]
[null,null,2030,1.0475184221311582,{"$f":"D7","v":0.43949690554376963}]
[null,"Total Transport CO2e Emissions (Low Carbon Scenario) ",2020,0.3788841994496796]
[null,null,2030,0.77280898001607057,{"$f":"D7","v":0.43949690554376963}]
[null,"Historical Growth in CO2e Emissions  (%) Transport Sector","1990-2010",null,null,"Figure 1: Projected Transport Emissions: BAU, Low Carbon Scenario, and Transport Target"]
[null,"Growth Forecast CO2e Emissions (%)BAU-Transport Sector","2010-2030",4.2344214571260528]
[null,"Reduction with BAU (%) - Transport (2020)",null,-0.11661698956780919]
[null,"Reduction with BAU (%) - Transport (2030)",null,-0.26224783861671475]
[null,"Transport Share in Total Economy-wide Emissions",1990,0]
[null,null,2000,0]
[null,null,2010,0.10456742934660233]
[null,null,"2030(BAU)",0.22430801330431654]
[null,null,"2030 (Low)",0.16548372163085023]
[null,"Gap Between INDC Target and Average Low Carbon Scenario (%)",null,0.75839458769319212]
[null,"Cumulative Increase in Transport CO2 (2010-2030) MT (avg)","Baseline",10.558816419213906]
[null,null,"Low Carbon",8.8167655898431594]
[null,"Cumulative Reduction in Transport (2010-2030) MT (avg)",null,1.7420508293707471]
[null,"Cumulative Gap Between INDC Target and Average Low Carbon Scenario (MT)",null,-2.4106654378557053]
[null,"Cumulative Gap Between INDC Target and BAU (MT)",null,-4.1527162672264524]
[]
[]
[null,null,null,null,null,"Figure 2: Transport Share of Economy-Wide Emissions"]
[]
[null,"TIER II FACTSHEET SOURCES"]
[]
[null,"Table 1: Historic and Projected Emissions"]
[null,"Historic Emissions","Submitted National Communications","http://unfccc.int/national_reports/non-annex_i_natcom/submitted_natcom/items/653.php"]
[null,null,"UNFCCC: INDCs as communicated by Parties","http://www4.unfccc.int/submissions/indc/Submission%20Pages/submissions.aspx"]
[null,null,"Submitted Biennial Update Reports","http://unfccc.int/national_reports/non-annex_i_natcom/reporting_on_climate_change/items/8722.php"]
[null,null,"The Climate Pledge INDC Tool","http://infographics.pbl.nl/indc/"]
[null,null,"CAIT Climate Data Explorer","http://cait.wri.org/"]
[null,null,"Climate Equity Reference Calculator","http://gdrights.org/calculator-about/"]
[null,null,"World Bank - World Development Indicators","http://data.worldbank.org/data-catalog/world-development-indicators"]
[null,null,"UNEP Pledge Pipeline Tool","http://www.unep.org/climatechange/pledgepipeline/"]
[null,null,"Climate Action Tracker","http://climateactiontracker.org/"]
[null,"BAU Emissions Projections","Submitted National Communications","http://unfccc.int/national_reports/non-annex_i_natcom/submitted_natcom/items/653.php"]
[null,null,"UNFCCC: INDCs as communicated by Parties","http://www4.unfccc.int/submissions/indc/Submission%20Pages/submissions.aspx"]
[null,null,"Submitted Biennial Update Reports","http://unfccc.int/national_reports/non-annex_i_natcom/reporting_on_climate_change/items/8722.php"]
[null,null,"The Climate Pledge INDC Tool","http://infographics.pbl.nl/indc/"]
[null,null,"Climate Equity Reference Calculator","http://gdrights.org/calculator-about/"]
[null,null,"World Bank - World Development Indicators","http://data.worldbank.org/data-catalog/world-development-indicators"]
[null,null,"UNEP Pledge Pipeline Tool","http://www.unep.org/climatechange/pledgepipeline/"]
[null,null,"Climate Action Tracker","http://climateactiontracker.org/"]
[null,"INDC Targets","UNFCCC: INDCs as communicated by Parties","http://www4.unfccc.int/submissions/indc/Submission%20Pages/submissions.aspx"]
[]
[null,"Figure 1: Projected Transport Emissions: BAU, Low Carbon Scenario, and Derived Target"]
[null,"Derived from Table 1: Historic and Projected Emissions"]
[]
[null,"Figure 2: Transport Share of Economy-Wide Emissions"]
[null,"Derived from Table 1: Historic and Projected Emissions"]

{"sheet":"Liechtenstein","index":48,"n_rows":67,"n_cols":6,"rows_kept":67,"cut":false,"hidden":false,"merged":[[21,5,21,11],[22,5,22,11],[1,1,1,3],[2,1,2,2],[3,1,3,2],[4,1,4,2],[5,1,5,2],[6,1,6,2],[33,1,33,2],[7,1,11,1],[12,1,13,1],[14,1,18,1],[19,1,20,1],[23,1,23,2],[24,1,24,2],[25,1,29,1],[30,1,30,2],[31,1,32,1],[34,1,34,2],[35,1,35,2],[38,5,38,11],[43,1,51,1],[52,1,59,1]]}
[]
[null,"Table 1: Historic and Projected Emissions"]
[null,"Country Name",null,"Liechtenstein"]
[null,"Economy Wide CO2e Emissions Target (INDC)",null," 40 % compared to 1990 by 2030"]
[null,"Total Country CO2e Emissions Under Target (by Target Year) (MT)",null,0.13800000000000001]
[null,"Target Year",null,2030]
[null,"Transport CO2 Emissions Target (based on share of total emissions @ 2010)",null,4.8000000000000001E-2]
[null,"Total Country CO2e Emissions (BAU)",1990,0.23]
[null,null,2000,0.254]
[null,null,2010,0.23]
[null,null,2020,0.193]
[null,null,2030,0.17599999999999999]
[null,"Total Country CO2e Emissions (Low Carbon Scenario)",2020,0.161]
[null,null,2030,0.14000000000000001]
[null,"Total Transport CO2e Emissions (BAU)",1990,7.5999999999999998E-2,{"$f":"D7","v":4.8000000000000001E-2}]
[null,null,2000,9.5000000000000001E-2]
[null,null,2010,0.08]
[null,null,2020,8.2000000000000003E-2]
[null,null,2030,6.5000000000000002E-2,{"$f":"D7","v":4.8000000000000001E-2}]
[null,"Total Transport CO2e Emissions (Low Carbon Scenario) ",2020,7.8E-2]
[null,null,2030,6.2E-2,{"$f":"D7","v":4.8000000000000001E-2}]
[null,"Historical Growth in CO2e Emissions  (%) Transport Sector","1990-2010",5.2631578947368363E-2,null,"Figure 1: Projected Transport Emissions: BAU, Low Carbon Scenario, and Transport Target"]
[null,"Growth Forecast CO2e Emissions (%)BAU-Transport Sector","2010-2030",-0.1875]
[null,"Reduction with BAU (%) - Transport (2020)",null,-4.8780487804878092E-2]
[null,"Reduction with BAU (%) - Transport (2030)",null,-4.6153846153846212E-2]
[null,"Transport Share in Total Economy-wide Emissions",1990,0.33043478260869563]
[null,null,2000,0.37401574803149606]
[null,null,2010,0.34782608695652173]
[null,null,"2030(BAU)",0.36931818181818188]
[null,null,"2030 (Low)",0.35227272727272729]
[null,"Gap Between INDC Target and Average Low Carbon Scenario (%)",null,0.29166666666666674]
[null,"Cumulative Increase in Transport CO2 (2010-2030) MT (avg)","Baseline",1.6142037585623012]
[null,null,"Low Carbon",1.5579305285968426]
[null,"Cumulative Reduction in Transport (2010-2030) MT (avg)",null,5.6273229965458693E-2]
[null,"Cumulative Gap Between INDC Target and Average Low Carbon Scenario (MT)",null,-0.24098869831261771]
[null,"Cumulative Gap Between INDC Target and BAU (MT)",null,-0.2972619282780764]
[]
[]
[null,null,null,null,null,"Figure 2: Transport Share of Economy-Wide Emissions"]
[]
[null,"TIER II FACTSHEET SOURCES"]
[]
[null,"Table 1: Historic and Projected Emissions"]
[null,"Historic Emissions","Submitted National Communications","http://unfccc.int/national_reports/non-annex_i_natcom/submitted_natcom/items/653.php"]
[null,null,"UNFCCC: INDCs as communicated by Parties","http://www4.unfccc.int/submissions/indc/Submission%20Pages/submissions.aspx"]
[null,null,"Submitted Biennial Update Reports","http://unfccc.int/national_reports/non-annex_i_natcom/reporting_on_climate_change/items/8722.php"]
[null,null,"The Climate Pledge INDC Tool","http://infographics.pbl.nl/indc/"]
[null,null,"CAIT Climate Data Explorer","http://cait.wri.org/"]
[null,null,"Climate Equity Reference Calculator","http://gdrights.org/calculator-about/"]
[null,null,"World Bank - World Development Indicators","http://data.worldbank.org/data-catalog/world-development-indicators"]
[null,null,"UNEP Pledge Pipeline Tool","http://www.unep.org/climatechange/pledgepipeline/"]
[null,null,"Climate Action Tracker","http://climateactiontracker.org/"]
[null,"BAU Emissions Projections","Submitted National Communications","http://unfccc.int/national_reports/non-annex_i_natcom/submitted_natcom/items/653.php"]
[null,null,"UNFCCC: INDCs as communicated by Parties","http://www4.unfccc.int/submissions/indc/Submission%20Pages/submissions.aspx"]
[null,null,"Submitted Biennial Update Reports","http://unfccc.int/national_reports/non-annex_i_natcom/reporting_on_climate_change/items/8722.php"]
[null,null,"The Climate Pledge INDC Tool","http://infographics.pbl.nl/indc/"]
[null,null,"Climate Equity Reference Calculator","http://gdrights.org/calculator-about/"]
[null,null,"World Bank - World Development Indicators","http://data.worldbank.org/data-catalog/world-development-indicators"]
[null,null,"UNEP Pledge Pipeline Tool","http://www.unep.org/climatechange/pledgepipeline/"]
[null,null,"Climate Action Tracker","http://climateactiontracker.org/"]
[null,"INDC Targets","UNFCCC: INDCs as communicated by Parties","http://www4.unfccc.int/submissions/indc/Submission%20Pages/submissions.aspx"]
[]
[null,"Figure 1: Projected Transport Emissions: BAU, Low Carbon Scenario, and Derived Target"]
[null,"Derived from Table 1: Historic and Projected Emissions"]
[]
[null,"Figure 2: Transport Share of Economy-Wide Emissions"]
[null,"Derived from Table 1: Historic and Projected Emissions"]

{"sheet":"Madagascar","index":49,"n_rows":67,"n_cols":6,"rows_kept":67,"cut":false,"hidden":false,"merged":[[34,1,34,2],[35,1,35,2],[38,5,38,11],[43,1,51,1],[52,1,59,1],[33,1,33,2],[7,1,11,1],[12,1,13,1],[14,1,18,1],[19,1,20,1],[23,1,23,2],[24,1,24,2],[25,1,29,1],[30,1,30,2],[31,1,32,1],[21,5,21,11],[22,5,22,11],[1,1,1,3],[2,1,2,2],[3,1,3,2],[4,1,4,2],[5,1,5,2],[6,1,6,2]]}
[]
[null,"Table 1: Historic and Projected Emissions"]
[null,"Country Name",null,"Madagascar"]
[null,"Economy Wide CO2e Emissions Target (INDC)",null,"14% reduction compared to the BAU scenario"]
[null,"Total Country CO2e Emissions Under Target (by Target Year) (MT)",null,184.21715999999998]
[null,"Target Year",null,2030]
[null,"Transport CO2 Emissions Target (based on share of total emissions @ 2010)",null,1.8776952469532973]
[null,"Total Country CO2e Emissions (BAU)",1990]
[null,null,2000,87.156999999999996]
[null,null,2010,156.97300000000001]
[null,null,2020,192.28100000000001]
[null,null,2030,214.20599999999999]
[null,"Total Country CO2e Emissions (Low Carbon Scenario)",2020]
[null,null,2030]
[null,"Total Transport CO2e Emissions (BAU)",1990,0.47,{"$f":"D7","v":1.8776952469532973}]
[null,null,2000,0.93884513021999993]
[null,null,2010,1.6]
[null,null,2020,3.189189506777141]
[null,null,2030,6.0456383421950441,{"$f":"D7","v":1.8776952469532973}]
[null,"Total Transport CO2e Emissions (Low Carbon Scenario) ",2020,2.8172758273355445]
[null,null,2030,4.4601827538960555,{"$f":"D7","v":1.8776952469532973}]
[null,"Historical Growth in CO2e Emissions  (%) Transport Sector","1990-2010",2.4042553191489366,null,"Figure 1: Projected Transport Emissions: BAU, Low Carbon Scenario, and Transport Target"]
[null,"Growth Forecast CO2e Emissions (%)BAU-Transport Sector","2010-2030",2.7785239638719026]
[null,"Reduction with BAU (%) - Transport (2020)",null,-0.11661698956780919]
[null,"Reduction with BAU (%) - Transport (2030)",null,-0.26224783861671475]
[null,"Transport Share in Total Economy-wide Emissions",1990]
[null,null,2000,1.0771884418004292E-2]
[null,null,2010,1.0192835710599911E-2]
[null,null,"2030(BAU)",2.8223478064083381E-2]
[null,null,"2030 (Low)",2.0821931943531255E-2]
[null,"Gap Between INDC Target and Average Low Carbon Scenario (%)",null,1.3753496533226248]
[null,"Cumulative Increase in Transport CO2 (2010-2030) MT (avg)","Baseline",71.548817602660534]
[null,null,"Low Carbon",60.318134171618063]
[null,"Cumulative Reduction in Transport (2010-2030) MT (avg)",null,11.230683431042472]
[null,"Cumulative Gap Between INDC Target and Average Low Carbon Scenario (MT)",null,-23.876188555828548]
[null,"Cumulative Gap Between INDC Target and BAU (MT)",null,-35.10687198687102]
[]
[]
[null,null,null,null,null,"Figure 2: Transport Share of Economy-Wide Emissions"]
[]
[null,"TIER II FACTSHEET SOURCES"]
[]
[null,"Table 1: Historic and Projected Emissions"]
[null,"Historic Emissions","Submitted National Communications","http://unfccc.int/national_reports/non-annex_i_natcom/submitted_natcom/items/653.php"]
[null,null,"UNFCCC: INDCs as communicated by Parties","http://www4.unfccc.int/submissions/indc/Submission%20Pages/submissions.aspx"]
[null,null,"Submitted Biennial Update Reports","http://unfccc.int/national_reports/non-annex_i_natcom/reporting_on_climate_change/items/8722.php"]
[null,null,"The Climate Pledge INDC Tool","http://infographics.pbl.nl/indc/"]
[null,null,"CAIT Climate Data Explorer","http://cait.wri.org/"]
[null,null,"Climate Equity Reference Calculator","http://gdrights.org/calculator-about/"]
[null,null,"World Bank - World Development Indicators","http://data.worldbank.org/data-catalog/world-development-indicators"]
[null,null,"UNEP Pledge Pipeline Tool","http://www.unep.org/climatechange/pledgepipeline/"]
[null,null,"Climate Action Tracker","http://climateactiontracker.org/"]
[null,"BAU Emissions Projections","Submitted National Communications","http://unfccc.int/national_reports/non-annex_i_natcom/submitted_natcom/items/653.php"]
[null,null,"UNFCCC: INDCs as communicated by Parties","http://www4.unfccc.int/submissions/indc/Submission%20Pages/submissions.aspx"]
[null,null,"Submitted Biennial Update Reports","http://unfccc.int/national_reports/non-annex_i_natcom/reporting_on_climate_change/items/8722.php"]
[null,null,"The Climate Pledge INDC Tool","http://infographics.pbl.nl/indc/"]
[null,null,"Climate Equity Reference Calculator","http://gdrights.org/calculator-about/"]
[null,null,"World Bank - World Development Indicators","http://data.worldbank.org/data-catalog/world-development-indicators"]
[null,null,"UNEP Pledge Pipeline Tool","http://www.unep.org/climatechange/pledgepipeline/"]
[null,null,"Climate Action Tracker","http://climateactiontracker.org/"]
[null,"INDC Targets","UNFCCC: INDCs as communicated by Parties","http://www4.unfccc.int/submissions/indc/Submission%20Pages/submissions.aspx"]
[]
[null,"Figure 1: Projected Transport Emissions: BAU, Low Carbon Scenario, and Derived Target"]
[null,"Derived from Table 1: Historic and Projected Emissions"]
[]
[null,"Figure 2: Transport Share of Economy-Wide Emissions"]
[null,"Derived from Table 1: Historic and Projected Emissions"]

{"sheet":"Maldives","index":50,"n_rows":67,"n_cols":6,"rows_kept":67,"cut":false,"hidden":false,"merged":[[21,5,21,11],[22,5,22,11],[1,1,1,3],[2,1,2,2],[3,1,3,2],[4,1,4,2],[5,1,5,2],[6,1,6,2],[33,1,33,2],[7,1,11,1],[12,1,13,1],[14,1,18,1],[19,1,20,1],[23,1,23,2],[24,1,24,2],[25,1,29,1],[30,1,30,2],[31,1,32,1],[34,1,34,2],[35,1,35,2],[38,5,38,11],[43,1,51,1],[52,1,59,1]]}
[]
[null,"Table 1: Historic and Projected Emissions"]
[null,"Country Name",null,"Maldives"]
[null,"Economy Wide CO2e Emissions Target (INDC)",null,"24% reduction in CO2 due to energy consumption by 2030"]
[null,"Total Country CO2e Emissions Under Target (by Target Year) (MT)",null,2.6]
[null,"Target Year",null,2030]
[null,"Transport CO2 Emissions Target (based on share of total emissions @ 2010)",null,0.71240000000000003]
[null,"Total Country CO2e Emissions (BAU)",1990,0.18]
[null,null,2000,0.4]
[null,null,2010,1]
[null,null,2020,2]
[null,null,2030,3.4]
[null,"Total Country CO2e Emissions (Low Carbon Scenario)",2020]
[null,null,2030]
[null,"Total Transport CO2e Emissions (BAU)",1990,null,{"$f":"D7","v":0.71240000000000003}]
[null,null,2000]
[null,null,2010,0.27400000000000002]
[null,null,2020,0.8]
[null,null,2030,1.83,{"$f":"D7","v":0.71240000000000003}]
[null,"Total Transport CO2e Emissions (Low Carbon Scenario) ",2020,0.70670640834575271]
[null,null,2030,1.350086455331412,{"$f":"D7","v":0.71240000000000003}]
[null,"Historical Growth in CO2e Emissions  (%) Transport Sector","1990-2010",null,null,"Figure 1: Projected Transport Emissions: BAU, Low Carbon Scenario, and Transport Target"]
[null,"Growth Forecast CO2e Emissions (%)BAU-Transport Sector","2010-2030",5.6788321167883211]
[null,"Reduction with BAU (%) - Transport (2020)",null,-0.11661698956780919]
[null,"Reduction with BAU (%) - Transport (2030)",null,-0.26224783861671475]
[null,"Transport Share in Total Economy-wide Emissions",1990,0]
[null,null,2000,0]
[null,null,2010,0.27400000000000002]
[null,null,"2030(BAU)",0.53823529411764715]
[null,null,"2030 (Low)",0.39708425156806237]
[null,"Gap Between INDC Target and Average Low Carbon Scenario (%)",null,0.89512416526026395]
[null,"Cumulative Increase in Transport CO2 (2010-2030) MT (avg)","Baseline",18.420617288128057]
[null,null,"Low Carbon",15.325122960775161]
[null,"Cumulative Reduction in Transport (2010-2030) MT (avg)",null,3.0954943273528954]
[null,"Cumulative Gap Between INDC Target and Average Low Carbon Scenario (MT)",null,-5.6539400776401809]
[null,"Cumulative Gap Between INDC Target and BAU (MT)",null,-8.7494344049930763]
[]
[]
[null,null,null,null,null,"Figure 2: Transport Share of Economy-Wide Emissions"]
[]
[null,"TIER II FACTSHEET SOURCES"]
[]
[null,"Table 1: Historic and Projected Emissions"]
[null,"Historic Emissions","Submitted National Communications","http://unfccc.int/national_reports/non-annex_i_natcom/submitted_natcom/items/653.php"]
[null,null,"UNFCCC: INDCs as communicated by Parties","http://www4.unfccc.int/submissions/indc/Submission%20Pages/submissions.aspx"]
[null,null,"Submitted Biennial Update Reports","http://unfccc.int/national_reports/non-annex_i_natcom/reporting_on_climate_change/items/8722.php"]
[null,null,"The Climate Pledge INDC Tool","http://infographics.pbl.nl/indc/"]
[null,null,"CAIT Climate Data Explorer","http://cait.wri.org/"]
[null,null,"Climate Equity Reference Calculator","http://gdrights.org/calculator-about/"]
[null,null,"World Bank - World Development Indicators","http://data.worldbank.org/data-catalog/world-development-indicators"]
[null,null,"UNEP Pledge Pipeline Tool","http://www.unep.org/climatechange/pledgepipeline/"]
[null,null,"Climate Action Tracker","http://climateactiontracker.org/"]
[null,"BAU Emissions Projections","Submitted National Communications","http://unfccc.int/national_reports/non-annex_i_natcom/submitted_natcom/items/653.php"]
[null,null,"UNFCCC: INDCs as communicated by Parties","http://www4.unfccc.int/submissions/indc/Submission%20Pages/submissions.aspx"]
[null,null,"Submitted Biennial Update Reports","http://unfccc.int/national_reports/non-annex_i_natcom/reporting_on_climate_change/items/8722.php"]
[null,null,"The Climate Pledge INDC Tool","http://infographics.pbl.nl/indc/"]
[null,null,"Climate Equity Reference Calculator","http://gdrights.org/calculator-about/"]
[null,null,"World Bank - World Development Indicators","http://data.worldbank.org/data-catalog/world-development-indicators"]
[null,null,"UNEP Pledge Pipeline Tool","http://www.unep.org/climatechange/pledgepipeline/"]
[null,null,"Climate Action Tracker","http://climateactiontracker.org/"]
[null,"INDC Targets","UNFCCC: INDCs as communicated by Parties","http://www4.unfccc.int/submissions/indc/Submission%20Pages/submissions.aspx"]
[]
[null,"Figure 1: Projected Transport Emissions: BAU, Low Carbon Scenario, and Derived Target"]
[null,"Derived from Table 1: Historic and Projected Emissions"]
[]
[null,"Figure 2: Transport Share of Economy-Wide Emissions"]
[null,"Derived from Table 1: Historic and Projected Emissions"]

{"sheet":"Marshall Islands","index":51,"n_rows":67,"n_cols":6,"rows_kept":67,"cut":false,"hidden":false,"merged":[[21,5,21,11],[22,5,22,11],[1,1,1,3],[2,1,2,2],[3,1,3,2],[4,1,4,2],[5,1,5,2],[6,1,6,2],[33,1,33,2],[7,1,11,1],[12,1,13,1],[14,1,18,1],[19,1,20,1],[23,1,23,2],[24,1,24,2],[25,1,29,1],[30,1,30,2],[31,1,32,1],[34,1,34,2],[35,1,35,2],[38,5,38,11],[43,1,51,1],[52,1,59,1]]}
[]
[null,"Table 1: Historic and Projected Emissions"]
[null,"Country Name",null,"Marshall Islands"]
[null,"Economy Wide CO2e Emissions Target (INDC)",null,"45% below 2010 levels by 2030  "]
[null,"Total Country CO2e Emissions Under Target (by Target Year) (MT)",null,0.11]
[null,"Target Year",null,2030]
[null,"Transport CO2 Emissions Target (based on share of total emissions @ 2010)",null,1.1545037905834745E-2]
[null,"Total Country CO2e Emissions (BAU)",1990,0.06]
[null,null,2000,0.13]
[null,null,2010,0.19]
[null,null,2020,0.15013776433333331]
[null,null,2030,0.21827887399999971]
[null,"Total Country CO2e Emissions (Low Carbon Scenario)",2020]
[null,null,2030]
[null,"Total Transport CO2e Emissions (BAU)",1990,null,{"$f":"D7","v":1.1545037905834745E-2}]
[null,null,2000]
[null,null,2010,9.5101459183432168E-3]
[null,null,2020,1.3968210556961192E-2]
[null,null,2030,1.5815120418951705E-2,{"$f":"D7","v":1.1545037905834745E-2}]
[null,"Total Transport CO2e Emissions (Low Carbon Scenario) ",2020,1.2339279892159088E-2]
[null,null,2030,1.1667639271618548E-2,{"$f":"D7","v":1.1545037905834745E-2}]
[null,"Historical Growth in CO2e Emissions  (%) Transport Sector","1990-2010",null,null,"Figure 1: Projected Transport Emissions: BAU, Low Carbon Scenario, and Transport Target"]
[null,"Growth Forecast CO2e Emissions (%)BAU-Transport Sector","2010-2030",0.66297347640559567]
[null,"Reduction with BAU (%) - Transport (2020)",null,-0.11661698956780908]
[null,"Reduction with BAU (%) - Transport (2030)",null,-0.26224783861671475]
[null,"Transport Share in Total Economy-wide Emissions",1990,0]
[null,null,2000,0]
[null,null,2010,5.0053399570227454E-2]
[null,null,"2030(BAU)",7.2453738326283129E-2]
[null,null,"2030 (Low)",5.3452902050514346E-2]
[null,"Gap Between INDC Target and Average Low Carbon Scenario (%)",null,1.0619399155185283E-2]
[null,"Cumulative Increase in Transport CO2 (2010-2030) MT (avg)","Baseline",0.27737153021222288]
[null,null,"Low Carbon",0.23923245036532334]
[null,"Cumulative Reduction in Transport (2010-2030) MT (avg)",null,3.8139079846899543E-2]
[null,"Cumulative Gap Between INDC Target and Average Low Carbon Scenario (MT)",null,-1.8808561950815761E-2]
[null,"Cumulative Gap Between INDC Target and BAU (MT)",null,-5.6947641797715304E-2]
[]
[]
[null,null,null,null,null,"Figure 2: Transport Share of Economy-Wide Emissions"]
[]
[null,"TIER II FACTSHEET SOURCES"]
[]
[null,"Table 1: Historic and Projected Emissions"]
[null,"Historic Emissions","Submitted National Communications","http://unfccc.int/national_reports/non-annex_i_natcom/submitted_natcom/items/653.php"]
[null,null,"UNFCCC: INDCs as communicated by Parties","http://www4.unfccc.int/submissions/indc/Submission%20Pages/submissions.aspx"]
[null,null,"Submitted Biennial Update Reports","http://unfccc.int/national_reports/non-annex_i_natcom/reporting_on_climate_change/items/8722.php"]
[null,null,"The Climate Pledge INDC Tool","http://infographics.pbl.nl/indc/"]
[null,null,"CAIT Climate Data Explorer","http://cait.wri.org/"]
[null,null,"Climate Equity Reference Calculator","http://gdrights.org/calculator-about/"]
[null,null,"World Bank - World Development Indicators","http://data.worldbank.org/data-catalog/world-development-indicators"]
[null,null,"UNEP Pledge Pipeline Tool","http://www.unep.org/climatechange/pledgepipeline/"]
[null,null,"Climate Action Tracker","http://climateactiontracker.org/"]
[null,"BAU Emissions Projections","Submitted National Communications","http://unfccc.int/national_reports/non-annex_i_natcom/submitted_natcom/items/653.php"]
[null,null,"UNFCCC: INDCs as communicated by Parties","http://www4.unfccc.int/submissions/indc/Submission%20Pages/submissions.aspx"]
[null,null,"Submitted Biennial Update Reports","http://unfccc.int/national_reports/non-annex_i_natcom/reporting_on_climate_change/items/8722.php"]
[null,null,"The Climate Pledge INDC Tool","http://infographics.pbl.nl/indc/"]
[null,null,"Climate Equity Reference Calculator","http://gdrights.org/calculator-about/"]
[null,null,"World Bank - World Development Indicators","http://data.worldbank.org/data-catalog/world-development-indicators"]
[null,null,"UNEP Pledge Pipeline Tool","http://www.unep.org/climatechange/pledgepipeline/"]
[null,null,"Climate Action Tracker","http://climateactiontracker.org/"]
[null,"INDC Targets","UNFCCC: INDCs as communicated by Parties","http://www4.unfccc.int/submissions/indc/Submission%20Pages/submissions.aspx"]
[]
[null,"Figure 1: Projected Transport Emissions: BAU, Low Carbon Scenario, and Derived Target"]
[null,"Derived from Table 1: Historic and Projected Emissions"]
[]
[null,"Figure 2: Transport Share of Economy-Wide Emissions"]
[null,"Derived from Table 1: Historic and Projected Emissions"]

{"sheet":"Mauritania","index":52,"n_rows":67,"n_cols":6,"rows_kept":67,"cut":false,"hidden":false,"merged":[[34,1,34,2],[35,1,35,2],[38,5,38,11],[43,1,51,1],[52,1,59,1],[33,1,33,2],[7,1,11,1],[12,1,13,1],[14,1,18,1],[19,1,20,1],[23,1,23,2],[24,1,24,2],[25,1,29,1],[30,1,30,2],[31,1,32,1],[21,5,21,11],[22,5,22,11],[1,1,1,3],[2,1,2,2],[3,1,3,2],[4,1,4,2],[5,1,5,2],[6,1,6,2]]}
[]
[null,"Table 1: Historic and Projected Emissions"]
[null,"Country Name",null,"Mauritania"]
[null,"Economy Wide CO2e Emissions Target (INDC)",null,"22.3% below BAU"]
[null,"Total Country CO2e Emissions Under Target (by Target Year) (MT)",null,14.638680000000001]
[null,"Target Year",null,2030]
[null,"Transport CO2 Emissions Target (based on share of total emissions @ 2010)",null,0.79121850135902039]
[null,"Total Country CO2e Emissions (BAU)",1990,5.9769059999999996]
[null,null,2000,11.9505596]
[null,null,2010,12.95100655811172]
[null,null,2020,15.9]
[null,null,2030,18.84]
[null,"Total Country CO2e Emissions (Low Carbon Scenario)",2020]
[null,null,2030]
[null,"Total Transport CO2e Emissions (BAU)",1990,0.21,{"$f":"D7","v":0.79121850135902039}]
[null,null,2000,0.28999999999999998]
[null,null,2010,0.7]
[null,null,2020,1.4440912923786553]
[null,null,2030,3.0902743155581596,{"$f":"D7","v":0.79121850135902039}]
[null,"Total Transport CO2e Emissions (Low Carbon Scenario) ",2020,1.2756857132003696]
[null,null,2030,2.2798565555702845,{"$f":"D7","v":0.79121850135902039}]
[null,"Historical Growth in CO2e Emissions  (%) Transport Sector","1990-2010",2.333333333333333,null,"Figure 1: Projected Transport Emissions: BAU, Low Carbon Scenario, and Transport Target"]
[null,"Growth Forecast CO2e Emissions (%)BAU-Transport Sector","2010-2030",3.4146775936545142]
[null,"Reduction with BAU (%) - Transport (2020)",null,-0.11661698956780919]
[null,"Reduction with BAU (%) - Transport (2030)",null,-0.26224783861671475]
[null,"Transport Share in Total Economy-wide Emissions",1990,3.513523552152234E-2]
[null,null,2000,2.4266646057310989E-2]
[null,null,2010,5.4049852948422968E-2]
[null,null,"2030(BAU)",0.16402729912729086]
[null,null,"2030 (Low)",0.12101149445702147]
[null,"Gap Between INDC Target and Average Low Carbon Scenario (%)",null,1.8814500061036683]
[null,"Cumulative Increase in Transport CO2 (2010-2030) MT (avg)","Baseline",33.823470649489053]
[null,null,"Low Carbon",28.384433382935029]
[null,"Cumulative Reduction in Transport (2010-2030) MT (avg)",null,5.4390372665540241]
[null,"Cumulative Gap Between INDC Target and Average Low Carbon Scenario (MT)",null,-12.745210745244659]
[null,"Cumulative Gap Between INDC Target and BAU (MT)",null,-18.184248011798683]
[]
[]
[null,null,null,null,null,"Figure 2: Transport Share of Economy-Wide Emissions"]
[]
[null,"TIER II FACTSHEET SOURCES"]
[]
[null,"Table 1: Historic and Projected Emissions"]
[null,"Historic Emissions","Submitted National Communications","http://unfccc.int/national_reports/non-annex_i_natcom/submitted_natcom/items/653.php"]
[null,null,"UNFCCC: INDCs as communicated by Parties","http://www4.unfccc.int/submissions/indc/Submission%20Pages/submissions.aspx"]
[null,null,"Submitted Biennial Update Reports","http://unfccc.int/national_reports/non-annex_i_natcom/reporting_on_climate_change/items/8722.php"]
[null,null,"The Climate Pledge INDC Tool","http://infographics.pbl.nl/indc/"]
[null,null,"CAIT Climate Data Explorer","http://cait.wri.org/"]
[null,null,"Climate Equity Reference Calculator","http://gdrights.org/calculator-about/"]
[null,null,"World Bank - World Development Indicators","http://data.worldbank.org/data-catalog/world-development-indicators"]
[null,null,"UNEP Pledge Pipeline Tool","http://www.unep.org/climatechange/pledgepipeline/"]
[null,null,"Climate Action Tracker","http://climateactiontracker.org/"]
[null,"BAU Emissions Projections","Submitted National Communications","http://unfccc.int/national_reports/non-annex_i_natcom/submitted_natcom/items/653.php"]
[null,null,"UNFCCC: INDCs as communicated by Parties","http://www4.unfccc.int/submissions/indc/Submission%20Pages/submissions.aspx"]
[null,null,"Submitted Biennial Update Reports","http://unfccc.int/national_reports/non-annex_i_natcom/reporting_on_climate_change/items/8722.php"]
[null,null,"The Climate Pledge INDC Tool","http://infographics.pbl.nl/indc/"]
[null,null,"Climate Equity Reference Calculator","http://gdrights.org/calculator-about/"]
[null,null,"World Bank - World Development Indicators","http://data.worldbank.org/data-catalog/world-development-indicators"]
[null,null,"UNEP Pledge Pipeline Tool","http://www.unep.org/climatechange/pledgepipeline/"]
[null,null,"Climate Action Tracker","http://climateactiontracker.org/"]
[null,"INDC Targets","UNFCCC: INDCs as communicated by Parties","http://www4.unfccc.int/submissions/indc/Submission%20Pages/submissions.aspx"]
[]
[null,"Figure 1: Projected Transport Emissions: BAU, Low Carbon Scenario, and Derived Target"]
[null,"Derived from Table 1: Historic and Projected Emissions"]
[]
[null,"Figure 2: Transport Share of Economy-Wide Emissions"]
[null,"Derived from Table 1: Historic and Projected Emissions"]

{"sheet":"Mauritius","index":53,"n_rows":67,"n_cols":6,"rows_kept":67,"cut":false,"hidden":false,"merged":[[21,5,21,11],[22,5,22,11],[1,1,1,3],[2,1,2,2],[3,1,3,2],[4,1,4,2],[5,1,5,2],[6,1,6,2],[33,1,33,2],[7,1,11,1],[12,1,13,1],[14,1,18,1],[19,1,20,1],[23,1,23,2],[24,1,24,2],[25,1,29,1],[30,1,30,2],[31,1,32,1],[34,1,34,2],[35,1,35,2],[38,5,38,11],[43,1,51,1],[52,1,59,1]]}
[]
[null,"Table 1: Historic and Projected Emissions"]
[null,"Country Name",null,"Mauritius"]
[null,"Economy Wide CO2e Emissions Target (INDC)",null,"30% reduction by 2030"]
[null,"Total Country CO2e Emissions Under Target (by Target Year) (MT)",null,4.9000000000000004]
[null,"Target Year",null,2030]
[null,"Transport CO2 Emissions Target (based on share of total emissions @ 2010)",null,0.91875000000000007]
[null,"Total Country CO2e Emissions (BAU)",1990,2.1217999999999999]
[null,null,2000,3.8942999999999999]
[null,null,2010,4.8]
[null,null,2020,5.9]
[null,null,2030,7]
[null,"Total Country CO2e Emissions (Low Carbon Scenario)",2020]
[null,null,2030]
[null,"Total Transport CO2e Emissions (BAU)",1990,null,{"$f":"D7","v":0.91875000000000007}]
[null,null,2000,0.7]
[null,null,2010,0.9]
[null,null,2020,1.2130000000000001]
[null,null,2030,1.6140000000000001,{"$f":"D7","v":0.91875000000000007}]
[null,"Total Transport CO2e Emissions (Low Carbon Scenario) ",2020,0.96100000000000008]
[null,null,2030,1.214,{"$f":"D7","v":0.91875000000000007}]
[null,"Historical Growth in CO2e Emissions  (%) Transport Sector","1990-2010",null,null,"Figure 1: Projected Transport Emissions: BAU, Low Carbon Scenario, and Transport Target"]
[null,"Growth Forecast CO2e Emissions (%)BAU-Transport Sector","2010-2030",0.79333333333333345]
[null,"Reduction with BAU (%) - Transport (2020)",null,-0.20774938169826873]
[null,"Reduction with BAU (%) - Transport (2030)",null,-0.24783147459727395]
[null,"Transport Share in Total Economy-wide Emissions",1990,0]
[null,null,2000,0.17974989086613768]
[null,null,2010,0.1875]
[null,null,"2030(BAU)",0.23057142857142859]
[null,null,"2030 (Low)",0.17342857142857143]
[null,"Gap Between INDC Target and Average Low Carbon Scenario (%)",null,0.32136054421768701]
[null,"Cumulative Increase in Transport CO2 (2010-2030) MT (avg)","Baseline",25.78568584008346]
[null,null,"Low Carbon",21.184965372916491]
[null,"Cumulative Reduction in Transport (2010-2030) MT (avg)",null,4.600720467166969]
[null,"Cumulative Gap Between INDC Target and Average Low Carbon Scenario (MT)",null,-2.088733110194017]
[null,"Cumulative Gap Between INDC Target and BAU (MT)",null,-6.689453577360986]
[]
[]
[null,null,null,null,null,"Figure 2: Transport Share of Economy-Wide Emissions"]
[]
[null,"TIER II FACTSHEET SOURCES"]
[]
[null,"Table 1: Historic and Projected Emissions"]
[null,"Historic Emissions","Submitted National Communications","http://unfccc.int/national_reports/non-annex_i_natcom/submitted_natcom/items/653.php"]
[null,null,"UNFCCC: INDCs as communicated by Parties","http://www4.unfccc.int/submissions/indc/Submission%20Pages/submissions.aspx"]
[null,null,"Submitted Biennial Update Reports","http://unfccc.int/national_reports/non-annex_i_natcom/reporting_on_climate_change/items/8722.php"]
[null,null,"The Climate Pledge INDC Tool","http://infographics.pbl.nl/indc/"]
[null,null,"CAIT Climate Data Explorer","http://cait.wri.org/"]
[null,null,"Climate Equity Reference Calculator","http://gdrights.org/calculator-about/"]
[null,null,"World Bank - World Development Indicators","http://data.worldbank.org/data-catalog/world-development-indicators"]
[null,null,"UNEP Pledge Pipeline Tool","http://www.unep.org/climatechange/pledgepipeline/"]
[null,null,"Climate Action Tracker","http://climateactiontracker.org/"]
[null,"BAU Emissions Projections","Submitted National Communications","http://unfccc.int/national_reports/non-annex_i_natcom/submitted_natcom/items/653.php"]
[null,null,"UNFCCC: INDCs as communicated by Parties","http://www4.unfccc.int/submissions/indc/Submission%20Pages/submissions.aspx"]
[null,null,"Submitted Biennial Update Reports","http://unfccc.int/national_reports/non-annex_i_natcom/reporting_on_climate_change/items/8722.php"]
[null,null,"The Climate Pledge INDC Tool","http://infographics.pbl.nl/indc/"]
[null,null,"Climate Equity Reference Calculator","http://gdrights.org/calculator-about/"]
[null,null,"World Bank - World Development Indicators","http://data.worldbank.org/data-catalog/world-development-indicators"]
[null,null,"UNEP Pledge Pipeline Tool","http://www.unep.org/climatechange/pledgepipeline/"]
[null,null,"Climate Action Tracker","http://climateactiontracker.org/"]
[null,"INDC Targets","UNFCCC: INDCs as communicated by Parties","http://www4.unfccc.int/submissions/indc/Submission%20Pages/submissions.aspx"]
[]
[null,"Figure 1: Projected Transport Emissions: BAU, Low Carbon Scenario, and Derived Target"]
[null,"Derived from Table 1: Historic and Projected Emissions"]
[]
[null,"Figure 2: Transport Share of Economy-Wide Emissions"]
[null,"Derived from Table 1: Historic and Projected Emissions"]

{"sheet":"Monaco","index":54,"n_rows":67,"n_cols":6,"rows_kept":67,"cut":false,"hidden":false,"merged":[[34,1,34,2],[35,1,35,2],[38,5,38,11],[43,1,51,1],[52,1,59,1],[33,1,33,2],[7,1,11,1],[12,1,13,1],[14,1,18,1],[19,1,20,1],[23,1,23,2],[24,1,24,2],[25,1,29,1],[30,1,30,2],[31,1,32,1],[21,5,21,11],[22,5,22,11],[1,1,1,3],[2,1,2,2],[3,1,3,2],[4,1,4,2],[5,1,5,2],[6,1,6,2]]}
[]
[null,"Table 1: Historic and Projected Emissions"]
[null,"Country Name",null,"Monaco"]
[null,"Economy Wide CO2e Emissions Target (INDC)",null,"reduce emissions by 50% below 1990 levels"]
[null,"Total Country CO2e Emissions Under Target (by Target Year) (MT)",null,5.3975000000000002E-2]
[null,"Target Year",null,2030]
[null,"Transport CO2 Emissions Target (based on share of total emissions @ 2010)",null,1.5552014662423279E-2]
[null,"Total Country CO2e Emissions (BAU)",1990,0.10795]
[null,null,2000,0.11993000000000001]
[null,null,2010,8.7980000000000003E-2]
[null,null,2020,8.2959999999999992E-2]
[null,null,2030,7.5680000000000011E-2]
[null,"Total Country CO2e Emissions (Low Carbon Scenario)",2020]
[null,null,2030]
[null,"Total Transport CO2e Emissions (BAU)",1990,3.3050000000000003E-2,{"$f":"D7","v":1.5552014662423279E-2}]
[null,null,2000,3.551E-2]
[null,null,2010,2.5350000000000001E-2]
[null,null,2020,1.8096944522669661E-2]
[null,null,2030,1.2919108522942148E-2,{"$f":"D7","v":1.5552014662423279E-2}]
[null,"Total Transport CO2e Emissions (Low Carbon Scenario) ",2020,1.5986533332060272E-2]
[null,null,2030,9.5311002359457914E-3,{"$f":"D7","v":1.5552014662423279E-2}]
[null,"Historical Growth in CO2e Emissions  (%) Transport Sector","1990-2010",-0.23298033282904695,null,"Figure 1: Projected Transport Emissions: BAU, Low Carbon Scenario, and Transport Target"]
[null,"Growth Forecast CO2e Emissions (%)BAU-Transport Sector","2010-2030",-0.49037047246776533]
[null,"Reduction with BAU (%) - Transport (2020)",null,-0.11661698956780919]
[null,"Reduction with BAU (%) - Transport (2030)",null,-0.26224783861671475]
[null,"Transport Share in Total Economy-wide Emissions",1990,0.30616025937934233]
[null,null,2000,0.2960893854748603]
[null,null,2010,0.28813366674244145]
[null,null,"2030(BAU)",0.17070703650822075]
[null,null,"2030 (Low)",0.12593948514727524]
[null,"Gap Between INDC Target and Average Low Carbon Scenario (%)",null,-0.38714691036301552]
[null,"Cumulative Increase in Transport CO2 (2010-2030) MT (avg)","Baseline",0.38799966967839922]
[null,null,"Low Carbon",0.34542058151922816]
[null,"Cumulative Reduction in Transport (2010-2030) MT (avg)",null,4.2579088159171052E-2]
[null,"Cumulative Gap Between INDC Target and Average Low Carbon Scenario (MT)",null,7.6123444747865365E-2]
[null,"Cumulative Gap Between INDC Target and BAU (MT)",null,3.3544356588694313E-2]
[]
[]
[null,null,null,null,null,"Figure 2: Transport Share of Economy-Wide Emissions"]
[]
[null,"TIER II FACTSHEET SOURCES"]
[]
[null,"Table 1: Historic and Projected Emissions"]
[null,"Historic Emissions","Submitted National Communications","http://unfccc.int/national_reports/non-annex_i_natcom/submitted_natcom/items/653.php"]
[null,null,"UNFCCC: INDCs as communicated by Parties","http://www4.unfccc.int/submissions/indc/Submission%20Pages/submissions.aspx"]
[null,null,"Submitted Biennial Update Reports","http://unfccc.int/national_reports/non-annex_i_natcom/reporting_on_climate_change/items/8722.php"]
[null,null,"The Climate Pledge INDC Tool","http://infographics.pbl.nl/indc/"]
[null,null,"CAIT Climate Data Explorer","http://cait.wri.org/"]
[null,null,"Climate Equity Reference Calculator","http://gdrights.org/calculator-about/"]
[null,null,"World Bank - World Development Indicators","http://data.worldbank.org/data-catalog/world-development-indicators"]
[null,null,"UNEP Pledge Pipeline Tool","http://www.unep.org/climatechange/pledgepipeline/"]
[null,null,"Climate Action Tracker","http://climateactiontracker.org/"]
[null,"BAU Emissions Projections","Submitted National Communications","http://unfccc.int/national_reports/non-annex_i_natcom/submitted_natcom/items/653.php"]
[null,null,"UNFCCC: INDCs as communicated by Parties","http://www4.unfccc.int/submissions/indc/Submission%20Pages/submissions.aspx"]
[null,null,"Submitted Biennial Update Reports","http://unfccc.int/national_reports/non-annex_i_natcom/reporting_on_climate_change/items/8722.php"]
[null,null,"The Climate Pledge INDC Tool","http://infographics.pbl.nl/indc/"]
[null,null,"Climate Equity Reference Calculator","http://gdrights.org/calculator-about/"]
[null,null,"World Bank - World Development Indicators","http://data.worldbank.org/data-catalog/world-development-indicators"]
[null,null,"UNEP Pledge Pipeline Tool","http://www.unep.org/climatechange/pledgepipeline/"]
[null,null,"Climate Action Tracker","http://climateactiontracker.org/"]
[null,"INDC Targets","UNFCCC: INDCs as communicated by Parties","http://www4.unfccc.int/submissions/indc/Submission%20Pages/submissions.aspx"]
[]
[null,"Figure 1: Projected Transport Emissions: BAU, Low Carbon Scenario, and Derived Target"]
[null,"Derived from Table 1: Historic and Projected Emissions"]
[]
[null,"Figure 2: Transport Share of Economy-Wide Emissions"]
[null,"Derived from Table 1: Historic and Projected Emissions"]

{"sheet":"Mongolia","index":55,"n_rows":67,"n_cols":6,"rows_kept":67,"cut":false,"hidden":false,"merged":[[34,1,34,2],[35,1,35,2],[38,5,38,11],[43,1,51,1],[52,1,59,1],[33,1,33,2],[7,1,11,1],[12,1,13,1],[14,1,18,1],[19,1,20,1],[23,1,23,2],[24,1,24,2],[25,1,29,1],[30,1,30,2],[31,1,32,1],[21,5,21,11],[22,5,22,11],[1,1,1,3],[2,1,2,2],[3,1,3,2],[4,1,4,2],[5,1,5,2],[6,1,6,2]]}
[]
[null,"Table 1: Historic and Projected Emissions"]
[null,"Country Name",null,"Mongolia"]
[null,"Economy Wide CO2e Emissions Target (INDC)",null," 14% reduction in total national GHG emissions by 2030"]
[null,"Total Country CO2e Emissions Under Target (by Target Year) (MT)",null,44.032000000000004]
[null,"Target Year",null,2030]
[null,"Transport CO2 Emissions Target (based on share of total emissions @ 2010)",null,2.7746191780821921]
[null,"Total Country CO2e Emissions (BAU)",1990,27.6981]
[null,null,2000,27.280999999999999]
[null,null,2010,21.9]
[null,null,2020,33]
[null,null,2030,51.2]
[null,"Total Country CO2e Emissions (Low Carbon Scenario)",2020]
[null,null,2030]
[null,"Total Transport CO2e Emissions (BAU)",1990,1.53,{"$f":"D7","v":2.7746191780821921}]
[null,null,2000,0.96]
[null,null,2010,1.38]
[null,null,2020,2.8610611696262023]
[null,null,2030,5.1642566910272212,{"$f":"D7","v":2.7746191780821921}]
[null,"Total Transport CO2e Emissions (Low Carbon Scenario) ",2020,2.5274128290550397]
[null,null,2030,3.809941535743425,{"$f":"D7","v":2.7746191780821921}]
[null,"Historical Growth in CO2e Emissions  (%) Transport Sector","1990-2010",-9.8039215686274606E-2,null,"Figure 1: Projected Transport Emissions: BAU, Low Carbon Scenario, and Transport Target"]
[null,"Growth Forecast CO2e Emissions (%)BAU-Transport Sector","2010-2030",2.7422149934979867]
[null,"Reduction with BAU (%) - Transport (2020)",null,-0.11661698956780908]
[null,"Reduction with BAU (%) - Transport (2030)",null,-0.26224783861671475]
[null,"Transport Share in Total Economy-wide Emissions",1990,5.523844595838704E-2]
[null,null,2000,3.5189325904475641E-2]
[null,null,2010,6.3013698630136991E-2]
[null,null,"2030(BAU)",0.10086438849662541]
[null,null,"2030 (Low)",7.4412920619988762E-2]
[null,"Gap Between INDC Target and Average Low Carbon Scenario (%)",null,0.37314034511101601]
[null,"Cumulative Increase in Transport CO2 (2010-2030) MT (avg)","Baseline",62.605388661696949]
[null,null,"Low Carbon",52.816466909742118]
[null,"Cumulative Reduction in Transport (2010-2030) MT (avg)",null,9.7889217519548311]
[null,"Cumulative Gap Between INDC Target and Average Low Carbon Scenario (MT)",null,-10.799266602527339]
[null,"Cumulative Gap Between INDC Target and BAU (MT)",null,-20.58818835448217]
[]
[]
[null,null,null,null,null,"Figure 2: Transport Share of Economy-Wide Emissions"]
[]
[null,"TIER II FACTSHEET SOURCES"]
[]
[null,"Table 1: Historic and Projected Emissions"]
[null,"Historic Emissions","Submitted National Communications","http://unfccc.int/national_reports/non-annex_i_natcom/submitted_natcom/items/653.php"]
[null,null,"UNFCCC: INDCs as communicated by Parties","http://www4.unfccc.int/submissions/indc/Submission%20Pages/submissions.aspx"]
[null,null,"Submitted Biennial Update Reports","http://unfccc.int/national_reports/non-annex_i_natcom/reporting_on_climate_change/items/8722.php"]
[null,null,"The Climate Pledge INDC Tool","http://infographics.pbl.nl/indc/"]
[null,null,"CAIT Climate Data Explorer","http://cait.wri.org/"]
[null,null,"Climate Equity Reference Calculator","http://gdrights.org/calculator-about/"]
[null,null,"World Bank - World Development Indicators","http://data.worldbank.org/data-catalog/world-development-indicators"]
[null,null,"UNEP Pledge Pipeline Tool","http://www.unep.org/climatechange/pledgepipeline/"]
[null,null,"Climate Action Tracker","http://climateactiontracker.org/"]
[null,"BAU Emissions Projections","Submitted National Communications","http://unfccc.int/national_reports/non-annex_i_natcom/submitted_natcom/items/653.php"]
[null,null,"UNFCCC: INDCs as communicated by Parties","http://www4.unfccc.int/submissions/indc/Submission%20Pages/submissions.aspx"]
[null,null,"Submitted Biennial Update Reports","http://unfccc.int/national_reports/non-annex_i_natcom/reporting_on_climate_change/items/8722.php"]
[null,null,"The Climate Pledge INDC Tool","http://infographics.pbl.nl/indc/"]
[null,null,"Climate Equity Reference Calculator","http://gdrights.org/calculator-about/"]
[null,null,"World Bank - World Development Indicators","http://data.worldbank.org/data-catalog/world-development-indicators"]
[null,null,"UNEP Pledge Pipeline Tool","http://www.unep.org/climatechange/pledgepipeline/"]
[null,null,"Climate Action Tracker","http://climateactiontracker.org/"]
[null,"INDC Targets","UNFCCC: INDCs as communicated by Parties","http://www4.unfccc.int/submissions/indc/Submission%20Pages/submissions.aspx"]
[]
[null,"Figure 1: Projected Transport Emissions: BAU, Low Carbon Scenario, and Derived Target"]
[null,"Derived from Table 1: Historic and Projected Emissions"]
[]
[null,"Figure 2: Transport Share of Economy-Wide Emissions"]
[null,"Derived from Table 1: Historic and Projected Emissions"]

{"sheet":"Montenegro","index":56,"n_rows":67,"n_cols":6,"rows_kept":67,"cut":false,"hidden":false,"merged":[[21,5,21,11],[22,5,22,11],[1,1,1,3],[2,1,2,2],[3,1,3,2],[4,1,4,2],[5,1,5,2],[6,1,6,2],[33,1,33,2],[7,1,11,1],[12,1,13,1],[14,1,18,1],[19,1,20,1],[23,1,23,2],[24,1,24,2],[25,1,29,1],[30,1,30,2],[31,1,32,1],[34,1,34,2],[35,1,35,2],[38,5,38,11],[43,1,51,1],[52,1,59,1]]}
[]
[null,"Table 1: Historic and Projected Emissions"]
[null,"Country Name",null,"Montenegro"]
[null,"Economy Wide CO2e Emissions Target (INDC)",null,"30 % reduction by 2030 compared to the 1990 "]
[null,"Total Country CO2e Emissions Under Target (by Target Year) (MT)",null,3.6673]
[null,"Target Year",null,2030]
[null,"Transport CO2 Emissions Target (based on share of total emissions @ 2010)",null,0.34902579310344828]
[null,"Total Country CO2e Emissions (BAU)",1990,5.2389999999999999]
[null,null,2000]
[null,null,2010,7.25]
[null,null,2020]
[null,null,2030]
[null,"Total Country CO2e Emissions (Low Carbon Scenario)",2020]
[null,null,2030]
[null,"Total Transport CO2e Emissions (BAU)",1990,null,{"$f":"D7","v":0.34902579310344828}]
[null,null,2000]
[null,null,2010,0.69]
[null,null,2020,0.68]
[null,null,2030,1.1599999999999999,{"$f":"D7","v":0.34902579310344828}]
[null,"Total Transport CO2e Emissions (Low Carbon Scenario) ",2020,0.79752204614716549]
[null,null,2030,1.0016400221901756,{"$f":"D7","v":0.34902579310344828}]
[null,"Historical Growth in CO2e Emissions  (%) Transport Sector","1990-2010",null,null,"Figure 1: Projected Transport Emissions: BAU, Low Carbon Scenario, and Transport Target"]
[null,"Growth Forecast CO2e Emissions (%)BAU-Transport Sector","2010-2030",0.68115942028985499]
[null,"Reduction with BAU (%) - Transport (2020)",null,0.17282653845171381]
[null,"Reduction with BAU (%) - Transport (2030)",null,-0.13651722224984864]
[null,"Transport Share in Total Economy-wide Emissions",1990,0]
[null,null,2000]
[null,null,2010,9.5172413793103441E-2]
[null,null,"2030(BAU)"]
[null,null,"2030 (Low)"]
[null,"Gap Between INDC Target and Average Low Carbon Scenario (%)",null,1.8698166209547096]
[null,"Cumulative Increase in Transport CO2 (2010-2030) MT (avg)","Baseline",16.764391571399031]
[null,null,"Low Carbon",17.228057313919649]
[null,"Cumulative Reduction in Transport (2010-2030) MT (avg)",null,-0.4636657425206181]
[null,"Cumulative Gap Between INDC Target and Average Low Carbon Scenario (MT)",null,-6.7016683786464419]
[null,"Cumulative Gap Between INDC Target and BAU (MT)",null,-6.2380026361258238]
[]
[]
[null,null,null,null,null,"Figure 2: Transport Share of Economy-Wide Emissions"]
[]
[null,"TIER II FACTSHEET SOURCES"]
[]
[null,"Table 1: Historic and Projected Emissions"]
[null,"Historic Emissions","Submitted National Communications","http://unfccc.int/national_reports/non-annex_i_natcom/submitted_natcom/items/653.php"]
[null,null,"UNFCCC: INDCs as communicated by Parties","http://www4.unfccc.int/submissions/indc/Submission%20Pages/submissions.aspx"]
[null,null,"Submitted Biennial Update Reports","http://unfccc.int/national_reports/non-annex_i_natcom/reporting_on_climate_change/items/8722.php"]
[null,null,"The Climate Pledge INDC Tool","http://infographics.pbl.nl/indc/"]
[null,null,"CAIT Climate Data Explorer","http://cait.wri.org/"]
[null,null,"Climate Equity Reference Calculator","http://gdrights.org/calculator-about/"]
[null,null,"World Bank - World Development Indicators","http://data.worldbank.org/data-catalog/world-development-indicators"]
[null,null,"UNEP Pledge Pipeline Tool","http://www.unep.org/climatechange/pledgepipeline/"]
[null,null,"Climate Action Tracker","http://climateactiontracker.org/"]
[null,"BAU Emissions Projections","Submitted National Communications","http://unfccc.int/national_reports/non-annex_i_natcom/submitted_natcom/items/653.php"]
[null,null,"UNFCCC: INDCs as communicated by Parties","http://www4.unfccc.int/submissions/indc/Submission%20Pages/submissions.aspx"]
[null,null,"Submitted Biennial Update Reports","http://unfccc.int/national_reports/non-annex_i_natcom/reporting_on_climate_change/items/8722.php"]
[null,null,"The Climate Pledge INDC Tool","http://infographics.pbl.nl/indc/"]
[null,null,"Climate Equity Reference Calculator","http://gdrights.org/calculator-about/"]
[null,null,"World Bank - World Development Indicators","http://data.worldbank.org/data-catalog/world-development-indicators"]
[null,null,"UNEP Pledge Pipeline Tool","http://www.unep.org/climatechange/pledgepipeline/"]
[null,null,"Climate Action Tracker","http://climateactiontracker.org/"]
[null,"INDC Targets","UNFCCC: INDCs as communicated by Parties","http://www4.unfccc.int/submissions/indc/Submission%20Pages/submissions.aspx"]
[]
[null,"Figure 1: Projected Transport Emissions: BAU, Low Carbon Scenario, and Derived Target"]
[null,"Derived from Table 1: Historic and Projected Emissions"]
[]
[null,"Figure 2: Transport Share of Economy-Wide Emissions"]
[null,"Derived from Table 1: Historic and Projected Emissions"]

{"sheet":"Morocco","index":57,"n_rows":67,"n_cols":6,"rows_kept":67,"cut":false,"hidden":false,"merged":[[21,5,21,11],[22,5,22,11],[1,1,1,3],[2,1,2,2],[3,1,3,2],[4,1,4,2],[5,1,5,2],[6,1,6,2],[33,1,33,2],[7,1,11,1],[12,1,13,1],[14,1,18,1],[19,1,20,1],[23,1,23,2],[24,1,24,2],[25,1,29,1],[30,1,30,2],[31,1,32,1],[34,1,34,2],[35,1,35,2],[38,5,38,11],[43,1,51,1],[52,1,59,1]]}
[]
[null,"Table 1: Historic and Projected Emissions"]
[null,"Country Name",null,"Morocco"]
[null,"Economy Wide CO2e Emissions Target (INDC)",null,"32 %  by  2030  compared  to BAU"]
[null,"Total Country CO2e Emissions Under Target (by Target Year) (MT)",null,117]
[null,"Target Year",null,2030]
[null,"Transport CO2 Emissions Target (based on share of total emissions @ 2010)",null,31.8]
[null,"Total Country CO2e Emissions (BAU)",1990,37.5]
[null,null,2000,51]
[null,null,2010,94]
[null,null,2020,122]
[null,null,2030,171]
[null,"Total Country CO2e Emissions (Low Carbon Scenario)",2020]
[null,null,2030]
[null,"Total Transport CO2e Emissions (BAU)",1990,3.85,{"$f":"D7","v":31.8}]
[null,null,2000,8.09]
[null,null,2010,13.47]
[null,null,2020,20.9]
[null,null,2030,37.299999999999997,{"$f":"D7","v":31.8}]
[null,"Total Transport CO2e Emissions (Low Carbon Scenario) ",2020,18.48]
[null,null,2030,27.49,{"$f":"D7","v":31.8}]
[null,"Historical Growth in CO2e Emissions  (%) Transport Sector","1990-2010",2.4987012987012989,null,"Figure 1: Projected Transport Emissions: BAU, Low Carbon Scenario, and Transport Target"]
[null,"Growth Forecast CO2e Emissions (%)BAU-Transport Sector","2010-2030",1.7691165553080919]
[null,"Reduction with BAU (%) - Transport (2020)",null,-0.11578947368421044]
[null,"Reduction with BAU (%) - Transport (2030)",null,-0.26300268096514745]
[null,"Transport Share in Total Economy-wide Emissions",1990,0.10266666666666667]
[null,null,2000,0.15862745098039216]
[null,null,2010,0.14329787234042554]
[null,null,"2030(BAU)",0.21812865497076023]
[null,null,"2030 (Low)",0.16076023391812866]
[null,"Gap Between INDC Target and Average Low Carbon Scenario (%)",null,-0.13553459119496858]
[null,"Cumulative Increase in Transport CO2 (2010-2030) MT (avg)","Baseline",477.75774461358139]
[null,null,"Low Carbon",405.83097893055896]
[null,"Cumulative Reduction in Transport (2010-2030) MT (avg)",null,71.926765683022438]
[null,"Cumulative Gap Between INDC Target and Average Low Carbon Scenario (MT)",null,43.644299856920441]
[null,"Cumulative Gap Between INDC Target and BAU (MT)",null,-28.282465826101998]
[]
[]
[null,null,null,null,null,"Figure 2: Transport Share of Economy-Wide Emissions"]
[]
[null,"TIER II FACTSHEET SOURCES"]
[]
[null,"Table 1: Historic and Projected Emissions"]
[null,"Historic Emissions","Submitted National Communications","http://unfccc.int/national_reports/non-annex_i_natcom/submitted_natcom/items/653.php"]
[null,null,"UNFCCC: INDCs as communicated by Parties","http://www4.unfccc.int/submissions/indc/Submission%20Pages/submissions.aspx"]
[null,null,"Submitted Biennial Update Reports","http://unfccc.int/national_reports/non-annex_i_natcom/reporting_on_climate_change/items/8722.php"]
[null,null,"The Climate Pledge INDC Tool","http://infographics.pbl.nl/indc/"]
[null,null,"CAIT Climate Data Explorer","http://cait.wri.org/"]
[null,null,"Climate Equity Reference Calculator","http://gdrights.org/calculator-about/"]
[null,null,"World Bank - World Development Indicators","http://data.worldbank.org/data-catalog/world-development-indicators"]
[null,null,"UNEP Pledge Pipeline Tool","http://www.unep.org/climatechange/pledgepipeline/"]
[null,null,"Climate Action Tracker","http://climateactiontracker.org/"]
[null,"BAU Emissions Projections","Submitted National Communications","http://unfccc.int/national_reports/non-annex_i_natcom/submitted_natcom/items/653.php"]
[null,null,"UNFCCC: INDCs as communicated by Parties","http://www4.unfccc.int/submissions/indc/Submission%20Pages/submissions.aspx"]
[null,null,"Submitted Biennial Update Reports","http://unfccc.int/national_reports/non-annex_i_natcom/reporting_on_climate_change/items/8722.php"]
[null,null,"The Climate Pledge INDC Tool","http://infographics.pbl.nl/indc/"]
[null,null,"Climate Equity Reference Calculator","http://gdrights.org/calculator-about/"]
[null,null,"World Bank - World Development Indicators","http://data.worldbank.org/data-catalog/world-development-indicators"]
[null,null,"UNEP Pledge Pipeline Tool","http://www.unep.org/climatechange/pledgepipeline/"]
[null,null,"Climate Action Tracker","http://climateactiontracker.org/"]
[null,"INDC Targets","UNFCCC: INDCs as communicated by Parties","http://www4.unfccc.int/submissions/indc/Submission%20Pages/submissions.aspx"]
[]
[null,"Figure 1: Projected Transport Emissions: BAU, Low Carbon Scenario, and Derived Target"]
[null,"Derived from Table 1: Historic and Projected Emissions"]
[]
[null,"Figure 2: Transport Share of Economy-Wide Emissions"]
[null,"Derived from Table 1: Historic and Projected Emissions"]

{"sheet":"Mozambique","index":58,"n_rows":67,"n_cols":6,"rows_kept":67,"cut":false,"hidden":false,"merged":[[34,1,34,2],[35,1,35,2],[38,5,38,11],[43,1,51,1],[52,1,59,1],[33,1,33,2],[7,1,11,1],[12,1,13,1],[14,1,18,1],[19,1,20,1],[23,1,23,2],[24,1,24,2],[25,1,29,1],[30,1,30,2],[31,1,32,1],[21,5,21,11],[22,5,22,11],[1,1,1,3],[2,1,2,2],[3,1,3,2],[4,1,4,2],[5,1,5,2],[6,1,6,2]]}
[]
[null,"Table 1: Historic and Projected Emissions"]
[null,"Country Name",null,"Mozambique"]
[null,"Economy Wide CO2e Emissions Target (INDC)",null,"total reduction of 76.5 Mt of CO2 between 2020 to 2030"]
[null,"Total Country CO2e Emissions Under Target (by Target Year) (MT)",null,14.25]
[null,"Target Year",null,2030]
[null,"Transport CO2 Emissions Target (based on share of total emissions @ 2010)",null,1.5854430379746836]
[null,"Total Country CO2e Emissions (BAU)",1990,18.079699999999999]
[null,null,2000,18.469000000000001]
[null,null,2010,15.01]
[null,null,2020,18.23]
[null,null,2030,23.93]
[null,"Total Country CO2e Emissions (Low Carbon Scenario)",2020]
[null,null,2030]
[null,"Total Transport CO2e Emissions (BAU)",1990,0.6,{"$f":"D7","v":1.5854430379746836}]
[null,null,2000,0.84]
[null,null,2010,1.67]
[null,null,2020,3.2442425238618267]
[null,null,2030,7.605680924130473,{"$f":"D7","v":1.5854430379746836}]
[null,"Total Transport CO2e Emissions (Low Carbon Scenario) ",2020,2.8659087273011892]
[null,null,2030,5.6111075405688791,{"$f":"D7","v":1.5854430379746836}]
[null,"Historical Growth in CO2e Emissions  (%) Transport Sector","1990-2010",1.7833333333333332,null,"Figure 1: Projected Transport Emissions: BAU, Low Carbon Scenario, and Transport Target"]
[null,"Growth Forecast CO2e Emissions (%)BAU-Transport Sector","2010-2030",3.5542999545691458]
[null,"Reduction with BAU (%) - Transport (2020)",null,-0.11661698956780919]
[null,"Reduction with BAU (%) - Transport (2030)",null,-0.26224783861671475]
[null,"Transport Share in Total Economy-wide Emissions",1990,3.3186391367113391E-2]
[null,null,2000,4.5481617846120523E-2]
[null,null,2010,0.11125916055962691]
[null,null,"2030(BAU)",0.31783037710532691]
[null,null,"2030 (Low)",0.23448004766271957]
[null,"Gap Between INDC Target and Average Low Carbon Scenario (%)",null,2.5391416822749817]
[null,"Cumulative Increase in Transport CO2 (2010-2030) MT (avg)","Baseline",79.573682409448466]
[null,null,"Low Carbon",66.664750578896687]
[null,"Cumulative Reduction in Transport (2010-2030) MT (avg)",null,12.908931830551779]
[null,"Cumulative Gap Between INDC Target and Average Low Carbon Scenario (MT)",null,-32.489902640320608]
[null,"Cumulative Gap Between INDC Target and BAU (MT)",null,-45.398834470872387]
[]
[]
[null,null,null,null,null,"Figure 2: Transport Share of Economy-Wide Emissions"]
[]
[null,"TIER II FACTSHEET SOURCES"]
[]
[null,"Table 1: Historic and Projected Emissions"]
[null,"Historic Emissions","Submitted National Communications","http://unfccc.int/national_reports/non-annex_i_natcom/submitted_natcom/items/653.php"]
[null,null,"UNFCCC: INDCs as communicated by Parties","http://www4.unfccc.int/submissions/indc/Submission%20Pages/submissions.aspx"]
[null,null,"Submitted Biennial Update Reports","http://unfccc.int/national_reports/non-annex_i_natcom/reporting_on_climate_change/items/8722.php"]
[null,null,"The Climate Pledge INDC Tool","http://infographics.pbl.nl/indc/"]
[null,null,"CAIT Climate Data Explorer","http://cait.wri.org/"]
[null,null,"Climate Equity Reference Calculator","http://gdrights.org/calculator-about/"]
[null,null,"World Bank - World Development Indicators","http://data.worldbank.org/data-catalog/world-development-indicators"]
[null,null,"UNEP Pledge Pipeline Tool","http://www.unep.org/climatechange/pledgepipeline/"]
[null,null,"Climate Action Tracker","http://climateactiontracker.org/"]
[null,"BAU Emissions Projections","Submitted National Communications","http://unfccc.int/national_reports/non-annex_i_natcom/submitted_natcom/items/653.php"]
[null,null,"UNFCCC: INDCs as communicated by Parties","http://www4.unfccc.int/submissions/indc/Submission%20Pages/submissions.aspx"]
[null,null,"Submitted Biennial Update Reports","http://unfccc.int/national_reports/non-annex_i_natcom/reporting_on_climate_change/items/8722.php"]
[null,null,"The Climate Pledge INDC Tool","http://infographics.pbl.nl/indc/"]
[null,null,"Climate Equity Reference Calculator","http://gdrights.org/calculator-about/"]
[null,null,"World Bank - World Development Indicators","http://data.worldbank.org/data-catalog/world-development-indicators"]
[null,null,"UNEP Pledge Pipeline Tool","http://www.unep.org/climatechange/pledgepipeline/"]
[null,null,"Climate Action Tracker","http://climateactiontracker.org/"]
[null,"INDC Targets","UNFCCC: INDCs as communicated by Parties","http://www4.unfccc.int/submissions/indc/Submission%20Pages/submissions.aspx"]
[]
[null,"Figure 1: Projected Transport Emissions: BAU, Low Carbon Scenario, and Derived Target"]
[null,"Derived from Table 1: Historic and Projected Emissions"]
[]
[null,"Figure 2: Transport Share of Economy-Wide Emissions"]
[null,"Derived from Table 1: Historic and Projected Emissions"]

{"sheet":"Namibia","index":59,"n_rows":67,"n_cols":6,"rows_kept":67,"cut":false,"hidden":false,"merged":[[21,5,21,11],[22,5,22,11],[1,1,1,3],[2,1,2,2],[3,1,3,2],[4,1,4,2],[5,1,5,2],[6,1,6,2],[33,1,33,2],[7,1,11,1],[12,1,13,1],[14,1,18,1],[19,1,20,1],[23,1,23,2],[24,1,24,2],[25,1,29,1],[30,1,30,2],[31,1,32,1],[34,1,34,2],[35,1,35,2],[38,5,38,11],[43,1,51,1],[52,1,59,1]]}
[]
[null,"Table 1: Historic and Projected Emissions"]
[null,"Country Name",null,"Namibia"]
[null,"Economy Wide CO2e Emissions Target (INDC)",null,"Reduction by 89 % compared to the BAU in 2030"]
[null,"Total Country CO2e Emissions Under Target (by Target Year) (MT)"]
[null,"Target Year",null,2030]
[null,"Transport CO2 Emissions Target (based on share of total emissions @ 2010)",null,3.7414584689704111]
[null,"Total Country CO2e Emissions (BAU)",1990,7.42]
[null,null,2000,11.886000000000001]
[null,null,2010,11.23]
[null,null,2020,12.441000000000001]
[null,null,2030,22.646999999999998]
[null,"Total Country CO2e Emissions (Low Carbon Scenario)",2020]
[null,null,2030]
[null,"Total Transport CO2e Emissions (BAU)",1990,0.47,{"$f":"D7","v":3.7414584689704111}]
[null,null,2000,1.0249999999999999]
[null,null,2010,1.77]
[null,null,2020,2.2716827492522924]
[null,null,2030,3.9676123743058445,{"$f":"D7","v":3.7414584689704111}]
[null,"Total Transport CO2e Emissions (Low Carbon Scenario) ",2020,2.0067659457813658]
[null,null,2030,2.927114604675205,{"$f":"D7","v":3.7414584689704111}]
[null,"Historical Growth in CO2e Emissions  (%) Transport Sector","1990-2010",2.7659574468085109,null,"Figure 1: Projected Transport Emissions: BAU, Low Carbon Scenario, and Transport Target"]
[null,"Growth Forecast CO2e Emissions (%)BAU-Transport Sector","2010-2030",1.2415889120372001]
[null,"Reduction with BAU (%) - Transport (2020)",null,-0.11661698956780919]
[null,"Reduction with BAU (%) - Transport (2030)",null,-0.26224783861671475]
[null,"Transport Share in Total Economy-wide Emissions",1990,6.3342318059299185E-2]
[null,null,2000,8.6235907790678093E-2]
[null,null,2010,0.15761353517364202]
[null,null,"2030(BAU)",0.1751937287192937]
[null,null,"2030 (Low)",0.12924955202345587]
[null,"Gap Between INDC Target and Average Low Carbon Scenario (%)",null,-0.21765412366565717]
[null,"Cumulative Increase in Transport CO2 (2010-2030) MT (avg)","Baseline",53.394352973915403]
[null,null,"Low Carbon",45.591333029724801]
[null,"Cumulative Reduction in Transport (2010-2030) MT (avg)",null,7.8030199441906021]
[null,"Cumulative Gap Between INDC Target and Average Low Carbon Scenario (MT)",null,9.8484102791551464]
[null,"Cumulative Gap Between INDC Target and BAU (MT)",null,2.0453903349645444]
[]
[]
[null,null,null,null,null,"Figure 2: Transport Share of Economy-Wide Emissions"]
[]
[null,"TIER II FACTSHEET SOURCES"]
[]
[null,"Table 1: Historic and Projected Emissions"]
[null,"Historic Emissions","Submitted National Communications","http://unfccc.int/national_reports/non-annex_i_natcom/submitted_natcom/items/653.php"]
[null,null,"UNFCCC: INDCs as communicated by Parties","http://www4.unfccc.int/submissions/indc/Submission%20Pages/submissions.aspx"]
[null,null,"Submitted Biennial Update Reports","http://unfccc.int/national_reports/non-annex_i_natcom/reporting_on_climate_change/items/8722.php"]
[null,null,"The Climate Pledge INDC Tool","http://infographics.pbl.nl/indc/"]
[null,null,"CAIT Climate Data Explorer","http://cait.wri.org/"]
[null,null,"Climate Equity Reference Calculator","http://gdrights.org/calculator-about/"]
[null,null,"World Bank - World Development Indicators","http://data.worldbank.org/data-catalog/world-development-indicators"]
[null,null,"UNEP Pledge Pipeline Tool","http://www.unep.org/climatechange/pledgepipeline/"]
[null,null,"Climate Action Tracker","http://climateactiontracker.org/"]
[null,"BAU Emissions Projections","Submitted National Communications","http://unfccc.int/national_reports/non-annex_i_natcom/submitted_natcom/items/653.php"]
[null,null,"UNFCCC: INDCs as communicated by Parties","http://www4.unfccc.int/submissions/indc/Submission%20Pages/submissions.aspx"]
[null,null,"Submitted Biennial Update Reports","http://unfccc.int/national_reports/non-annex_i_natcom/reporting_on_climate_change/items/8722.php"]
[null,null,"The Climate Pledge INDC Tool","http://infographics.pbl.nl/indc/"]
[null,null,"Climate Equity Reference Calculator","http://gdrights.org/calculator-about/"]
[null,null,"World Bank - World Development Indicators","http://data.worldbank.org/data-catalog/world-development-indicators"]
[null,null,"UNEP Pledge Pipeline Tool","http://www.unep.org/climatechange/pledgepipeline/"]
[null,null,"Climate Action Tracker","http://climateactiontracker.org/"]
[null,"INDC Targets","UNFCCC: INDCs as communicated by Parties","http://www4.unfccc.int/submissions/indc/Submission%20Pages/submissions.aspx"]
[]
[null,"Figure 1: Projected Transport Emissions: BAU, Low Carbon Scenario, and Derived Target"]
[null,"Derived from Table 1: Historic and Projected Emissions"]
[]
[null,"Figure 2: Transport Share of Economy-Wide Emissions"]
[null,"Derived from Table 1: Historic and Projected Emissions"]

{"sheet":"Niger","index":60,"n_rows":67,"n_cols":6,"rows_kept":67,"cut":false,"hidden":false,"merged":[[21,5,21,11],[22,5,22,11],[1,1,1,3],[2,1,2,2],[3,1,3,2],[4,1,4,2],[5,1,5,2],[6,1,6,2],[33,1,33,2],[7,1,11,1],[12,1,13,1],[14,1,18,1],[19,1,20,1],[23,1,23,2],[24,1,24,2],[25,1,29,1],[30,1,30,2],[31,1,32,1],[34,1,34,2],[35,1,35,2],[38,5,38,11],[43,1,51,1],[52,1,59,1]]}
[]
[null,"Table 1: Historic and Projected Emissions"]
[null,"Country Name",null,"Niger"]
[null,"Economy Wide CO2e Emissions Target (INDC)",null,"34.6% reduction below BAU"]
[null,"Total Country CO2e Emissions Under Target (by Target Year) (MT)",null,63.090072000000006]
[null,"Target Year",null,2030]
[null,"Transport CO2 Emissions Target (based on share of total emissions @ 2010)",null,1.4983892100000002]
[null,"Total Country CO2e Emissions (BAU)",1990,4.8520000000000003]
[null,null,2000,13.627000000000001]
[null,null,2010,40]
[null,null,2020,66.820999999999998]
[null,null,2030,96.468000000000004]
[null,"Total Country CO2e Emissions (Low Carbon Scenario)",2020]
[null,null,2030]
[null,"Total Transport CO2e Emissions (BAU)",1990,0.23232535628000003,{"$f":"D7","v":1.4983892100000002}]
[null,null,2000,0.75692370675999998]
[null,null,2010,0.95]
[null,null,2020,2.0876532151883325]
[null,null,2030,5.5442408581177016,{"$f":"D7","v":1.4983892100000002}]
[null,"Total Transport CO2e Emissions (Low Carbon Scenario) ",2020,1.8441973819715114]
[null,null,2030,4.0902756763058541,{"$f":"D7","v":1.4983892100000002}]
[null,"Historical Growth in CO2e Emissions  (%) Transport Sector","1990-2010",3.0890930512769934,null,"Figure 1: Projected Transport Emissions: BAU, Low Carbon Scenario, and Transport Target"]
[null,"Growth Forecast CO2e Emissions (%)BAU-Transport Sector","2010-2030",4.8360430085449497]
[null,"Reduction with BAU (%) - Transport (2020)",null,-0.11661698956780919]
[null,"Reduction with BAU (%) - Transport (2030)",null,-0.26224783861671486]
[null,"Transport Share in Total Economy-wide Emissions",1990,4.7882390000000004E-2]
[null,null,2000,5.5545879999999999E-2]
[null,null,2010,2.375E-2]
[null,null,"2030(BAU)",5.7472331323523876E-2]
[null,null,"2030 (Low)",4.2400336653666021E-2]
[null,"Gap Between INDC Target and Average Low Carbon Scenario (%)",null,1.7297818544127486]
[null,"Cumulative Increase in Transport CO2 (2010-2030) MT (avg)","Baseline",53.121933272616452]
[null,null,"Low Carbon",44.217203385358694]
[null,"Cumulative Reduction in Transport (2010-2030) MT (avg)",null,8.9047298872577585]
[null,"Cumulative Gap Between INDC Target and Average Low Carbon Scenario (MT)",null,-18.923128133924919]
[null,"Cumulative Gap Between INDC Target and BAU (MT)",null,-27.827858021182678]
[]
[]
[null,null,null,null,null,"Figure 2: Transport Share of Economy-Wide Emissions"]
[]
[null,"TIER II FACTSHEET SOURCES"]
[]
[null,"Table 1: Historic and Projected Emissions"]
[null,"Historic Emissions","Submitted National Communications","http://unfccc.int/national_reports/non-annex_i_natcom/submitted_natcom/items/653.php"]
[null,null,"UNFCCC: INDCs as communicated by Parties","http://www4.unfccc.int/submissions/indc/Submission%20Pages/submissions.aspx"]
[null,null,"Submitted Biennial Update Reports","http://unfccc.int/national_reports/non-annex_i_natcom/reporting_on_climate_change/items/8722.php"]
[null,null,"The Climate Pledge INDC Tool","http://infographics.pbl.nl/indc/"]
[null,null,"CAIT Climate Data Explorer","http://cait.wri.org/"]
[null,null,"Climate Equity Reference Calculator","http://gdrights.org/calculator-about/"]
[null,null,"World Bank - World Development Indicators","http://data.worldbank.org/data-catalog/world-development-indicators"]
[null,null,"UNEP Pledge Pipeline Tool","http://www.unep.org/climatechange/pledgepipeline/"]
[null,null,"Climate Action Tracker","http://climateactiontracker.org/"]
[null,"BAU Emissions Projections","Submitted National Communications","http://unfccc.int/national_reports/non-annex_i_natcom/submitted_natcom/items/653.php"]
[null,null,"UNFCCC: INDCs as communicated by Parties","http://www4.unfccc.int/submissions/indc/Submission%20Pages/submissions.aspx"]
[null,null,"Submitted Biennial Update Reports","http://unfccc.int/national_reports/non-annex_i_natcom/reporting_on_climate_change/items/8722.php"]
[null,null,"The Climate Pledge INDC Tool","http://infographics.pbl.nl/indc/"]
[null,null,"Climate Equity Reference Calculator","http://gdrights.org/calculator-about/"]
[null,null,"World Bank - World Development Indicators","http://data.worldbank.org/data-catalog/world-development-indicators"]
[null,null,"UNEP Pledge Pipeline Tool","http://www.unep.org/climatechange/pledgepipeline/"]
[null,null,"Climate Action Tracker","http://climateactiontracker.org/"]
[null,"INDC Targets","UNFCCC: INDCs as communicated by Parties","http://www4.unfccc.int/submissions/indc/Submission%20Pages/submissions.aspx"]
[]
[null,"Figure 1: Projected Transport Emissions: BAU, Low Carbon Scenario, and Derived Target"]
[null,"Derived from Table 1: Historic and Projected Emissions"]
[]
[null,"Figure 2: Transport Share of Economy-Wide Emissions"]
[null,"Derived from Table 1: Historic and Projected Emissions"]

{"sheet":"Oman","index":61,"n_rows":67,"n_cols":6,"rows_kept":67,"cut":false,"hidden":false,"merged":[[34,1,34,2],[35,1,35,2],[38,5,38,11],[43,1,51,1],[52,1,59,1],[33,1,33,2],[7,1,11,1],[12,1,13,1],[14,1,18,1],[19,1,20,1],[23,1,23,2],[24,1,24,2],[25,1,29,1],[30,1,30,2],[31,1,32,1],[21,5,21,11],[22,5,22,11],[1,1,1,3],[2,1,2,2],[3,1,3,2],[4,1,4,2],[5,1,5,2],[6,1,6,2]]}
[]
[null,"Table 1: Historic and Projected Emissions"]
[null,"Country Name",null,"Oman"]
[null,"Economy Wide CO2e Emissions Target (INDC)",null,"Reduction by 2% below BAU by 2030"]
[null,"Total Country CO2e Emissions Under Target (by Target Year) (MT)",null,88.7]
[null,"Target Year",null,2030]
[null,"Transport CO2 Emissions Target (based on share of total emissions @ 2010)",null,13.972361904761904]
[null,"Total Country CO2e Emissions (BAU)",1990,25.5]
[null,null,2000,26.5]
[null,null,2010,52.5]
[null,null,2020,80]
[null,null,2030,90.524000000000001]
[null,"Total Country CO2e Emissions (Low Carbon Scenario)",2020]
[null,null,2030]
[null,"Total Transport CO2e Emissions (BAU)",1990,1.67,{"$f":"D7","v":13.972361904761904}]
[null,null,2000,2.6]
[null,null,2010,8.27]
[null,null,2020,12.100508265955565]
[null,null,2030,21.06358932429648,{"$f":"D7","v":13.972361904761904}]
[null,"Total Transport CO2e Emissions (Low Carbon Scenario) ",2020,10.689383419739436]
[null,null,2030,15.539708550489621,{"$f":"D7","v":13.972361904761904}]
[null,"Historical Growth in CO2e Emissions  (%) Transport Sector","1990-2010",3.9520958083832332,null,"Figure 1: Projected Transport Emissions: BAU, Low Carbon Scenario, and Transport Target"]
[null,"Growth Forecast CO2e Emissions (%)BAU-Transport Sector","2010-2030",1.5469878263961889]
[null,"Reduction with BAU (%) - Transport (2020)",null,-0.11661698956780919]
[null,"Reduction with BAU (%) - Transport (2030)",null,-0.26224783861671475]
[null,"Transport Share in Total Economy-wide Emissions",1990,6.5490196078431373E-2]
[null,null,2000,9.8113207547169817E-2]
[null,null,2010,0.15752380952380951]
[null,null,"2030(BAU)",0.23268513680677477]
[null,null,"2030 (Low)",0.1716639626009635]
[null,"Gap Between INDC Target and Average Low Carbon Scenario (%)",null,0.11217478164472339]
[null,"Cumulative Increase in Transport CO2 (2010-2030) MT (avg)","Baseline",277.06220734059616]
[null,null,"Low Carbon",235.84195175913999]
[null,"Cumulative Reduction in Transport (2010-2030) MT (avg)",null,41.220255581456172]
[null,"Cumulative Gap Between INDC Target and Average Low Carbon Scenario (MT)",null,-7.2462996306145442]
[null,"Cumulative Gap Between INDC Target and BAU (MT)",null,-48.466555212070716]
[]
[]
[null,null,null,null,null,"Figure 2: Transport Share of Economy-Wide Emissions"]
[]
[null,"TIER II FACTSHEET SOURCES"]
[]
[null,"Table 1: Historic and Projected Emissions"]
[null,"Historic Emissions","Submitted National Communications","http://unfccc.int/national_reports/non-annex_i_natcom/submitted_natcom/items/653.php"]
[null,null,"UNFCCC: INDCs as communicated by Parties","http://www4.unfccc.int/submissions/indc/Submission%20Pages/submissions.aspx"]
[null,null,"Submitted Biennial Update Reports","http://unfccc.int/national_reports/non-annex_i_natcom/reporting_on_climate_change/items/8722.php"]
[null,null,"The Climate Pledge INDC Tool","http://infographics.pbl.nl/indc/"]
[null,null,"CAIT Climate Data Explorer","http://cait.wri.org/"]
[null,null,"Climate Equity Reference Calculator","http://gdrights.org/calculator-about/"]
[null,null,"World Bank - World Development Indicators","http://data.worldbank.org/data-catalog/world-development-indicators"]
[null,null,"UNEP Pledge Pipeline Tool","http://www.unep.org/climatechange/pledgepipeline/"]
[null,null,"Climate Action Tracker","http://climateactiontracker.org/"]
[null,"BAU Emissions Projections","Submitted National Communications","http://unfccc.int/national_reports/non-annex_i_natcom/submitted_natcom/items/653.php"]
[null,null,"UNFCCC: INDCs as communicated by Parties","http://www4.unfccc.int/submissions/indc/Submission%20Pages/submissions.aspx"]
[null,null,"Submitted Biennial Update Reports","http://unfccc.int/national_reports/non-annex_i_natcom/reporting_on_climate_change/items/8722.php"]
[null,null,"The Climate Pledge INDC Tool","http://infographics.pbl.nl/indc/"]
[null,null,"Climate Equity Reference Calculator","http://gdrights.org/calculator-about/"]
[null,null,"World Bank - World Development Indicators","http://data.worldbank.org/data-catalog/world-development-indicators"]
[null,null,"UNEP Pledge Pipeline Tool","http://www.unep.org/climatechange/pledgepipeline/"]
[null,null,"Climate Action Tracker","http://climateactiontracker.org/"]
[null,"INDC Targets","UNFCCC: INDCs as communicated by Parties","http://www4.unfccc.int/submissions/indc/Submission%20Pages/submissions.aspx"]
[]
[null,"Figure 1: Projected Transport Emissions: BAU, Low Carbon Scenario, and Derived Target"]
[null,"Derived from Table 1: Historic and Projected Emissions"]
[]
[null,"Figure 2: Transport Share of Economy-Wide Emissions"]
[null,"Derived from Table 1: Historic and Projected Emissions"]

{"sheet":"Paraguay","index":62,"n_rows":67,"n_cols":6,"rows_kept":67,"cut":false,"hidden":false,"merged":[[21,5,21,11],[22,5,22,11],[1,1,1,3],[2,1,2,2],[3,1,3,2],[4,1,4,2],[5,1,5,2],[6,1,6,2],[33,1,33,2],[7,1,11,1],[12,1,13,1],[14,1,18,1],[19,1,20,1],[23,1,23,2],[24,1,24,2],[25,1,29,1],[30,1,30,2],[31,1,32,1],[34,1,34,2],[35,1,35,2],[38,5,38,11],[43,1,51,1],[52,1,59,1]]}
[]
[null,"Table 1: Historic and Projected Emissions"]
[null,"Country Name",null,"Paraguay"]
[null,"Economy Wide CO2e Emissions Target (INDC)",null,"20% reduction from BAU by 2030"]
[null,"Total Country CO2e Emissions Under Target (by Target Year) (MT)",null,32.799999999999997]
[null,"Target Year",null,2030]
[null,"Transport CO2 Emissions Target (based on share of total emissions @ 2010)",null,2.7995800629593166]
[null,"Total Country CO2e Emissions (BAU)",1990,63.833492]
[null,null,2000,39.439470999999998]
[null,null,2010,50.027503000558148]
[null,null,2020,35]
[null,null,2030,41]
[null,"Total Country CO2e Emissions (Low Carbon Scenario)",2020]
[null,null,2030]
[null,"Total Transport CO2e Emissions (BAU)",1990,1.6,{"$f":"D7","v":2.7995800629593166}]
[null,null,2000,2.77]
[null,null,2010,4.2699999999999996]
[null,null,2020,5.3547632988733689]
[null,null,2030,8.4092588890873383,{"$f":"D7","v":2.7995800629593166}]
[null,"Total Transport CO2e Emissions (Low Carbon Scenario) ",2020,4.7303069231105654]
[null,null,2030,6.2039489210557885,{"$f":"D7","v":2.7995800629593166}]
[null,"Historical Growth in CO2e Emissions  (%) Transport Sector","1990-2010",1.6687499999999997,null,"Figure 1: Projected Transport Emissions: BAU, Low Carbon Scenario, and Transport Target"]
[null,"Growth Forecast CO2e Emissions (%)BAU-Transport Sector","2010-2030",0.96938147285417786]
[null,"Reduction with BAU (%) - Transport (2020)",null,-0.11661698956780919]
[null,"Reduction with BAU (%) - Transport (2030)",null,-0.26224783861671475]
[null,"Transport Share in Total Economy-wide Emissions",1990,2.5065211848350706E-2]
[null,null,2000,7.0234207755981312E-2]
[null,null,2010,8.5353050699979172E-2]
[null,null,"2030(BAU)",0.20510387534359362]
[null,null,"2030 (Low)",0.15131582734282412]
[null,"Gap Between INDC Target and Average Low Carbon Scenario (%)",null,1.2160283976654194]
[null,"Cumulative Increase in Transport CO2 (2010-2030) MT (avg)","Baseline",121.94764974941356]
[null,null,"Low Carbon",104.54161721552138]
[null,"Cumulative Reduction in Transport (2010-2030) MT (avg)",null,17.406032533892173]
[null,"Cumulative Gap Between INDC Target and Average Low Carbon Scenario (MT)",null,-31.339929701310211]
[null,"Cumulative Gap Between INDC Target and BAU (MT)",null,-48.745962235202384]
[]
[]
[null,null,null,null,null,"Figure 2: Transport Share of Economy-Wide Emissions"]
[]
[null,"TIER II FACTSHEET SOURCES"]
[]
[null,"Table 1: Historic and Projected Emissions"]
[null,"Historic Emissions","Submitted National Communications","http://unfccc.int/national_reports/non-annex_i_natcom/submitted_natcom/items/653.php"]
[null,null,"UNFCCC: INDCs as communicated by Parties","http://www4.unfccc.int/submissions/indc/Submission%20Pages/submissions.aspx"]
[null,null,"Submitted Biennial Update Reports","http://unfccc.int/national_reports/non-annex_i_natcom/reporting_on_climate_change/items/8722.php"]
[null,null,"The Climate Pledge INDC Tool","http://infographics.pbl.nl/indc/"]
[null,null,"CAIT Climate Data Explorer","http://cait.wri.org/"]
[null,null,"Climate Equity Reference Calculator","http://gdrights.org/calculator-about/"]
[null,null,"World Bank - World Development Indicators","http://data.worldbank.org/data-catalog/world-development-indicators"]
[null,null,"UNEP Pledge Pipeline Tool","http://www.unep.org/climatechange/pledgepipeline/"]
[null,null,"Climate Action Tracker","http://climateactiontracker.org/"]
[null,"BAU Emissions Projections","Submitted National Communications","http://unfccc.int/national_reports/non-annex_i_natcom/submitted_natcom/items/653.php"]
[null,null,"UNFCCC: INDCs as communicated by Parties","http://www4.unfccc.int/submissions/indc/Submission%20Pages/submissions.aspx"]
[null,null,"Submitted Biennial Update Reports","http://unfccc.int/national_reports/non-annex_i_natcom/reporting_on_climate_change/items/8722.php"]
[null,null,"The Climate Pledge INDC Tool","http://infographics.pbl.nl/indc/"]
[null,null,"Climate Equity Reference Calculator","http://gdrights.org/calculator-about/"]
[null,null,"World Bank - World Development Indicators","http://data.worldbank.org/data-catalog/world-development-indicators"]
[null,null,"UNEP Pledge Pipeline Tool","http://www.unep.org/climatechange/pledgepipeline/"]
[null,null,"Climate Action Tracker","http://climateactiontracker.org/"]
[null,"INDC Targets","UNFCCC: INDCs as communicated by Parties","http://www4.unfccc.int/submissions/indc/Submission%20Pages/submissions.aspx"]
[]
[null,"Figure 1: Projected Transport Emissions: BAU, Low Carbon Scenario, and Derived Target"]
[null,"Derived from Table 1: Historic and Projected Emissions"]
[]
[null,"Figure 2: Transport Share of Economy-Wide Emissions"]
[null,"Derived from Table 1: Historic and Projected Emissions"]

{"sheet":"Peru","index":63,"n_rows":67,"n_cols":6,"rows_kept":67,"cut":false,"hidden":false,"merged":[[21,5,21,11],[22,5,22,11],[1,1,1,3],[2,1,2,2],[3,1,3,2],[4,1,4,2],[5,1,5,2],[6,1,6,2],[33,1,33,2],[7,1,11,1],[12,1,13,1],[14,1,18,1],[19,1,20,1],[23,1,23,2],[24,1,24,2],[25,1,29,1],[30,1,30,2],[31,1,32,1],[34,1,34,2],[35,1,35,2],[38,5,38,11],[43,1,51,1],[52,1,59,1]]}
[]
[null,"Table 1: Historic and Projected Emissions"]
[null,"Country Name",null,"Peru"]
[null,"Economy Wide CO2e Emissions Target (INDC)",null,"30% reduction from BAU by 2030"]
[null,"Total Country CO2e Emissions Under Target (by Target Year) (MT)",null,97.510000000000019]
[null,"Target Year",null,2030]
[null,"Transport CO2 Emissions Target (based on share of total emissions @ 2010)",null,20.339585897435899]
[null,"Total Country CO2e Emissions (BAU)",1990,57.6]
[null,null,2000,63.2]
[null,null,2010,78]
[null,null,2020,108]
[null,null,2030,139.30000000000001]
[null,"Total Country CO2e Emissions (Low Carbon Scenario)",2020]
[null,null,2030]
[null,"Total Transport CO2e Emissions (BAU)",1990,7.06,{"$f":"D7","v":20.339585897435899}]
[null,null,2000,9.61]
[null,null,2010,16.27]
[null,null,2020,26.711239130376498]
[null,null,2030,46.167204025753037,{"$f":"D7","v":20.339585897435899}]
[null,"Total Transport CO2e Emissions (Low Carbon Scenario) ",2020,23.596254835366125]
[null,null,2030,34.059954555022415,{"$f":"D7","v":20.339585897435899}]
[null,"Historical Growth in CO2e Emissions  (%) Transport Sector","1990-2010",1.3045325779036827,null,"Figure 1: Projected Transport Emissions: BAU, Low Carbon Scenario, and Transport Target"]
[null,"Growth Forecast CO2e Emissions (%)BAU-Transport Sector","2010-2030",1.8375663199602359]
[null,"Reduction with BAU (%) - Transport (2020)",null,-0.11661698956780919]
[null,"Reduction with BAU (%) - Transport (2030)",null,-0.26224783861671463]
[null,"Transport Share in Total Economy-wide Emissions",1990,0.12256944444444444]
[null,null,2000,0.15205696202531643]
[null,null,2010,0.20858974358974358]
[null,null,"2030(BAU)",0.33142285732773175]
[null,null,"2030 (Low)",0.24450792932535831]
[null,"Gap Between INDC Target and Average Low Carbon Scenario (%)",null,0.67456479825954418]
[null,"Cumulative Increase in Transport CO2 (2010-2030) MT (avg)","Baseline",597.52506794275746]
[null,null,"Low Carbon",507.37422022415933]
[null,"Cumulative Reduction in Transport (2010-2030) MT (avg)",null,90.150847718598129]
[null,"Cumulative Gap Between INDC Target and Average Low Carbon Scenario (MT)",null,-124.48272524067863]
[null,"Cumulative Gap Between INDC Target and BAU (MT)",null,-214.63357295927676]
[]
[]
[null,null,null,null,null,"Figure 2: Transport Share of Economy-Wide Emissions"]
[]
[null,"TIER II FACTSHEET SOURCES"]
[]
[null,"Table 1: Historic and Projected Emissions"]
[null,"Historic Emissions","Submitted National Communications","http://unfccc.int/national_reports/non-annex_i_natcom/submitted_natcom/items/653.php"]
[null,null,"UNFCCC: INDCs as communicated by Parties","http://www4.unfccc.int/submissions/indc/Submission%20Pages/submissions.aspx"]
[null,null,"Submitted Biennial Update Reports","http://unfccc.int/national_reports/non-annex_i_natcom/reporting_on_climate_change/items/8722.php"]
[null,null,"The Climate Pledge INDC Tool","http://infographics.pbl.nl/indc/"]
[null,null,"CAIT Climate Data Explorer","http://cait.wri.org/"]
[null,null,"Climate Equity Reference Calculator","http://gdrights.org/calculator-about/"]
[null,null,"World Bank - World Development Indicators","http://data.worldbank.org/data-catalog/world-development-indicators"]
[null,null,"UNEP Pledge Pipeline Tool","http://www.unep.org/climatechange/pledgepipeline/"]
[null,null,"Climate Action Tracker","http://climateactiontracker.org/"]
[null,"BAU Emissions Projections","Submitted National Communications","http://unfccc.int/national_reports/non-annex_i_natcom/submitted_natcom/items/653.php"]
[null,null,"UNFCCC: INDCs as communicated by Parties","http://www4.unfccc.int/submissions/indc/Submission%20Pages/submissions.aspx"]
[null,null,"Submitted Biennial Update Reports","http://unfccc.int/national_reports/non-annex_i_natcom/reporting_on_climate_change/items/8722.php"]
[null,null,"The Climate Pledge INDC Tool","http://infographics.pbl.nl/indc/"]
[null,null,"Climate Equity Reference Calculator","http://gdrights.org/calculator-about/"]
[null,null,"World Bank - World Development Indicators","http://data.worldbank.org/data-catalog/world-development-indicators"]
[null,null,"UNEP Pledge Pipeline Tool","http://www.unep.org/climatechange/pledgepipeline/"]
[null,null,"Climate Action Tracker","http://climateactiontracker.org/"]
[null,"INDC Targets","UNFCCC: INDCs as communicated by Parties","http://www4.unfccc.int/submissions/indc/Submission%20Pages/submissions.aspx"]
[]
[null,"Figure 1: Projected Transport Emissions: BAU, Low Carbon Scenario, and Derived Target"]
[null,"Derived from Table 1: Historic and Projected Emissions"]
[]
[null,"Figure 2: Transport Share of Economy-Wide Emissions"]
[null,"Derived from Table 1: Historic and Projected Emissions"]

{"sheet":"Republic of Macedonia","index":64,"n_rows":67,"n_cols":6,"rows_kept":67,"cut":false,"hidden":false,"merged":[[34,1,34,2],[35,1,35,2],[38,5,38,11],[43,1,51,1],[52,1,59,1],[33,1,33,2],[7,1,11,1],[12,1,13,1],[14,1,18,1],[19,1,20,1],[23,1,23,2],[24,1,24,2],[25,1,29,1],[30,1,30,2],[31,1,32,1],[21,5,21,11],[22,5,22,11],[1,1,1,3],[2,1,2,2],[3,1,3,2],[4,1,4,2],[5,1,5,2],[6,1,6,2]]}
[]
[null,"Table 1: Historic and Projected Emissions"]
[null,"Country Name",null,"Republic of Macedonia"]
[null,"Economy Wide CO2e Emissions Target (INDC)",null,"36% below BAU by 2030"]
[null,"Total Country CO2e Emissions Under Target (by Target Year) (MT)",null,11.359]
[null,"Target Year",null,2030]
[null,"Transport CO2 Emissions Target (based on share of total emissions @ 2010)",null,1.6912288888888891]
[null,"Total Country CO2e Emissions (BAU)",1990,9.4450000000000003]
[null,null,2000,11.55]
[null,null,2010,9]
[null,null,2020,9.8000000000000007]
[null,null,2030,17.663]
[null,"Total Country CO2e Emissions (Low Carbon Scenario)",2020]
[null,null,2030]
[null,"Total Transport CO2e Emissions (BAU)",1990,0.76,{"$f":"D7","v":1.6912288888888891}]
[null,null,2000,0.98]
[null,null,2010,1.34]
[null,null,2020,1.7358417552081749]
[null,null,2030,2.3102137195336989,{"$f":"D7","v":1.6912288888888891}]
[null,"Total Transport CO2e Emissions (Low Carbon Scenario) ",2020,1.5334131153496955]
[null,null,2030,1.7043651648433051,{"$f":"D7","v":1.6912288888888891}]
[null,"Historical Growth in CO2e Emissions  (%) Transport Sector","1990-2010",0.76315789473684226,null,"Figure 1: Projected Transport Emissions: BAU, Low Carbon Scenario, and Transport Target"]
[null,"Growth Forecast CO2e Emissions (%)BAU-Transport Sector","2010-2030",0.72404008920425289]
[null,"Reduction with BAU (%) - Transport (2020)",null,-0.11661698956780919]
[null,"Reduction with BAU (%) - Transport (2030)",null,-0.26224783861671475]
[null,"Transport Share in Total Economy-wide Emissions",1990,8.0465854949708843E-2]
[null,null,2000,8.484848484848484E-2]
[null,null,2010,0.1488888888888889]
[null,null,"2030(BAU)",0.13079396022950229]
[null,null,"2030 (Low)",9.6493526855194758E-2]
[null,"Gap Between INDC Target and Average Low Carbon Scenario (%)",null,7.7672963374262327E-3]
[null,"Cumulative Increase in Transport CO2 (2010-2030) MT (avg)","Baseline",37.214899638854398]
[null,null,"Low Carbon",32.041728278135054]
[null,"Cumulative Reduction in Transport (2010-2030) MT (avg)",null,5.1731713607193441]
[null,"Cumulative Gap Between INDC Target and Average Low Carbon Scenario (MT)",null,-0.34962986024271103]
[null,"Cumulative Gap Between INDC Target and BAU (MT)",null,-5.5228012209620552]
[]
[]
[null,null,null,null,null,"Figure 2: Transport Share of Economy-Wide Emissions"]
[]
[null,"TIER II FACTSHEET SOURCES"]
[]
[null,"Table 1: Historic and Projected Emissions"]
[null,"Historic Emissions","Submitted National Communications","http://unfccc.int/national_reports/non-annex_i_natcom/submitted_natcom/items/653.php"]
[null,null,"UNFCCC: INDCs as communicated by Parties","http://www4.unfccc.int/submissions/indc/Submission%20Pages/submissions.aspx"]
[null,null,"Submitted Biennial Update Reports","http://unfccc.int/national_reports/non-annex_i_natcom/reporting_on_climate_change/items/8722.php"]
[null,null,"The Climate Pledge INDC Tool","http://infographics.pbl.nl/indc/"]
[null,null,"CAIT Climate Data Explorer","http://cait.wri.org/"]
[null,null,"Climate Equity Reference Calculator","http://gdrights.org/calculator-about/"]
[null,null,"World Bank - World Development Indicators","http://data.worldbank.org/data-catalog/world-development-indicators"]
[null,null,"UNEP Pledge Pipeline Tool","http://www.unep.org/climatechange/pledgepipeline/"]
[null,null,"Climate Action Tracker","http://climateactiontracker.org/"]
[null,"BAU Emissions Projections","Submitted National Communications","http://unfccc.int/national_reports/non-annex_i_natcom/submitted_natcom/items/653.php"]
[null,null,"UNFCCC: INDCs as communicated by Parties","http://www4.unfccc.int/submissions/indc/Submission%20Pages/submissions.aspx"]
[null,null,"Submitted Biennial Update Reports","http://unfccc.int/national_reports/non-annex_i_natcom/reporting_on_climate_change/items/8722.php"]
[null,null,"The Climate Pledge INDC Tool","http://infographics.pbl.nl/indc/"]
[null,null,"Climate Equity Reference Calculator","http://gdrights.org/calculator-about/"]
[null,null,"World Bank - World Development Indicators","http://data.worldbank.org/data-catalog/world-development-indicators"]
[null,null,"UNEP Pledge Pipeline Tool","http://www.unep.org/climatechange/pledgepipeline/"]
[null,null,"Climate Action Tracker","http://climateactiontracker.org/"]
[null,"INDC Targets","UNFCCC: INDCs as communicated by Parties","http://www4.unfccc.int/submissions/indc/Submission%20Pages/submissions.aspx"]
[]
[null,"Figure 1: Projected Transport Emissions: BAU, Low Carbon Scenario, and Derived Target"]
[null,"Derived from Table 1: Historic and Projected Emissions"]
[]
[null,"Figure 2: Transport Share of Economy-Wide Emissions"]
[null,"Derived from Table 1: Historic and Projected Emissions"]

{"sheet":"Republic of Moldova","index":65,"n_rows":67,"n_cols":6,"rows_kept":67,"cut":false,"hidden":false,"merged":[[34,1,34,2],[35,1,35,2],[38,5,38,11],[43,1,51,1],[52,1,59,1],[33,1,33,2],[7,1,11,1],[12,1,13,1],[14,1,18,1],[19,1,20,1],[23,1,23,2],[24,1,24,2],[25,1,29,1],[30,1,30,2],[31,1,32,1],[21,5,21,11],[22,5,22,11],[1,1,1,3],[2,1,2,2],[3,1,3,2],[4,1,4,2],[5,1,5,2],[6,1,6,2]]}
[]
[null,"Table 1: Historic and Projected Emissions"]
[null,"Country Name",null,"Republic of Moldova"]
[null,"Economy Wide CO2e Emissions Target (INDC)",null,"64-67 % reduction  by 2030 compared to 1990 levels."]
[null,"Total Country CO2e Emissions Under Target (by Target Year) (MT)",null,14.325299999999999]
[null,"Target Year",null,2030]
[null,"Transport CO2 Emissions Target (based on share of total emissions @ 2010)",null,1.0489451543431443]
[null,"Total Country CO2e Emissions (BAU)",1990,43.41]
[null,null,2000,10.73]
[null,null,2010,13.93]
[null,null,2020,10.63]
[null,null,2030,12.63]
[null,"Total Country CO2e Emissions (Low Carbon Scenario)",2020]
[null,null,2030]
[null,"Total Transport CO2e Emissions (BAU)",1990,2.39,{"$f":"D7","v":1.0489451543431443}]
[null,null,2000,0.5]
[null,null,2010,1.02]
[null,null,2020,1.4720948859190408]
[null,null,2030,2.4562039174123234,{"$f":"D7","v":1.0489451543431443}]
[null,"Total Transport CO2e Emissions (Low Carbon Scenario) ",2020,1.3004236119649948]
[null,null,2030,1.8120697488690338,{"$f":"D7","v":1.0489451543431443}]
[null,"Historical Growth in CO2e Emissions  (%) Transport Sector","1990-2010",-0.57322175732217573,null,"Figure 1: Projected Transport Emissions: BAU, Low Carbon Scenario, and Transport Target"]
[null,"Growth Forecast CO2e Emissions (%)BAU-Transport Sector","2010-2030",1.4080430562865915]
[null,"Reduction with BAU (%) - Transport (2020)",null,-0.11661698956780919]
[null,"Reduction with BAU (%) - Transport (2030)",null,-0.26224783861671475]
[null,"Transport Share in Total Economy-wide Emissions",1990,5.5056438608615532E-2]
[null,null,2000,4.6598322460391424E-2]
[null,null,2010,7.3223259152907394E-2]
[null,null,"2030(BAU)",0.19447378601839455]
[null,null,"2030 (Low)",0.14347345596746111]
[null,"Gap Between INDC Target and Average Low Carbon Scenario (%)",null,0.72751620174437304]
[null,"Cumulative Increase in Transport CO2 (2010-2030) MT (avg)","Baseline",33.289730702096648]
[null,null,"Low Carbon",28.384695546729152]
[null,"Cumulative Reduction in Transport (2010-2030) MT (avg)",null,4.9050351553674965]
[null,"Cumulative Gap Between INDC Target and Average Low Carbon Scenario (MT)",null,-6.6621179593271123]
[null,"Cumulative Gap Between INDC Target and BAU (MT)",null,-11.567153114694609]
[]
[]
[null,null,null,null,null,"Figure 2: Transport Share of Economy-Wide Emissions"]
[]
[null,"TIER II FACTSHEET SOURCES"]
[]
[null,"Table 1: Historic and Projected Emissions"]
[null,"Historic Emissions","Submitted National Communications","http://unfccc.int/national_reports/non-annex_i_natcom/submitted_natcom/items/653.php"]
[null,null,"UNFCCC: INDCs as communicated by Parties","http://www4.unfccc.int/submissions/indc/Submission%20Pages/submissions.aspx"]
[null,null,"Submitted Biennial Update Reports","http://unfccc.int/national_reports/non-annex_i_natcom/reporting_on_climate_change/items/8722.php"]
[null,null,"The Climate Pledge INDC Tool","http://infographics.pbl.nl/indc/"]
[null,null,"CAIT Climate Data Explorer","http://cait.wri.org/"]
[null,null,"Climate Equity Reference Calculator","http://gdrights.org/calculator-about/"]
[null,null,"World Bank - World Development Indicators","http://data.worldbank.org/data-catalog/world-development-indicators"]
[null,null,"UNEP Pledge Pipeline Tool","http://www.unep.org/climatechange/pledgepipeline/"]
[null,null,"Climate Action Tracker","http://climateactiontracker.org/"]
[null,"BAU Emissions Projections","Submitted National Communications","http://unfccc.int/national_reports/non-annex_i_natcom/submitted_natcom/items/653.php"]
[null,null,"UNFCCC: INDCs as communicated by Parties","http://www4.unfccc.int/submissions/indc/Submission%20Pages/submissions.aspx"]
[null,null,"Submitted Biennial Update Reports","http://unfccc.int/national_reports/non-annex_i_natcom/reporting_on_climate_change/items/8722.php"]
[null,null,"The Climate Pledge INDC Tool","http://infographics.pbl.nl/indc/"]
[null,null,"Climate Equity Reference Calculator","http://gdrights.org/calculator-about/"]
[null,null,"World Bank - World Development Indicators","http://data.worldbank.org/data-catalog/world-development-indicators"]
[null,null,"UNEP Pledge Pipeline Tool","http://www.unep.org/climatechange/pledgepipeline/"]
[null,null,"Climate Action Tracker","http://climateactiontracker.org/"]
[null,"INDC Targets","UNFCCC: INDCs as communicated by Parties","http://www4.unfccc.int/submissions/indc/Submission%20Pages/submissions.aspx"]
[]
[null,"Figure 1: Projected Transport Emissions: BAU, Low Carbon Scenario, and Derived Target"]
[null,"Derived from Table 1: Historic and Projected Emissions"]
[]
[null,"Figure 2: Transport Share of Economy-Wide Emissions"]
[null,"Derived from Table 1: Historic and Projected Emissions"]

{"sheet":"Senegal","index":66,"n_rows":67,"n_cols":6,"rows_kept":67,"cut":false,"hidden":false,"merged":[[34,1,34,2],[35,1,35,2],[38,5,38,11],[43,1,51,1],[52,1,59,1],[33,1,33,2],[7,1,11,1],[12,1,13,1],[14,1,18,1],[19,1,20,1],[23,1,23,2],[24,1,24,2],[25,1,29,1],[30,1,30,2],[31,1,32,1],[21,5,21,11],[22,5,22,11],[1,1,1,3],[2,1,2,2],[3,1,3,2],[4,1,4,2],[5,1,5,2],[6,1,6,2]]}
[]
[null,"Table 1: Historic and Projected Emissions"]
[null,"Country Name",null,"Senegal"]
[null,"Economy Wide CO2e Emissions Target (INDC)",null,"31% reduction by 2030 in Energy Sector (from bau)"]
[null,"Total Country CO2e Emissions Under Target (by Target Year) (MT)",null,28.572899999999997]
[null,"Target Year",null,2030]
[null,"Transport CO2 Emissions Target (based on share of total emissions @ 2010)",null,2.3674407291341941]
[null,"Total Country CO2e Emissions (BAU)",1990,13.346299999999999]
[null,null,2000,16.899999999999999]
[null,null,2010,24.3796]
[null,null,2020,31.2]
[null,null,2030,41.41]
[null,"Total Country CO2e Emissions (Low Carbon Scenario)",2020]
[null,null,2030]
[null,"Total Transport CO2e Emissions (BAU)",1990,0.72,{"$f":"D7","v":2.3674407291341941}]
[null,null,2000,1.1599999999999999]
[null,null,2010,2.02]
[null,null,2020,3.0261312246586991]
[null,null,2030,5.6999743057118817,{"$f":"D7","v":2.3674407291341941}]
[null,"Total Transport CO2e Emissions (Low Carbon Scenario) ",2020,2.673232911201854]
[null,null,2030,4.2051683638681316,{"$f":"D7","v":2.3674407291341941}]
[null,"Historical Growth in CO2e Emissions  (%) Transport Sector","1990-2010",1.8055555555555558,null,"Figure 1: Projected Transport Emissions: BAU, Low Carbon Scenario, and Transport Target"]
[null,"Growth Forecast CO2e Emissions (%)BAU-Transport Sector","2010-2030",1.8217694582732089]
[null,"Reduction with BAU (%) - Transport (2020)",null,-0.11661698956780919]
[null,"Reduction with BAU (%) - Transport (2030)",null,-0.26224783861671475]
[null,"Transport Share in Total Economy-wide Emissions",1990,5.3947536021219364E-2]
[null,null,2000,6.8639053254437865E-2]
[null,null,2010,8.2856158427537782E-2]
[null,null,"2030(BAU)",0.13764729064747361]
[null,null,"2030 (Low)",0.10154958618372692]
[null,"Gap Between INDC Target and Average Low Carbon Scenario (%)",null,0.77625074711205966]
[null,"Cumulative Increase in Transport CO2 (2010-2030) MT (avg)","Baseline",70.999190439981106]
[null,null,"Low Carbon",60.249367802537051]
[null,"Cumulative Reduction in Transport (2010-2030) MT (avg)",null,10.749822637444055]
[null,"Cumulative Gap Between INDC Target and Average Low Carbon Scenario (MT)",null,-14.272876844590989]
[null,"Cumulative Gap Between INDC Target and BAU (MT)",null,-25.022699482035044]
[]
[]
[null,null,null,null,null,"Figure 2: Transport Share of Economy-Wide Emissions"]
[]
[null,"TIER II FACTSHEET SOURCES"]
[]
[null,"Table 1: Historic and Projected Emissions"]
[null,"Historic Emissions","Submitted National Communications","http://unfccc.int/national_reports/non-annex_i_natcom/submitted_natcom/items/653.php"]
[null,null,"UNFCCC: INDCs as communicated by Parties","http://www4.unfccc.int/submissions/indc/Submission%20Pages/submissions.aspx"]
[null,null,"Submitted Biennial Update Reports","http://unfccc.int/national_reports/non-annex_i_natcom/reporting_on_climate_change/items/8722.php"]
[null,null,"The Climate Pledge INDC Tool","http://infographics.pbl.nl/indc/"]
[null,null,"CAIT Climate Data Explorer","http://cait.wri.org/"]
[null,null,"Climate Equity Reference Calculator","http://gdrights.org/calculator-about/"]
[null,null,"World Bank - World Development Indicators","http://data.worldbank.org/data-catalog/world-development-indicators"]
[null,null,"UNEP Pledge Pipeline Tool","http://www.unep.org/climatechange/pledgepipeline/"]
[null,null,"Climate Action Tracker","http://climateactiontracker.org/"]
[null,"BAU Emissions Projections","Submitted National Communications","http://unfccc.int/national_reports/non-annex_i_natcom/submitted_natcom/items/653.php"]
[null,null,"UNFCCC: INDCs as communicated by Parties","http://www4.unfccc.int/submissions/indc/Submission%20Pages/submissions.aspx"]
[null,null,"Submitted Biennial Update Reports","http://unfccc.int/national_reports/non-annex_i_natcom/reporting_on_climate_change/items/8722.php"]
[null,null,"The Climate Pledge INDC Tool","http://infographics.pbl.nl/indc/"]
[null,null,"Climate Equity Reference Calculator","http://gdrights.org/calculator-about/"]
[null,null,"World Bank - World Development Indicators","http://data.worldbank.org/data-catalog/world-development-indicators"]
[null,null,"UNEP Pledge Pipeline Tool","http://www.unep.org/climatechange/pledgepipeline/"]
[null,null,"Climate Action Tracker","http://climateactiontracker.org/"]
[null,"INDC Targets","UNFCCC: INDCs as communicated by Parties","http://www4.unfccc.int/submissions/indc/Submission%20Pages/submissions.aspx"]
[]
[null,"Figure 1: Projected Transport Emissions: BAU, Low Carbon Scenario, and Derived Target"]
[null,"Derived from Table 1: Historic and Projected Emissions"]
[]
[null,"Figure 2: Transport Share of Economy-Wide Emissions"]
[null,"Derived from Table 1: Historic and Projected Emissions"]

{"sheet":"Serbia","index":67,"n_rows":67,"n_cols":6,"rows_kept":67,"cut":false,"hidden":false,"merged":[[21,5,21,11],[22,5,22,11],[1,1,1,3],[2,1,2,2],[3,1,3,2],[4,1,4,2],[5,1,5,2],[6,1,6,2],[33,1,33,2],[7,1,11,1],[12,1,13,1],[14,1,18,1],[19,1,20,1],[23,1,23,2],[24,1,24,2],[25,1,29,1],[30,1,30,2],[31,1,32,1],[34,1,34,2],[35,1,35,2],[38,5,38,11],[43,1,51,1],[52,1,59,1]]}
[]
[null,"Table 1: Historic and Projected Emissions"]
[null,"Country Name",null,"Republic of Serbia"]
[null,"Economy Wide CO2e Emissions Target (INDC)",null,"9.8% below 1990 levels by 2030"]
[null,"Total Country CO2e Emissions Under Target (by Target Year) (MT)",null,56.591119200000001]
[null,"Target Year",null,2030]
[null,"Transport CO2 Emissions Target (based on share of total emissions @ 2010)",null,7.6112223925259821]
[null,"Total Country CO2e Emissions (BAU)",1990,62.739600000000003]
[null,null,2000,43.565199999999997]
[null,null,2010,47.139299999999999]
[null,null,2020,64]
[null,null,2030,76]
[null,"Total Country CO2e Emissions (Low Carbon Scenario)",2020]
[null,null,2030]
[null,"Total Transport CO2e Emissions (BAU)",1990,4.42,{"$f":"D7","v":7.6112223925259821}]
[null,null,2000,2.2999999999999998]
[null,null,2010,6.34]
[null,null,2020,8.3099114968303702]
[null,null,2030,13.033588142359864,{"$f":"D7","v":7.6112223925259821}]
[null,"Total Transport CO2e Emissions (Low Carbon Scenario) ",2020,7.340834634495085]
[null,null,2030,9.6155578226055471,{"$f":"D7","v":7.6112223925259821}]
[null,"Historical Growth in CO2e Emissions  (%) Transport Sector","1990-2010",0.43438914027149322,null,"Figure 1: Projected Transport Emissions: BAU, Low Carbon Scenario, and Transport Target"]
[null,"Growth Forecast CO2e Emissions (%)BAU-Transport Sector","2010-2030",1.0557710003722183]
[null,"Reduction with BAU (%) - Transport (2020)",null,-0.11661698956780919]
[null,"Reduction with BAU (%) - Transport (2030)",null,-0.26224783861671475]
[null,"Transport Share in Total Economy-wide Emissions",1990,7.0449923174518161E-2]
[null,null,2000,5.2794432253266368E-2]
[null,null,2010,0.1344949967436937]
[null,null,"2030(BAU)",0.17149458082052452]
[null,null,"2030 (Low)",0.12652049766586246]
[null,"Gap Between INDC Target and Average Low Carbon Scenario (%)",null,0.26333949091380759]
[null,"Cumulative Increase in Transport CO2 (2010-2030) MT (avg)","Baseline",187.46663885344134]
[null,null,"Low Carbon",160.5369911136082]
[null,"Cumulative Reduction in Transport (2010-2030) MT (avg)",null,26.929647739833143]
[null,"Cumulative Gap Between INDC Target and Average Low Carbon Scenario (MT)",null,-14.435155307157657]
[null,"Cumulative Gap Between INDC Target and BAU (MT)",null,-41.364803046990801]
[]
[]
[null,null,null,null,null,"Figure 2: Transport Share of Economy-Wide Emissions"]
[]
[null,"TIER II FACTSHEET SOURCES"]
[]
[null,"Table 1: Historic and Projected Emissions"]
[null,"Historic Emissions","Submitted National Communications","http://unfccc.int/national_reports/non-annex_i_natcom/submitted_natcom/items/653.php"]
[null,null,"UNFCCC: INDCs as communicated by Parties","http://www4.unfccc.int/submissions/indc/Submission%20Pages/submissions.aspx"]
[null,null,"Submitted Biennial Update Reports","http://unfccc.int/national_reports/non-annex_i_natcom/reporting_on_climate_change/items/8722.php"]
[null,null,"The Climate Pledge INDC Tool","http://infographics.pbl.nl/indc/"]
[null,null,"CAIT Climate Data Explorer","http://cait.wri.org/"]
[null,null,"Climate Equity Reference Calculator","http://gdrights.org/calculator-about/"]
[null,null,"World Bank - World Development Indicators","http://data.worldbank.org/data-catalog/world-development-indicators"]
[null,null,"UNEP Pledge Pipeline Tool","http://www.unep.org/climatechange/pledgepipeline/"]
[null,null,"Climate Action Tracker","http://climateactiontracker.org/"]
[null,"BAU Emissions Projections","Submitted National Communications","http://unfccc.int/national_reports/non-annex_i_natcom/submitted_natcom/items/653.php"]
[null,null,"UNFCCC: INDCs as communicated by Parties","http://www4.unfccc.int/submissions/indc/Submission%20Pages/submissions.aspx"]
[null,null,"Submitted Biennial Update Reports","http://unfccc.int/national_reports/non-annex_i_natcom/reporting_on_climate_change/items/8722.php"]
[null,null,"The Climate Pledge INDC Tool","http://infographics.pbl.nl/indc/"]
[null,null,"Climate Equity Reference Calculator","http://gdrights.org/calculator-about/"]
[null,null,"World Bank - World Development Indicators","http://data.worldbank.org/data-catalog/world-development-indicators"]
[null,null,"UNEP Pledge Pipeline Tool","http://www.unep.org/climatechange/pledgepipeline/"]
[null,null,"Climate Action Tracker","http://climateactiontracker.org/"]
[null,"INDC Targets","UNFCCC: INDCs as communicated by Parties","http://www4.unfccc.int/submissions/indc/Submission%20Pages/submissions.aspx"]
[]
[null,"Figure 1: Projected Transport Emissions: BAU, Low Carbon Scenario, and Derived Target"]
[null,"Derived from Table 1: Historic and Projected Emissions"]
[]
[null,"Figure 2: Transport Share of Economy-Wide Emissions"]
[null,"Derived from Table 1: Historic and Projected Emissions"]

{"sheet":"Seychelles","index":68,"n_rows":67,"n_cols":6,"rows_kept":67,"cut":false,"hidden":false,"merged":[[34,1,34,2],[35,1,35,2],[38,5,38,11],[43,1,51,1],[52,1,59,1],[33,1,33,2],[7,1,11,1],[12,1,13,1],[14,1,18,1],[19,1,20,1],[23,1,23,2],[24,1,24,2],[25,1,29,1],[30,1,30,2],[31,1,32,1],[21,5,21,11],[22,5,22,11],[1,1,1,3],[2,1,2,2],[3,1,3,2],[4,1,4,2],[5,1,5,2],[6,1,6,2]]}
[]
[null,"Table 1: Historic and Projected Emissions"]
[null,"Country Name",null,"Seychelles"]
[null,"Economy Wide CO2e Emissions Target (INDC)",null,"188 ktCO2e in 2030 (29.0%) relative to BAU"]
[null,"Total Country CO2e Emissions Under Target (by Target Year) (MT)",null,0.46]
[null,"Target Year",null,2030]
[null,"Transport CO2 Emissions Target (based on share of total emissions @ 2010)",null,5.4021467427358361E-2]
[null,"Total Country CO2e Emissions (BAU)",1990,0.17230000000000001]
[null,null,2000,0.62170000000000003]
[null,null,2010,0.75370000000000004]
[null,null,2020,0.79100000000000004]
[null,null,2030,0.64800000000000002]
[null,"Total Country CO2e Emissions (Low Carbon Scenario)",2020]
[null,null,2030]
[null,"Total Transport CO2e Emissions (BAU)",1990,null,{"$f":"D7","v":5.4021467427358361E-2}]
[null,null,2000,6.5995999999999999E-2]
[null,null,2010,8.8512999999999994E-2]
[null,null,2020,0.123693]
[null,null,2030,0.23,{"$f":"D7","v":5.4021467427358361E-2}]
[null,"Total Transport CO2e Emissions (Low Carbon Scenario) ",2020,0.12699377434492787]
[null,null,2030,0.17192511818484008,{"$f":"D7","v":5.4021467427358361E-2}]
[null,"Historical Growth in CO2e Emissions  (%) Transport Sector","1990-2010",null,null,"Figure 1: Projected Transport Emissions: BAU, Low Carbon Scenario, and Transport Target"]
[null,"Growth Forecast CO2e Emissions (%)BAU-Transport Sector","2010-2030",1.5984883576423803]
[null,"Reduction with BAU (%) - Transport (2020)",null,2.6685215371345716E-2]
[null,"Reduction with BAU (%) - Transport (2030)",null,-0.25249948615286932]
[null,"Transport Share in Total Economy-wide Emissions",1990,0]
[null,null,2000,0.10615409361428341]
[null,null,2010,0.11743797266817034]
[null,null,"2030(BAU)",0.35493827160493829]
[null,null,"2030 (Low)",0.26531654040870384]
[null,"Gap Between INDC Target and Average Low Carbon Scenario (%)",null,2.1825332848654013]
[null,"Cumulative Increase in Transport CO2 (2010-2030) MT (avg)","Baseline",2.9250057892038019]
[null,null,"Low Carbon",2.6797008030100602]
[null,"Cumulative Reduction in Transport (2010-2030) MT (avg)",null,0.24530498619374175]
[null,"Cumulative Gap Between INDC Target and Average Low Carbon Scenario (MT)",null,-1.2112879471019751]
[null,"Cumulative Gap Between INDC Target and BAU (MT)",null,-1.4565929332957168]
[]
[]
[null,null,null,null,null,"Figure 2: Transport Share of Economy-Wide Emissions"]
[]
[null,"TIER II FACTSHEET SOURCES"]
[]
[null,"Table 1: Historic and Projected Emissions"]
[null,"Historic Emissions","Submitted National Communications","http://unfccc.int/national_reports/non-annex_i_natcom/submitted_natcom/items/653.php"]
[null,null,"UNFCCC: INDCs as communicated by Parties","http://www4.unfccc.int/submissions/indc/Submission%20Pages/submissions.aspx"]
[null,null,"Submitted Biennial Update Reports","http://unfccc.int/national_reports/non-annex_i_natcom/reporting_on_climate_change/items/8722.php"]
[null,null,"The Climate Pledge INDC Tool","http://infographics.pbl.nl/indc/"]
[null,null,"CAIT Climate Data Explorer","http://cait.wri.org/"]
[null,null,"Climate Equity Reference Calculator","http://gdrights.org/calculator-about/"]
[null,null,"World Bank - World Development Indicators","http://data.worldbank.org/data-catalog/world-development-indicators"]
[null,null,"UNEP Pledge Pipeline Tool","http://www.unep.org/climatechange/pledgepipeline/"]
[null,null,"Climate Action Tracker","http://climateactiontracker.org/"]
[null,"BAU Emissions Projections","Submitted National Communications","http://unfccc.int/national_reports/non-annex_i_natcom/submitted_natcom/items/653.php"]
[null,null,"UNFCCC: INDCs as communicated by Parties","http://www4.unfccc.int/submissions/indc/Submission%20Pages/submissions.aspx"]
[null,null,"Submitted Biennial Update Reports","http://unfccc.int/national_reports/non-annex_i_natcom/reporting_on_climate_change/items/8722.php"]
[null,null,"The Climate Pledge INDC Tool","http://infographics.pbl.nl/indc/"]
[null,null,"Climate Equity Reference Calculator","http://gdrights.org/calculator-about/"]
[null,null,"World Bank - World Development Indicators","http://data.worldbank.org/data-catalog/world-development-indicators"]
[null,null,"UNEP Pledge Pipeline Tool","http://www.unep.org/climatechange/pledgepipeline/"]
[null,null,"Climate Action Tracker","http://climateactiontracker.org/"]
[null,"INDC Targets","UNFCCC: INDCs as communicated by Parties","http://www4.unfccc.int/submissions/indc/Submission%20Pages/submissions.aspx"]
[]
[null,"Figure 1: Projected Transport Emissions: BAU, Low Carbon Scenario, and Derived Target"]
[null,"Derived from Table 1: Historic and Projected Emissions"]
[]
[null,"Figure 2: Transport Share of Economy-Wide Emissions"]
[null,"Derived from Table 1: Historic and Projected Emissions"]

{"sheet":"Sri Lanka","index":69,"n_rows":67,"n_cols":6,"rows_kept":67,"cut":false,"hidden":false,"merged":[[34,1,34,2],[35,1,35,2],[38,5,38,11],[43,1,51,1],[52,1,59,1],[33,1,33,2],[7,1,11,1],[12,1,13,1],[14,1,18,1],[19,1,20,1],[23,1,23,2],[24,1,24,2],[25,1,29,1],[30,1,30,2],[31,1,32,1],[21,5,21,11],[22,5,22,11],[1,1,1,3],[2,1,2,2],[3,1,3,2],[4,1,4,2],[5,1,5,2],[6,1,6,2]]}
[]
[null,"Table 1: Historic and Projected Emissions"]
[null,"Country Name",null,"Sri Lanka"]
[null,"Economy Wide CO2e Emissions Target (INDC)",null,"16% below BAU by 2030"]
[null,"Total Country CO2e Emissions Under Target (by Target Year) (MT)",null,{"$f":"D12-0.16*D12","v":26.04}]
[null,"Target Year",null,2030]
[null,"Transport CO2 Emissions Target (based on share of total emissions @ 2010)",null,10.622149663692872]
[null,"Total Country CO2e Emissions (BAU)",1990,22.565100000000001]
[null,null,2000,30.627800000000001]
[null,null,2010,35.613300000000002]
[null,null,2020,31.8]
[null,null,2030,31]
[null,"Total Country CO2e Emissions (Low Carbon Scenario)",2020]
[null,null,2030]
[null,"Total Transport CO2e Emissions (BAU)",1990,2.4700000000000002,{"$f":"D7","v":10.622149663692872}]
[null,null,2000,5.0999999999999996]
[null,null,2010,6.77]
[null,null,2020,8.6986112515268221]
[null,null,2030,11.421666305046099,{"$f":"D7","v":10.622149663692872}]
[null,"Total Transport CO2e Emissions (Low Carbon Scenario) ",2020,8.0119328331546988]
[null,null,2030,8.4218329443842759,{"$f":"D7","v":10.622149663692872}]
[null,"Historical Growth in CO2e Emissions  (%) Transport Sector","1990-2010",1.7408906882591091,null,"Figure 1: Projected Transport Emissions: BAU, Low Carbon Scenario, and Transport Target"]
[null,"Growth Forecast CO2e Emissions (%)BAU-Transport Sector","2010-2030",0.68709989734802068]
[null,"Reduction with BAU (%) - Transport (2020)",null,-7.8941154917297141E-2]
[null,"Reduction with BAU (%) - Transport (2030)",null,-0.26264410818380279]
[null,"Transport Share in Total Economy-wide Emissions",1990,0.10946107041404647]
[null,null,2000,0.16651538798085397]
[null,null,2010,0.19009751974683614]
[null,null,"2030(BAU)",0.36844084854987413]
[null,null,"2030 (Low)",0.2716720304640089]
[null,"Gap Between INDC Target and Average Low Carbon Scenario (%)",null,-0.2071442023481751]
[null,"Cumulative Increase in Transport CO2 (2010-2030) MT (avg)","Baseline",186.03079416489086]
[null,null,"Low Carbon",163.48504612402937]
[null,"Cumulative Reduction in Transport (2010-2030) MT (avg)",null,22.545748040861497]
[null,"Cumulative Gap Between INDC Target and Average Low Carbon Scenario (MT)",null,16.257548288533201]
[null,"Cumulative Gap Between INDC Target and BAU (MT)",null,-6.2881997523282962]
[]
[]
[null,null,null,null,null,"Figure 2: Transport Share of Economy-Wide Emissions"]
[]
[null,"TIER II FACTSHEET SOURCES"]
[]
[null,"Table 1: Historic and Projected Emissions"]
[null,"Historic Emissions","Submitted National Communications","http://unfccc.int/national_reports/non-annex_i_natcom/submitted_natcom/items/653.php"]
[null,null,"UNFCCC: INDCs as communicated by Parties","http://www4.unfccc.int/submissions/indc/Submission%20Pages/submissions.aspx"]
[null,null,"Submitted Biennial Update Reports","http://unfccc.int/national_reports/non-annex_i_natcom/reporting_on_climate_change/items/8722.php"]
[null,null,"The Climate Pledge INDC Tool","http://infographics.pbl.nl/indc/"]
[null,null,"CAIT Climate Data Explorer","http://cait.wri.org/"]
[null,null,"Climate Equity Reference Calculator","http://gdrights.org/calculator-about/"]
[null,null,"World Bank - World Development Indicators","http://data.worldbank.org/data-catalog/world-development-indicators"]
[null,null,"UNEP Pledge Pipeline Tool","http://www.unep.org/climatechange/pledgepipeline/"]
[null,null,"Climate Action Tracker","http://climateactiontracker.org/"]
[null,"BAU Emissions Projections","Submitted National Communications","http://unfccc.int/national_reports/non-annex_i_natcom/submitted_natcom/items/653.php"]
[null,null,"UNFCCC: INDCs as communicated by Parties","http://www4.unfccc.int/submissions/indc/Submission%20Pages/submissions.aspx"]
[null,null,"Submitted Biennial Update Reports","http://unfccc.int/national_reports/non-annex_i_natcom/reporting_on_climate_change/items/8722.php"]
[null,null,"The Climate Pledge INDC Tool","http://infographics.pbl.nl/indc/"]
[null,null,"Climate Equity Reference Calculator","http://gdrights.org/calculator-about/"]
[null,null,"World Bank - World Development Indicators","http://data.worldbank.org/data-catalog/world-development-indicators"]
[null,null,"UNEP Pledge Pipeline Tool","http://www.unep.org/climatechange/pledgepipeline/"]
[null,null,"Climate Action Tracker","http://climateactiontracker.org/"]
[null,"INDC Targets","UNFCCC: INDCs as communicated by Parties","http://www4.unfccc.int/submissions/indc/Submission%20Pages/submissions.aspx"]
[]
[null,"Figure 1: Projected Transport Emissions: BAU, Low Carbon Scenario, and Derived Target"]
[null,"Derived from Table 1: Historic and Projected Emissions"]
[]
[null,"Figure 2: Transport Share of Economy-Wide Emissions"]
[null,"Derived from Table 1: Historic and Projected Emissions"]

{"sheet":"Tajikistan","index":70,"n_rows":67,"n_cols":6,"rows_kept":67,"cut":false,"hidden":false,"merged":[[21,5,21,11],[22,5,22,11],[1,1,1,3],[2,1,2,2],[3,1,3,2],[4,1,4,2],[5,1,5,2],[6,1,6,2],[33,1,33,2],[7,1,11,1],[12,1,13,1],[14,1,18,1],[19,1,20,1],[23,1,23,2],[24,1,24,2],[25,1,29,1],[30,1,30,2],[31,1,32,1],[34,1,34,2],[35,1,35,2],[38,5,38,11],[43,1,51,1],[52,1,59,1]]}
[]
[null,"Table 1: Historic and Projected Emissions"]
[null,"Country Name",null,"Tajikistan"]
[null,"Economy Wide CO2e Emissions Target (INDC)",null,"80-90% of the 1990 level by 2030"]
[null,"Total Country CO2e Emissions Under Target (by Target Year) (MT)",null,2.5500000000000007]
[null,"Target Year",null,2030]
[null,"Transport CO2 Emissions Target (based on share of total emissions @ 2010)",null,8.2166666666666693E-2]
[null,"Total Country CO2e Emissions (BAU)",1990,25.5]
[null,null,2000,7.5]
[null,null,2010,9]
[null,null,2020,11.46]
[null,null,2030,13.38]
[null,"Total Country CO2e Emissions (Low Carbon Scenario)",2020]
[null,null,2030]
[null,"Total Transport CO2e Emissions (BAU)",1990,0.72,{"$f":"D7","v":8.2166666666666693E-2}]
[null,null,2000,0.04]
[null,null,2010,0.28999999999999998]
[null,null,2020,1.0672783657490341]
[null,null,2030,2.217506825356713,{"$f":"D7","v":8.2166666666666693E-2}]
[null,"Total Transport CO2e Emissions (Low Carbon Scenario) ",2020,0.94281557570453056]
[null,null,2030,1.6359704532891022,{"$f":"D7","v":8.2166666666666693E-2}]
[null,"Historical Growth in CO2e Emissions  (%) Transport Sector","1990-2010",-0.59722222222222221,null,"Figure 1: Projected Transport Emissions: BAU, Low Carbon Scenario, and Transport Target"]
[null,"Growth Forecast CO2e Emissions (%)BAU-Transport Sector","2010-2030",6.6465752598507351]
[null,"Reduction with BAU (%) - Transport (2020)",null,-0.11661698956780919]
[null,"Reduction with BAU (%) - Transport (2030)",null,-0.26224783861671475]
[null,"Transport Share in Total Economy-wide Emissions",1990,2.8235294117647056E-2]
[null,null,2000,5.3333333333333332E-3]
[null,null,2010,3.2222222222222222E-2]
[null,null,"2030(BAU)",0.16573294658869303]
[null,null,"2030 (Low)",0.12226983955822886]
[null,"Gap Between INDC Target and Average Low Carbon Scenario (%)",null,18.910390912240587]
[null,"Cumulative Increase in Transport CO2 (2010-2030) MT (avg)","Baseline",22.963714659824074]
[null,null,"Low Carbon",19.086843441225483]
[null,"Cumulative Reduction in Transport (2010-2030) MT (avg)",null,3.8768712185985912]
[null,"Cumulative Gap Between INDC Target and Average Low Carbon Scenario (MT)",null,-15.60368538424817]
[null,"Cumulative Gap Between INDC Target and BAU (MT)",null,-19.480556602846761]
[]
[]
[null,null,null,null,null,"Figure 2: Transport Share of Economy-Wide Emissions"]
[]
[null,"TIER II FACTSHEET SOURCES"]
[]
[null,"Table 1: Historic and Projected Emissions"]
[null,"Historic Emissions","Submitted National Communications","http://unfccc.int/national_reports/non-annex_i_natcom/submitted_natcom/items/653.php"]
[null,null,"UNFCCC: INDCs as communicated by Parties","http://www4.unfccc.int/submissions/indc/Submission%20Pages/submissions.aspx"]
[null,null,"Submitted Biennial Update Reports","http://unfccc.int/national_reports/non-annex_i_natcom/reporting_on_climate_change/items/8722.php"]
[null,null,"The Climate Pledge INDC Tool","http://infographics.pbl.nl/indc/"]
[null,null,"CAIT Climate Data Explorer","http://cait.wri.org/"]
[null,null,"Climate Equity Reference Calculator","http://gdrights.org/calculator-about/"]
[null,null,"World Bank - World Development Indicators","http://data.worldbank.org/data-catalog/world-development-indicators"]
[null,null,"UNEP Pledge Pipeline Tool","http://www.unep.org/climatechange/pledgepipeline/"]
[null,null,"Climate Action Tracker","http://climateactiontracker.org/"]
[null,"BAU Emissions Projections","Submitted National Communications","http://unfccc.int/national_reports/non-annex_i_natcom/submitted_natcom/items/653.php"]
[null,null,"UNFCCC: INDCs as communicated by Parties","http://www4.unfccc.int/submissions/indc/Submission%20Pages/submissions.aspx"]
[null,null,"Submitted Biennial Update Reports","http://unfccc.int/national_reports/non-annex_i_natcom/reporting_on_climate_change/items/8722.php"]
[null,null,"The Climate Pledge INDC Tool","http://infographics.pbl.nl/indc/"]
[null,null,"Climate Equity Reference Calculator","http://gdrights.org/calculator-about/"]
[null,null,"World Bank - World Development Indicators","http://data.worldbank.org/data-catalog/world-development-indicators"]
[null,null,"UNEP Pledge Pipeline Tool","http://www.unep.org/climatechange/pledgepipeline/"]
[null,null,"Climate Action Tracker","http://climateactiontracker.org/"]
[null,"INDC Targets","UNFCCC: INDCs as communicated by Parties","http://www4.unfccc.int/submissions/indc/Submission%20Pages/submissions.aspx"]
[]
[null,"Figure 1: Projected Transport Emissions: BAU, Low Carbon Scenario, and Derived Target"]
[null,"Derived from Table 1: Historic and Projected Emissions"]
[]
[null,"Figure 2: Transport Share of Economy-Wide Emissions"]
[null,"Derived from Table 1: Historic and Projected Emissions"]

{"sheet":"Togo","index":71,"n_rows":67,"n_cols":6,"rows_kept":67,"cut":false,"hidden":false,"merged":[[21,5,21,11],[22,5,22,11],[1,1,1,3],[2,1,2,2],[3,1,3,2],[4,1,4,2],[5,1,5,2],[6,1,6,2],[33,1,33,2],[7,1,11,1],[12,1,13,1],[14,1,18,1],[19,1,20,1],[23,1,23,2],[24,1,24,2],[25,1,29,1],[30,1,30,2],[31,1,32,1],[34,1,34,2],[35,1,35,2],[38,5,38,11],[43,1,51,1],[52,1,59,1]]}
[]
[null,"Table 1: Historic and Projected Emissions"]
[null,"Country Name",null,"Togo"]
[null,"Economy Wide CO2e Emissions Target (INDC)",null,"31.14% below 2030 BAU"]
[null,"Total Country CO2e Emissions Under Target (by Target Year) (MT)",null,26.7596846]
[null,"Target Year",null,2030]
[null,"Transport CO2 Emissions Target (based on share of total emissions @ 2010)",null,0.97208912317631868]
[null,"Total Country CO2e Emissions (BAU)",1990,3.55]
[null,null,2000,20.445]
[null,null,2010,25.325774401792781]
[null,null,2020,31.371721645903772]
[null,null,2030,38.860999999999997]
[null,"Total Country CO2e Emissions (Low Carbon Scenario)",2020]
[null,null,2030]
[null,"Total Transport CO2e Emissions (BAU)",1990,0.42,{"$f":"D7","v":0.97208912317631868}]
[null,null,2000,0.43]
[null,null,2010,0.92]
[null,null,2020,1.4529370310636396]
[null,null,2030,2.7861201847673858,{"$f":"D7","v":0.97208912317631868}]
[null,"Total Transport CO2e Emissions (Low Carbon Scenario) ",2020,1.2834998884694075]
[null,null,2030,2.0554661881857368,{"$f":"D7","v":0.97208912317631868}]
[null,"Historical Growth in CO2e Emissions  (%) Transport Sector","1990-2010",1.1904761904761907,null,"Figure 1: Projected Transport Emissions: BAU, Low Carbon Scenario, and Transport Target"]
[null,"Growth Forecast CO2e Emissions (%)BAU-Transport Sector","2010-2030",2.0283915051819408]
[null,"Reduction with BAU (%) - Transport (2020)",null,-0.11661698956780908]
[null,"Reduction with BAU (%) - Transport (2030)",null,-0.26224783861671475]
[null,"Transport Share in Total Economy-wide Emissions",1990,0.11830985915492957]
[null,null,2000,2.1032037172902911E-2]
[null,null,2010,3.6326628572308312E-2]
[null,null,"2030(BAU)",7.1694505668083316E-2]
[null,null,"2030 (Low)",5.2892776515934666E-2]
[null,"Gap Between INDC Target and Average Low Carbon Scenario (%)",null,1.1144832702884937]
[null,"Cumulative Increase in Transport CO2 (2010-2030) MT (avg)","Baseline",34.00178720407051]
[null,null,"Low Carbon",28.801597484708196]
[null,"Cumulative Reduction in Transport (2010-2030) MT (avg)",null,5.2001897193623137]
[null,"Cumulative Gap Between INDC Target and Average Low Carbon Scenario (MT)",null,-8.939430741613748]
[null,"Cumulative Gap Between INDC Target and BAU (MT)",null,-14.139620460976062]
[]
[]
[null,null,null,null,null,"Figure 2: Transport Share of Economy-Wide Emissions"]
[]
[null,"TIER II FACTSHEET SOURCES"]
[]
[null,"Table 1: Historic and Projected Emissions"]
[null,"Historic Emissions","Submitted National Communications","http://unfccc.int/national_reports/non-annex_i_natcom/submitted_natcom/items/653.php"]
[null,null,"UNFCCC: INDCs as communicated by Parties","http://www4.unfccc.int/submissions/indc/Submission%20Pages/submissions.aspx"]
[null,null,"Submitted Biennial Update Reports","http://unfccc.int/national_reports/non-annex_i_natcom/reporting_on_climate_change/items/8722.php"]
[null,null,"The Climate Pledge INDC Tool","http://infographics.pbl.nl/indc/"]
[null,null,"CAIT Climate Data Explorer","http://cait.wri.org/"]
[null,null,"Climate Equity Reference Calculator","http://gdrights.org/calculator-about/"]
[null,null,"World Bank - World Development Indicators","http://data.worldbank.org/data-catalog/world-development-indicators"]
[null,null,"UNEP Pledge Pipeline Tool","http://www.unep.org/climatechange/pledgepipeline/"]
[null,null,"Climate Action Tracker","http://climateactiontracker.org/"]
[null,"BAU Emissions Projections","Submitted National Communications","http://unfccc.int/national_reports/non-annex_i_natcom/submitted_natcom/items/653.php"]
[null,null,"UNFCCC: INDCs as communicated by Parties","http://www4.unfccc.int/submissions/indc/Submission%20Pages/submissions.aspx"]
[null,null,"Submitted Biennial Update Reports","http://unfccc.int/national_reports/non-annex_i_natcom/reporting_on_climate_change/items/8722.php"]
[null,null,"The Climate Pledge INDC Tool","http://infographics.pbl.nl/indc/"]
[null,null,"Climate Equity Reference Calculator","http://gdrights.org/calculator-about/"]
[null,null,"World Bank - World Development Indicators","http://data.worldbank.org/data-catalog/world-development-indicators"]
[null,null,"UNEP Pledge Pipeline Tool","http://www.unep.org/climatechange/pledgepipeline/"]
[null,null,"Climate Action Tracker","http://climateactiontracker.org/"]
[null,"INDC Targets","UNFCCC: INDCs as communicated by Parties","http://www4.unfccc.int/submissions/indc/Submission%20Pages/submissions.aspx"]
[]
[null,"Figure 1: Projected Transport Emissions: BAU, Low Carbon Scenario, and Derived Target"]
[null,"Derived from Table 1: Historic and Projected Emissions"]
[]
[null,"Figure 2: Transport Share of Economy-Wide Emissions"]
[null,"Derived from Table 1: Historic and Projected Emissions"]

{"sheet":"Trinidad and Tobago","index":72,"n_rows":67,"n_cols":6,"rows_kept":67,"cut":false,"hidden":false,"merged":[[21,5,21,11],[22,5,22,11],[1,1,1,3],[2,1,2,2],[3,1,3,2],[4,1,4,2],[5,1,5,2],[6,1,6,2],[33,1,33,2],[7,1,11,1],[12,1,13,1],[14,1,18,1],[19,1,20,1],[23,1,23,2],[24,1,24,2],[25,1,29,1],[30,1,30,2],[31,1,32,1],[34,1,34,2],[35,1,35,2],[38,5,38,11],[43,1,51,1],[52,1,59,1]]}
[]
[null,"Table 1: Historic and Projected Emissions"]
[null,"Country Name",null,"Trinidad and Tobago"]
[null,"Economy Wide CO2e Emissions Target (INDC)",null,"15% of reduction by 2030 from BAU"]
[null,"Total Country CO2e Emissions Under Target (by Target Year) (MT)",null,42.5]
[null,"Target Year",null,2030]
[null,"Transport CO2 Emissions Target (based on share of total emissions @ 2010)",null,3.6715277777777779]
[null,"Total Country CO2e Emissions (BAU)",1990,16]
[null,null,2000,26]
[null,null,2010,36]
[null,null,2020,43]
[null,null,2030,50]
[null,"Total Country CO2e Emissions (Low Carbon Scenario)",2020]
[null,null,2030]
[null,"Total Transport CO2e Emissions (BAU)",1990,1.33,{"$f":"D7","v":3.6715277777777779}]
[null,null,2000,1.62]
[null,null,2010,3.11]
[null,null,2020,3.6233977301142506]
[null,null,2030,5.6316224974773963,{"$f":"D7","v":3.6715277777777779}]
[null,"Total Transport CO2e Emissions (Low Carbon Scenario) ",2020,3.2008479948214936]
[null,null,2030,4.1547416696086845,{"$f":"D7","v":3.6715277777777779}]
[null,"Historical Growth in CO2e Emissions  (%) Transport Sector","1990-2010",1.3383458646616537,null,"Figure 1: Projected Transport Emissions: BAU, Low Carbon Scenario, and Transport Target"]
[null,"Growth Forecast CO2e Emissions (%)BAU-Transport Sector","2010-2030",0.81081109243646199]
[null,"Reduction with BAU (%) - Transport (2020)",null,-0.11661698956780919]
[null,"Reduction with BAU (%) - Transport (2030)",null,-0.26224783861671463]
[null,"Transport Share in Total Economy-wide Emissions",1990,8.3125000000000004E-2]
[null,null,2000,6.2307692307692314E-2]
[null,null,2010,8.638888888888889E-2]
[null,null,"2030(BAU)",0.11263244994954792]
[null,null,"2030 (Low)",8.3094833392173689E-2]
[null,"Gap Between INDC Target and Average Low Carbon Scenario (%)",null,0.13161112242037176]
[null,"Cumulative Increase in Transport CO2 (2010-2030) MT (avg)","Baseline",83.519974499435136]
[null,null,"Low Carbon",71.757368938121132]
[null,"Cumulative Reduction in Transport (2010-2030) MT (avg)",null,11.762605561314004]
[null,"Cumulative Gap Between INDC Target and Average Low Carbon Scenario (MT)",null,-0.70620974169243311]
[null,"Cumulative Gap Between INDC Target and BAU (MT)",null,-12.468815303006437]
[]
[]
[null,null,null,null,null,"Figure 2: Transport Share of Economy-Wide Emissions"]
[]
[null,"TIER II FACTSHEET SOURCES"]
[]
[null,"Table 1: Historic and Projected Emissions"]
[null,"Historic Emissions","Submitted National Communications","http://unfccc.int/national_reports/non-annex_i_natcom/submitted_natcom/items/653.php"]
[null,null,"UNFCCC: INDCs as communicated by Parties","http://www4.unfccc.int/submissions/indc/Submission%20Pages/submissions.aspx"]
[null,null,"Submitted Biennial Update Reports","http://unfccc.int/national_reports/non-annex_i_natcom/reporting_on_climate_change/items/8722.php"]
[null,null,"The Climate Pledge INDC Tool","http://infographics.pbl.nl/indc/"]
[null,null,"CAIT Climate Data Explorer","http://cait.wri.org/"]
[null,null,"Climate Equity Reference Calculator","http://gdrights.org/calculator-about/"]
[null,null,"World Bank - World Development Indicators","http://data.worldbank.org/data-catalog/world-development-indicators"]
[null,null,"UNEP Pledge Pipeline Tool","http://www.unep.org/climatechange/pledgepipeline/"]
[null,null,"Climate Action Tracker","http://climateactiontracker.org/"]
[null,"BAU Emissions Projections","Submitted National Communications","http://unfccc.int/national_reports/non-annex_i_natcom/submitted_natcom/items/653.php"]
[null,null,"UNFCCC: INDCs as communicated by Parties","http://www4.unfccc.int/submissions/indc/Submission%20Pages/submissions.aspx"]
[null,null,"Submitted Biennial Update Reports","http://unfccc.int/national_reports/non-annex_i_natcom/reporting_on_climate_change/items/8722.php"]
[null,null,"The Climate Pledge INDC Tool","http://infographics.pbl.nl/indc/"]
[null,null,"Climate Equity Reference Calculator","http://gdrights.org/calculator-about/"]
[null,null,"World Bank - World Development Indicators","http://data.worldbank.org/data-catalog/world-development-indicators"]
[null,null,"UNEP Pledge Pipeline Tool","http://www.unep.org/climatechange/pledgepipeline/"]
[null,null,"Climate Action Tracker","http://climateactiontracker.org/"]
[null,"INDC Targets","UNFCCC: INDCs as communicated by Parties","http://www4.unfccc.int/submissions/indc/Submission%20Pages/submissions.aspx"]
[]
[null,"Figure 1: Projected Transport Emissions: BAU, Low Carbon Scenario, and Derived Target"]
[null,"Derived from Table 1: Historic and Projected Emissions"]
[]
[null,"Figure 2: Transport Share of Economy-Wide Emissions"]
[null,"Derived from Table 1: Historic and Projected Emissions"]

{"sheet":"Tunisia","index":73,"n_rows":67,"n_cols":6,"rows_kept":67,"cut":false,"hidden":false,"merged":[[21,5,21,11],[22,5,22,11],[1,1,1,3],[2,1,2,2],[3,1,3,2],[4,1,4,2],[5,1,5,2],[6,1,6,2],[33,1,33,2],[7,1,11,1],[12,1,13,1],[14,1,18,1],[19,1,20,1],[23,1,23,2],[24,1,24,2],[25,1,29,1],[30,1,30,2],[31,1,32,1],[34,1,34,2],[35,1,35,2],[38,5,38,11],[43,1,51,1],[52,1,59,1]]}
[]
[null,"Table 1: Historic and Projected Emissions"]
[null,"Country Name",null,"Tunisia"]
[null,"Economy Wide CO2e Emissions Target (INDC)",null,"reduce its carbon intensity by 41 per cent"]
[null,"Total Country CO2e Emissions Under Target (by Target Year) (MT)",null,42.4]
[null,"Target Year",null,2030]
[null,"Transport CO2 Emissions Target (based on share of total emissions @ 2010)",null,8.989399293286219]
[null,"Total Country CO2e Emissions (BAU)",1990,21.2]
[null,null,2000,30.8]
[null,null,2010,28.3]
[null,null,2020,39.799999999999997]
[null,null,2030,68.2]
[null,"Total Country CO2e Emissions (Low Carbon Scenario)",2020]
[null,null,2030]
[null,"Total Transport CO2e Emissions (BAU)",1990,2,{"$f":"D7","v":8.989399293286219}]
[null,null,2000,5]
[null,null,2010,6]
[null,null,2020,14]
[null,null,2030,25,{"$f":"D7","v":8.989399293286219}]
[null,"Total Transport CO2e Emissions (Low Carbon Scenario) ",2020,8.4]
[null,null,2030,18.87,{"$f":"D7","v":8.989399293286219}]
[null,"Historical Growth in CO2e Emissions  (%) Transport Sector","1990-2010",2,null,"Figure 1: Projected Transport Emissions: BAU, Low Carbon Scenario, and Transport Target"]
[null,"Growth Forecast CO2e Emissions (%)BAU-Transport Sector","2010-2030",3.166666666666667]
[null,"Reduction with BAU (%) - Transport (2020)",null,-0.4]
[null,"Reduction with BAU (%) - Transport (2030)",null,-0.24519999999999997]
[null,"Transport Share in Total Economy-wide Emissions",1990,9.4339622641509441E-2]
[null,null,2000,0.16233766233766234]
[null,null,2010,0.21201413427561838]
[null,null,"2030(BAU)",0.36656891495601174]
[null,null,"2030 (Low)",0.27668621700879764]
[null,"Gap Between INDC Target and Average Low Carbon Scenario (%)",null,1.0991391509433965]
[null,"Cumulative Increase in Transport CO2 (2010-2030) MT (avg)","Baseline",299.74196844310183]
[null,null,"Low Carbon",213.20506176420264]
[null,"Cumulative Reduction in Transport (2010-2030) MT (avg)",null,86.536906678899186]
[null,"Cumulative Gap Between INDC Target and Average Low Carbon Scenario (MT)",null,-57.82015749560918]
[null,"Cumulative Gap Between INDC Target and BAU (MT)",null,-144.35706417450837]
[]
[]
[null,null,null,null,null,"Figure 2: Transport Share of Economy-Wide Emissions"]
[]
[null,"TIER II FACTSHEET SOURCES"]
[]
[null,"Table 1: Historic and Projected Emissions"]
[null,"Historic Emissions","Submitted National Communications","http://unfccc.int/national_reports/non-annex_i_natcom/submitted_natcom/items/653.php"]
[null,null,"UNFCCC: INDCs as communicated by Parties","http://www4.unfccc.int/submissions/indc/Submission%20Pages/submissions.aspx"]
[null,null,"Submitted Biennial Update Reports","http://unfccc.int/national_reports/non-annex_i_natcom/reporting_on_climate_change/items/8722.php"]
[null,null,"The Climate Pledge INDC Tool","http://infographics.pbl.nl/indc/"]
[null,null,"CAIT Climate Data Explorer","http://cait.wri.org/"]
[null,null,"Climate Equity Reference Calculator","http://gdrights.org/calculator-about/"]
[null,null,"World Bank - World Development Indicators","http://data.worldbank.org/data-catalog/world-development-indicators"]
[null,null,"UNEP Pledge Pipeline Tool","http://www.unep.org/climatechange/pledgepipeline/"]
[null,null,"Climate Action Tracker","http://climateactiontracker.org/"]
[null,"BAU Emissions Projections","Submitted National Communications","http://unfccc.int/national_reports/non-annex_i_natcom/submitted_natcom/items/653.php"]
[null,null,"UNFCCC: INDCs as communicated by Parties","http://www4.unfccc.int/submissions/indc/Submission%20Pages/submissions.aspx"]
[null,null,"Submitted Biennial Update Reports","http://unfccc.int/national_reports/non-annex_i_natcom/reporting_on_climate_change/items/8722.php"]
[null,null,"The Climate Pledge INDC Tool","http://infographics.pbl.nl/indc/"]
[null,null,"Climate Equity Reference Calculator","http://gdrights.org/calculator-about/"]
[null,null,"World Bank - World Development Indicators","http://data.worldbank.org/data-catalog/world-development-indicators"]
[null,null,"UNEP Pledge Pipeline Tool","http://www.unep.org/climatechange/pledgepipeline/"]
[null,null,"Climate Action Tracker","http://climateactiontracker.org/"]
[null,"INDC Targets","UNFCCC: INDCs as communicated by Parties","http://www4.unfccc.int/submissions/indc/Submission%20Pages/submissions.aspx"]
[]
[null,"Figure 1: Projected Transport Emissions: BAU, Low Carbon Scenario, and Derived Target"]
[null,"Derived from Table 1: Historic and Projected Emissions"]
[]
[null,"Figure 2: Transport Share of Economy-Wide Emissions"]
[null,"Derived from Table 1: Historic and Projected Emissions"]

{"sheet":"Turkey","index":74,"n_rows":67,"n_cols":6,"rows_kept":67,"cut":false,"hidden":false,"merged":[[21,5,21,11],[22,5,22,11],[1,1,1,3],[2,1,2,2],[3,1,3,2],[4,1,4,2],[5,1,5,2],[6,1,6,2],[33,1,33,2],[7,1,11,1],[12,1,13,1],[14,1,18,1],[19,1,20,1],[23,1,23,2],[24,1,24,2],[25,1,29,1],[30,1,30,2],[31,1,32,1],[34,1,34,2],[35,1,35,2],[38,5,38,11],[43,1,51,1],[52,1,59,1]]}
[]
[null,"Table 1: Historic and Projected Emissions"]
[null,"Country Name",null,"Turkey"]
[null,"Economy Wide CO2e Emissions Target (INDC)",null,"246 MT reduction in 2030 from BAU"]
[null,"Total Country CO2e Emissions Under Target (by Target Year) (MT)",null,929]
[null,"Target Year",null,2030]
[null,"Transport CO2 Emissions Target (based on share of total emissions @ 2010)",null,107.91055140488589]
[null,"Total Country CO2e Emissions (BAU)",1990,203.6952]
[null,null,2000,306.13979999999998]
[null,null,2010,378.88130000000001]
[null,null,2020,673]
[null,null,2030,1175]
[null,"Total Country CO2e Emissions (Low Carbon Scenario)",2020]
[null,null,2030]
[null,"Total Transport CO2e Emissions (BAU)",1990,27.76,{"$f":"D7","v":107.91055140488589}]
[null,null,2000,34.799999999999997]
[null,null,2010,44.01]
[null,null,2020,84.758457437130829]
[null,null,2030,128.78248115596077,{"$f":"D7","v":107.91055140488589}]
[null,"Total Transport CO2e Emissions (Low Carbon Scenario) ",2020,74.874181290401339]
[null,null,2030,95.009553821112263,{"$f":"D7","v":107.91055140488589}]
[null,"Historical Growth in CO2e Emissions  (%) Transport Sector","1990-2010",0.58537463976945237,null,"Figure 1: Projected Transport Emissions: BAU, Low Carbon Scenario, and Transport Target"]
[null,"Growth Forecast CO2e Emissions (%)BAU-Transport Sector","2010-2030",1.9262095241072661]
[null,"Reduction with BAU (%) - Transport (2020)",null,-0.1166169895678093]
[null,"Reduction with BAU (%) - Transport (2030)",null,-0.26224783861671475]
[null,"Transport Share in Total Economy-wide Emissions",1990,0.13628205279260386]
[null,null,2000,0.11367355698279022]
[null,null,2010,0.11615775178136264]
[null,null,"2030(BAU)",0.10960211162209427]
[null,null,"2030 (Low)",8.085919474137214E-2]
[null,"Gap Between INDC Target and Average Low Carbon Scenario (%)",null,-0.11955269819137915]
[null,"Cumulative Increase in Transport CO2 (2010-2030) MT (avg)","Baseline",1760.9196904250148]
[null,null,"Low Carbon",1495.9298284752481]
[null,"Cumulative Reduction in Transport (2010-2030) MT (avg)",null,264.98986194976669]
[null,"Cumulative Gap Between INDC Target and Average Low Carbon Scenario (MT)",null,5.2121486425510284]
[null,"Cumulative Gap Between INDC Target and BAU (MT)",null,-259.77771330721566]
[]
[]
[null,null,null,null,null,"Figure 2: Transport Share of Economy-Wide Emissions"]
[]
[null,"TIER II FACTSHEET SOURCES"]
[]
[null,"Table 1: Historic and Projected Emissions"]
[null,"Historic Emissions","Submitted National Communications","http://unfccc.int/national_reports/non-annex_i_natcom/submitted_natcom/items/653.php"]
[null,null,"UNFCCC: INDCs as communicated by Parties","http://www4.unfccc.int/submissions/indc/Submission%20Pages/submissions.aspx"]
[null,null,"Submitted Biennial Update Reports","http://unfccc.int/national_reports/non-annex_i_natcom/reporting_on_climate_change/items/8722.php"]
[null,null,"The Climate Pledge INDC Tool","http://infographics.pbl.nl/indc/"]
[null,null,"CAIT Climate Data Explorer","http://cait.wri.org/"]
[null,null,"Climate Equity Reference Calculator","http://gdrights.org/calculator-about/"]
[null,null,"World Bank - World Development Indicators","http://data.worldbank.org/data-catalog/world-development-indicators"]
[null,null,"UNEP Pledge Pipeline Tool","http://www.unep.org/climatechange/pledgepipeline/"]
[null,null,"Climate Action Tracker","http://climateactiontracker.org/"]
[null,"BAU Emissions Projections","Submitted National Communications","http://unfccc.int/national_reports/non-annex_i_natcom/submitted_natcom/items/653.php"]
[null,null,"UNFCCC: INDCs as communicated by Parties","http://www4.unfccc.int/submissions/indc/Submission%20Pages/submissions.aspx"]
[null,null,"Submitted Biennial Update Reports","http://unfccc.int/national_reports/non-annex_i_natcom/reporting_on_climate_change/items/8722.php"]
[null,null,"The Climate Pledge INDC Tool","http://infographics.pbl.nl/indc/"]
[null,null,"Climate Equity Reference Calculator","http://gdrights.org/calculator-about/"]
[null,null,"World Bank - World Development Indicators","http://data.worldbank.org/data-catalog/world-development-indicators"]
[null,null,"UNEP Pledge Pipeline Tool","http://www.unep.org/climatechange/pledgepipeline/"]
[null,null,"Climate Action Tracker","http://climateactiontracker.org/"]
[null,"INDC Targets","UNFCCC: INDCs as communicated by Parties","http://www4.unfccc.int/submissions/indc/Submission%20Pages/submissions.aspx"]
[]
[null,"Figure 1: Projected Transport Emissions: BAU, Low Carbon Scenario, and Derived Target"]
[null,"Derived from Table 1: Historic and Projected Emissions"]
[]
[null,"Figure 2: Transport Share of Economy-Wide Emissions"]
[null,"Derived from Table 1: Historic and Projected Emissions"]

{"sheet":"Uganda","index":75,"n_rows":67,"n_cols":6,"rows_kept":67,"cut":false,"hidden":false,"merged":[[34,1,34,2],[35,1,35,2],[38,5,38,11],[43,1,51,1],[52,1,59,1],[33,1,33,2],[7,1,11,1],[12,1,13,1],[14,1,18,1],[19,1,20,1],[23,1,23,2],[24,1,24,2],[25,1,29,1],[30,1,30,2],[31,1,32,1],[21,5,21,11],[22,5,22,11],[1,1,1,3],[2,1,2,2],[3,1,3,2],[4,1,4,2],[5,1,5,2],[6,1,6,2]]}
[]
[null,"Table 1: Historic and Projected Emissions"]
[null,"Country Name",null,"Uganda"]
[null,"Economy Wide CO2e Emissions Target (INDC)",null,"22% reduction of overall national emissions in 2030"]
[null,"Total Country CO2e Emissions Under Target (by Target Year) (MT)",null,60.293999999999997]
[null,"Target Year",null,2030]
[null,"Transport CO2 Emissions Target (based on share of total emissions @ 2010)",null,10.542351003035828]
[null,"Total Country CO2e Emissions (BAU)",1990,41]
[null,null,2000,36.5]
[null,null,2010,39]
[null,null,2020,45.83]
[null,null,2030,77.3]
[null,"Total Country CO2e Emissions (Low Carbon Scenario)",2020]
[null,null,2030]
[null,"Total Transport CO2e Emissions (BAU)",1990,0.65209123321649998,{"$f":"D7","v":10.542351003035828}]
[null,null,2000,0.80804365950000001]
[null,null,2010,3.9]
[null,null,2020,7.4564220502039031]
[null,null,2030,15.97325909550883,{"$f":"D7","v":10.542351003035828}]
[null,"Total Transport CO2e Emissions (Low Carbon Scenario) ",2020,6.5868765577620918]
[null,null,2030,11.784306422046861,{"$f":"D7","v":10.542351003035828}]
[null,"Historical Growth in CO2e Emissions  (%) Transport Sector","1990-2010",4.9807582150167722,null,"Figure 1: Projected Transport Emissions: BAU, Low Carbon Scenario, and Transport Target"]
[null,"Growth Forecast CO2e Emissions (%)BAU-Transport Sector","2010-2030",3.0957074603868797]
[null,"Reduction with BAU (%) - Transport (2020)",null,-0.11661698956780919]
[null,"Reduction with BAU (%) - Transport (2030)",null,-0.26224783861671463]
[null,"Transport Share in Total Economy-wide Emissions",1990,1.5904664224792683E-2]
[null,null,2000,2.2138182452054796E-2]
[null,null,2010,9.9999999999999992E-2]
[null,null,"2030(BAU)",0.20663983305962264]
[null,null,"2030 (Low)",0.15244898346761787]
[null,"Gap Between INDC Target and Average Low Carbon Scenario (%)",null,0.11780630512618995]
[null,"Cumulative Increase in Transport CO2 (2010-2030) MT (avg)","Baseline",176.67750230406287]
[null,null,"Low Carbon",148.4959021727299]
[null,"Cumulative Reduction in Transport (2010-2030) MT (avg)",null,28.181600131332971]
[null,"Cumulative Gap Between INDC Target and Average Low Carbon Scenario (MT)",null,-7.6552797545027715]
[null,"Cumulative Gap Between INDC Target and BAU (MT)",null,-35.836879885835742]
[]
[]
[null,null,null,null,null,"Figure 2: Transport Share of Economy-Wide Emissions"]
[]
[null,"TIER II FACTSHEET SOURCES"]
[]
[null,"Table 1: Historic and Projected Emissions"]
[null,"Historic Emissions","Submitted National Communications","http://unfccc.int/national_reports/non-annex_i_natcom/submitted_natcom/items/653.php"]
[null,null,"UNFCCC: INDCs as communicated by Parties","http://www4.unfccc.int/submissions/indc/Submission%20Pages/submissions.aspx"]
[null,null,"Submitted Biennial Update Reports","http://unfccc.int/national_reports/non-annex_i_natcom/reporting_on_climate_change/items/8722.php"]
[null,null,"The Climate Pledge INDC Tool","http://infographics.pbl.nl/indc/"]
[null,null,"CAIT Climate Data Explorer","http://cait.wri.org/"]
[null,null,"Climate Equity Reference Calculator","http://gdrights.org/calculator-about/"]
[null,null,"World Bank - World Development Indicators","http://data.worldbank.org/data-catalog/world-development-indicators"]
[null,null,"UNEP Pledge Pipeline Tool","http://www.unep.org/climatechange/pledgepipeline/"]
[null,null,"Climate Action Tracker","http://climateactiontracker.org/"]
[null,"BAU Emissions Projections","Submitted National Communications","http://unfccc.int/national_reports/non-annex_i_natcom/submitted_natcom/items/653.php"]
[null,null,"UNFCCC: INDCs as communicated by Parties","http://www4.unfccc.int/submissions/indc/Submission%20Pages/submissions.aspx"]
[null,null,"Submitted Biennial Update Reports","http://unfccc.int/national_reports/non-annex_i_natcom/reporting_on_climate_change/items/8722.php"]
[null,null,"The Climate Pledge INDC Tool","http://infographics.pbl.nl/indc/"]
[null,null,"Climate Equity Reference Calculator","http://gdrights.org/calculator-about/"]
[null,null,"World Bank - World Development Indicators","http://data.worldbank.org/data-catalog/world-development-indicators"]
[null,null,"UNEP Pledge Pipeline Tool","http://www.unep.org/climatechange/pledgepipeline/"]
[null,null,"Climate Action Tracker","http://climateactiontracker.org/"]
[null,"INDC Targets","UNFCCC: INDCs as communicated by Parties","http://www4.unfccc.int/submissions/indc/Submission%20Pages/submissions.aspx"]
[]
[null,"Figure 1: Projected Transport Emissions: BAU, Low Carbon Scenario, and Derived Target"]
[null,"Derived from Table 1: Historic and Projected Emissions"]
[]
[null,"Figure 2: Transport Share of Economy-Wide Emissions"]
[null,"Derived from Table 1: Historic and Projected Emissions"]

{"sheet":"United Republic of Tanzania","index":76,"n_rows":67,"n_cols":6,"rows_kept":67,"cut":false,"hidden":false,"merged":[[21,5,21,11],[22,5,22,11],[1,1,1,3],[2,1,2,2],[3,1,3,2],[4,1,4,2],[5,1,5,2],[6,1,6,2],[33,1,33,2],[7,1,11,1],[12,1,13,1],[14,1,18,1],[19,1,20,1],[23,1,23,2],[24,1,24,2],[25,1,29,1],[30,1,30,2],[31,1,32,1],[34,1,34,2],[35,1,35,2],[38,5,38,11],[43,1,51,1],[52,1,59,1]]}
[]
[null,"Table 1: Historic and Projected Emissions"]
[null,"Country Name",null,"United Republic of Tanzania"]
[null,"Economy Wide CO2e Emissions Target (INDC)",null," 10-20% reduction by 2030 relative to the BAU"]
[null,"Total Country CO2e Emissions Under Target (by Target Year) (MT)",null,116]
[null,"Target Year",null,2030]
[null,"Transport CO2 Emissions Target (based on share of total emissions @ 2010)",null,5.2183595750840697]
[null,"Total Country CO2e Emissions (BAU)",1990,41.831299999999999]
[null,null,2000,47.680100000000003]
[null,null,2010,67.354500000000002]
[null,null,2020,113]
[null,null,2030,145]
[null,"Total Country CO2e Emissions (Low Carbon Scenario)",2020]
[null,null,2030]
[null,"Total Transport CO2e Emissions (BAU)",1990,0.69,{"$f":"D7","v":5.2183595750840697}]
[null,null,2000,1.23]
[null,null,2010,3.03]
[null,null,2020,8.4600000000000009]
[null,null,2030,16.899999999999999,{"$f":"D7","v":5.2183595750840697}]
[null,"Total Transport CO2e Emissions (Low Carbon Scenario) ",2020,7.4734202682563353]
[null,null,2030,12.46801152737752,{"$f":"D7","v":5.2183595750840697}]
[null,"Historical Growth in CO2e Emissions  (%) Transport Sector","1990-2010",3.3913043478260869,null,"Figure 1: Projected Transport Emissions: BAU, Low Carbon Scenario, and Transport Target"]
[null,"Growth Forecast CO2e Emissions (%)BAU-Transport Sector","2010-2030",4.5775577557755778]
[null,"Reduction with BAU (%) - Transport (2020)",null,-0.11661698956780919]
[null,"Reduction with BAU (%) - Transport (2030)",null,-0.26224783861671475]
[null,"Transport Share in Total Economy-wide Emissions",1990,1.6494825644911823E-2]
[null,null,2000,2.5796925761481203E-2]
[null,null,2010,4.4985858405897153E-2]
[null,null,"2030(BAU)",0.11655172413793102]
[null,null,"2030 (Low)",8.5986286395707032E-2]
[null,"Gap Between INDC Target and Average Low Carbon Scenario (%)",null,1.3892587982836839]
[null,"Cumulative Increase in Transport CO2 (2010-2030) MT (avg)","Baseline",184.91513746222643]
[null,null,"Low Carbon",154.608634481217]
[null,"Cumulative Reduction in Transport (2010-2030) MT (avg)",null,30.30650298100943]
[null,"Cumulative Gap Between INDC Target and Average Low Carbon Scenario (MT)",null,-69.968933141973139]
[null,"Cumulative Gap Between INDC Target and BAU (MT)",null,-100.27543612298257]
[]
[]
[null,null,null,null,null,"Figure 2: Transport Share of Economy-Wide Emissions"]
[]
[null,"TIER II FACTSHEET SOURCES"]
[]
[null,"Table 1: Historic and Projected Emissions"]
[null,"Historic Emissions","Submitted National Communications","http://unfccc.int/national_reports/non-annex_i_natcom/submitted_natcom/items/653.php"]
[null,null,"UNFCCC: INDCs as communicated by Parties","http://www4.unfccc.int/submissions/indc/Submission%20Pages/submissions.aspx"]
[null,null,"Submitted Biennial Update Reports","http://unfccc.int/national_reports/non-annex_i_natcom/reporting_on_climate_change/items/8722.php"]
[null,null,"The Climate Pledge INDC Tool","http://infographics.pbl.nl/indc/"]
[null,null,"CAIT Climate Data Explorer","http://cait.wri.org/"]
[null,null,"Climate Equity Reference Calculator","http://gdrights.org/calculator-about/"]
[null,null,"World Bank - World Development Indicators","http://data.worldbank.org/data-catalog/world-development-indicators"]
[null,null,"UNEP Pledge Pipeline Tool","http://www.unep.org/climatechange/pledgepipeline/"]
[null,null,"Climate Action Tracker","http://climateactiontracker.org/"]
[null,"BAU Emissions Projections","Submitted National Communications","http://unfccc.int/national_reports/non-annex_i_natcom/submitted_natcom/items/653.php"]
[null,null,"UNFCCC: INDCs as communicated by Parties","http://www4.unfccc.int/submissions/indc/Submission%20Pages/submissions.aspx"]
[null,null,"Submitted Biennial Update Reports","http://unfccc.int/national_reports/non-annex_i_natcom/reporting_on_climate_change/items/8722.php"]
[null,null,"The Climate Pledge INDC Tool","http://infographics.pbl.nl/indc/"]
[null,null,"Climate Equity Reference Calculator","http://gdrights.org/calculator-about/"]
[null,null,"World Bank - World Development Indicators","http://data.worldbank.org/data-catalog/world-development-indicators"]
[null,null,"UNEP Pledge Pipeline Tool","http://www.unep.org/climatechange/pledgepipeline/"]
[null,null,"Climate Action Tracker","http://climateactiontracker.org/"]
[null,"INDC Targets","UNFCCC: INDCs as communicated by Parties","http://www4.unfccc.int/submissions/indc/Submission%20Pages/submissions.aspx"]
[]
[null,"Figure 1: Projected Transport Emissions: BAU, Low Carbon Scenario, and Derived Target"]
[null,"Derived from Table 1: Historic and Projected Emissions"]
[]
[null,"Figure 2: Transport Share of Economy-Wide Emissions"]
[null,"Derived from Table 1: Historic and Projected Emissions"]

{"sheet":"Uruguay","index":77,"n_rows":67,"n_cols":6,"rows_kept":67,"cut":false,"hidden":false,"merged":[[21,5,21,11],[22,5,22,11],[1,1,1,3],[2,1,2,2],[3,1,3,2],[4,1,4,2],[5,1,5,2],[6,1,6,2],[33,1,33,2],[7,1,11,1],[12,1,13,1],[14,1,18,1],[19,1,20,1],[23,1,23,2],[24,1,24,2],[25,1,29,1],[30,1,30,2],[31,1,32,1],[34,1,34,2],[35,1,35,2],[38,5,38,11],[43,1,51,1],[52,1,59,1]]}
[]
[null,"Table 1: Historic and Projected Emissions"]
[null,"Country Name",null,"Uruguay"]
[null,"Economy Wide CO2e Emissions Target (INDC)",null,"Reduce emission intensity per unit of GDP by 40% below 1990\n"]
[null,"Total Country CO2e Emissions Under Target (by Target Year) (MT)"]
[null,"Target Year",null,2030]
[null,"Transport CO2 Emissions Target (based on share of total emissions @ 2010)",null,7]
[null,"Total Country CO2e Emissions (BAU)",1990,25.39]
[null,null,2000,29.59]
[null,null,2010,33.65]
[null,null,2020,39.4]
[null,null,2030,47.1]
[null,"Total Country CO2e Emissions (Low Carbon Scenario)",2020]
[null,null,2030]
[null,"Total Transport CO2e Emissions (BAU)",1990,1.5,{"$f":"D7","v":7}]
[null,null,2000,2.41]
[null,null,2010,2.95]
[null,null,2020,4.3407177661476215]
[null,null,2030,6.2673171684971365,{"$f":"D7","v":7}]
[null,"Total Transport CO2e Emissions (Low Carbon Scenario) ",2020,3.8345163276959804]
[null,null,2030,4.6237267871333341,{"$f":"D7","v":7}]
[null,"Historical Growth in CO2e Emissions  (%) Transport Sector","1990-2010",0.96666666666666679,null,"Figure 1: Projected Transport Emissions: BAU, Low Carbon Scenario, and Transport Target"]
[null,"Growth Forecast CO2e Emissions (%)BAU-Transport Sector","2010-2030",1.1245142944058086]
[null,"Reduction with BAU (%) - Transport (2020)",null,-0.11661698956780919]
[null,"Reduction with BAU (%) - Transport (2030)",null,-0.26224783861671475]
[null,"Transport Share in Total Economy-wide Emissions",1990,5.9078377313903113E-2]
[null,null,2000,8.1446434606285908E-2]
[null,null,2010,8.7667161961367021E-2]
[null,null,"2030(BAU)",0.13306405877913241]
[null,null,"2030 (Low)",9.8168296966737456E-2]
[null,"Gap Between INDC Target and Average Low Carbon Scenario (%)",null,-0.3394676018380951]
[null,"Cumulative Increase in Transport CO2 (2010-2030) MT (avg)","Baseline",93.07789268473411]
[null,null,"Low Carbon",79.687733434217876]
[null,"Cumulative Reduction in Transport (2010-2030) MT (avg)",null,13.390159250516234]
[null,"Cumulative Gap Between INDC Target and Average Low Carbon Scenario (MT)",null,19.040458349162563]
[null,"Cumulative Gap Between INDC Target and BAU (MT)",null,5.6502990986463288]
[]
[]
[null,null,null,null,null,"Figure 2: Transport Share of Economy-Wide Emissions"]
[]
[null,"TIER II FACTSHEET SOURCES"]
[]
[null,"Table 1: Historic and Projected Emissions"]
[null,"Historic Emissions","Submitted National Communications","http://unfccc.int/national_reports/non-annex_i_natcom/submitted_natcom/items/653.php"]
[null,null,"UNFCCC: INDCs as communicated by Parties","http://www4.unfccc.int/submissions/indc/Submission%20Pages/submissions.aspx"]
[null,null,"Submitted Biennial Update Reports","http://unfccc.int/national_reports/non-annex_i_natcom/reporting_on_climate_change/items/8722.php"]
[null,null,"The Climate Pledge INDC Tool","http://infographics.pbl.nl/indc/"]
[null,null,"CAIT Climate Data Explorer","http://cait.wri.org/"]
[null,null,"Climate Equity Reference Calculator","http://gdrights.org/calculator-about/"]
[null,null,"World Bank - World Development Indicators","http://data.worldbank.org/data-catalog/world-development-indicators"]
[null,null,"UNEP Pledge Pipeline Tool","http://www.unep.org/climatechange/pledgepipeline/"]
[null,null,"Climate Action Tracker","http://climateactiontracker.org/"]
[null,"BAU Emissions Projections","Submitted National Communications","http://unfccc.int/national_reports/non-annex_i_natcom/submitted_natcom/items/653.php"]
[null,null,"UNFCCC: INDCs as communicated by Parties","http://www4.unfccc.int/submissions/indc/Submission%20Pages/submissions.aspx"]
[null,null,"Submitted Biennial Update Reports","http://unfccc.int/national_reports/non-annex_i_natcom/reporting_on_climate_change/items/8722.php"]
[null,null,"The Climate Pledge INDC Tool","http://infographics.pbl.nl/indc/"]
[null,null,"Climate Equity Reference Calculator","http://gdrights.org/calculator-about/"]
[null,null,"World Bank - World Development Indicators","http://data.worldbank.org/data-catalog/world-development-indicators"]
[null,null,"UNEP Pledge Pipeline Tool","http://www.unep.org/climatechange/pledgepipeline/"]
[null,null,"Climate Action Tracker","http://climateactiontracker.org/"]
[null,"INDC Targets","UNFCCC: INDCs as communicated by Parties","http://www4.unfccc.int/submissions/indc/Submission%20Pages/submissions.aspx"]
[]
[null,"Figure 1: Projected Transport Emissions: BAU, Low Carbon Scenario, and Derived Target"]
[null,"Derived from Table 1: Historic and Projected Emissions"]
[]
[null,"Figure 2: Transport Share of Economy-Wide Emissions"]
[null,"Derived from Table 1: Historic and Projected Emissions"]

{"sheet":"Vanuatu","index":78,"n_rows":67,"n_cols":6,"rows_kept":67,"cut":false,"hidden":false,"merged":[[21,5,21,11],[22,5,22,11],[1,1,1,3],[2,1,2,2],[3,1,3,2],[4,1,4,2],[5,1,5,2],[6,1,6,2],[33,1,33,2],[7,1,11,1],[12,1,13,1],[14,1,18,1],[19,1,20,1],[23,1,23,2],[24,1,24,2],[25,1,29,1],[30,1,30,2],[31,1,32,1],[34,1,34,2],[35,1,35,2],[38,5,38,11],[43,1,51,1],[52,1,59,1]]}
[]
[null,"Table 1: Historic and Projected Emissions"]
[null,"Country Name",null,"Vanuatu"]
[null,"Economy Wide CO2e Emissions Target (INDC)",null,"100% below BAU for electricity & 30% for energy sector"]
[null,"Total Country CO2e Emissions Under Target (by Target Year) (MT)",null,0.16799999999999998]
[null,"Target Year",null,2030]
[null,"Transport CO2 Emissions Target (based on share of total emissions @ 2010)",null,4.652307692307691E-2]
[null,"Total Country CO2e Emissions (BAU)",1990,5.5149999999999998E-2]
[null,null,2000]
[null,null,2010,0.13]
[null,null,2020,0.17499999999999999]
[null,null,2030,0.24]
[null,"Total Country CO2e Emissions (Low Carbon Scenario)",2020]
[null,null,2030]
[null,"Total Transport CO2e Emissions (BAU)",1990,3.6769999999999997E-2,{"$f":"D7","v":4.652307692307691E-2}]
[null,null,2000]
[null,null,2010,3.5999999999999997E-2]
[null,null,2020,5.3892732069086402E-2]
[null,null,2030,8.3538779504172808E-2,{"$f":"D7","v":4.652307692307691E-2}]
[null,"Total Transport CO2e Emissions (Low Carbon Scenario) ",2020,4.7607923895605017E-2]
[null,null,2030,6.1630915138525179E-2,{"$f":"D7","v":4.652307692307691E-2}]
[null,"Historical Growth in CO2e Emissions  (%) Transport Sector","1990-2010",-2.0940984498232229E-2,null,"Figure 1: Projected Transport Emissions: BAU, Low Carbon Scenario, and Transport Target"]
[null,"Growth Forecast CO2e Emissions (%)BAU-Transport Sector","2010-2030",1.3205216528936892]
[null,"Reduction with BAU (%) - Transport (2020)",null,-0.11661698956780919]
[null,"Reduction with BAU (%) - Transport (2030)",null,-0.26224783861671475]
[null,"Transport Share in Total Economy-wide Emissions",1990,0.66672710788757927]
[null,null,2000]
[null,null,2010,0.27692307692307688]
[null,null,"2030(BAU)",0.3480782479340534]
[null,null,"2030 (Low)",0.25679547974385492]
[null,"Gap Between INDC Target and Average Low Carbon Scenario (%)",null,0.32473858598020433]
[null,"Cumulative Increase in Transport CO2 (2010-2030) MT (avg)","Baseline",1.1797651440984855]
[null,null,"Low Carbon",1.0073929814437326]
[null,"Cumulative Reduction in Transport (2010-2030) MT (avg)",null,0.17237216265475297]
[null,"Cumulative Gap Between INDC Target and Average Low Carbon Scenario (MT)",null,-0.1453818886326792]
[null,"Cumulative Gap Between INDC Target and BAU (MT)",null,-0.31775405128743217]
[]
[]
[null,null,null,null,null,"Figure 2: Transport Share of Economy-Wide Emissions"]
[]
[null,"TIER II FACTSHEET SOURCES"]
[]
[null,"Table 1: Historic and Projected Emissions"]
[null,"Historic Emissions","Submitted National Communications","http://unfccc.int/national_reports/non-annex_i_natcom/submitted_natcom/items/653.php"]
[null,null,"UNFCCC: INDCs as communicated by Parties","http://www4.unfccc.int/submissions/indc/Submission%20Pages/submissions.aspx"]
[null,null,"Submitted Biennial Update Reports","http://unfccc.int/national_reports/non-annex_i_natcom/reporting_on_climate_change/items/8722.php"]
[null,null,"The Climate Pledge INDC Tool","http://infographics.pbl.nl/indc/"]
[null,null,"CAIT Climate Data Explorer","http://cait.wri.org/"]
[null,null,"Climate Equity Reference Calculator","http://gdrights.org/calculator-about/"]
[null,null,"World Bank - World Development Indicators","http://data.worldbank.org/data-catalog/world-development-indicators"]
[null,null,"UNEP Pledge Pipeline Tool","http://www.unep.org/climatechange/pledgepipeline/"]
[null,null,"Climate Action Tracker","http://climateactiontracker.org/"]
[null,"BAU Emissions Projections","Submitted National Communications","http://unfccc.int/national_reports/non-annex_i_natcom/submitted_natcom/items/653.php"]
[null,null,"UNFCCC: INDCs as communicated by Parties","http://www4.unfccc.int/submissions/indc/Submission%20Pages/submissions.aspx"]
[null,null,"Submitted Biennial Update Reports","http://unfccc.int/national_reports/non-annex_i_natcom/reporting_on_climate_change/items/8722.php"]
[null,null,"The Climate Pledge INDC Tool","http://infographics.pbl.nl/indc/"]
[null,null,"Climate Equity Reference Calculator","http://gdrights.org/calculator-about/"]
[null,null,"World Bank - World Development Indicators","http://data.worldbank.org/data-catalog/world-development-indicators"]
[null,null,"UNEP Pledge Pipeline Tool","http://www.unep.org/climatechange/pledgepipeline/"]
[null,null,"Climate Action Tracker","http://climateactiontracker.org/"]
[null,"INDC Targets","UNFCCC: INDCs as communicated by Parties","http://www4.unfccc.int/submissions/indc/Submission%20Pages/submissions.aspx"]
[]
[null,"Figure 1: Projected Transport Emissions: BAU, Low Carbon Scenario, and Derived Target"]
[null,"Derived from Table 1: Historic and Projected Emissions"]
[]
[null,"Figure 2: Transport Share of Economy-Wide Emissions"]
[null,"Derived from Table 1: Historic and Projected Emissions"]

{"sheet":"Zambia","index":79,"n_rows":67,"n_cols":6,"rows_kept":67,"cut":false,"hidden":false,"merged":[[21,5,21,11],[22,5,22,11],[1,1,1,3],[2,1,2,2],[3,1,3,2],[4,1,4,2],[5,1,5,2],[6,1,6,2],[33,1,33,2],[7,1,11,1],[12,1,13,1],[14,1,18,1],[19,1,20,1],[23,1,23,2],[24,1,24,2],[25,1,29,1],[30,1,30,2],[31,1,32,1],[34,1,34,2],[35,1,35,2],[38,5,38,11],[43,1,51,1],[52,1,59,1]]}
[]
[null,"Table 1: Historic and Projected Emissions"]
[null,"Country Name",null,"Zambia"]
[null,"Economy Wide CO2e Emissions Target (INDC)",null,"total emission reduction of 38,000GgCO2eq"]
[null,"Total Country CO2e Emissions Under Target (by Target Year) (MT)",null,43]
[null,"Target Year",null,2030]
[null,"Transport CO2 Emissions Target (based on share of total emissions @ 2010)",null,0.98254999999999992]
[null,"Total Country CO2e Emissions (BAU)",1990,41.552100000000003]
[null,null,2000,35.418999999999997]
[null,null,2010,60]
[null,null,2020,70]
[null,null,2030,81]
[null,"Total Country CO2e Emissions (Low Carbon Scenario)",2020]
[null,null,2030]
[null,"Total Transport CO2e Emissions (BAU)",1990,0.79800000000000004,{"$f":"D7","v":0.98254999999999992}]
[null,null,2000,0.72]
[null,null,2010,1.371]
[null,null,2020,2]
[null,null,2030,2.6989999999999998,{"$f":"D7","v":0.98254999999999992}]
[null,"Total Transport CO2e Emissions (Low Carbon Scenario) ",2020,1.7667660208643816]
[null,null,2030,2.46,{"$f":"D7","v":0.98254999999999992}]
[null,"Historical Growth in CO2e Emissions  (%) Transport Sector","1990-2010",0.71804511278195471,null,"Figure 1: Projected Transport Emissions: BAU, Low Carbon Scenario, and Transport Target"]
[null,"Growth Forecast CO2e Emissions (%)BAU-Transport Sector","2010-2030",0.96863603209336246]
[null,"Reduction with BAU (%) - Transport (2020)",null,-0.11661698956780919]
[null,"Reduction with BAU (%) - Transport (2030)",null,-8.8551315301963696E-2]
[null,"Transport Share in Total Economy-wide Emissions",1990,1.9204805533294345E-2]
[null,null,2000,2.0328072503458597E-2]
[null,null,2010,2.2849999999999999E-2]
[null,null,"2030(BAU)",3.3320987654320983E-2]
[null,null,"2030 (Low)",3.037037037037037E-2]
[null,"Gap Between INDC Target and Average Low Carbon Scenario (%)",null,1.5036893796753348]
[null,"Cumulative Increase in Transport CO2 (2010-2030) MT (avg)","Baseline",42.016930782891421]
[null,null,"Low Carbon",38.466481507236303]
[null,"Cumulative Reduction in Transport (2010-2030) MT (avg)",null,3.5504492756551187]
[null,"Cumulative Gap Between INDC Target and Average Low Carbon Scenario (MT)",null,-13.968952659069217]
[null,"Cumulative Gap Between INDC Target and BAU (MT)",null,-17.519401934724335]
[]
[]
[null,null,null,null,null,"Figure 2: Transport Share of Economy-Wide Emissions"]
[]
[null,"TIER II FACTSHEET SOURCES"]
[]
[null,"Table 1: Historic and Projected Emissions"]
[null,"Historic Emissions","Submitted National Communications","http://unfccc.int/national_reports/non-annex_i_natcom/submitted_natcom/items/653.php"]
[null,null,"UNFCCC: INDCs as communicated by Parties","http://www4.unfccc.int/submissions/indc/Submission%20Pages/submissions.aspx"]
[null,null,"Submitted Biennial Update Reports","http://unfccc.int/national_reports/non-annex_i_natcom/reporting_on_climate_change/items/8722.php"]
[null,null,"The Climate Pledge INDC Tool","http://infographics.pbl.nl/indc/"]
[null,null,"CAIT Climate Data Explorer","http://cait.wri.org/"]
[null,null,"Climate Equity Reference Calculator","http://gdrights.org/calculator-about/"]
[null,null,"World Bank - World Development Indicators","http://data.worldbank.org/data-catalog/world-development-indicators"]
[null,null,"UNEP Pledge Pipeline Tool","http://www.unep.org/climatechange/pledgepipeline/"]
[null,null,"Climate Action Tracker","http://climateactiontracker.org/"]
[null,"BAU Emissions Projections","Submitted National Communications","http://unfccc.int/national_reports/non-annex_i_natcom/submitted_natcom/items/653.php"]
[null,null,"UNFCCC: INDCs as communicated by Parties","http://www4.unfccc.int/submissions/indc/Submission%20Pages/submissions.aspx"]
[null,null,"Submitted Biennial Update Reports","http://unfccc.int/national_reports/non-annex_i_natcom/reporting_on_climate_change/items/8722.php"]
[null,null,"The Climate Pledge INDC Tool","http://infographics.pbl.nl/indc/"]
[null,null,"Climate Equity Reference Calculator","http://gdrights.org/calculator-about/"]
[null,null,"World Bank - World Development Indicators","http://data.worldbank.org/data-catalog/world-development-indicators"]
[null,null,"UNEP Pledge Pipeline Tool","http://www.unep.org/climatechange/pledgepipeline/"]
[null,null,"Climate Action Tracker","http://climateactiontracker.org/"]
[null,"INDC Targets","UNFCCC: INDCs as communicated by Parties","http://www4.unfccc.int/submissions/indc/Submission%20Pages/submissions.aspx"]
[]
[null,"Figure 1: Projected Transport Emissions: BAU, Low Carbon Scenario, and Derived Target"]
[null,"Derived from Table 1: Historic and Projected Emissions"]
[]
[null,"Figure 2: Transport Share of Economy-Wide Emissions"]
[null,"Derived from Table 1: Historic and Projected Emissions"]

{"sheet":"Zimbabwe","index":80,"n_rows":67,"n_cols":6,"rows_kept":67,"cut":false,"hidden":false,"merged":[[21,5,21,11],[22,5,22,11],[1,1,1,3],[2,1,2,2],[3,1,3,2],[4,1,4,2],[5,1,5,2],[6,1,6,2],[33,1,33,2],[7,1,11,1],[12,1,13,1],[14,1,18,1],[19,1,20,1],[23,1,23,2],[24,1,24,2],[25,1,29,1],[30,1,30,2],[31,1,32,1],[34,1,34,2],[35,1,35,2],[38,5,38,11],[43,1,51,1],[52,1,59,1]]}
[]
[null,"Table 1: Historic and Projected Emissions"]
[null,"Country Name",null,"Zimbabwe"]
[null,"Economy Wide CO2e Emissions Target (INDC)",null,"33%  below the projected \nBAU energy emissions per capita by 2030"]
[null,"Total Country CO2e Emissions Under Target (by Target Year) (MT)",null,44.74]
[null,"Target Year",null,2030]
[null,"Transport CO2 Emissions Target (based on share of total emissions @ 2010)",null,2.0976665344249286]
[null,"Total Country CO2e Emissions (BAU)",1990,32.823300000000003]
[null,null,2000,29.938500000000001]
[null,null,2010,24.9543]
[null,null,2020,50.7]
[null,null,2030,67.2]
[null,"Total Country CO2e Emissions (Low Carbon Scenario)",2020]
[null,null,2030]
[null,"Total Transport CO2e Emissions (BAU)",1990,2.0699999999999998,{"$f":"D7","v":2.0976665344249286}]
[null,null,2000,1.91]
[null,null,2010,1.17]
[null,null,2020,1.7949272247122208]
[null,null,2030,2.7914676977786055,{"$f":"D7","v":2.0976665344249286}]
[null,"Total Transport CO2e Emissions (Low Carbon Scenario) ",2020,1.5856082152729791]
[null,null,2030,2.0594113274677897,{"$f":"D7","v":2.0976665344249286}]
[null,"Historical Growth in CO2e Emissions  (%) Transport Sector","1990-2010",-0.43478260869565222,null,"Figure 1: Projected Transport Emissions: BAU, Low Carbon Scenario, and Transport Target"]
[null,"Growth Forecast CO2e Emissions (%)BAU-Transport Sector","2010-2030",1.3858698271612013]
[null,"Reduction with BAU (%) - Transport (2020)",null,-0.11661698956780908]
[null,"Reduction with BAU (%) - Transport (2030)",null,-0.26224783861671475]
[null,"Transport Share in Total Economy-wide Emissions",1990,6.3064956905612771E-2]
[null,null,2000,6.379745144212301E-2]
[null,null,2010,4.6885707072528579E-2]
[null,null,"2030(BAU)",4.1539697883610199E-2]
[null,null,"2030 (Low)",3.0646001896842107E-2]
[null,"Gap Between INDC Target and Average Low Carbon Scenario (%)",null,-1.8237029732481536E-2]
[null,"Cumulative Increase in Transport CO2 (2010-2030) MT (avg)","Baseline",39.155504523702263]
[null,null,"Low Carbon",33.411702915967346]
[null,"Cumulative Reduction in Transport (2010-2030) MT (avg)",null,5.7438016077349161]
[null,"Cumulative Gap Between INDC Target and Average Low Carbon Scenario (MT)",null,3.4855755592602122E-3]
[null,"Cumulative Gap Between INDC Target and BAU (MT)",null,-5.7403160321756559]
[]
[]
[null,null,null,null,null,"Figure 2: Transport Share of Economy-Wide Emissions"]
[]
[null,"TIER II FACTSHEET SOURCES"]
[]
[null,"Table 1: Historic and Projected Emissions"]
[null,"Historic Emissions","Submitted National Communications","http://unfccc.int/national_reports/non-annex_i_natcom/submitted_natcom/items/653.php"]
[null,null,"UNFCCC: INDCs as communicated by Parties","http://www4.unfccc.int/submissions/indc/Submission%20Pages/submissions.aspx"]
[null,null,"Submitted Biennial Update Reports","http://unfccc.int/national_reports/non-annex_i_natcom/reporting_on_climate_change/items/8722.php"]
[null,null,"The Climate Pledge INDC Tool","http://infographics.pbl.nl/indc/"]
[null,null,"CAIT Climate Data Explorer","http://cait.wri.org/"]
[null,null,"Climate Equity Reference Calculator","http://gdrights.org/calculator-about/"]
[null,null,"World Bank - World Development Indicators","http://data.worldbank.org/data-catalog/world-development-indicators"]
[null,null,"UNEP Pledge Pipeline Tool","http://www.unep.org/climatechange/pledgepipeline/"]
[null,null,"Climate Action Tracker","http://climateactiontracker.org/"]
[null,"BAU Emissions Projections","Submitted National Communications","http://unfccc.int/national_reports/non-annex_i_natcom/submitted_natcom/items/653.php"]
[null,null,"UNFCCC: INDCs as communicated by Parties","http://www4.unfccc.int/submissions/indc/Submission%20Pages/submissions.aspx"]
[null,null,"Submitted Biennial Update Reports","http://unfccc.int/national_reports/non-annex_i_natcom/reporting_on_climate_change/items/8722.php"]
[null,null,"The Climate Pledge INDC Tool","http://infographics.pbl.nl/indc/"]
[null,null,"Climate Equity Reference Calculator","http://gdrights.org/calculator-about/"]
[null,null,"World Bank - World Development Indicators","http://data.worldbank.org/data-catalog/world-development-indicators"]
[null,null,"UNEP Pledge Pipeline Tool","http://www.unep.org/climatechange/pledgepipeline/"]
[null,null,"Climate Action Tracker","http://climateactiontracker.org/"]
[null,"INDC Targets","UNFCCC: INDCs as communicated by Parties","http://www4.unfccc.int/submissions/indc/Submission%20Pages/submissions.aspx"]
[]
[null,"Figure 1: Projected Transport Emissions: BAU, Low Carbon Scenario, and Derived Target"]
[null,"Derived from Table 1: Historic and Projected Emissions"]
[]
[null,"Figure 2: Transport Share of Economy-Wide Emissions"]
[null,"Derived from Table 1: Historic and Projected Emissions"]